Workbook

Sheet Contents
A1: List of Supplementary Tables
A2: S1 | B2: List of 181 EDCs
A3: S2 | B3: Chemical-Gene Interaction
A4: S3 | B4: 1116 EDCs-Related Genes
A5: S4 | B5: eQTL-GWAS (whole blood) In Discovery Cohort
A6: S5 | B6: eQTL-GWAS (eQTLGen) In Discovery Cohort
A7: S6 | B7: eQTL-GWAS (Nucleus accumbens) In Discovery Cohort
A8: S7 | B8: eQTL-GWAS (Cerebellum) In Discovery Cohort
A9: S8 | B9: eQTL-GWAS (Cortex) In Discovery Cohort
A10: S9 | B10: eQTL-GWAS (Hippocampus) In Discovery Cohort
A11: S10 | B11: eQTL-GWAS (BA24) In Discovery Cohort
A12: S11 | B12: mQTL-GWAS In Discovery Cohort
A13: S12 | B13: pQTL-GWAS In Discovery Cohort
A14: S13 | B14: sQTL-GWAS in In Discovery Cohort
A15: S14 | B15: S14 mQTL-GWAS In Replication Cohort
A16: S15 | B16: S15 sQTL-eQTL In Discovery Cohort
A17: S16 | B17: S16 mQTL-eQTL In Discovery Cohort
A18: S17 | B18: S17 TWAS Analysis (whole blood)
A19: S18 | B19: S18 TWAS Analysis (Nucleus accumbens)
A20: S19 | B20: S19 TWAS Analysis (Cerebellum)
A21: S20 | B21: S20 TWAS Analysis (Cortex)
A22: S21 | B22: S21 TWAS Analysis (Hippocampus)
A23: S22 | B23: S22 TWAS Analysis (BA24)
A24: S23 | B24: S23 Interaction Between EDCs And Genes Associated With Migraine
A25: S24 | B25: S24 Molecular Docking Bonding Energy

Sheet S1 181 EDCs
A1: S1 List of 181 EDCs
A2: 1,2,3,4,7,8-hexachlorodibenzofuran
A3: 1,2,5,6-dibenzanthracene
A4: 1,2,7,8-tetrachlorodibenzofuran
A5: 1-hydroxybenzo(a)pyrene
A6: 2-(((3,5-dichlorophenyl)carbamoyl)oxy)-2-methyl-3-butenoic acid
A7: 2,2,2-trichloroethanol
A8: 2,2,4-trimethyl-1,3-pentanediol diisobutyrate
A9: 2,2'-methylenebis(4-methyl-6-tert-butylphenol)
A10: 2,2'-methylenebis(ethyl-6-tert-butylphenol)
A11: 2,4-di-tert-butylphenol
A12: 2,6-diisocyanatotoluene
A13: 2,6-xylenol
A14: 2,7-dihydroxynaphthalene
A15: 2-butenal
A16: 2-chloro-N-(4-chlorobiphenyl-2-yl)nicotinamide
A17: 2-ethylhexanol
A18: 2-ethylhexyl salicylate
A19: 2-isopropylphenol
A20: 2-methyl-4-isothiazolin-3-one
A21: 2-methylindole
A22: 2-sec-butylphenol
A23: 2-tert-butylphenol
A24: 2-toluidine
A25: 2-xylene
A26: 3-hydroxybenzo(a)pyrene
A27: 3-iodo-2-propynylbutylcarbamate
A28: 3-phenoxybenzylalcohol
A29: 4,4'-thiobis(6-tert-butyl-3-cresol)
A30: 4-cumylphenol
A31: 4-methyl-2,4-bis(4-hydroxyphenyl)pent-1-ene
A32: 4-phenylenediamine
A33: 4-xylene
A34: 6-methylquinoline
A35: 7,8-Dihydro-7,8-dihydroxybenzo(a)pyrene 9,10-oxide
A36: 9,10-dihydro-9,10-dihydroxybenzo(a)pyrene
A37: 9,10-Dimethyl-1,2-benzanthracene
A38: 9-hydroxybenzo(a)pyrene
A39: acenaphthylene
A40: Acetaldehyde
A41: acetochlor
A42: Acetone
A43: allyl alcohol
A44: alpha-naphthoflavone
A45: amitraz
A46: Ammonium Chloride
A47: antimony trichloride
A48: aristolochic acid I
A49: Barium
A50: barium chloride
A51: benz(a)anthracene
A52: benzo(a)pyrene
A53: benzo(a)pyrene
A54: benzo(b)fluoranthene
A55: benzo(j)fluoranthene
A56: benzyl salicylate
A57: bicalutamide
A58: bis(4-oxyphenyl)sulfide
A59: bisphenol E
A60: butachlor
A61: Captan
A62: carbamylhydrazine
A63: chloramine-T
A64: Chloroform
A65: chlortoluron
A66: chromous chloride
A67: chrysene
A68: cinnamaldehyde
A69: cumene
A70: cupric chloride
A71: cyclohexanone
A72: decanoic acid
A73: diallyl phthalate
A74: dibenzacridine
A75: dibenzothiophene
A76: dibromoacetonitrile
A77: Dicamba
A78: diethanolamine
A79: diethylamine
A80: diethylene glycol
A81: diethylhexyl phthalate
A82: dihydrocapsaicin
A83: dimethyl phthalate
A84: dinonylphthalate
A85: dioxybenzone
A86: ellipticine
A87: ethafluralin
A88: Ethanolamine
A89: ethyl salicylate
A90: flavone
A91: fluoranthene
A92: fluorotelomer alcohols
A93: flusilazole
A94: Flutamide
A95: flutolanil
A96: Glutaral
A97: imidacloprid
A98: indeno(1,2,3-cd)pyrene
A99: Iron
A100: isoeugenol
A101: isoprene
A102: isoprothiolane
A103: Lithium Chloride
A104: Magnesium Chloride
A105: mancozeb
A106: Masoprocol
A107: methamidophos
A108: Methanol
A109: methyl salicylate
A110: Methylcholanthrene
A111: methylethyl ketone
A112: N,N'-p-xylene-bis-((2,2'-hydroxyiminomethyl)pyridinium) dibromide
A113: naphthalene
A114: naphthenic acid
A115: N-dichlorofluoromethylthio-N',N'-dimethyl-N-p-tolylsulfamide
A116: n-hexanal
A117: Nitrous Oxide
A118: nonane
A119: nonylphenol
A120: octocrylene
A121: Oleic Acid
A122: Oxyquinoline
A123: Palmitic Acid
A124: perfluorobutyric acid
A125: perfluorododecanoic acid
A126: perfluorooctanesulfonamide
A127: perfluoropentanoic acid
A128: perfluorotetradecanoic acid
A129: perfluorotridecanoic acid
A130: perfluoroundecanoic acid
A131: phenanthrene
A132: phentin acetate
A133: pifithrin
A134: pirimicarb
A135: Potassium Chloride
A136: propylene
A137: Propylene Glycol
A138: pyrene
A139: pyridate
A140: quinoline
A141: retene
A142: Santowhite powder
A143: Selenic Acid
A144: Silver Nitrate
A145: sodium bromide
A146: Sodium Glutamate
A147: sodium molybdate(VI)
A148: Sodium Nitrite
A149: stearic acid
A150: Sucrose
A151: Sulfur Dioxide
A152: taleranol
A153: terbufos
A154: terbutylazine
A155: teriflunomide
A156: tetradifon
A157: thiacloprid
A158: Thiamethoxam
A159: thiocyanate
A160: titanium dioxide
A161: Toluene
A162: Toluene 2,4-Diisocyanate
A163: Tosyllysine Chloromethyl Ketone
A164: Tosylphenylalanyl Chloromethyl Ketone
A165: Toxaphene
A166: tri-(2-chloroisopropyl)phosphate
A167: tributyl phosphate
A168: tributyltin
A169: triclosan
A170: triethanolamine
A171: triflumizol
A172: Trifluralin
A173: triphenyl phosphate
A174: tris(1,3-dichloro-2-propyl)phosphate
A175: tris(2-butoxyethyl) phosphate
A176: tris(2-ethylhexyl)phosphate
A177: tyrosyl-valyl-alanyl-aspartic acid fluoromethyl ketone
A178: vinclozolin
A179: xanthohumol
A180: Zinc
A181: Zinc Acetate
A182: zinc chloride

Sheet S2 chemical-gene interaction
A1: S2 Chemical-Gene Interaction
A2: Chemical Name | B2: Gene Symbol
A3: 1,2,3,4,7,8-hexachlorodibenzofuran | B3: AHR
A4: 1,2,3,4,7,8-hexachlorodibenzofuran | B4: AHRR
A5: 1,2,3,4,7,8-hexachlorodibenzofuran | B5: CYP1A1
A6: 1,2,5,6-dibenzanthracene | B6: AMACR
A7: 1,2,5,6-dibenzanthracene | B7: ATG4C
A8: 1,2,5,6-dibenzanthracene | B8: BCL2L1
A9: 1,2,5,6-dibenzanthracene | B9: BCL3
A10: 1,2,5,6-dibenzanthracene | B10: CEACAM5
A11: 1,2,5,6-dibenzanthracene | B11: CYP1A1
A12: 1,2,5,6-dibenzanthracene | B12: CYP1A2
A13: 1,2,5,6-dibenzanthracene | B13: CYP2D6
A14: 1,2,5,6-dibenzanthracene | B14: DBI
A15: 1,2,5,6-dibenzanthracene | B15: ECE1
A16: 1,2,5,6-dibenzanthracene | B16: EPHX1
A17: 1,2,5,6-dibenzanthracene | B17: FABP1
A18: 1,2,5,6-dibenzanthracene | B18: FASN
A19: 1,2,5,6-dibenzanthracene | B19: GCK
A20: 1,2,5,6-dibenzanthracene | B20: GSTA1
A21: 1,2,5,6-dibenzanthracene | B21: GSTM1
A22: 1,2,5,6-dibenzanthracene | B22: HIF1A
A23: 1,2,5,6-dibenzanthracene | B23: HMGCR
A24: 1,2,5,6-dibenzanthracene | B24: IER3
A25: 1,2,5,6-dibenzanthracene | B25: LGALS3
A26: 1,2,5,6-dibenzanthracene | B26: MAPT
A27: 1,2,5,6-dibenzanthracene | B27: MT1E
A28: 1,2,5,6-dibenzanthracene | B28: NQO1
A29: 1,2,5,6-dibenzanthracene | B29: PCNA
A30: 1,2,5,6-dibenzanthracene | B30: RAD52
A31: 1,2,5,6-dibenzanthracene | B31: RECQL
A32: 1,2,5,6-dibenzanthracene | B32: RHOC
A33: 1,2,5,6-dibenzanthracene | B33: SERPINA3
A34: 1,2,5,6-dibenzanthracene | B34: SLC2A1
A35: 1,2,5,6-dibenzanthracene | B35: TGM2
A36: 1,2,5,6-dibenzanthracene | B36: UBE2A
A37: 1,2,5,6-dibenzanthracene | B37: UQCRB
A38: 1,2,5,6-dibenzanthracene | B38: VAT1
A39: 1,2,5,6-dibenzanthracene | B39: A2M
A40: 1,2,5,6-dibenzanthracene | B40: AHR
A41: 1,2,5,6-dibenzanthracene | B41: AKR1B1
A42: 1,2,5,6-dibenzanthracene | B42: AKR1C1
A43: 1,2,5,6-dibenzanthracene | B43: ALDOB
A44: 1,2,5,6-dibenzanthracene | B44: APOC3
A45: 1,2,5,6-dibenzanthracene | B45: AR
A46: 1,2,5,6-dibenzanthracene | B46: ATF3
A47: 1,2,5,6-dibenzanthracene | B47: CA3
A48: 1,2,5,6-dibenzanthracene | B48: CP
A49: 1,2,5,6-dibenzanthracene | B49: CRABP2
A50: 1,2,5,6-dibenzanthracene | B50: CYB5A
A51: 1,2,5,6-dibenzanthracene | B51: CYP1B1
A52: 1,2,5,6-dibenzanthracene | B52: CYP2B6
A53: 1,2,5,6-dibenzanthracene | B53: CYP2C9
A54: 1,2,5,6-dibenzanthracene | B54: CYP2E1
A55: 1,2,5,6-dibenzanthracene | B55: ERBB2
A56: 1,2,5,6-dibenzanthracene | B56: FGA
A57: 1,2,5,6-dibenzanthracene | B57: FGF9
A58: 1,2,5,6-dibenzanthracene | B58: FGG
A59: 1,2,5,6-dibenzanthracene | B59: FMO5
A60: 1,2,5,6-dibenzanthracene | B60: FOXF2
A61: 1,2,5,6-dibenzanthracene | B61: G6PD
A62: 1,2,5,6-dibenzanthracene | B62: H2AX
A63: 1,2,5,6-dibenzanthracene | B63: HAMP
A64: 1,2,5,6-dibenzanthracene | B64: ID2
A65: 1,2,5,6-dibenzanthracene | B65: IGF1
A66: 1,2,5,6-dibenzanthracene | B66: IGF2
A67: 1,2,5,6-dibenzanthracene | B67: IGFBP1
A68: 1,2,5,6-dibenzanthracene | B68: LGALS1
A69: 1,2,5,6-dibenzanthracene | B69: MCL1
A70: 1,2,5,6-dibenzanthracene | B70: NDC80
A71: 1,2,5,6-dibenzanthracene | B71: NFKBIA
A72: 1,2,5,6-dibenzanthracene | B72: NGFR
A73: 1,2,5,6-dibenzanthracene | B73: PAH
A74: 1,2,5,6-dibenzanthracene | B74: PIM1
A75: 1,2,5,6-dibenzanthracene | B75: SAT1
A76: 1,2,5,6-dibenzanthracene | B76: SCD
A77: 1,2,5,6-dibenzanthracene | B77: SPP1
A78: 1,2,5,6-dibenzanthracene | B78: TIMP1
A79: 1,2,5,6-dibenzanthracene | B79: TP53
A80: 1,2,5,6-dibenzanthracene | B80: TPO
A81: 1,2,5,6-dibenzanthracene | B81: TYROBP
A82: 1,2,5,6-dibenzanthracene | B82: UBD
A83: 1,2,5,6-dibenzanthracene | B83: VMP1
A84: 1,2,7,8-tetrachlorodibenzofuran | B84: AHR
A85: 1-hydroxybenzo(a)pyrene | B85: UGT2A1
A86: 2-(((3,5-dichlorophenyl)carbamoyl)oxy)-2-methyl-3-butenoic acid | B86: AR
A87: 2-(((3,5-dichlorophenyl)carbamoyl)oxy)-2-methyl-3-butenoic acid | B87: ESR1
A88: 2-(((3,5-dichlorophenyl)carbamoyl)oxy)-2-methyl-3-butenoic acid | B88: ESR2
A89: 2-(((3,5-dichlorophenyl)carbamoyl)oxy)-2-methyl-3-butenoic acid | B89: KLK3
A90: 2,2,2-trichloroethanol | B90: ESR2
A91: 2,2,2-trichloroethanol | B91: HLA-B
A92: 2,2,2-trichloroethanol | B92: IL1B
A93: 2,2,2-trichloroethanol | B93: IL6
A94: 2,2,2-trichloroethanol | B94: MYD88
A95: 2,2,2-trichloroethanol | B95: NFKBIA
A96: 2,2,2-trichloroethanol | B96: PSMB8
A97: 2,2,2-trichloroethanol | B97: PSMB9
A98: 2,2,2-trichloroethanol | B98: RELA
A99: 2,2,2-trichloroethanol | B99: TAP1
A100: 2,2,2-trichloroethanol | B100: TLR2
A101: 2,2,2-trichloroethanol | B101: TLR4
A102: 2,2,2-trichloroethanol | B102: TNF
A103: 2,2,4-trimethyl-1,3-pentanediol diisobutyrate | B103: ESR1
A104: 2,2,4-trimethyl-1,3-pentanediol diisobutyrate | B104: ESR2
A105: 2,2'-methylenebis(4-methyl-6-tert-butylphenol) | B105: ACP5
A106: 2,2'-methylenebis(4-methyl-6-tert-butylphenol) | B106: ADCY7
A107: 2,2'-methylenebis(4-methyl-6-tert-butylphenol) | B107: BLM
A108: 2,2'-methylenebis(4-methyl-6-tert-butylphenol) | B108: BRCA1
A109: 2,2'-methylenebis(4-methyl-6-tert-butylphenol) | B109: C4A
A110: 2,2'-methylenebis(4-methyl-6-tert-butylphenol) | B110: CD68
A111: 2,2'-methylenebis(4-methyl-6-tert-butylphenol) | B111: CDT1
A112: 2,2'-methylenebis(4-methyl-6-tert-butylphenol) | B112: CYBA
A113: 2,2'-methylenebis(4-methyl-6-tert-butylphenol) | B113: DBF4B
A114: 2,2'-methylenebis(4-methyl-6-tert-butylphenol) | B114: DDT
A115: 2,2'-methylenebis(4-methyl-6-tert-butylphenol) | B115: DDX23
A116: 2,2'-methylenebis(4-methyl-6-tert-butylphenol) | B116: DNA2
A117: 2,2'-methylenebis(4-methyl-6-tert-butylphenol) | B117: FN1
A118: 2,2'-methylenebis(4-methyl-6-tert-butylphenol) | B118: FURIN
A119: 2,2'-methylenebis(4-methyl-6-tert-butylphenol) | B119: GEN1
A120: 2,2'-methylenebis(4-methyl-6-tert-butylphenol) | B120: GINS1
A121: 2,2'-methylenebis(4-methyl-6-tert-butylphenol) | B121: GINS3
A122: 2,2'-methylenebis(4-methyl-6-tert-butylphenol) | B122: GMNN
A123: 2,2'-methylenebis(4-methyl-6-tert-butylphenol) | B123: HK1
A124: 2,2'-methylenebis(4-methyl-6-tert-butylphenol) | B124: HSPG2
A125: 2,2'-methylenebis(4-methyl-6-tert-butylphenol) | B125: IL4R
A126: 2,2'-methylenebis(4-methyl-6-tert-butylphenol) | B126: IRF3
A127: 2,2'-methylenebis(4-methyl-6-tert-butylphenol) | B127: ITGB1
A128: 2,2'-methylenebis(4-methyl-6-tert-butylphenol) | B128: LIG1
A129: 2,2'-methylenebis(4-methyl-6-tert-butylphenol) | B129: MAPK13
A130: 2,2'-methylenebis(4-methyl-6-tert-butylphenol) | B130: MAPKAPK2
A131: 2,2'-methylenebis(4-methyl-6-tert-butylphenol) | B131: MCM10
A132: 2,2'-methylenebis(4-methyl-6-tert-butylphenol) | B132: MCM6
A133: 2,2'-methylenebis(4-methyl-6-tert-butylphenol) | B133: MCM8
A134: 2,2'-methylenebis(4-methyl-6-tert-butylphenol) | B134: METRNL
A135: 2,2'-methylenebis(4-methyl-6-tert-butylphenol) | B135: MGME1
A136: 2,2'-methylenebis(4-methyl-6-tert-butylphenol) | B136: MMS22L
A137: 2,2'-methylenebis(4-methyl-6-tert-butylphenol) | B137: MRE11
A138: 2,2'-methylenebis(4-methyl-6-tert-butylphenol) | B138: NFKBIB
A139: 2,2'-methylenebis(4-methyl-6-tert-butylphenol) | B139: NINJ1
A140: 2,2'-methylenebis(4-methyl-6-tert-butylphenol) | B140: NLRP1
A141: 2,2'-methylenebis(4-methyl-6-tert-butylphenol) | B141: NUCKS1
A142: 2,2'-methylenebis(4-methyl-6-tert-butylphenol) | B142: ORC3
A143: 2,2'-methylenebis(4-methyl-6-tert-butylphenol) | B143: OSMR
A144: 2,2'-methylenebis(4-methyl-6-tert-butylphenol) | B144: PCNA
A145: 2,2'-methylenebis(4-methyl-6-tert-butylphenol) | B145: POLD2
A146: 2,2'-methylenebis(4-methyl-6-tert-butylphenol) | B146: POLD3
A147: 2,2'-methylenebis(4-methyl-6-tert-butylphenol) | B147: POLE
A148: 2,2'-methylenebis(4-methyl-6-tert-butylphenol) | B148: POLE2
A149: 2,2'-methylenebis(4-methyl-6-tert-butylphenol) | B149: POLE3
A150: 2,2'-methylenebis(4-methyl-6-tert-butylphenol) | B150: PPARD
A151: 2,2'-methylenebis(4-methyl-6-tert-butylphenol) | B151: RBBP8
A152: 2,2'-methylenebis(4-methyl-6-tert-butylphenol) | B152: RECQL4
A153: 2,2'-methylenebis(4-methyl-6-tert-butylphenol) | B153: RFC4
A154: 2,2'-methylenebis(4-methyl-6-tert-butylphenol) | B154: RHBDF2
A155: 2,2'-methylenebis(4-methyl-6-tert-butylphenol) | B155: RPS6KA4
A156: 2,2'-methylenebis(4-methyl-6-tert-butylphenol) | B156: SBNO2
A157: 2,2'-methylenebis(4-methyl-6-tert-butylphenol) | B157: SCYL1
A158: 2,2'-methylenebis(4-methyl-6-tert-butylphenol) | B158: SETMAR
A159: 2,2'-methylenebis(4-methyl-6-tert-butylphenol) | B159: TGFB1
A160: 2,2'-methylenebis(4-methyl-6-tert-butylphenol) | B160: THBS1
A161: 2,2'-methylenebis(4-methyl-6-tert-butylphenol) | B161: THOC1
A162: 2,2'-methylenebis(4-methyl-6-tert-butylphenol) | B162: TWNK
A163: 2,2'-methylenebis(4-methyl-6-tert-butylphenol) | B163: UNC13D
A164: 2,2'-methylenebis(4-methyl-6-tert-butylphenol) | B164: WNK4
A165: 2,2'-methylenebis(4-methyl-6-tert-butylphenol) | B165: WRN
A166: 2,2'-methylenebis(4-methyl-6-tert-butylphenol) | B166: ABCC1
A167: 2,2'-methylenebis(4-methyl-6-tert-butylphenol) | B167: ACVR1
A168: 2,2'-methylenebis(4-methyl-6-tert-butylphenol) | B168: ADORA2B
A169: 2,2'-methylenebis(4-methyl-6-tert-butylphenol) | B169: ALYREF
A170: 2,2'-methylenebis(4-methyl-6-tert-butylphenol) | B170: APOA2
A171: 2,2'-methylenebis(4-methyl-6-tert-butylphenol) | B171: APP
A172: 2,2'-methylenebis(4-methyl-6-tert-butylphenol) | B172: ASS1
A173: 2,2'-methylenebis(4-methyl-6-tert-butylphenol) | B173: ATAD5
A174: 2,2'-methylenebis(4-methyl-6-tert-butylphenol) | B174: ATRX
A175: 2,2'-methylenebis(4-methyl-6-tert-butylphenol) | B175: AXL
A176: 2,2'-methylenebis(4-methyl-6-tert-butylphenol) | B176: BMP6
A177: 2,2'-methylenebis(4-methyl-6-tert-butylphenol) | B177: BMP8B
A178: 2,2'-methylenebis(4-methyl-6-tert-butylphenol) | B178: CCL15
A179: 2,2'-methylenebis(4-methyl-6-tert-butylphenol) | B179: CCL20
A180: 2,2'-methylenebis(4-methyl-6-tert-butylphenol) | B180: CCR6
A181: 2,2'-methylenebis(4-methyl-6-tert-butylphenol) | B181: CDC45
A182: 2,2'-methylenebis(4-methyl-6-tert-butylphenol) | B182: CDC6
A183: 2,2'-methylenebis(4-methyl-6-tert-butylphenol) | B183: CEBPB
A184: 2,2'-methylenebis(4-methyl-6-tert-butylphenol) | B184: CSF1
A185: 2,2'-methylenebis(4-methyl-6-tert-butylphenol) | B185: CYP3A4
A186: 2,2'-methylenebis(4-methyl-6-tert-butylphenol) | B186: DAGLA
A187: 2,2'-methylenebis(4-methyl-6-tert-butylphenol) | B187: DBF4
A188: 2,2'-methylenebis(4-methyl-6-tert-butylphenol) | B188: DSCC1
A189: 2,2'-methylenebis(4-methyl-6-tert-butylphenol) | B189: E2F7
A190: 2,2'-methylenebis(4-methyl-6-tert-butylphenol) | B190: E2F8
A191: 2,2'-methylenebis(4-methyl-6-tert-butylphenol) | B191: EME1
A192: 2,2'-methylenebis(4-methyl-6-tert-butylphenol) | B192: EPHA2
A193: 2,2'-methylenebis(4-methyl-6-tert-butylphenol) | B193: F2RL1
A194: 2,2'-methylenebis(4-methyl-6-tert-butylphenol) | B194: FBXO5
A195: 2,2'-methylenebis(4-methyl-6-tert-butylphenol) | B195: FBXO6
A196: 2,2'-methylenebis(4-methyl-6-tert-butylphenol) | B196: FEN1
A197: 2,2'-methylenebis(4-methyl-6-tert-butylphenol) | B197: FNDC4
A198: 2,2'-methylenebis(4-methyl-6-tert-butylphenol) | B198: GINS2
A199: 2,2'-methylenebis(4-methyl-6-tert-butylphenol) | B199: GINS4
A200: 2,2'-methylenebis(4-methyl-6-tert-butylphenol) | B200: HAMP
... 9513 more rows

Sheet S3 1116 EDCs-related genes
A1: S3 1116 EDCs-Eelated Genes
A2: Gene Symbol
A3: ATG4C
A4: BCL2L1
A5: BCL3
A6: CYP1A1
A7: CYP1A2
A8: CYP2D6
A9: DBI
A10: ECE1
A11: EPHX1
A12: FABP1
A13: FASN
A14: GCK
A15: GSTA1
A16: GSTM1
A17: HIF1A
A18: HMGCR
A19: IER3
A20: LGALS3
A21: MAPT
A22: MT1E
A23: NQO1
A24: PCNA
A25: RHOC
A26: SERPINA3
A27: SLC2A1
A28: TGM2
A29: VAT1
A30: ESR1
A31: ACP5
A32: ADCY7
A33: BLM
A34: BRCA1
A35: CD68
A36: CDT1
A37: DDX23
A38: FN1
A39: FURIN
A40: GEN1
A41: GINS3
A42: GMNN
A43: HK1
A44: IL4R
A45: ITGB1
A46: LIG1
A47: MAPK13
A48: MCM6
A49: MCM8
A50: METRNL
A51: MMS22L
A52: MRE11
A53: NINJ1
A54: NLRP1
A55: NUCKS1
A56: POLE
A57: POLE2
A58: POLE3
A59: PPARD
A60: RECQL4
A61: RFC4
A62: RHBDF2
A63: RPS6KA4
A64: SETMAR
A65: TGFB1
A66: THBS1
A67: UNC13D
A68: WRN
A69: ACE2
A70: KLF5
A71: KRT19
A72: AKR1C3
A73: ANGPTL4
A74: ARHGAP11A
A75: CCDC9B
A76: CCND1
A77: CREBRF
A78: DEDD2
A79: DOK3
A80: DRICH1
A81: FGD4
A82: FLCN
A83: GABARAPL1
A84: GCNA
A85: GSTP1
A86: HSPA1A
A87: HSPA6
A88: IL24
A89: IL7
A90: MAT2A
A91: N4BP1
A92: NBPF3
A93: NFE2L2
A94: NHLRC2
A95: PRKCD
A96: PTX3
A97: RRP15
A98: SNHG8
A99: SPAG9
A100: THBD
A101: TNFAIP3
A102: TNIK
A103: TRAPPC10
A104: TXNIP
A105: TXNRD1
A106: UPP1
A107: USP31
A108: ZFAND2A
A109: ZFAS1
A110: ZNF107
A111: ZNF786
A112: ARG1
A113: CYP2C19
A114: ABHD17B
A115: ACSF2
A116: ADAMTS1
A117: ADM
A118: AFDN-DT
A119: AHSA1
A120: APCDD1L-DT
A121: ARC
A122: ARL4D
A123: ATG5
A124: CACYBP
A125: CASP3
A126: CBX4
A127: CD14
A128: CD300A
A129: CD55
A130: CEP250
A131: CGAS
A132: CPEB2
A133: CPEB4
A134: CREB1
A135: DENND11
A136: DNAH17
A137: DNAJA4
A138: DPP4
A139: EAF2
A140: ENPP2
A141: FABP4
A142: FABP5
A143: FAM117A
A144: FLRT3
A145: FOSB
A146: FST
A147: GCLC
A148: GCLM
A149: GLUD1
A150: GPR183
A151: H2BC10
A152: H2BC14
A153: H2BC18
A154: HSPA1B
A155: IDI1
A156: IL16
A157: JUN
A158: JUNB
A159: KITLG
A160: KLF10
A161: KLF4
A162: KLHL15
A163: LPAR6
A164: LRIF1
A165: MAFB
A166: MAFF
A167: MAP2K3
A168: MCF2L-AS1
A169: MGAM
A170: MIR210HG
A171: MIR2116
A172: MMP10
A173: MOB4
A174: MRPL18
A175: MYLIP
A176: NABP1
A177: NEDD9
A178: NEFM
A179: PCDH17
A180: PCDH7
A181: PCDH9
A182: PLK3
A183: PMAIP1
A184: PNLDC1
A185: POLG2
A186: PPARG
A187: RASL11A
A188: RASSF10
A189: RELA
A190: RELN
A191: RIPK2
A192: RNF227
A193: RPS12
A194: RPS27
A195: RPSAP52
A196: RRP12
A197: RSRC2
A198: SCG5
A199: SERTAD1
A200: SIAH1
... 918 more rows

Sheet S4 whole blood
A1: S4 eQTL-GWAS (whole blood) In Discovery Cohort
A2: Gene | B2: probeID | C2: ProbeChr | D2: Probe_bp | E2: topSNP | F2: topSNP_chr | G2: topSNP_bp | H2: A1 | I2: A2 | J2: Freq | K2: b_GWAS | L2: se_GWAS | M2: p_GWAS | N2: b_eQTL | O2: se_eQTL | P2: p_eQTL | Q2: b_SMR | R2: se_SMR | S2: p_SMR | T2: pval_adj_SMR
A3: PNKP | B3: ENSG00000039650 | C3: 19 | D3: 50364461 | E3: rs1290649 | F3: 19 | G3: 50368361 | H3: A | I3: T | J3: 0.405567 | K3: -0.00147344 | L3: 0.000357978 | M3: 3.899959e-05 | N3: 0.289946 | O3: 0.0229519 | P3: 1.392674e-36 | Q3: -0.00508177 | R3: 0.00129852 | S3: 9.096069e-05 | T3: 0.037566765 | U3: =EXP(Q3) -> 0.9949311203 | V3: =EXP(Q3+1.96*R3) -> 0.9974665438 | W3: =EXP(Q3-R3) -> 0.9936400208
A4: CNNM2 | B4: ENSG00000148842 | C4: 10 | D4: 104678050 | E4: rs11598702 | F4: 10 | G4: 104897985 | H4: C | I4: T | J4: 0.352883 | K4: -0.00136335 | L4: 0.000357986 | M4: 0.000140001 | N4: 0.387155 | O4: 0.0405868 | P4: 1.443171e-21 | Q4: -0.00352146 | R4: 0.000995629 | S4: 0.000404825 | T4: 0.041798202 | U4: =EXP(Q4) -> 0.9964847331 | V4: =EXP(Q4+1.96*R4) -> 0.9984312047 | W4: =EXP(Q4-R4) -> 0.9954930977
A5: FLOT1 | B5: ENSG00000137312 | C5: 6 | D5: 30695486 | E5: rs13197117 | F5: 6 | G5: 30755014 | H5: G | I5: A | J5: 0.337972 | K5: -0.00158104 | L5: 0.000395217 | M5: 6.299992e-05 | N5: -0.0914472 | O5: 0.0109837 | P5: 8.381707e-17 | Q5: 0.0172891 | R5: 0.00479481 | S5: 0.000311201 | T5: 0.041798202 | U5: 1.017439422 | V5: 1.027046213 | W5: 1.01257267
A6: IER3 | B6: ENSG00000137331 | C6: 6 | D6: 30710976 | E6: rs13197117 | F6: 6 | G6: 30755014 | H6: G | I6: A | J6: 0.337972 | K6: -0.00158104 | L6: 0.000395217 | M6: 6.299992e-05 | N6: -0.323038 | O6: 0.0329049 | P6: 9.484051e-23 | Q6: 0.00489428 | R6: 0.00132111 | S6: 0.000211668 | T6: 0.041798202 | U6: 1.004906277 | V6: 1.007511728 | W6: 1.003579561
A7: LRCH1 | B7: ENSG00000136141 | C7: 13 | D7: 47127303 | E7: rs4942557 | F7: 13 | G7: 47183068 | H7: A | I7: G | J7: 0.782306 | K7: -0.00167785 | L7: 0.000407708 | M7: 3.899959e-05 | N7: -0.13853 | O7: 0.0222949 | P7: 5.180497e-10 | Q7: 0.0121118 | R7: 0.00353008 | S7: 0.000601294 | T7: 0.049666893 | U7: 1.012185445 | V7: 1.019212996 | W7: 1.008618649
A8: MRPS6 | B8: ENSG00000243927 | C8: 21 | D8: 35445524 | E8: rs11910160 | F8: 21 | G8: 35572884 | H8: A | I8: T | J8: 0.112326 | K8: -0.00207623 | L8: 0.000556242 | M8: 0.000189998 | N8: -0.231901 | O8: 0.0348257 | P8: 2.758729e-11 | Q8: 0.00895309 | R8: 0.00274975 | S8: 0.001130081 | T8: 0.077787242 | U8: 1.008993289 | V8: 1.014445949 | W8: 1.006222621
A9: STEAP3 | B9: ENSG00000115107 | C9: 2 | D9: 119981384 | E9: rs6721852 | F9: 2 | G9: 120024503 | H9: C | I9: T | J9: 0.463221 | K9: 0.0011805 | L9: 0.000351056 | M9: 0.000769999 | N9: -0.305703 | O9: 0.0321879 | P9: 2.151e-21 | Q9: -0.00386159 | R9: 0.00121821 | S9: 0.001524993 | T9: 0.089974587 | U9: 0.9961458564 | V9: 0.9985271873 | W9: 0.9949330804
A10: ARRB2 | B10: ENSG00000141480 | C10: 17 | D10: 4613784 | E10: rs147867504 | F10: 17 | G10: 4589875 | H10: T | I10: C | J10: 0.224652 | K10: -0.00129763 | L10: 0.000406527 | M10: 0.001400006 | N10: 0.205739 | O10: 0.0161505 | P10: 3.595522e-37 | Q10: -0.00630717 | R10: 0.00203702 | S10: 0.001959728 | T10: 0.101170958 | U10: 0.9937126784 | V10: 0.9976880658 | W10: 0.9916905261
A11: ACP2 | B11: ENSG00000134575 | C11: 11 | D11: 47260853 | E11: rs326222 | F11: 11 | G11: 47259668 | H11: C | I11: T | J11: 0.697813 | K11: -0.00119853 | L11: 0.000380726 | M11: 0.0016 | N11: 0.310594 | O11: 0.0262325 | P11: 2.423648e-32 | Q11: -0.00385883 | R11: 0.00126839 | S11: 0.00234766 | T11: 0.107731509 | U11: 0.9961486057 | V11: 0.9986281562 | W11: 0.9948859018
A12: CCS | B12: ENSG00000173992 | C12: 11 | D12: 66360292 | E12: rs498045 | F12: 11 | G12: 66362997 | H12: G | I12: A | J12: 0.512922 | K12: 0.00109556 | L12: 0.000350239 | M12: 0.00179999 | N12: 0.195239 | O12: 0.0192795 | P12: 4.202747e-24 | Q12: 0.00561138 | R12: 0.00187753 | S12: 0.002801627 | T12: 0.113059388 | U12: 1.005627153 | V12: 1.009334637 | W12: 1.00374083
A13: MAP4 | B13: ENSG00000047849 | C13: 3 | D13: 47892182 | E13: rs7642590 | F13: 3 | G13: 48099750 | H13: A | I13: G | J13: 0.684891 | K13: -0.00120719 | L13: 0.000375379 | M13: 0.00129999 | N13: 0.14126 | O13: 0.0183837 | P13: 1.542218e-14 | Q13: -0.00854587 | R13: 0.00288071 | S13: 0.003011267 | T13: 0.113059388 | U13: 0.9914905421 | V13: 0.9971045216 | W13: 0.9886384554
A14: DOCK7 | B14: ENSG00000116641 | C14: 1 | D14: 62920399 | E14: rs1168086 | F14: 1 | G14: 63112389 | H14: G | I14: A | J14: 0.694831 | K14: 0.00112444 | L14: 0.0003662 | M14: 0.002100003 | N14: 0.330647 | O14: 0.0337641 | P14: 1.208489e-22 | Q14: 0.00340073 | R14: 0.00116069 | S14: 0.003390582 | T14: 0.116692531 | U14: 1.003406519 | V14: 1.00569182 | W14: 1.002242551
A15: ARG1 | B15: ENSG00000118520 | C15: 6 | D15: 131894284 | E15: rs2781668 | F15: 6 | G15: 131897278 | H15: T | I15: C | J15: 0.16998 | K15: -0.00136659 | L15: 0.000471175 | M15: 0.003699985 | N15: -0.417063 | O15: 0.023441 | P15: 8.145405e-71 | Q15: 0.0032767 | R15: 0.00114466 | S15: 0.004201793 | T15: 0.123952894 | U15: 1.003282074 | V15: 1.005535498 | W15: 1.002134314
A16: KANSL2 | B16: ENSG00000139620 | C16: 12 | D16: 49047184 | E16: rs4760739 | F16: 12 | G16: 49066794 | H16: A | I16: G | J16: 0.26839 | K16: 0.00124064 | L16: 0.000405529 | M16: 0.002199986 | N16: 0.227058 | O16: 0.0261667 | P16: 4.05032e-18 | Q16: 0.00546398 | R16: 0.00189377 | S16: 0.003911089 | T16: 0.123952894 | U16: 1.005478935 | V16: 1.009217996 | W16: 1.003576591
A17: ACOX1 | B17: ENSG00000161533 | C17: 17 | D17: 73937588 | E17: rs6501845 | F17: 17 | G17: 73965350 | H17: T | I17: A | J17: 0.313121 | K17: 0.00103934 | L17: 0.000372212 | M17: 0.00519996 | N17: -0.212765 | O17: 0.0154844 | P17: 5.796304e-43 | Q17: -0.00488492 | R17: 0.00178516 | S17: 0.006211507 | T17: 0.135018547 | U17: 0.9951269918 | V17: 0.9986149537 | W17: 0.9933521156
A18: ARL4D | B18: ENSG00000175906 | C18: 17 | D18: 41476327 | E18: rs34053645 | F18: 17 | G18: 41402874 | H18: C | I18: T | J18: 0.361829 | K18: 0.00116646 | L18: 0.000371341 | M18: 0.001700004 | N18: -0.235482 | O18: 0.0404908 | P18: 6.038265e-09 | Q18: -0.0049535 | R18: 0.00179226 | S18: 0.005712879 | T18: 0.135018547 | U18: 0.9950587483 | V18: 0.9985603669 | W18: 0.9932769416
A19: MRPL18 | B19: ENSG00000112110 | C19: 6 | D19: 160210844 | E19: rs1128670 | F19: 6 | G19: 160211636 | H19: A | I19: G | J19: 0.757455 | K19: -0.0011854 | L19: 0.000413986 | M19: 0.004200007 | N19: -0.306308 | O19: 0.0251837 | P19: 4.895803e-34 | Q19: 0.00386996 | R19: 0.00138848 | S19: 0.005316765 | T19: 0.135018547 | U19: 1.003877458 | V19: 1.006613152 | W19: 1.002484561
A20: RASL11A | B20: ENSG00000122035 | C20: 13 | D20: 27844464 | E20: rs41485749 | F20: 13 | G20: 27890560 | H20: C | I20: T | J20: 0.150099 | K20: 0.0016836 | L20: 0.000556395 | M20: 0.0025 | N20: 0.279 | O20: 0.0420899 | P20: 3.387306e-11 | Q20: 0.00603441 | R20: 0.0021922 | S20: 0.005911198 | T20: 0.135018547 | U20: 1.006052654 | V20: 1.010384672 | W20: 1.003849601
A21: SIRT1 | B21: ENSG00000096717 | C21: 10 | D21: 69644427 | E21: rs10997883 | F21: 10 | G21: 69697965 | H21: C | I21: T | J21: 0.666004 | K21: 0.00106039 | L21: 0.000372002 | M21: 0.004399973 | N21: -0.267655 | O21: 0.0188501 | P21: 9.274001e-46 | Q21: -0.00396178 | R21: 0.00141759 | S21: 0.005194207 | T21: 0.135018547 | U21: 0.9960460575 | V21: 0.9988173962 | W21: 0.9946350729
A22: MAPK9 | B22: ENSG00000050748 | C22: 5 | D22: 179660143 | E22: rs6601106 | F22: 5 | G22: 179706247 | H22: C | I22: T | J22: 0.589463 | K22: -0.00099645 | L22: 0.00035922 | M22: 0.005499966 | N22: -0.226884 | O22: 0.0226524 | P22: 1.297829e-23 | Q22: 0.00439189 | R22: 0.00164288 | S22: 0.007510987 | T22: 0.155101882 | U22: 1.004401548 | V22: 1.007640979 | W22: 1.002752792
A23: CACYBP | B23: ENSG00000116161 | C23: 1 | D23: 174968300 | E23: rs1046439 | F23: 1 | G23: 174969271 | H23: T | I23: C | J23: 0.691849 | K23: -0.00108801 | L23: 0.00038144 | M23: 0.004300015 | N23: -0.157568 | O23: 0.0234752 | P23: 1.918423e-11 | Q23: 0.00690502 | R23: 0.00263032 | S23: 0.008660654 | T23: 0.162584096 | U23: 1.006928915 | V23: 1.012133468 | W23: 1.00428385
A24: SLC48A1 | B24: ENSG00000211584 | C24: 12 | D24: 48147699 | E24: rs3782908 | F24: 12 | G24: 48169526 | H24: G | I24: A | J24: 0.313121 | K24: -0.00107122 | L24: 0.000371911 | M24: 0.004 | N24: 0.168517 | O24: 0.0262591 | P24: 1.385504e-10 | Q24: -0.00635675 | R24: 0.00241906 | S24: 0.00859453 | T24: 0.162584096 | U24: 0.9936634114 | V24: 0.9983859116 | W24: 0.991262585
A25: B4GALT5 | B25: ENSG00000158470 | C25: 20 | D25: 48249482 | E25: rs1008006 | F25: 20 | G25: 48327584 | H25: T | I25: C | J25: 0.705765 | K25: 0.00108014 | L25: 0.000387892 | M25: 0.005399953 | N25: -0.103696 | O25: 0.0170326 | P25: 1.14272e-09 | Q25: -0.0104164 | R25: 0.00411338 | S25: 0.01133102 | T25: 0.203465707 | U25: 0.9896376628 | V25: 0.9976485937 | W25: 0.9855752679
A26: GSTM1 | B26: ENSG00000134184 | C26: 1 | D26: 110230436 | E26: rs145858840 | F26: 1 | G26: 110253215 | H26: T | I26: G | J26: 0.0685885 | K26: -0.00174953 | L26: 0.00067434 | M26: 0.009499921 | N26: 0.923937 | O26: 0.100161 | P26: 2.849176e-20 | Q26: -0.00189356 | R26: 0.000758173 | S26: 0.01250618 | T26: 0.206602094 | U26: 0.9981082317 | V26: 0.9995925421 | W26: 0.9973517797
A27: YPEL3 | B27: ENSG00000090238 | C27: 16 | D27: 30103635 | E27: rs12444973 | F27: 16 | G27: 30107285 | H27: T | I27: A | J27: 0.480119 | K27: -0.000909489 | L27: 0.000350297 | M27: 0.009400046 | N27: 0.140659 | O27: 0.0146681 | P27: 8.852882e-22 | Q27: -0.00646591 | R27: 0.00258006 | S27: 0.01220689 | T27: 0.206602094 | U27: 0.993554949 | V27: 0.9985919998 | W27: 0.9909948217
A28: HMGN2 | B28: ENSG00000198830 | C28: 1 | D28: 26798941 | E28: rs2925523 | F28: 1 | G28: 26805169 | H28: T | I28: C | J28: 0.959245 | K28: 0.00232116 | L28: 0.000874957 | M28: 0.008 | N28: -0.290109 | O28: 0.0514656 | P28: 1.730869e-08 | Q28: -0.00800099 | R28: 0.00333327 | S28: 0.01637956 | T28: 0.255418014 | U28: 0.9920309327 | V28: 0.9985332959 | W28: 0.9887297307
A29: ZNF597 | B29: ENSG00000167981 | C29: 16 | D29: 3486104 | E29: rs250528 | F29: 16 | G29: 3478834 | H29: T | I29: G | J29: 0.210736 | K29: 0.00108346 | L29: 0.000411716 | M29: 0.008500021 | N29: 0.18976 | O29: 0.0329686 | P29: 8.624638e-09 | Q29: 0.00570963 | R29: 0.00238568 | S29: 0.01669803 | T29: 0.255418014 | U29: 1.005725961 | V29: 1.01043968 | W29: 1.00332948
A30: MEGF9 | B30: ENSG00000106780 | C30: 9 | D30: 123363091 | E30: rs10985011 | F30: 9 | G30: 123497595 | H30: A | I30: G | J30: 0.138171 | K30: -0.00129519 | L30: 0.000505519 | M30: 0.01 | N30: -0.0990417 | O30: 0.015533 | P30: 1.815258e-10 | Q30: 0.0130772 | R30: 0.00550075 | S30: 0.01743738 | T30: 0.257201355 | U30: 1.013163081 | V30: 1.024145565 | W30: 1.007605224
A31: TRIM47 | B31: ENSG00000132481 | C31: 17 | D31: 73870242 | E31: rs56082951 | F31: 17 | G31: 73874656 | H31: G | I31: C | J31: 0.136183 | K31: 0.00128905 | L31: 0.000500937 | M31: 0.01 | N31: -0.246018 | O31: 0.0425754 | P31: 7.541308e-09 | Q31: -0.00523966 | R31: 0.00222896 | S31: 0.01873711 | T31: 0.266842291 | U31: 0.9947740431 | V31: 0.9991294807 | W31: 0.9925592008
A32: LSS | B32: ENSG00000160285 | C32: 21 | D32: 47608055 | E32: rs4818831 | F32: 21 | G32: 47686174 | H32: C | I32: T | J32: 0.852883 | K32: -0.00123456 | L32: 0.00052276 | M32: 0.0179999 | N32: 0.483356 | O32: 0.0383155 | P32: 1.742219e-36 | Q32: -0.00255414 | R32: 0.00110031 | S32: 0.020271 | T32: 0.2790641 | U32: 0.997449119 | V32: 0.9996025466 | W32: 0.9963522194
A33: TSPAN15 | B33: ENSG00000099282 | C33: 10 | D33: 71211229 | E33: rs12784882 | F33: 10 | G33: 71230334 | H33: G | I33: C | J33: 0.217694 | K33: -0.000990932 | L33: 0.000410515 | M33: 0.016 | N33: 0.336799 | O33: 0.0429133 | P33: 4.214872e-15 | Q33: -0.00294221 | R33: 0.00127522 | S33: 0.02104287 | T33: 0.280345333 | U33: 0.9970621141 | V33: 0.9995573192 | W33: 0.9957914509
A34: ABCC3 | B34: ENSG00000108846 | C34: 17 | D34: 48712138 | E34: rs3785912 | F34: 17 | G34: 48756937 | H34: T | I34: C | J34: 0.346918 | K34: -0.000826702 | L34: 0.000363246 | M34: 0.02300011 | N34: -0.383511 | O34: 0.0275019 | P34: 3.379484e-44 | Q34: 0.00215561 | R34: 0.000959691 | S34: 0.02469401 | T34: 0.299959592 | U34: 1.002157935 | V34: 1.004044762 | W34: 1.001196634
A35: PRKCB | B35: ENSG00000166501 | C35: 16 | D35: 23847322 | E35: rs9806836 | F35: 16 | G35: 23862213 | H35: T | I35: A | J35: 0.588469 | K35: -0.000819412 | L35: 0.000354184 | M35: 0.02100003 | N35: 0.157875 | O35: 0.0157678 | P35: 1.343533e-23 | Q35: -0.00519026 | R35: 0.00230256 | S35: 0.02418808 | T35: 0.299959592 | U35: 0.9948231861 | V35: 0.9993229869 | W35: 0.9925351812
A36: TMEM116 | B36: ENSG00000198270 | C36: 12 | D36: 112369086 | E36: rs7312472 | F36: 12 | G36: 112438770 | H36: G | I36: C | J36: 0.0944334 | K36: 0.00140232 | L36: 0.000598858 | M36: 0.01899984 | N36: 0.406323 | O36: 0.0442704 | P36: 4.383078e-20 | Q36: 0.00345124 | R36: 0.00152106 | S36: 0.02326987 | T36: 0.299959592 | U36: 1.003457202 | V36: 1.006453251 | W36: 1.001932044
A37: NLRP12 | B37: ENSG00000142405 | C37: 19 | D37: 54296857 | E37: rs111659207 | F37: 19 | G37: 54323526 | H37: A | I37: G | J37: 0.0904573 | K37: 0.00140917 | L37: 0.000583467 | M37: 0.016 | N37: -0.157261 | O37: 0.0271713 | P37: 7.132669e-09 | Q37: -0.00896071 | R37: 0.00402025 | S37: 0.02582105 | T37: 0.300409546 | U37: 0.9910793175 | V37: 0.9989195641 | W37: 0.9871029293
A38: OSER1 | B38: ENSG00000132823 | C38: 20 | D38: 42825136 | E38: rs2143606 | F38: 20 | G38: 42838550 | H38: G | I38: A | J38: 0.461233 | K38: 0.000789099 | L38: 0.00035073 | M38: 0.02399993 | N38: 0.240362 | O38: 0.0165217 | P38: 5.988492e-48 | Q38: 0.00328296 | R38: 0.00147652 | S38: 0.02618582 | T38: 0.300409546 | U38: 1.003288355 | V38: 1.006196056 | W38: 1.001808073
A39: DRAM1 | B39: ENSG00000136048 | C39: 12 | D39: 102271129 | E39: rs7138541 | F39: 12 | G39: 102285980 | H39: G | I39: A | J39: 0.398608 | K39: -0.000822624 | L39: 0.000359843 | M39: 0.02199986 | N39: 0.130824 | O39: 0.0157025 | P39: 7.986602e-17 | Q39: -0.00628802 | R39: 0.00285226 | S39: 0.0274837 | T39: 0.301393527 | U39: 0.9937317082 | V39: 0.9993026529 | W39: 0.9909013654
A40: NINJ1 | B40: ENSG00000131669 | C40: 9 | D40: 95883771 | E40: rs7032525 | F40: 9 | G40: 95882901 | H40: C | I40: T | J40: 0.185885 | K40: 0.000984841 | L40: 0.000439805 | M40: 0.025 | N40: -0.217018 | O40: 0.020482 | P40: 3.125601e-26 | Q40: -0.00453806 | R40: 0.00207135 | S40: 0.02846089 | T40: 0.301393527 | U40: 0.9954722214 | V40: 0.9995219003 | W40: 0.9934123841
A41: THBD | B41: ENSG00000178726 | C41: 20 | D41: 23026270 | E41: rs844887 | F41: 20 | G41: 23106084 | H41: G | I41: A | J41: 0.889662 | K41: -0.00134898 | L41: 0.000594131 | M41: 0.02300011 | N41: 0.366892 | O41: 0.0431655 | P41: 1.901628e-17 | Q41: -0.00367678 | R41: 0.00167614 | S41: 0.02826473 | T41: 0.301393527 | U41: 0.9963299711 | V41: 0.999608531 | W41: 0.9946613813
A42: APOBEC3B | B42: ENSG00000179750 | C42: 22 | D42: 39378352 | E42: rs4365560 | F42: 22 | G42: 39355109 | H42: C | I42: T | J42: 0.266402 | K42: -0.000872459 | L42: 0.00040657 | M42: 0.032 | N42: 1.17661 | O42: 0.0510424 | P42: 1.416682e-117 | Q42: -0.000741502 | R42: 0.000347038 | S42: 0.03262542 | T42: 0.316041719 | U42: 0.9992587728 | V42: 0.9999386944 | W42: 0.9989120522
A43: CXCL5 | B43: ENSG00000163735 | C43: 4 | D43: 74861359 | E43: rs187080 | F43: 4 | G43: 74856663 | H43: C | I43: T | J43: 0.885686 | K43: -0.0012047 | L43: 0.000544548 | M43: 0.02699977 | N43: -0.563627 | O43: 0.0570866 | P43: 5.440252e-23 | Q43: 0.00213741 | R43: 0.000990107 | S43: 0.03086849 | T43: 0.316041719 | U43: 1.002139696 | V43: 1.004086346 | W43: 1.001147961
A44: FIS1 | B44: ENSG00000214253 | C44: 7 | D44: 100882739 | E44: rs10241107 | F44: 7 | G44: 100883973 | H44: T | I44: C | J44: 0.0586481 | K44: 0.00169566 | L44: 0.000772957 | M44: 0.02800013 | N44: -0.261136 | O44: 0.0275115 | P44: 2.26899e-21 | Q44: -0.0064934 | R44: 0.003038 | S44: 0.03256631 | T44: 0.316041719 | U44: 0.9935276366 | V44: 0.9994612252 | W44: 0.9905138798
A45: NABP1 | B45: ENSG00000173559 | C45: 2 | D45: 192542794 | E45: rs34793653 | F45: 2 | G45: 192574360 | H45: T | I45: C | J45: 0.770378 | K45: -0.000924562 | L45: 0.000426366 | M45: 0.02999991 | N45: -0.215089 | O45: 0.0181011 | P45: 1.457213e-32 | Q45: 0.00429851 | R45: 0.00201501 | S45: 0.03290507 | T45: 0.316041719 | U45: 1.004307762 | V45: 1.008282037 | W45: 1.002286109
A46: TMEM170B | B46: ENSG00000205269 | C46: 6 | D46: 11537938 | E46: rs598907 | F46: 6 | G46: 11586435 | H46: C | I46: T | J46: 0.285288 | K46: 0.000857463 | L46: 0.000396356 | M46: 0.03099988 | N46: -0.25092 | O46: 0.0229288 | P46: 7.142338e-28 | Q46: -0.00341728 | R46: 0.00161018 | S46: 0.03381306 | T46: 0.317381677 | U46: 0.9965885523 | V46: 0.9997387069 | W46: 0.9949851565
A47: SIK1 | B47: ENSG00000142178 | C47: 21 | D47: 44834395 | E47: rs73223101 | F47: 21 | G47: 45064164 | H47: C | I47: T | J47: 0.028827 | K47: 0.0020614 | L47: 0.000924116 | M47: 0.0259998 | N47: 0.737577 | O47: 0.118968 | P47: 5.65364e-10 | Q47: 0.00279483 | R47: 0.00133154 | S47: 0.03582159 | T47: 0.32161558 | U47: 1.002798739 | V47: 1.00541928 | W47: 1.001464361
A48: TMEM163 | B48: ENSG00000152128 | C48: 2 | D48: 135213330 | E48: rs1104802 | F48: 2 | G48: 135436366 | H48: C | I48: A | J48: 0.568588 | K48: -0.000799973 | L48: 0.00037309 | M48: 0.032 | N48: 0.441492 | O48: 0.0422551 | P48: 1.492528e-25 | Q48: -0.00181198 | R48: 0.000862678 | S48: 0.03569286 | T48: 0.32161558 | U48: 0.9981896606 | V48: 0.9998788762 | W48: 0.9973289157
A49: ABHD11 | B49: ENSG00000106077 | C49: 7 | D49: 73150424 | E49: rs13233747 | F49: 7 | G49: 73149302 | H49: A | I49: G | J49: 0.355865 | K49: 0.00077224 | L49: 0.000368342 | M49: 0.03599979 | N49: -0.574655 | O49: 0.0268845 | P49: 2.283802e-101 | Q49: -0.00134383 | R49: 0.000644055 | S49: 0.03693178 | T49: 0.324528194 | U49: 0.9986570725 | V49: 0.9999185211 | W49: 0.9980140895
A50: ACACB | B50: ENSG00000076555 | C50: 12 | D50: 109554400 | E50: rs11610260 | F50: 12 | G50: 109592483 | H50: C | I50: T | J50: 0.191849 | K50: 0.000899955 | L50: 0.000426064 | M50: 0.03500016 | N50: -0.455839 | O50: 0.0421983 | P50: 3.356645e-27 | Q50: -0.00197428 | R50: 0.000952382 | S50: 0.03817279 | T50: 0.328230241 | U50: 0.9980276676 | V50: 0.9998923945 | W50: 0.9970776165
A51: HRK | B51: ENSG00000135116 | C51: 12 | D51: 117293949 | E51: rs7305705 | F51: 12 | G51: 117327651 | H51: T | I51: G | J51: 0.0944334 | K51: -0.00126129 | L51: 0.000599711 | M51: 0.03500016 | N51: 0.557781 | O51: 0.055243 | P51: 5.703826e-24 | Q51: -0.00226126 | R51: 0.00109825 | S51: 0.03949714 | T51: 0.328230241 | U51: 0.9977412947 | V51: 0.9998913159 | W51: 0.9966461268
A52: MT1E | B52: ENSG00000169715 | C52: 16 | D52: 56659387 | E52: rs1610215 | F52: 16 | G52: 56659525 | H52: G | I52: C | J52: 0.548708 | K52: -0.000735444 | L52: 0.000353876 | M52: 0.03799969 | N52: 0.335441 | O52: 0.0313037 | P52: 8.592226e-27 | Q52: -0.00219247 | R52: 0.00107462 | S52: 0.04132681 | T52: 0.328230241 | U52: 0.9978099317 | V52: 0.9999137889 | W52: 0.9967382411
A53: RWDD2B | B53: ENSG00000156253 | C53: 21 | D53: 30376705 | E53: rs2150403 | F53: 21 | G53: 30376145 | H53: C | I53: T | J53: 0.712724 | K53: 0.000839956 | L53: 0.000400412 | M53: 0.03599979 | N53: -0.328963 | O53: 0.0363495 | P53: 1.42976e-19 | Q53: -0.00255334 | R53: 0.00124947 | S53: 0.04099808 | T53: 0.328230241 | U53: 0.997449917 | V53: 0.9998956266 | W53: 0.9962044115
A54: SIAH2 | B54: ENSG00000181788 | C54: 3 | D54: 150458914 | E54: rs1991781 | F54: 3 | G54: 150468433 | H54: A | I54: G | J54: 0.027833 | K54: 0.00228546 | L54: 0.00104958 | M54: 0.02900013 | N54: 0.283617 | O54: 0.0484465 | P54: 4.792121e-09 | Q54: 0.00805826 | R54: 0.0039484 | S54: 0.0412614 | T54: 0.328230241 | U54: 1.008090815 | V54: 1.015922558 | W54: 1.004118317
A55: BDH2 | B55: ENSG00000164039 | C55: 4 | D55: 104000592 | E55: rs2069274 | F55: 4 | G55: 104020781 | H55: G | I55: C | J55: 0.406561 | K55: -0.000743821 | L55: 0.000360063 | M55: 0.03899959 | N55: 0.259317 | O55: 0.0294165 | P55: 1.193008e-18 | Q55: -0.00286838 | R55: 0.00142612 | S55: 0.04429176 | T55: 0.332764763 | U55: 0.9971357299 | V55: 0.9999268179 | W55: 0.9957147082
A56: CYGB | B56: ENSG00000161544 | C56: 17 | D56: 74523438 | E56: rs12949102 | F56: 17 | G56: 74548115 | H56: T | I56: C | J56: 0.22167 | K56: -0.000899587 | L56: 0.000426107 | M56: 0.03500016 | N56: -0.278956 | O56: 0.0422 | P56: 3.834535e-11 | Q56: 0.00322483 | R56: 0.00160352 | S56: 0.04431492 | T56: 0.332764763 | U56: 1.003230035 | V56: 1.006388046 | W56: 1.001622625
A57: PMAIP1 | B57: ENSG00000141682 | C57: 18 | D57: 57567180 | E57: rs10445512 | F57: 18 | G57: 57582542 | H57: T | I57: C | J57: 0.350895 | K57: -0.000773094 | L57: 0.000362109 | M57: 0.0329997 | N57: -0.104937 | O57: 0.0174984 | P57: 2.010718e-09 | Q57: 0.00736722 | R57: 0.00366288 | S57: 0.04429205 | T57: 0.332764763 | U57: 1.007394425 | V57: 1.014652779 | W57: 1.00371121
A58: PHGDH | B58: ENSG00000092621 | C58: 1 | D58: 120202421 | E58: rs11583993 | F58: 1 | G58: 120255370 | H58: A | I58: G | J58: 0.112326 | K58: 0.00123041 | L58: 0.000584253 | M58: 0.03500016 | N58: 0.297079 | O58: 0.0472229 | P58: 3.154482e-10 | Q58: 0.00414169 | R58: 0.00207393 | S58: 0.04582206 | T58: 0.337937693 | U58: 1.004150279 | V58: 1.008240359 | W58: 1.002069899
A59: CELSR2 | B59: ENSG00000143126 | C59: 1 | D59: 109792641 | E59: rs12081530 | F59: 1 | G59: 109783860 | H59: A | I59: G | J59: 0.466203 | K59: 0.000726808 | L59: 0.000353738 | M59: 0.04 | N59: 0.17521 | O59: 0.0279081 | P59: 3.427396e-10 | Q59: 0.00414821 | R59: 0.00212431 | S59: 0.05085112 | T59: 0.349870485 | U59: 1.004156826 | V59: 1.008346497 | W59: 1.002025949
A60: IL4R | B60: ENSG00000077238 | C60: 16 | D60: 27324989 | E60: rs8060025 | F60: 16 | G60: 27327214 | H60: G | I60: T | J60: 0.629225 | K60: 0.000708806 | L60: 0.00035922 | M60: 0.04799986 | N60: 0.177637 | O60: 0.0156606 | P60: 8.043106e-30 | Q60: 0.00399019 | R60: 0.00205258 | S60: 0.05189709 | T60: 0.349870485 | U60: 1.003998161 | V60: 1.008045439 | W60: 1.001939488
A61: IRS1 | B61: ENSG00000169047 | C61: 2 | D61: 227596033 | E61: rs16822636 | F61: 2 | G61: 227647098 | H61: C | I61: T | J61: 0.0407555 | K61: -0.00171671 | L61: 0.000837 | M61: 0.04 | N61: 0.535077 | O61: 0.0795396 | P61: 1.729821e-11 | Q61: -0.00320834 | R61: 0.00163535 | S61: 0.04977765 | T61: 0.349870485 | U61: 0.9967968012 | V61: 0.999996946 | W61: 0.9951680217
A62: SPC24 | B62: ENSG00000161888 | C62: 19 | D62: 11242196 | E62: rs2738458 | F62: 19 | G62: 11237296 | H62: C | I62: T | J62: 0.286282 | K62: -0.000768526 | L62: 0.000376714 | M62: 0.04099964 | N62: -0.110539 | O62: 0.0177387 | P62: 4.619266e-10 | Q62: 0.00695253 | R62: 0.00358596 | S62: 0.05252293 | T62: 0.349870485 | U62: 1.006976755 | V62: 1.014079203 | W62: 1.003372243
A63: TACR2 | B63: ENSG00000075073 | C63: 10 | D63: 71163659 | E63: rs4746852 | F63: 10 | G63: 71170563 | H63: G | I63: T | J63: 0.579523 | K63: 0.000744112 | L63: 0.000355099 | M63: 0.03599979 | N63: 0.296658 | O63: 0.0539537 | P63: 3.832887e-08 | Q63: 0.00250832 | R63: 0.00128098 | S63: 0.05021596 | T63: 0.349870485 | U63: 1.002511468 | V63: 1.005031657 | W63: 1.001228093
A64: UGCG | B64: ENSG00000148154 | C64: 9 | D64: 114659046 | E64: rs2782942 | F64: 9 | G64: 114843415 | H64: T | I64: G | J64: 0.562624 | K64: -0.000722692 | L64: 0.000350826 | M64: 0.03899959 | N64: -0.0986191 | O64: 0.0165956 | P64: 2.807495e-09 | Q64: 0.00732811 | R64: 0.00376506 | S64: 0.05161325 | T64: 0.349870485 | U64: 1.007355026 | V64: 1.014816317 | W64: 1.003569405
A65: BARD1 | B65: ENSG00000138376 | C65: 2 | D65: 215590370 | E65: rs6729681 | F65: 2 | G65: 215660704 | H65: A | I65: C | J65: 0.156064 | K65: -0.000900284 | L65: 0.000461008 | M65: 0.05099998 | N65: 0.512044 | O65: 0.0399715 | P65: 1.436863e-37 | Q65: -0.00175822 | R65: 0.00091073 | S65: 0.05353798 | T65: 0.350971202 | U65: 0.9982433248 | V65: 1.000026811 | W65: 0.9973346085
A66: PDXDC2P | B66: ENSG00000255185 | C66: 16 | D66: 70044654 | E66: rs3748384 | F66: 16 | G66: 70016573 | H66: A | I66: G | J66: 0.383698 | K66: -0.000692163 | L66: 0.000357379 | M66: 0.0530005 | N66: 0.383563 | O66: 0.0251549 | P66: 1.696165e-52 | Q66: -0.00180456 | R66: 0.000939221 | S66: 0.05468901 | T66: 0.352915018 | U66: 0.9981970672 | V66: 1.000036314 | W66: 0.9972599797
A67: NMRAL1 | B67: ENSG00000153406 | C67: 16 | D67: 4511681 | E67: rs4786498 | F67: 16 | G67: 4518558 | H67: G | I67: A | J67: 0.724652 | K67: -0.000760937 | L67: 0.000398531 | M67: 0.05600025 | N67: -0.518435 | O67: 0.0272315 | P67: 8.254633e-81 | Q67: 0.00146776 | R67: 0.000772576 | S67: 0.05745623 | T67: 0.365068046 | U67: 1.001468838 | V67: 1.00298646 | W67: 1.000695426
A68: GUF1 | B68: ENSG00000151806 | C68: 4 | D68: 44680444 | E68: rs62305383 | F68: 4 | G68: 44708086 | H68: C | I68: G | J68: 0.244533 | K68: -0.00079397 | L68: 0.000417143 | M68: 0.05699936 | N68: -0.423783 | O68: 0.0362426 | P68: 1.384793e-31 | Q68: 0.00187353 | R68: 0.000997287 | S68: 0.06029555 | T68: 0.376744518 | U68: =EXP(Q68) -> 1.001875286 | V68: =EXP(Q68+1.96*R68) -> 1.003835549 | W68: =EXP(Q68-R68) -> 1.000876627
A69: TAP1 | B69: ENSG00000168394 | C69: 6 | D69: 32812986 | E69: rs3763348 | F69: 6 | G69: 32822907 | H69: T | I69: C | J69: 0.426441 | K69: -0.000672839 | L69: 0.000347369 | M69: 0.0530005 | N69: 0.114943 | O69: 0.0156862 | P69: 2.342485e-13 | Q69: -0.00585368 | R69: 0.0031259 | S69: 0.06111836 | T69: 0.376744518 | U69: 0.9941634194 | V69: 1.000273121 | W69: 0.991060616
A70: JMY | B70: ENSG00000152409 | C70: 5 | D70: 78532012 | E70: rs10052358 | F70: 5 | G70: 78597779 | H70: A | I70: G | J70: 0.640159 | K70: -0.000687603 | L70: 0.000360852 | M70: 0.05699936 | N70: -0.115095 | O70: 0.0149045 | P70: 1.143484e-14 | Q70: 0.00597422 | R70: 0.00322929 | S70: 0.06431231 | T70: 0.390602706 | U70: 1.005992101 | V70: 1.012379629 | W70: 1.002748701
A71: MCM8 | B71: ENSG00000125885 | C71: 20 | D71: 5931298 | E71: rs236126 | F71: 20 | G71: 5978141 | H71: T | I71: C | J71: 0.172962 | K71: 0.000865749 | L71: 0.000465895 | M71: 0.06299992 | N71: -0.383782 | O71: 0.0310763 | P71: 4.890385e-35 | Q71: -0.00225584 | R71: 0.00122762 | S71: 0.06612676 | T71: 0.391889623 | U71: 0.9977467025 | V71: 1.000150306 | W71: 0.9965226002
A72: SLC39A4 | B72: ENSG00000147804 | C72: 8 | D72: 145635126 | E72: rs2928381 | F72: 8 | G72: 145639106 | H72: C | I72: T | J72: 0.932406 | K72: 0.00120333 | L72: 0.000633455 | M72: 0.05699936 | N72: 0.408866 | O72: 0.0573598 | P72: 1.017673e-12 | Q72: 0.00294309 | R72: 0.00160337 | S72: 0.06642197 | T72: 0.391889623 | U72: 1.002947425 | V72: 1.006104251 | W72: 1.001340618
A73: LDHA | B73: ENSG00000134333 | C73: 11 | D73: 18415935 | E73: rs11024636 | F73: 11 | G73: 18405491 | H73: T | I73: C | J73: 0.581511 | K73: 0.000659601 | L73: 0.000352172 | M73: 0.06100002 | N73: -0.114736 | O73: 0.0157958 | P73: 3.766597e-13 | Q73: -0.00574886 | R73: 0.00316981 | S73: 0.06973473 | T73: 0.405640049 | U73: 0.9942676331 | V73: 1.000464075 | W73: 0.9911209834
A74: ISG20 | B74: ENSG00000172183 | C74: 15 | D74: 89179384 | E74: rs4572362 | F74: 15 | G74: 89202529 | H74: G | I74: C | J74: 0.576541 | K74: 0.000649486 | L74: 0.000356633 | M74: 0.06900014 | N74: -0.297039 | O74: 0.0239543 | P74: 2.605107e-35 | Q74: -0.00218653 | R74: 0.00121351 | S74: 0.0715718 | T74: 0.407533151 | U74: 0.9978158587 | V74: 1.000191968 | W74: 0.9966057336
A75: PDSS1 | B75: ENSG00000148459 | C75: 10 | D75: 26986588 | E75: rs2489593 | F75: 10 | G75: 26980168 | H75: A | I75: C | J75: 0.691849 | K75: -0.000681252 | L75: 0.000380598 | M75: 0.07299952 | N75: -0.321655 | O75: 0.0219483 | P75: 1.249698e-48 | Q75: 0.00211796 | R75: 0.00119204 | S75: 0.0756097 | T75: 0.407533151 | U75: 1.002120204 | V75: 1.004464294 | W75: 1.000926349
A76: RRP15 | B76: ENSG00000067533 | C76: 1 | D76: 218458629 | E76: rs946213 | F76: 1 | G76: 218458551 | H76: C | I76: T | J76: 0.402584 | K76: 0.00065239 | L76: 0.00035441 | M76: 0.0659994 | N76: 0.165552 | O76: 0.0255542 | P76: 9.265494e-11 | Q76: 0.0039407 | R76: 0.00222552 | S76: 0.0766127 | T76: 0.407533151 | U76: 1.003948475 | V76: 1.008337282 | W76: 1.001716652
A77: STMN3 | B77: ENSG00000197457 | C77: 20 | D77: 62271061 | E77: rs909333 | F77: 20 | G77: 62270637 | H77: G | I77: T | J77: 0.206759 | K77: -0.000729245 | L77: 0.000405276 | M77: 0.07199959 | N77: -0.228301 | O77: 0.0235902 | P77: 3.746577e-22 | Q77: 0.00319423 | R77: 0.00180561 | S77: 0.07688372 | T77: 0.407533151 | U77: 1.003199337 | V77: 1.006755945 | W77: 1.001389585
A78: TMEM121 | B78: ENSG00000184986 | C78: 14 | D78: 105992940 | E78: rs35592422 | F78: 14 | G78: 105996593 | H78: C | I78: G | J78: 0.252485 | K78: 0.000738687 | L78: 0.000409883 | M78: 0.07199959 | N78: -0.582818 | O78: 0.0421705 | P78: 1.91738e-43 | Q78: -0.00126744 | R78: 0.000709232 | S78: 0.07392775 | T78: 0.407533151 | U78: 0.9987333629 | V78: 1.000122662 | W78: 0.9980252803
A79: UBE2D1 | B79: ENSG00000072401 | C79: 10 | D79: 60094735 | E79: rs4390300 | F79: 10 | G79: 60144207 | H79: A | I79: G | J79: 0.467197 | K79: 0.000638508 | L79: 0.000351879 | M79: 0.07000032 | N79: -0.0932168 | O79: 0.011058 | P79: 3.46168e-17 | Q79: -0.00684971 | R79: 0.00386131 | S79: 0.07607395 | T79: 0.407533151 | U79: 0.9931736958 | V79: 1.000718716 | W79: 0.9893461387
A80: ZFAND2A | B80: ENSG00000178381 | C80: 7 | D80: 1191707 | E80: rs2960848 | F80: 7 | G80: 1212211 | H80: A | I80: C | J80: 0.575547 | K80: 0.000636752 | L80: 0.000356836 | M80: 0.07399971 | N80: -0.330168 | O80: 0.0248505 | P80: 2.785297e-40 | Q80: -0.00192857 | R80: 0.00109048 | S80: 0.07696752 | T80: 0.407533151 | U80: 0.9980732885 | V80: 1.000208793 | W80: 0.9969855027
A81: CASP3 | B81: ENSG00000164305 | C81: 4 | D81: 185548850 | E81: rs72689254 | F81: 4 | G81: 185589941 | H81: T | I81: C | J81: 0.115308 | K81: 0.000974527 | L81: 0.000541415 | M81: 0.07199959 | N81: -0.211096 | O81: 0.0249501 | P81: 2.657271e-17 | Q81: -0.00461651 | R81: 0.00262218 | S81: 0.07831246 | T81: 0.409405645 | U81: 0.9953941297 | V81: 1.0005231 | W81: 0.9927874462
A82: OSBPL11 | B82: ENSG00000144909 | C82: 3 | D82: 125247702 | E82: rs2684961 | F82: 3 | G82: 125474742 | H82: T | I82: C | J82: 0.173956 | K82: 0.000854525 | L82: 0.000471719 | M82: 0.07000032 | N82: -0.0950251 | O82: 0.0149156 | P82: 1.879962e-10 | Q82: -0.00899262 | R82: 0.00516093 | S82: 0.08143113 | T82: 0.420222758 | U82: 0.9910476927 | V82: 1.001123433 | W82: 0.9859461406
A83: SLK | B83: ENSG00000065613 | C83: 10 | D83: 105726959 | E83: rs10883953 | F83: 10 | G83: 105724329 | H83: C | I83: T | J83: 0.571571 | K83: -0.000645262 | L83: 0.000355929 | M83: 0.07000032 | N83: -0.0714194 | O83: 0.011786 | P83: 1.363899e-09 | Q83: 0.00903483 | R83: 0.0052019 | S83: 0.08241657 | T83: 0.420222758 | U83: 1.009075767 | V83: 1.019416652 | W83: 1.003840285
A84: TRAF1 | B84: ENSG00000056558 | C84: 9 | D84: 123664671 | E84: rs1930785 | F84: 9 | G84: 123691237 | H84: G | I84: T | J84: 0.575547 | K84: 0.000633488 | L84: 0.000355671 | M84: 0.07499978 | N84: -0.138265 | O84: 0.0200906 | P84: 5.899186e-12 | Q84: -0.00458169 | R84: 0.00265714 | S84: 0.08465438 | T84: 0.426369011 | U84: 0.9954287899 | V84: 1.000626501 | W84: 0.9927873072
A85: DECR1 | B85: ENSG00000104325 | C85: 8 | D85: 91013633 | E85: rs79839693 | F85: 8 | G85: 91018214 | H85: G | I85: A | J85: 0.0755467 | K85: 0.0011713 | L85: 0.000681281 | M85: 0.08600031 | N85: -0.486753 | O85: 0.032837 | P85: 1.035242e-49 | Q85: -0.00240635 | R85: 0.00140903 | S85: 0.0876711 | T85: 0.428226533 | U85: 0.9975965429 | V85: 1.000355412 | W85: 0.9961918893
A86: DPYSL4 | B86: ENSG00000151640 | C86: 10 | D86: 134000404 | E86: rs902627 | F86: 10 | G86: 134018001 | H86: A | I86: G | J86: 0.482107 | K86: -0.000604305 | L86: 0.000351951 | M86: 0.08600031 | N86: -0.639564 | O86: 0.0436878 | P86: 1.574424e-48 | Q86: 0.00094487 | R86: 0.00055407 | S86: 0.08813379 | T86: 0.428226533 | U86: 1.000945317 | V86: 1.002032911 | W86: 1.000390876
A87: SLC31A1 | B87: ENSG00000136868 | C87: 9 | D87: 115983808 | E87: rs10981706 | F87: 9 | G87: 116021907 | H87: T | I87: C | J87: 0.0646123 | K87: 0.00125565 | L87: 0.00071149 | M87: 0.07799917 | N87: 0.39271 | O87: 0.0581178 | P87: 1.40749e-11 | Q87: 0.0031974 | R87: 0.00187252 | S87: 0.08772192 | T87: 0.428226533 | U87: 1.003202517 | V87: 1.006891175 | W87: 1.001325758
A88: CD55 | B88: ENSG00000196352 | C88: 1 | D88: 207494853 | E88: rs2914937 | F88: 1 | G88: 207488768 | H88: A | I88: G | J88: 0.744533 | K88: 0.000645973 | L88: 0.00037817 | M88: 0.08799946 | N88: 0.251161 | O88: 0.0157197 | P88: 1.835374e-57 | Q88: 0.00257195 | R88: 0.00151427 | S88: 0.08941796 | T88: 0.429414157 | U88: 1.00257526 | V88: 1.005555293 | W88: 1.00105824
A89: CAST | B89: ENSG00000153113 | C89: 5 | D89: 95860971 | E89: rs4267886 | F89: 5 | G89: 95997266 | H89: C | I89: T | J89: 0.151093 | K89: -0.000814259 | L89: 0.000481979 | M89: 0.09099971 | N89: 0.664719 | O89: 0.029223 | P89: 1.556082e-114 | Q89: -0.00122497 | R89: 0.000727084 | S89: 0.09203349 | T89: 0.436894613 | U89: 0.99877578 | V89: 1.000200135 | W89: 0.99804985
A90: SERPINE2 | B90: ENSG00000135919 | C90: 2 | D90: 224839829 | E90: rs13412535 | F90: 2 | G90: 224874874 | H90: A | I90: G | J90: 0.225646 | K90: -0.000697596 | L90: 0.000415251 | M90: 0.09299937 | N90: -0.456943 | O90: 0.0470637 | P90: 2.759686e-22 | Q90: 0.00152666 | R90: 0.000922262 | S90: 0.09785527 | T90: 0.459252574 | U90: 1.001527826 | V90: 1.003339858 | W90: 1.000604581
A91: SLC7A1 | B91: ENSG00000139514 | C91: 13 | D91: 30083547 | E91: rs11619313 | F91: 13 | G91: 30210685 | H91: A | I91: G | J91: 0.202783 | K91: 0.000706934 | L91: 0.000417668 | M91: 0.09099971 | N91: -0.201869 | O91: 0.0279749 | P91: 5.351267e-13 | Q91: -0.00350194 | R91: 0.00212516 | S91: 0.0993832 | T91: 0.461182715 | U91: 0.9965041846 | V91: 1.000663594 | W91: 0.9943887025
A92: PPP1CB | B92: ENSG00000213639 | C92: 2 | D92: 28974506 | E92: rs62131975 | F92: 2 | G92: 29046908 | H92: T | I92: C | J92: 0.489066 | K92: 0.000579756 | L92: 0.000350138 | M92: 0.09800089 | N92: 0.131139 | O92: 0.0130384 | P92: 8.480364e-24 | Q92: 0.00442093 | R92: 0.00270592 | S92: 0.1023006 | T92: 0.469446087 | U92: 1.004430717 | V92: 1.00977197 | W92: 1.001716481
A93: PASK | B93: ENSG00000115687 | C93: 2 | D93: 242045514 | E93: rs3815296 | F93: 2 | G93: 242050546 | H93: G | I93: A | J93: 0.167992 | K93: -0.000781543 | L93: 0.000479647 | M93: 0.1 | N93: -0.3254 | O93: 0.0226854 | P93: 1.161222e-46 | Q93: 0.00240179 | R93: 0.0014835 | S93: 0.1054471 | T93: 0.478567608 | U93: 1.002404677 | V93: 1.00532357 | W93: 1.000918712
A94: CD59 | B94: ENSG00000085063 | C94: 11 | D94: 33719807 | E94: rs831631 | F94: 11 | G94: 33741565 | H94: C | I94: G | J94: 0.624254 | K94: -0.000592056 | L94: 0.000359484 | M94: 0.1 | N94: -0.0973769 | O94: 0.0159403 | P94: 1.003502e-09 | Q94: 0.00608005 | R94: 0.00382349 | S94: 0.1117936 | T94: 0.483508134 | U94: 1.006098571 | V94: 1.013666637 | W94: 1.002259108
A95: GSTO2 | B95: ENSG00000065621 | C95: 10 | D95: 106028631 | E95: rs186826340 | F95: 10 | G95: 105984475 | H95: C | I95: T | J95: 0.0367793 | K95: -0.0015543 | L95: 0.000942687 | M95: 0.0990011 | N95: 0.497047 | O95: 0.0774103 | P95: 1.354349e-10 | Q95: -0.00312707 | R95: 0.00195811 | S95: 0.1102687 | T95: 0.483508134 | U95: 0.9968778142 | V95: 1.000711078 | W95: 0.9949277276
A96: HLA-DRB5 | B96: ENSG00000198502 | C96: 6 | D96: 32485120 | E96: rs3129750 | F96: 6 | G96: 32581515 | H96: A | I96: G | J96: 0.862823 | K96: -0.000769042 | L96: 0.00048071 | M96: 0.1100001 | N96: -0.95308 | O96: 0.0397374 | P96: 4.038327e-127 | Q96: 0.000806902 | R96: 0.000505496 | S96: 0.1104313 | T96: 0.483508134 | U96: 1.000807228 | V96: 1.001799291 | W96: 1.000301451
A97: MLKL | B97: ENSG00000168404 | C97: 16 | D97: 74705753 | E97: rs9932977 | F97: 16 | G97: 74735148 | H97: A | I97: G | J97: 0.569583 | K97: 0.000573656 | L97: 0.000354001 | M97: 0.1100001 | N97: -0.160108 | O97: 0.0202335 | P97: 2.512359e-15 | Q97: -0.00358293 | R97: 0.0022569 | S97: 0.1123893 | T97: 0.483508134 | U97: 0.996423481 | V97: 1.000840947 | W97: 0.9941771887
A98: SULT1A1 | B98: ENSG00000196502 | C98: 16 | D98: 28616903 | E98: rs62031562 | F98: 16 | G98: 28609329 | H98: T | I98: A | J98: 0.317097 | K98: -0.0005838 | L98: 0.000362404 | M98: 0.1100001 | N98: -0.325996 | O98: 0.0335604 | P98: 2.635881e-22 | Q98: 0.00179082 | R98: 0.00112687 | S98: 0.1120143 | T98: 0.483508134 | U98: 1.001792424 | V98: 1.004007494 | W98: 1.00066417
A99: CCDC71 | B99: ENSG00000177352 | C99: 3 | D99: 49199968 | E99: rs4955410 | F99: 3 | G99: 49181218 | H99: G | I99: A | J99: 0.676938 | K99: -0.00060381 | L99: 0.000371208 | M99: 0.1 | N99: -0.116443 | O99: 0.0188604 | P99: 6.660545e-10 | Q99: 0.00518546 | R99: 0.00329668 | S99: 0.1157343 | T99: 0.492765628 | U99: 1.005198928 | V99: 1.011715043 | W99: 1.001890565
A100: ACAT1 | B100: ENSG00000075239 | C100: 11 | D100: 107992243 | E100: rs35219733 | F100: 11 | G100: 107989244 | H100: T | I100: G | J100: 0.157058 | K100: 0.000711628 | L100: 0.000458311 | M100: 0.1199999 | N100: 0.183608 | O100: 0.0301548 | P100: 1.137292e-09 | Q100: 0.0038758 | R100: 0.00257602 | S100: 0.1324352 | T100: 0.495152644 | U100: 1.003883321 | V100: 1.008964744 | W100: 1.001300625
A101: ACSF2 | B101: ENSG00000167107 | C101: 17 | D101: 48503519 | E101: rs4794144 | F101: 17 | G101: 48514042 | H101: G | I101: A | J101: 0.306163 | K101: 0.00060717 | L101: 0.000381017 | M101: 0.1100001 | N101: -0.155483 | O101: 0.023337 | P101: 2.69212e-11 | Q101: -0.00390506 | R101: 0.00251966 | S101: 0.1211809 | T101: 0.495152644 | U101: 0.9961025548 | V101: 1.001034008 | W101: 0.9935958744
A102: COX16 | B102: ENSG00000133983 | C102: 14 | D102: 70791798 | E102: rs2877658 | F102: 14 | G102: 70825397 | H102: G | I102: A | J102: 0.698807 | K102: 0.000599321 | L102: 0.000375272 | M102: 0.1100001 | N102: 0.12691 | O102: 0.0226521 | P102: 2.111939e-08 | Q102: 0.00472241 | R102: 0.00307478 | S102: 0.1245748 | T102: 0.495152644 | U102: 1.004733578 | V102: 1.010806957 | W102: 1.001648988
A103: CYB5R3 | B103: ENSG00000100243 | C103: 22 | D103: 43013846 | E103: rs28365957 | F103: 22 | G103: 43045695 | H103: A | I103: G | J103: 0.111332 | K103: 0.000937159 | L103: 0.000605591 | M103: 0.1199999 | N103: -0.288212 | O103: 0.0327305 | P103: 1.301415e-18 | Q103: -0.00325163 | R103: 0.0021334 | S103: 0.1274703 | T103: 0.495152644 | U103: 0.9967536508 | V103: 1.000930266 | W103: 0.9946294433
A104: DENND3 | B104: ENSG00000105339 | C104: 8 | D104: 142127377 | E104: rs1045303 | F104: 8 | G104: 142200467 | H104: A | I104: G | J104: 0.264414 | K104: -0.000614544 | L104: 0.000398413 | M104: 0.1199999 | N104: -0.0922376 | O104: 0.0141352 | P104: 6.783045e-11 | Q104: 0.00666262 | R104: 0.00443846 | S104: 0.1333267 | T104: 0.495152644 | U104: 1.006684865 | V104: 1.015480604 | W104: 1.002226635
A105: FRY | B105: ENSG00000073910 | C105: 13 | D105: 32605437 | E105: rs76123129 | F105: 13 | G105: 32685183 | H105: T | I105: C | J105: 0.027833 | K105: -0.00143705 | L105: 0.000921721 | M105: 0.1199999 | N105: 0.298582 | O105: 0.0511096 | P105: 5.157791e-09 | Q105: -0.00481292 | R105: 0.00319504 | S105: 0.1319716 | T105: 0.495152644 | U105: 0.9951986435 | V105: 1.001450409 | W105: 0.9920240183
A106: IRF2BPL | B106: ENSG00000119669 | C106: 14 | D106: 77490888 | E106: rs205810 | F106: 14 | G106: 77517894 | H106: A | I106: G | J106: 0.351889 | K106: 0.000588452 | L106: 0.000369657 | M106: 0.1100001 | N106: -0.115502 | O106: 0.0153575 | P106: 5.441119e-14 | Q106: -0.00509473 | R106: 0.00327134 | S106: 0.1193797 | T106: 0.495152644 | U106: 0.9949182261 | V106: 1.001317964 | W106: 0.9916688282
A107: MASTL | B107: ENSG00000120539 | C107: 10 | D107: 27443753 | E107: rs7900024 | F107: 10 | G107: 27444763 | H107: A | I107: C | J107: 0.602386 | K107: 0.000561674 | L107: 0.00036506 | M107: 0.1199999 | N107: 0.385638 | O107: 0.0284683 | P107: 8.342556e-42 | Q107: 0.00145648 | R107: 0.000952726 | S107: 0.1263262 | T107: 0.495152644 | U107: 1.001457541 | V107: 1.003329353 | W107: 1.000503881
A108: PAQR8 | B108: ENSG00000170915 | C108: 6 | D108: 52226219 | E108: rs9382100 | F108: 6 | G108: 52223211 | H108: A | I108: T | J108: 0.312127 | K108: 0.000583763 | L108: 0.000373722 | M108: 0.1199999 | N108: -0.164538 | O108: 0.0232746 | P108: 1.555742e-12 | Q108: -0.00354789 | R108: 0.00232613 | S108: 0.1272001 | T108: 0.495152644 | U108: 0.9964583963 | V108: 1.001011836 | W108: 0.9941431983
A109: PCNT | B109: ENSG00000160299 | C109: 21 | D109: 47744036 | E109: rs4347941 | F109: 21 | G109: 47938239 | H109: C | I109: T | J109: 0.429423 | K109: -0.00055579 | L109: 0.000355958 | M109: 0.1199999 | N109: 0.148455 | O109: 0.0183646 | P109: 6.28092e-16 | Q109: -0.00374383 | R109: 0.00244207 | S109: 0.1252619 | T109: 0.495152644 | U109: 0.9962631694 | V109: 1.001043171 | W109: 0.9938331933
A110: PEPD | B110: ENSG00000124299 | C110: 19 | D110: 33877856 | E110: rs16968074 | F110: 19 | G110: 33884341 | H110: G | I110: A | J110: 0.309145 | K110: 0.000603233 | L110: 0.000381279 | M110: 0.1100001 | N110: 0.139035 | O110: 0.0228367 | P110: 1.141768e-09 | Q110: 0.00433871 | R110: 0.00283341 | S110: 0.1257026 | T110: 0.495152644 | U110: 1.004348136 | V110: 1.009941283 | W110: 1.001506434
A111: PRKCE | B111: ENSG00000171132 | C111: 2 | D111: 45878484 | E111: rs588969 | F111: 2 | G111: 45883597 | H111: C | I111: G | J111: 0.255467 | K111: -0.0006102 | L111: 0.000386872 | M111: 0.1100001 | N111: 0.14667 | O111: 0.0259296 | P111: 1.5452e-08 | Q111: -0.00416036 | R111: 0.00273833 | S111: 0.1286855 | T111: 0.495152644 | U111: 0.9958482823 | V111: 1.001207495 | W111: 0.9931250513
A112: SPHK1 | B112: ENSG00000176170 | C112: 17 | D112: 74372665 | E112: rs1713399 | F112: 17 | G112: 74377694 | H112: T | I112: G | J112: 0.274354 | K112: -0.000599042 | L112: 0.000393111 | M112: 0.1299999 | N112: 0.248353 | O112: 0.0333876 | P112: 1.01851e-13 | Q112: -0.00241206 | R112: 0.00161575 | S112: 0.1354776 | T112: 0.495152644 | U112: 0.9975908467 | V112: 1.000755095 | W112: 0.9959802907
A113: TBC1D1 | B113: ENSG00000065882 | C113: 4 | D113: 37892708 | E113: rs12498823 | F113: 4 | G113: 37983171 | H113: T | I113: C | J113: 0.124254 | K113: -0.00088488 | L113: 0.000570862 | M113: 0.1199999 | N113: 0.18864 | O113: 0.0270129 | P113: 2.882686e-12 | Q113: -0.00469084 | R113: 0.00309985 | S113: 0.1302171 | T113: 0.495152644 | U113: 0.9953201448 | V113: 1.001385825 | W113: 0.9922395788
A114: TGM1 | B114: ENSG00000092295 | C114: 14 | D114: 24718320 | E114: rs2180196 | F114: 14 | G114: 24734645 | H114: A | I114: G | J114: 0.143141 | K114: 0.000736471 | L114: 0.000482315 | M114: 0.1299999 | N114: 0.430549 | O114: 0.0568426 | P114: 3.607668e-14 | Q114: 0.00171054 | R114: 0.00114277 | S114: 0.1344355 | T114: 0.495152644 | U114: 1.001712004 | V114: 1.003958182 | W114: 1.000567931
A115: TMC6 | B115: ENSG00000141524 | C115: 17 | D115: 76106539 | E115: rs3813027 | F115: 17 | G115: 76123463 | H115: G | I115: C | J115: 0.0606362 | K115: 0.00106869 | L115: 0.000686786 | M115: 0.1199999 | N115: 0.268051 | O115: 0.0267117 | P115: 1.069943e-23 | Q115: 0.00398689 | R115: 0.00259277 | S115: 0.1241227 | T115: 0.495152644 | U115: 1.003994848 | V115: 1.009109965 | W115: 1.001395092
A116: RPS26 | B116: ENSG00000197728 | C116: 12 | D116: 56435637 | E116: rs1131017 | F116: 12 | G116: 56435929 | H116: G | I116: C | J116: 0.591451 | K116: 0.000516114 | L116: 0.000353681 | M116: 0.14 | N116: -1.11048 | O116: 0.0242948 | P116: 0 | Q116: -0.000464767 | R116: 0.000318656 | S116: 0.144697 | T116: 0.524209307 | U116: 0.999535341 | V116: 1.000159812 | W116: 0.9992168838
A117: DGAT1 | B117: ENSG00000185000 | C117: 8 | D117: 145539954 | E117: rs6986110 | F117: 8 | G117: 145529576 | H117: G | I117: A | J117: 0.492048 | K117: 0.0005252 | L117: 0.000352257 | M117: 0.14 | N117: 0.134638 | O117: 0.022597 | P117: 2.549963e-09 | Q117: 0.00390083 | R117: 0.002697 | S117: 0.1480761 | T117: 0.52583965 | U117: 1.003908448 | V117: 1.00922928 | W117: 1.001204555
A118: FAM20C | B118: ENSG00000177706 | C118: 7 | D118: 192969 | E118: rs75374501 | F118: 7 | G118: 161935 | H118: T | I118: C | J118: 0.0367793 | K118: 0.00158451 | L118: 0.00106166 | M118: 0.14 | N118: 0.494479 | O118: 0.0793583 | P118: 4.635668e-10 | Q118: 0.0032044 | R118: 0.00220776 | S118: 0.1466608 | T118: 0.52583965 | U118: 1.00320954 | V118: 1.007560044 | W118: 1.000997137
A119: HLA-DRB1 | B119: ENSG00000196126 | C119: 6 | D119: 32546546 | E119: rs113568276 | F119: 6 | G119: 32513127 | H119: A | I119: G | J119: 0.257455 | K119: -0.000554396 | L119: 0.000382752 | M119: 0.1499999 | N119: -0.235707 | O119: 0.0189896 | P119: 2.237116e-35 | Q119: 0.00235206 | R119: 0.00163487 | S119: 0.1502399 | T119: 0.52583965 | U119: 1.002354828 | V119: 1.005571871 | W119: 1.000717447
A120: SHMT1 | B120: ENSG00000176974 | C120: 17 | D120: 18231187 | E120: rs28597812 | F120: 17 | G120: 18269758 | H120: A | I120: G | J120: 0.616302 | K120: 0.000525255 | L120: 0.000363382 | M120: 0.1499999 | N120: 0.532765 | O120: 0.0327357 | P120: 1.491292e-59 | Q120: 0.000985904 | R120: 0.000684753 | S120: 0.1499255 | T120: 0.52583965 | U120: 1.00098639 | V120: 1.002330732 | W120: 1.000301196
A121: ZMIZ2 | B121: ENSG00000122515 | C121: 7 | D121: 44788180 | E121: rs73109470 | F121: 7 | G121: 44799347 | H121: C | I121: T | J121: 0.116302 | K121: -0.000739991 | L121: 0.000509531 | M121: 0.1499999 | N121: -0.152161 | O121: 0.0177248 | P121: 9.111418e-18 | Q121: 0.00486321 | R121: 0.00339621 | S121: 0.1521576 | T121: 0.528076376 | U121: 1.004875055 | V121: 1.01158639 | W121: 1.001468077
A122: ALKBH3 | B122: ENSG00000166199 | C122: 11 | D122: 43902361 | E122: rs7926272 | F122: 11 | G122: 43891748 | H122: T | I122: C | J122: 0.614314 | K122: 0.00052426 | L122: 0.000361492 | M122: 0.1499999 | N122: -0.153717 | O122: 0.0276904 | P122: 2.835932e-08 | Q122: -0.00341055 | R122: 0.0024306 | S122: 0.1605652 | T122: 0.539133558 | U122: 0.9965952593 | V122: 1.001354342 | W122: 0.9941758763
A123: IGFLR1 | B123: ENSG00000126246 | C123: 19 | D123: 36230058 | E123: rs12459634 | F123: 19 | G123: 36230174 | H123: C | I123: T | J123: 0.157058 | K123: 0.000708359 | L123: 0.00049602 | M123: 0.1499999 | N123: -0.241201 | O123: 0.0218436 | P123: 2.391588e-28 | Q123: -0.0029368 | R123: 0.00207359 | S123: 0.1566906 | T123: 0.539133558 | U123: 0.9970675082 | V123: 1.001128072 | W123: 0.9950021411
A124: KLF2 | B124: ENSG00000127528 | C124: 19 | D124: 16435628 | E124: rs3745318 | F124: 19 | G124: 16436262 | H124: C | I124: T | J124: 0.76839 | K124: 0.000588742 | L124: 0.000405832 | M124: 0.1499999 | N124: -0.181372 | O124: 0.0308269 | P124: 4.015286e-09 | Q124: -0.00324605 | R124: 0.00230458 | S124: 0.1589774 | T124: 0.539133558 | U124: 0.9967592127 | V124: 1.001271735 | W124: 0.9944647463
A125: RBM23 | B125: ENSG00000100461 | C125: 14 | D125: 23369854 | E125: rs77963612 | F125: 14 | G125: 23410587 | H125: A | I125: G | J125: 0.027833 | K125: 0.0014557 | L125: 0.00102425 | M125: 0.16 | N125: -0.369077 | O125: 0.0381465 | P125: 3.841298e-22 | Q125: -0.00394416 | R125: 0.00280495 | S125: 0.159681 | T125: 0.539133558 | U125: 0.996063608 | V125: 1.001554749 | W125: 0.9932736141
A126: AHR | B126: ENSG00000106546 | C126: 7 | D126: 17338246 | E126: rs17643734 | F126: 7 | G126: 17162882 | H126: G | I126: A | J126: 0.0755467 | K126: 0.00106678 | L126: 0.000751843 | M126: 0.16 | N126: 0.373832 | O126: 0.0450635 | P126: 1.079704e-16 | Q126: 0.00285363 | R126: 0.00204038 | S126: 0.1619399 | T126: 0.539364344 | U126: 1.002857705 | V126: 1.006876309 | W126: 1.000813581
A127: MPI | B127: ENSG00000178802 | C127: 15 | D127: 75182346 | E127: rs1130741 | F127: 15 | G127: 75189930 | H127: G | I127: A | J127: 0.510934 | K127: -0.000496594 | L127: 0.000353023 | M127: 0.16 | N127: 0.192246 | O127: 0.0185386 | P127: 3.394303e-25 | Q127: -0.00258312 | R127: 0.00185313 | S127: 0.1633406 | T127: 0.539618917 | U127: 0.9974202134 | V127: 1.001049565 | W127: 0.9955735756
A128: RFX5 | B128: ENSG00000143390 | C128: 1 | D128: 151313116 | E128: rs11204787 | F128: 1 | G128: 151199514 | H128: G | I128: A | J128: 0.209742 | K128: 0.000636026 | L128: 0.000442886 | M128: 0.1499999 | N128: -0.108138 | O128: 0.0196259 | P128: 3.589169e-08 | Q128: -0.00588161 | R128: 0.00423239 | S128: 0.1646295 | T128: 0.539618917 | U128: 0.9941356528 | V128: 1.00241679 | W128: 0.9899369745
A129: TESC | B129: ENSG00000088992 | C129: 12 | D129: 117476728 | E129: rs7954600 | F129: 12 | G129: 117478236 | H129: A | I129: C | J129: 0.153082 | K129: -0.000746414 | L129: 0.000528533 | M129: 0.16 | N129: 0.18171 | O129: 0.0274449 | P129: 3.56999e-11 | Q129: -0.00410772 | R129: 0.00297409 | S129: 0.1672275 | T129: 0.543818563 | U129: 0.9959007051 | V129: 1.001722979 | W129: 0.9929432069
A130: GPER1 | B130: ENSG00000164850 | C130: 7 | D130: 1121844 | E130: rs7788231 | F130: 7 | G130: 1161158 | H130: C | I130: T | J130: 0.238569 | K130: 0.000551395 | L130: 0.000393195 | M130: 0.16 | N130: 0.170854 | O130: 0.0257227 | P130: 3.09132e-11 | Q130: 0.00322729 | R130: 0.00235208 | S130: 0.170033 | T130: 0.548622102 | U130: 1.003232503 | V130: 1.007868159 | W130: 1.000875593
A131: GSTM3 | B131: ENSG00000134202 | C131: 1 | D131: 110276554 | E131: rs1332018 | F131: 1 | G131: 110282972 | H131: T | I131: G | J131: 0.550696 | K131: -0.000484781 | L131: 0.000354038 | M131: 0.17 | N131: 0.836106 | O131: 0.0417649 | P131: 3.736432e-89 | Q131: -0.000579808 | R131: 0.000424426 | S131: 0.1719079 | T131: 0.550371804 | U131: 0.9994203601 | V131: 1.000252099 | W131: 0.9989962701
A132: COL6A2 | B132: ENSG00000142173 | C132: 21 | D132: 47518011 | E132: rs73382426 | F132: 21 | G132: 47519274 | H132: T | I132: G | J132: 0.129225 | K132: 0.000686614 | L132: 0.000504489 | M132: 0.17 | N132: -0.244335 | O132: 0.0289593 | P132: 3.250893e-17 | Q132: -0.00281013 | R132: 0.00209143 | S132: 0.179065 | T132: 0.562768084 | U132: =EXP(Q132) -> 0.9971938147 | V132: =EXP(Q132+1.96*R132) -> 1.001289904 | W132: =EXP(Q132-R132) -> 0.995110433
A133: MDM4 | B133: ENSG00000198625 | C133: 1 | D133: 204485511 | E133: rs10900599 | F133: 1 | G133: 204541943 | H133: C | I133: T | J133: 0.677932 | K133: 0.000509119 | L133: 0.000373656 | M133: 0.17 | N133: -0.158585 | O133: 0.0220469 | P133: 6.335498e-13 | Q133: -0.00321039 | R133: 0.00239809 | S133: 0.1806592 | T133: 0.562768084 | U133: 0.9967947578 | V133: 1.001490977 | W133: 0.9944072182
A134: NAAA | B134: ENSG00000138744 | C134: 4 | D134: 76831809 | E134: rs11732759 | F134: 4 | G134: 76856440 | H134: A | I134: T | J134: 0.436382 | K134: -0.000478683 | L134: 0.000354644 | M134: 0.1800002 | N134: 0.501561 | O134: 0.0305965 | P134: 2.153634e-60 | Q134: -0.000954386 | R134: 0.000709473 | S134: 0.1785593 | T134: 0.562768084 | U134: 0.9990460693 | V134: 1.000436276 | W134: 0.9983375244
A135: RTKN2 | B135: ENSG00000182010 | C135: 10 | D135: 63942794 | E135: rs4979777 | F135: 10 | G135: 63981896 | H135: T | I135: C | J135: 0.752485 | K135: 0.000550175 | L135: 0.000405806 | M135: 0.1800002 | N135: -0.299487 | O135: 0.0371573 | P135: 7.630419e-16 | Q135: -0.00183706 | R135: 0.00137404 | S135: 0.1812304 | T135: 0.562768084 | U135: 0.9981646264 | V135: 1.000856425 | W135: 0.9967940501
A136: PIK3R4 | B136: ENSG00000196455 | C136: 3 | D136: 130397779 | E136: rs61629992 | F136: 3 | G136: 130360527 | H136: T | I136: C | J136: 0.0745527 | K136: -0.000932647 | L136: 0.000685614 | M136: 0.17 | N136: 0.238142 | O136: 0.0431463 | P136: 3.401408e-08 | Q136: -0.00391635 | R136: 0.00296516 | S136: 0.1865725 | T136: 0.575033153 | U136: 0.9960913089 | V136: 1.001897161 | W136: 0.9931421134
A137: ASNS | B137: ENSG00000070669 | C137: 7 | D137: 97481430 | E137: rs2894157 | F137: 7 | G137: 97591505 | H137: A | I137: T | J137: 0.232604 | K137: 0.00054168 | L137: 0.000408407 | M137: 0.1800002 | N137: -0.39932 | O137: 0.0383973 | P137: 2.487267e-25 | Q137: -0.00135651 | R137: 0.00103104 | S137: 0.1882857 | T137: 0.576014771 | U137: 0.9986444096 | V137: 1.000664549 | W137: 0.9976152979
A138: AGPAT2 | B138: ENSG00000169692 | C138: 9 | D138: 139567595 | E138: rs12553230 | F138: 9 | G138: 139574616 | H138: T | I138: C | J138: 0.129225 | K138: -0.000721145 | L138: 0.000549101 | M138: 0.1900002 | N138: -0.142286 | O138: 0.0181952 | P138: 5.283915e-15 | Q138: 0.00506828 | R138: 0.00391318 | S138: 0.1952578 | T138: 0.588623879 | U138: 1.005081145 | V138: 1.012819588 | W138: 1.001155767
A139: CASP7 | B139: ENSG00000165806 | C139: 10 | D139: 115438942 | E139: rs7918733 | F139: 10 | G139: 115439394 | H139: T | I139: C | J139: 0.39662 | K139: 0.000469418 | L139: 0.000360832 | M139: 0.1900002 | N139: 0.37611 | O139: 0.0252963 | P139: 5.301279e-50 | Q139: 0.00124809 | R139: 0.000963044 | S139: 0.1949821 | T139: 0.588623879 | U139: 1.001248869 | V139: 1.003140578 | W139: 1.000285087
A140: UGDH | B140: ENSG00000109814 | C140: 4 | D140: 39500375 | E140: rs7687329 | F140: 4 | G140: 39515122 | H140: G | I140: T | J140: 0.437376 | K140: 0.000462466 | L140: 0.000353344 | M140: 0.1900002 | N140: 0.212289 | O140: 0.02872 | P140: 1.44975e-13 | Q140: 0.00217847 | R140: 0.00169034 | S140: 0.1974749 | T140: 0.590993722 | U140: 1.002180845 | V140: 1.005506643 | W140: 1.000488249
A141: CD44 | B141: ENSG00000026508 | C141: 11 | D141: 35160417 | E141: rs12419062 | F141: 11 | G141: 35249670 | H141: G | I141: A | J141: 0.356859 | K141: 0.000487731 | L141: 0.000374553 | M141: 0.1900002 | N141: 0.0977872 | O141: 0.0163419 | P141: 2.179451e-09 | Q141: 0.00498768 | R141: 0.00391993 | S141: 0.2032349 | T141: 0.592122463 | U141: 1.005000139 | V141: 1.012751357 | W141: 1.00106832
A142: ITGAX | B142: ENSG00000140678 | C142: 16 | D142: 31366455 | E142: rs11150616 | F142: 16 | G142: 31370090 | H142: G | I142: T | J142: 0.678926 | K142: 0.000483142 | L142: 0.000378591 | M142: 0.2 | N142: 0.292883 | O142: 0.0198772 | P142: 3.861654e-49 | Q142: 0.00164961 | R142: 0.00129747 | S142: 0.2035869 | T142: 0.592122463 | U142: 1.001650971 | V142: 1.004201453 | W142: 1.000352202
A143: JAK1 | B143: ENSG00000162434 | C143: 1 | D143: 65298912 | E143: rs6680481 | F143: 1 | G143: 65518454 | H143: A | I143: G | J143: 0.776342 | K143: -0.000529363 | L143: 0.000405301 | M143: 0.1900002 | N143: 0.105549 | O143: 0.0176106 | P143: 2.054017e-09 | Q143: -0.00501533 | R143: 0.00393005 | S143: 0.2019031 | T143: 0.592122463 | U143: 0.9949972258 | V143: 1.002691183 | W143: 0.9910945109
A144: UPB1 | B144: ENSG00000100024 | C144: 22 | D144: 24863206 | E144: rs5760435 | F144: 22 | G144: 24858500 | H144: T | I144: C | J144: 0.610338 | K144: -0.000461678 | L144: 0.000358119 | M144: 0.2 | N144: -0.275608 | O144: 0.0286738 | P144: 7.127061e-22 | Q144: 0.00167513 | R144: 0.00131101 | S144: 0.2013435 | T144: 0.592122463 | U144: 1.001676534 | V144: 1.004253731 | W144: 1.000364186
A145: KLHDC7B | B145: ENSG00000130487 | C145: 22 | D145: 50986462 | E145: rs1866 | F145: 22 | G145: 50980985 | H145: T | I145: G | J145: 0.134195 | K145: -0.000601832 | L145: 0.000471061 | M145: 0.2 | N145: -0.289063 | O145: 0.0361749 | P145: 1.341715e-15 | Q145: 0.00208201 | R145: 0.00165031 | S145: 0.2070979 | T145: 0.595618849 | U145: 1.002084179 | V145: 1.005330776 | W145: 1.000431793
A146: MED15 | B146: ENSG00000099917 | C146: 22 | D146: 20850200 | E146: rs73159140 | F146: 22 | G146: 20935946 | H146: A | I146: G | J146: 0.158052 | K146: -0.000622084 | L146: 0.000488136 | M146: 0.2 | N146: -0.180527 | O146: 0.0214912 | P146: 4.463097e-17 | Q146: 0.00344593 | R146: 0.00273489 | S146: 0.2076734 | T146: 0.595618849 | U146: 1.003451874 | V146: 1.008845204 | W146: 1.000711293
A147: ABCC6 | B147: ENSG00000091262 | C147: 16 | D147: 16242785 | E147: rs4992353 | F147: 16 | G147: 16357220 | H147: C | I147: G | J147: 0.212724 | K147: -0.000550225 | L147: 0.00043648 | M147: 0.2099999 | N147: -0.215977 | O147: 0.030457 | P147: 1.32943e-12 | Q147: 0.00254761 | R147: 0.00205264 | S147: 0.2145549 | T147: 0.598724147 | U147: 1.002550858 | V147: 1.006592419 | W147: 1.000495093
A148: ESYT2 | B148: ENSG00000117868 | C148: 7 | D148: 158523686 | E148: rs66478815 | F148: 7 | G148: 158536626 | H148: G | I148: A | J148: 0.16998 | K148: -0.000596851 | L148: 0.000478456 | M148: 0.2099999 | N148: 0.33042 | O148: 0.0235822 | P148: 1.326901e-44 | Q148: -0.00180634 | R148: 0.00145375 | S148: 0.2140383 | T148: 0.598724147 | U148: 0.9981952905 | V148: 1.001043554 | W148: 0.9967452183
A149: NTSR1 | B149: ENSG00000101188 | C149: 20 | D149: 61340189 | E149: rs2427373 | F149: 20 | G149: 61308564 | H149: A | I149: C | J149: 0.321074 | K149: 0.000466307 | L149: 0.000370995 | M149: 0.2099999 | N149: -0.419135 | O149: 0.0276713 | P149: 7.939113e-52 | Q149: -0.00111255 | R149: 0.000888187 | S149: 0.2103499 | T149: 0.598724147 | U149: 0.9988880687 | V149: 1.000628494 | W149: 0.9980012631
A150: SH3TC1 | B150: ENSG00000125089 | C150: 4 | D150: 8183799 | E150: rs10938697 | F150: 4 | G150: 8221969 | H150: G | I150: C | J150: 0.279324 | K150: 0.000510582 | L150: 0.000403432 | M150: 0.2099999 | N150: -0.17324 | O150: 0.0263139 | P150: 4.59181e-11 | Q150: -0.00294725 | R150: 0.00237138 | S150: 0.2139266 | T150: 0.598724147 | U150: 0.9970570889 | V150: 1.001702102 | W150: 0.9946954889
A151: FAM3B | B151: ENSG00000183844 | C151: 21 | D151: 42676139 | E151: rs66817580 | F151: 21 | G151: 42689637 | H151: T | I151: G | J151: 0.137177 | K151: -0.000601698 | L151: 0.000487255 | M151: 0.2200002 | N151: 1.3912 | O151: 0.0592851 | P151: 9.020185e-122 | Q151: -0.000432503 | R151: 0.000350725 | S151: 0.2175136 | T151: 0.602906824 | U151: 0.9995675905 | V151: 1.00025495 | W151: 0.9992170786
A152: FHL3 | B152: ENSG00000183386 | C152: 1 | D152: 38462442 | E152: rs4634868 | F152: 1 | G152: 38465315 | H152: A | I152: G | J152: 0.255467 | K152: -0.000515707 | L152: 0.000419149 | M152: 0.2200002 | N152: 0.677627 | O152: 0.0325516 | P152: 3.035125e-96 | Q152: -0.000761048 | R152: 0.000619634 | S152: 0.2193631 | T152: 0.603979735 | U152: 0.9992392415 | V152: 1.000453537 | W152: 0.9986202707
A153: SPTBN1 | B153: ENSG00000115306 | C153: 2 | D153: 54683422 | E153: rs75475627 | F153: 2 | G153: 54787592 | H153: G | I153: C | J153: 0.0904573 | K153: -0.000822695 | L153: 0.000672609 | M153: 0.2200002 | N153: 0.823 | O153: 0.0488593 | P153: 1.155645e-63 | Q153: -0.000999629 | R153: 0.000819417 | S153: 0.2224922 | T153: 0.608538269 | U153: 0.9990008705 | V153: 1.000606612 | W153: 0.9981826075
A154: BEND7 | B154: ENSG00000165626 | C154: 10 | D154: 13480484 | E154: rs11258422 | F154: 10 | G154: 13540869 | H154: C | I154: A | J154: 0.373757 | K154: 0.000440438 | L154: 0.000372763 | M154: 0.2399999 | N154: 0.261188 | O154: 0.0414078 | P154: 2.832161e-10 | Q154: 0.00168629 | R154: 0.00145201 | S154: 0.2454994 | T154: 0.617800978 | U154: 1.001687713 | V154: 1.004542516 | W154: 1.000234307
A155: BLM | B155: ENSG00000197299 | C155: 15 | D155: 91260558 | E155: rs389480 | F155: 15 | G155: 91351930 | H155: A | I155: G | J155: 0.459245 | K155: 0.000409406 | L155: 0.000351942 | M155: 0.2399999 | N155: 0.46735 | O155: 0.034502 | P155: 8.415479e-42 | Q155: 0.000876016 | R155: 0.000755831 | S155: 0.2464518 | T155: 0.617800978 | U155: 1.0008764 | V155: 1.002360226 | W155: 1.000120192
A156: CAPS | B156: ENSG00000105519 | C156: 19 | D156: 5911718 | E156: rs447980 | F156: 19 | G156: 5908448 | H156: C | I156: A | J156: 0.644135 | K156: 0.000448135 | L156: 0.000375762 | M156: 0.2300001 | N156: 0.222192 | O156: 0.0214397 | P156: 3.631863e-25 | Q156: 0.00201688 | R156: 0.00170232 | S156: 0.2361028 | T156: 0.617800978 | U156: 1.002018915 | V156: 1.005367782 | W156: 1.000314609
A157: CPEB2 | B157: ENSG00000137449 | C157: 4 | D157: 15004298 | E157: rs12646418 | F157: 4 | G157: 15073578 | H157: G | I157: A | J157: 0.537773 | K157: 0.00041154 | L157: 0.00035179 | M157: 0.2399999 | N157: 0.131369 | O157: 0.0184028 | P157: 9.432281e-13 | Q157: 0.0031327 | R157: 0.0027136 | S157: 0.2483171 | T157: 0.617800978 | U157: 1.003137612 | V157: 1.00848717 | W157: 1.000419188
A158: GSAP | B158: ENSG00000186088 | C158: 7 | D158: 76940068 | E158: rs1181898 | F158: 7 | G158: 76993577 | H158: T | I158: C | J158: 0.553678 | K158: 0.000408441 | L158: 0.000351453 | M158: 0.25 | N158: -0.285395 | O158: 0.0231007 | P158: 4.61263e-35 | Q158: -0.00143114 | R158: 0.0012369 | S158: 0.2472553 | T158: 0.617800978 | U158: 0.9985698836 | V158: 1.000993677 | W158: 0.9973355161
A159: HES4 | B159: ENSG00000188290 | C159: 1 | D159: 934342 | E159: rs3128113 | F159: 1 | G159: 935459 | H159: G | I159: A | J159: 0.789264 | K159: 0.000537586 | L159: 0.000446235 | M159: 0.2300001 | N159: -0.285041 | O159: 0.0311456 | P159: 5.595177e-20 | Q159: -0.001886 | R159: 0.00157902 | S159: 0.2323172 | T159: 0.617800978 | U159: 0.9981157774 | V159: 1.00120961 | W159: 0.9965409763
A160: LTA4H | B160: ENSG00000111144 | C160: 12 | D160: 96394606 | E160: rs10860001 | F160: 12 | G160: 96441877 | H160: T | I160: C | J160: 0.0785288 | K160: -0.000916161 | L160: 0.000787112 | M160: 0.2399999 | N160: -0.389576 | O160: 0.0388107 | P160: 1.039224e-23 | Q160: 0.00235169 | R160: 0.00203397 | S160: 0.2475972 | T160: 0.617800978 | U160: 1.002354457 | V160: 1.006358401 | W160: 1.00031777
A161: MAFB | B161: ENSG00000204103 | C161: 20 | D161: 39314488 | E161: rs2902940 | F161: 20 | G161: 39091487 | H161: G | I161: A | J161: 0.243539 | K161: -0.000453842 | L161: 0.000374254 | M161: 0.2300001 | N161: 0.150299 | O161: 0.0246248 | P161: 1.03726e-09 | Q161: -0.00301959 | R161: 0.00253873 | S161: 0.2342785 | T161: 0.617800978 | U161: 0.9969849644 | V161: 1.001958236 | W161: 0.9944570989
A162: MAT2A | B162: ENSG00000168906 | C162: 2 | D162: 85766288 | E162: rs72844420 | F162: 2 | G162: 85729520 | H162: T | I162: G | J162: 0.251491 | K162: 0.000510835 | L162: 0.00043699 | M162: 0.2399999 | N162: -0.245525 | O162: 0.0284867 | P162: 6.758509e-18 | Q162: -0.00208058 | R162: 0.00179611 | S162: 0.2467092 | T162: 0.617800978 | U162: 0.9979215829 | V162: 1.001440833 | W162: 0.9961308147
A163: OSCAR | B163: ENSG00000170909 | C163: 19 | D163: 54597933 | E163: rs10415777 | F163: 19 | G163: 54551115 | H163: T | I163: G | J163: 0.516899 | K163: 0.000414614 | L163: 0.000351851 | M163: 0.2399999 | N163: -0.217446 | O163: 0.0140898 | P163: 9.831949e-54 | Q163: -0.00190674 | R163: 0.00162282 | S163: 0.240011 | T163: 0.617800978 | U163: 0.9980950767 | V163: 1.001274799 | W163: 0.9964766616
A164: SERPINA1 | B164: ENSG00000197249 | C164: 14 | D164: 94843084 | E164: rs2753935 | F164: 14 | G164: 94850937 | H164: T | I164: A | J164: 0.471173 | K164: -0.000423929 | L164: 0.000353281 | M164: 0.2300001 | N164: -0.108944 | O164: 0.0144337 | P164: 4.423827e-14 | Q164: 0.00389126 | R164: 0.0032835 | S164: 0.2359805 | T164: 0.617800978 | U164: 1.003898841 | V164: 1.010380427 | W164: 1.000607945
A165: SLC22A1 | B165: ENSG00000175003 | C165: 6 | D165: 160542821 | E165: rs7753051 | F165: 6 | G165: 160528057 | H165: C | I165: T | J165: 0.206759 | K165: -0.000489068 | L165: 0.000413329 | M165: 0.2399999 | N165: -0.232156 | O165: 0.0231009 | P165: 9.220712e-24 | Q165: 0.00210664 | R165: 0.00179269 | S165: 0.239945 | T165: 0.617800978 | U165: 1.002108861 | V165: 1.005636136 | W165: 1.000313999
A166: TAS1R3 | B166: ENSG00000169962 | C166: 1 | D166: 1266694 | E166: rs35744813 | F166: 1 | G166: 1265460 | H166: C | I166: T | J166: 0.920477 | K166: -0.000847268 | L166: 0.000695673 | M166: 0.2200002 | N166: -0.484885 | O166: 0.0576142 | P166: 3.893269e-17 | Q166: 0.00174736 | R166: 0.00144966 | S166: 0.2280661 | T166: 0.617800978 | U166: 1.001748888 | V166: 1.004599238 | W166: 1.000297744
A167: TES | B167: ENSG00000135269 | C167: 7 | D167: 115850547 | E167: rs1317791 | F167: 7 | G167: 115839721 | H167: G | I167: C | J167: 0.310139 | K167: 0.000468758 | L167: 0.000393069 | M167: 0.2300001 | N167: 0.214414 | O167: 0.0285307 | P167: 5.682423e-14 | Q167: 0.00218623 | R167: 0.00185616 | S167: 0.2388677 | T167: 0.617800978 | U167: 1.002188622 | V167: 1.005841298 | W167: 1.000330124
A168: TRIM16L | B168: ENSG00000108448 | C168: 17 | D168: 18601311 | E168: rs4924766 | F168: 17 | G168: 18587360 | H168: T | I168: C | J168: 0.468191 | K168: -0.000427638 | L168: 0.000353158 | M168: 0.2300001 | N168: 0.423842 | O168: 0.0446683 | P168: 2.34016e-21 | Q168: -0.00100896 | R168: 0.000839988 | S168: 0.2296908 | T168: 0.617800978 | U168: 0.9989915488 | V168: 1.00063762 | W168: 0.9981527603
A169: ARC | B169: ENSG00000198576 | C169: 8 | D169: 143692405 | E169: rs12544773 | F169: 8 | G169: 143689422 | H169: G | I169: C | J169: 0.513917 | K169: -0.000487755 | L169: 0.000426051 | M169: 0.25 | N169: 0.28043 | O169: 0.0399388 | P169: 2.195115e-12 | Q169: -0.00173931 | R169: 0.00153934 | S169: 0.2585152 | T169: 0.639297942 | U169: 0.9982622017 | V169: 1.001278613 | W169: 0.9967267189
A170: GTF2H1 | B170: ENSG00000110768 | C170: 11 | D170: 18343842 | E170: rs11024614 | F170: 11 | G170: 18326758 | H170: T | I170: C | J170: 0.583499 | K170: -0.000410259 | L170: 0.00036145 | M170: 0.2599998 | N170: 0.217218 | O170: 0.0239313 | P170: 1.118888e-19 | Q170: -0.0018887 | R170: 0.00167696 | S170: 0.2600534 | T170: 0.639297942 | U170: 0.9981130825 | V170: 1.001399119 | W170: 0.9964406894
A171: ABLIM3 | B171: ENSG00000173210 | C171: 5 | D171: 148521046 | E171: rs76127078 | F171: 5 | G171: 148471603 | H171: C | I171: T | J171: 0.0218688 | K171: -0.00112549 | L171: 0.000985881 | M171: 0.25 | N171: -0.417832 | O171: 0.0764536 | P171: 4.624591e-08 | Q171: 0.00269364 | R171: 0.00241044 | S171: 0.2637856 | T171: 0.644635815 | U171: 1.002697271 | V171: 1.007445685 | W171: 1.00028324
A172: CHI3L1 | B172: ENSG00000133048 | C172: 1 | D172: 203148059 | E172: rs4950928 | F172: 1 | G172: 203155882 | H172: C | I172: G | J172: 0.819085 | K172: 0.000477787 | L172: 0.000431517 | M172: 0.2700001 | N172: 0.438479 | O172: 0.032424 | P172: 1.139406e-41 | Q172: 0.00108965 | R172: 0.000987415 | S172: 0.2697955 | T172: 0.65187896 | U172: 1.001090244 | V172: 1.003029563 | W172: 1.00010224
A173: PDK1 | B173: ENSG00000152256 | C173: 2 | D173: 173420101 | E173: rs34051646 | F173: 2 | G173: 173456679 | H173: G | I173: T | J173: 0.158052 | K173: -0.000484955 | L173: 0.000438579 | M173: 0.2700001 | N173: -0.202885 | O173: 0.0193397 | P173: 9.540156e-26 | Q173: 0.00239029 | R173: 0.00217369 | S173: 0.2714847 | T173: 0.65187896 | U173: 1.002393149 | V173: 1.006672888 | W173: 1.000216623
A174: RRP12 | B174: ENSG00000052749 | C174: 10 | D174: 99116115 | E174: rs1810983 | F174: 10 | G174: 99128254 | H174: A | I174: G | J174: 0.33499 | K174: -0.000412815 | L174: 0.000373797 | M174: 0.2700001 | N174: 0.440794 | O174: 0.0253339 | P174: 8.345475e-68 | Q174: -0.000936526 | R174: 0.000849715 | S174: 0.27039 | T174: 0.65187896 | U174: 0.9990639124 | V174: 1.000729181 | W174: 0.9982153534
A175: ZC3HAV1 | B175: ENSG00000105939 | C175: 7 | D175: 138728266 | E175: rs6974620 | F175: 7 | G175: 138810426 | H175: G | I175: A | J175: 0.0616302 | K175: 0.00092058 | L175: 0.000840967 | M175: 0.2700001 | N175: -0.438107 | O175: 0.0442166 | P175: 3.834773e-23 | Q175: -0.00210127 | R175: 0.00193123 | S175: 0.2765739 | T175: 0.660260235 | U175: 0.9979009361 | V175: 1.001685359 | W175: 0.9959756196
A176: MUC1 | B176: ENSG00000185499 | C176: 1 | D176: 155158300 | E176: rs6676150 | F176: 1 | G176: 155123837 | H176: C | I176: G | J176: 0.39662 | K176: -0.000390446 | L176: 0.000358428 | M176: 0.28 | N176: -0.253172 | O176: 0.036679 | P176: 5.114168e-12 | Q176: 0.00154222 | R176: 0.00143327 | S176: 0.2819222 | T176: 0.669160164 | U176: 1.00154341 | V176: 1.00436091 | W176: 1.000108956
A177: ALAD | B177: ENSG00000148218 | C177: 9 | D177: 116148597 | E177: rs1771220 | F177: 9 | G177: 116163645 | H177: C | I177: G | J177: 0.304175 | K177: -0.000408126 | L177: 0.000378011 | M177: 0.28 | N177: -0.202942 | O177: 0.027782 | P177: 2.776805e-13 | Q177: 0.00201105 | R177: 0.00188289 | S177: 0.2854917 | T177: 0.669932228 | U177: 1.002013074 | V177: 1.005717799 | W177: 1.000128168
A178: METRNL | B178: ENSG00000176845 | C178: 17 | D178: 81037567 | E178: rs9747848 | F178: 17 | G178: 81061180 | H178: C | I178: T | J178: 0.713718 | K178: -0.000424069 | L178: 0.000389956 | M178: 0.28 | N178: 0.1137 | O178: 0.0193764 | P178: 4.412073e-09 | Q178: -0.00372972 | R178: 0.00348809 | S178: 0.2849472 | T178: 0.669932228 | U178: 0.9962772268 | V178: 1.003111768 | W178: 0.9928081758
A179: RABGAP1L | B179: ENSG00000152061 | C179: 1 | D179: 174128548 | E179: rs61826844 | F179: 1 | G179: 174049585 | H179: G | I179: C | J179: 0.17495 | K179: -0.000487971 | L179: 0.000459784 | M179: 0.29 | N179: 0.204218 | O179: 0.0290052 | P179: 1.912397e-12 | Q179: -0.00238946 | R179: 0.00227687 | S179: 0.2939715 | T179: 0.6859335 | U179: 0.9976133925 | V179: 1.002075356 | W179: 0.9953445404
A180: DDX11 | B180: ENSG00000013573 | C180: 12 | D180: 31226779 | E180: rs7953706 | F180: 12 | G180: 31226835 | H180: A | I180: T | J180: 0.431412 | K180: -0.00036597 | L180: 0.000352676 | M180: 0.2999998 | N180: -0.826819 | O180: 0.0139269 | P180: 0 | Q180: 0.000442624 | R180: 0.000426611 | S180: 0.299486 | T180: 0.690992838 | U180: 1.000442722 | V180: 1.0012796 | W180: 1.000016013
A181: SNHG8 | B181: ENSG00000269893 | C181: 4 | D181: 119199864 | E181: rs4833565 | F181: 4 | G181: 119117260 | H181: C | I181: T | J181: 0.630219 | K181: 0.000383823 | L181: 0.000365362 | M181: 0.29 | N181: -0.118508 | O181: 0.0162423 | P181: 2.958411e-13 | Q181: -0.00323879 | R181: 0.00311481 | S181: 0.2984303 | T181: 0.690992838 | U181: 0.9967664492 | V181: 1.002870349 | W181: 0.9936665414
A182: PSAP | B182: ENSG00000197746 | C182: 10 | D182: 73576055 | E182: rs4747199 | F182: 10 | G182: 73569318 | H182: T | I182: C | J182: 0.276342 | K182: 0.000396647 | L182: 0.000387396 | M182: 0.3100002 | N182: 0.140909 | O182: 0.0191762 | P182: 2.010122e-13 | Q182: 0.00281492 | R182: 0.00277582 | S182: 0.3105432 | T182: 0.706780062 | U182: 1.002818886 | V182: 1.008289698 | W182: 1.000039101
A183: SDCBP2 | B183: ENSG00000125775 | C183: 20 | D183: 1290619 | E183: rs6041440 | F183: 20 | G183: 1305773 | H183: A | I183: G | J183: 0.296223 | K183: -0.000395721 | L183: 0.000385113 | M183: 0.2999998 | N183: 0.211962 | O183: 0.036105 | P183: 4.339378e-09 | Q183: -0.00186694 | R183: 0.00184452 | S183: 0.3114624 | T183: 0.706780062 | U183: 0.9981348016 | V183: 1.001749848 | W183: 0.996295419
A184: SIVA1 | B184: ENSG00000184990 | C184: 14 | D184: 105219437 | E184: rs12889167 | F184: 14 | G184: 105219976 | H184: C | I184: T | J184: 0.447316 | K184: -0.000363706 | L184: 0.000352444 | M184: 0.2999998 | N184: -0.124915 | O184: 0.020301 | P184: 7.596607e-10 | Q184: 0.00291163 | R184: 0.00286088 | S184: 0.3088015 | T184: 0.706780062 | U184: 1.002915873 | V184: 1.008555344 | W184: 1.000050751
A185: SLC22A15 | B185: ENSG00000163393 | C185: 1 | D185: 116519119 | E185: rs7545772 | F185: 1 | G185: 116492103 | H185: C | I185: T | J185: 0.256461 | K185: 0.000405139 | L185: 0.000402438 | M185: 0.3100002 | N185: 0.236368 | O185: 0.0196878 | P185: 3.313107e-33 | Q185: 0.00171402 | R185: 0.00170857 | S185: 0.3157687 | T185: 0.712636465 | U185: 1.00171549 | V185: 1.005075655 | W185: 1.00000545
A186: MGAM | B186: ENSG00000257335 | C186: 7 | D186: 141607613 | E186: rs28429916 | F186: 7 | G186: 141808059 | H186: G | I186: A | J186: 0.207753 | K186: 0.000437363 | L186: 0.000436422 | M186: 0.32 | N186: 0.10958 | O186: 0.0158201 | P186: 4.309607e-12 | Q186: 0.00399127 | R186: 0.00402415 | S186: 0.3212809 | T186: 0.721135933 | U186: 1.003999246 | V186: 1.011949435 | W186: 0.9999671205
A187: PNLDC1 | B187: ENSG00000146453 | C187: 6 | D187: 160221298 | E187: rs7745398 | F187: 6 | G187: 160156266 | H187: G | I187: A | J187: 0.244533 | K187: -0.000424611 | L187: 0.000425459 | M187: 0.32 | N187: 0.296283 | O187: 0.0524675 | P187: 1.632888e-08 | Q187: -0.00143313 | R187: 0.00145824 | S187: 0.3257174 | T187: 0.727142088 | U187: 0.9985678964 | V187: 1.001426036 | W187: 0.997112806
A188: ADH5 | B188: ENSG00000197894 | C188: 4 | D188: 99992132 | E188: rs2851258 | F188: 4 | G188: 100034303 | H188: T | I188: C | J188: 0.724652 | K188: 0.000380701 | L188: 0.000393486 | M188: 0.33 | N188: -0.264067 | O188: 0.0224764 | P188: 7.177439e-32 | Q188: -0.00144168 | R188: 0.00149514 | S188: 0.3349235 | T188: 0.730459406 | U188: 0.9985593587 | V188: 1.001489903 | W188: 0.9970674882
A189: ANPEP | B189: ENSG00000166825 | C189: 15 | D189: 90328120 | E189: rs11635469 | F189: 15 | G189: 90358119 | H189: G | I189: A | J189: 0.44831 | K189: 0.000345125 | L189: 0.00035686 | M189: 0.33 | N189: -0.407307 | O189: 0.0248553 | P189: 2.362403e-60 | Q189: -0.000847334 | R189: 0.000877669 | S189: 0.3343264 | T189: 0.730459406 | U189: 0.9991530249 | V189: 1.000873278 | W189: 0.998276484
A190: DANCR | B190: ENSG00000226950 | C190: 4 | D190: 53578597 | E190: rs76772101 | F190: 4 | G190: 53578618 | H190: T | I190: C | J190: 0.131213 | K190: -0.000554581 | L190: 0.000566946 | M190: 0.33 | N190: 0.299192 | O190: 0.0346539 | P190: 5.939326e-18 | Q190: -0.0018536 | R190: 0.00190705 | S190: 0.3310647 | T190: 0.730459406 | U190: 0.9981481169 | V190: 1.001885994 | W190: 0.9962464124
A191: LINC00174 | B191: ENSG00000179406 | C191: 7 | D191: 65841031 | E191: rs76815374 | F191: 7 | G191: 65273798 | H191: C | I191: G | J191: 0.0497018 | K191: -0.000819026 | L191: 0.00084489 | M191: 0.33 | N191: 0.476178 | O191: 0.0558223 | P191: 1.460312e-17 | Q191: -0.00172 | R191: 0.00178574 | S191: 0.3354531 | T191: 0.730459406 | U191: 0.9982814784 | V191: 1.001781636 | W191: 0.9965003979
A192: ZC2HC1A | B192: ENSG00000104427 | C192: 8 | D192: 79578282 | E192: rs3808619 | F192: 8 | G192: 79577726 | H192: C | I192: A | J192: 0.714712 | K192: -0.000390592 | L192: 0.000404546 | M192: 0.33 | N192: 0.47253 | O192: 0.0417931 | P192: 1.219903e-29 | Q192: -0.000826597 | R192: 0.000859244 | S192: 0.3360467 | T192: 0.730459406 | U192: 0.9991737445 | V192: 1.000857889 | W192: 0.9983155792
A193: GPSM1 | B193: ENSG00000160360 | C193: 9 | D193: 139221932 | E193: rs28595751 | F193: 9 | G193: 139224736 | H193: C | I193: T | J193: 0.455268 | K193: 0.000333171 | L193: 0.000351328 | M193: 0.3400001 | N193: 0.231198 | O193: 0.0277155 | P193: 7.314668e-17 | Q193: 0.00144106 | R193: 0.00152939 | S193: 0.3460647 | T193: 0.748296969 | U193: 1.001442099 | V193: 1.00444853 | W193: 0.9999116739
A194: FASN | B194: ENSG00000169710 | C194: 17 | D194: 80036214 | E194: rs59638227 | F194: 17 | G194: 80056066 | H194: G | I194: A | J194: 0.285288 | K194: 0.000346206 | L194: 0.000371956 | M194: 0.35 | N194: -0.161735 | O194: 0.0214773 | P194: 5.053698e-14 | Q194: -0.00214058 | R194: 0.00231729 | S194: 0.3556206 | T194: 0.754854218 | U194: 0.9978617094 | V194: 1.002404194 | W194: 0.9955520516
A195: GPX7 | B195: ENSG00000116157 | C195: 1 | D195: 53068044 | E195: rs12089784 | F195: 1 | G195: 53068430 | H195: A | I195: G | J195: 0.579523 | K195: 0.000323014 | L195: 0.000351152 | M195: 0.3599996 | N195: -0.561637 | O195: 0.0303941 | P195: 3.075584e-76 | Q195: -0.00057513 | R195: 0.000626004 | S195: 0.3582359 | T195: 0.754854218 | U195: 0.9994250354 | V195: 1.00065205 | W195: 0.9987995871
A196: MAP2K6 | B196: ENSG00000108984 | C196: 17 | D196: 67410839 | E196: rs2251160 | F196: 17 | G196: 67519542 | H196: A | I196: G | J196: 0.627237 | K196: 0.000335646 | L196: 0.000356781 | M196: 0.35 | N196: 0.100818 | O196: 0.0146094 | P196: 5.166744e-12 | Q196: 0.00332923 | R196: 0.00357159 | S196: 0.351264 | T196: 0.754854218 | U196: =EXP(Q196) -> 1.003334778 | V196: =EXP(Q196+1.96*R196) -> 1.01038308 | W196: =EXP(Q196-R196) -> 0.9997576694
A197: NLRP1 | B197: ENSG00000091592 | C197: 17 | D197: 5402747 | E197: rs925598 | F197: 17 | G197: 5488352 | H197: T | I197: C | J197: 0.444334 | K197: -0.000329856 | L197: 0.000352144 | M197: 0.35 | N197: 0.124549 | O197: 0.0226622 | P197: 3.887555e-08 | Q197: -0.0026484 | R197: 0.00286813 | S197: 0.355803 | T197: 0.754854218 | U197: 0.9973551039 | V197: 1.002977559 | W197: 0.9944986581
A198: PTX3 | B198: ENSG00000163661 | C198: 3 | D198: 157154578 | E198: rs1350150 | F198: 3 | G198: 157192492 | H198: T | I198: G | J198: 0.562624 | K198: 0.000330131 | L198: 0.000355143 | M198: 0.35 | N198: 0.159563 | O198: 0.0240961 | P198: 3.544838e-11 | Q198: 0.00206897 | R198: 0.00224755 | S198: 0.3572874 | T198: 0.754854218 | U198: 1.002071112 | V198: 1.006495171 | W198: 0.9998214359
A199: CD40 | B199: ENSG00000101017 | C199: 20 | D199: 44746911 | E199: rs745307 | F199: 20 | G199: 44747086 | H199: A | I199: G | J199: 0.247515 | K199: 0.000361757 | L199: 0.000395047 | M199: 0.3599996 | N199: 0.42016 | O199: 0.0282847 | P199: 6.486896e-50 | Q199: 0.000860998 | R199: 0.000942015 | S199: 0.3607187 | T199: 0.756227528 | U199: 1.000861369 | V199: 1.002711016 | W199: 0.9999189863
A200: TCEA3 | B200: ENSG00000204219 | C200: 1 | D200: 23707554 | E200: rs685059 | F200: 1 | G200: 23783185 | H200: G | I200: C | J200: 0.869781 | K200: 0.000464121 | L200: 0.000510686 | M200: 0.3599996 | N200: 0.196325 | O200: 0.0324896 | P200: 1.515589e-09 | Q200: 0.00236404 | R200: 0.00263048 | S200: 0.3688065 | T200: 0.765412485 | U200: 1.002366837 | V200: 1.007548125 | W200: 0.9997335955
... 215 more rows

Sheet S5 eQTLGene
A1: S5 eQTL-GWAS (eQTLGen) In Discovery Cohort
A2: Gene | B2: probeID | C2: ProbeChr | D2: Probe_bp | E2: topSNP | F2: topSNP_chr | G2: topSNP_bp | H2: A1 | I2: A2 | J2: Freq | K2: b_GWAS | L2: se_GWAS | M2: p_GWAS | N2: b_eQTL | O2: se_eQTL | P2: p_eQTL | Q2: b_SMR | R2: se_SMR | S2: p_SMR | T2: pval_adj_SMR
A3: AAMDC | B3: ENSG00000087884 | C3: 11 | D3: 77580816 | E3: rs111960885 | F3: 11 | G3: 77701675 | H3: T | I3: C | J3: 0.0994036 | K3: -0.000383263 | L3: 0.000568756 | M3: 0.5 | N3: -0.424449 | O3: 0.0239231 | P3: 1.980277e-70 | Q3: 0.000902967 | R3: 0.00134095 | S3: 0.5007079 | T3: 0.820155950896057
A4: AATK | B4: ENSG00000181409 | C4: 17 | D4: 79115486 | E4: rs4969407 | F4: 17 | G4: 79123135 | H4: T | I4: C | J4: 0.393638 | K4: 0.00014271 | L4: 0.00035611 | M4: 0.6899999 | N4: -0.537134 | O4: 0.00997685 | P4: 0 | Q4: -0.000265688 | R4: 0.000663 | S4: 0.6886146 | T4: 0.924018026239067
A5: ABCA1 | B5: ENSG00000165029 | C5: 9 | D5: 107616900 | E5: rs2487052 | F5: 9 | G5: 107686405 | H5: T | I5: C | J5: 0.234592 | K5: 0.000172297 | L5: 0.000434392 | M5: 0.6899999 | N5: -0.141457 | O5: 0.00940563 | P5: 4.039783e-51 | Q5: -0.00121802 | R5: 0.00307191 | S5: 0.691735 | T5: 0.924018026239067
A6: ABCC2 | B6: ENSG00000023839 | C6: 10 | D6: 101577219 | E6: rs2756109 | F6: 10 | G6: 101558746 | H6: G | I6: T | J6: 0.429423 | K6: -0.000268646 | L6: 0.000354534 | M6: 0.4500005 | N6: 0.144948 | O6: 0.00799732 | P6: 2.03821e-73 | Q6: -0.00185339 | R6: 0.00244807 | S6: 0.4490004 | T6: 0.784677563288719
A7: ABCC3 | B7: ENSG00000108846 | C7: 17 | D7: 48740875 | E7: rs3785912 | F7: 17 | G7: 48756937 | H7: T | I7: C | J7: 0.346918 | K7: -0.000826702 | L7: 0.000363246 | M7: 0.02300011 | N7: -0.594049 | O7: 0.00762551 | P7: 0 | Q7: 0.00139164 | R7: 0.000611735 | S7: 0.02291174 | T7: 0.21795132953271
A8: ABCC6 | B8: ENSG00000091262 | C8: 16 | D8: 16280082 | E8: rs2007413 | F8: 16 | G8: 16308675 | H8: T | I8: C | J8: 0.202783 | K8: -0.0005499 | L8: 0.000446237 | M8: 0.2200002 | N8: -0.266628 | O8: 0.0123004 | P8: 3.426716e-104 | Q8: 0.00206243 | R8: 0.00167634 | S8: 0.2185779 | T8: 0.583741863188406
A9: ABCF1 | B9: ENSG00000204574 | C9: 6 | D9: 30552054 | E9: rs1632958 | F9: 6 | G9: 29688643 | H9: A | I9: G | J9: 0.176938 | K9: -0.00052866 | L9: 0.000473471 | M9: 0.2599998 | N9: -0.134047 | O9: 0.0181512 | P9: 1.524504e-13 | Q9: 0.00394385 | R9: 0.00357228 | S9: 0.2695865 | T9: 0.650137364116095
A10: ABCF3 | B10: ENSG00000161204 | C10: 3 | D10: 183907805 | E10: rs12696513 | F10: 3 | G10: 183926364 | H10: C | I10: T | J10: 0.0258449 | K10: 0.000989643 | L10: 0.00110879 | M10: 0.3700002 | N10: 0.369836 | O10: 0.0247723 | P10: 2.121714e-50 | Q10: 0.0026759 | R10: 0.00300341 | S10: 0.3729547 | T10: 0.723737995329087
A11: ABHD11 | B11: ENSG00000106077 | C11: 7 | D11: 73151810 | E11: rs13233747 | F11: 7 | G11: 73149302 | H11: A | I11: G | J11: 0.355865 | K11: 0.00077224 | L11: 0.000368342 | M11: 0.03599979 | N11: -0.450665 | O11: 0.00796843 | P11: 0 | Q11: -0.00171356 | R11: 0.000817891 | S11: 0.03616292 | T11: 0.27946149092437
A12: ABHD17B | B12: ENSG00000107362 | C12: 9 | D12: 74501607 | E12: rs1357726 | F12: 9 | G12: 74472930 | H12: T | I12: C | J12: 0.153082 | K12: -0.000809481 | L12: 0.000510113 | M12: 0.1100001 | N12: 0.0899 | O12: 0.0134051 | P12: 1.9948e-11 | Q12: -0.00900424 | R12: 0.00583091 | S12: 0.1225338 | T12: 0.440857272093023
A13: ABHD3 | B13: ENSG00000158201 | C13: 18 | D13: 19257812 | E13: rs116826070 | F13: 18 | G13: 19159352 | H13: A | I13: G | J13: 0.204771 | K13: 0.000132287 | L13: 0.00045454 | M13: 0.7700005 | N13: -0.15812 | O13: 0.0104526 | P13: 1.068306e-51 | Q13: -0.000836624 | R13: 0.00287518 | S13: 0.7710658 | T13: 0.9575463875
A14: ABLIM3 | B14: ENSG00000173210 | C14: 5 | D14: 148580575 | E14: rs114464628 | F14: 5 | G14: 148533724 | H14: A | I14: G | J14: 0.028827 | K14: -0.00138381 | L14: 0.000895333 | M14: 0.1199999 | N14: -0.380045 | O14: 0.0232335 | P14: 3.839597e-60 | Q14: 0.00364118 | R14: 0.00236636 | S14: 0.1238707 | T14: 0.440857272093023
A15: ACACB | B15: ENSG00000076555 | C15: 12 | D15: 109630215 | E15: rs2268405 | F15: 12 | G15: 109589593 | H15: G | I15: A | J15: 0.192843 | K15: 0.000839849 | L15: 0.000426219 | M15: 0.04900044 | N15: -0.56872 | O15: 0.00916456 | P15: 0 | Q15: -0.00147673 | R15: 0.000749813 | S15: 0.04889904 | T15: 0.305828938911565
A16: ACADS | B16: ENSG00000122971 | C16: 12 | D16: 121170674 | E16: rs56178989 | F16: 12 | G16: 121161723 | H16: A | I16: G | J16: 0.0656064 | K16: 0.000865232 | L16: 0.00075881 | M16: 0.25 | N16: -0.106633 | O16: 0.0168419 | P16: 2.429498e-10 | Q16: -0.00811414 | R16: 0.0072306 | S16: 0.2617795 | T16: 0.641313476470588
A17: ACADSB | B17: ENSG00000196177 | C17: 10 | D17: 124793161 | E17: rs3824685 | F17: 10 | G17: 124767832 | H17: G | I17: T | J17: 0.17495 | K17: 0.00103778 | L17: 0.000446488 | M17: 0.02 | N17: -0.0921805 | O17: 0.00994117 | P17: 1.816605e-20 | Q17: -0.0112581 | R17: 0.00499348 | S17: 0.02416057 | T17: 0.21795132953271
A18: ACAT1 | B18: ENSG00000075239 | C18: 11 | D18: 108005373 | E18: rs4550189 | F18: 11 | G18: 107986344 | H18: G | I18: A | J18: 0.415507 | K18: 0.000404169 | L18: 0.000355772 | M18: 0.2599998 | N18: 0.377586 | O18: 0.0116896 | P18: 6.772146e-229 | Q18: 0.0010704 | R18: 0.00094281 | S18: 0.2562363 | T18: 0.635171366037736
A19: ACOT1 | B19: ENSG00000184227 | C19: 14 | D19: 74007158 | E19: rs4044907 | F19: 14 | G19: 74047195 | H19: T | I19: C | J19: 0.256461 | K19: 0.000119697 | L19: 0.00039427 | M19: 0.7600007 | N19: -0.256831 | O19: 0.00959903 | P19: 1.054204e-157 | Q19: -0.000466054 | R19: 0.00153524 | S19: 0.7614541 | T19: 0.956267491780822
A20: ACOT11 | B20: ENSG00000162390 | C20: 1 | D20: 55056397 | E20: rs892446 | F20: 1 | G20: 55069790 | H20: C | I20: A | J20: 0.460239 | K20: 0.000116733 | L20: 0.000350579 | M20: 0.7400005 | N20: 0.133351 | O20: 0.00804785 | P20: 1.152081e-61 | Q20: 0.000875379 | R20: 0.00262952 | S20: 0.7392061 | T20: 0.950994117862166
A21: ACOX1 | B21: ENSG00000161533 | C21: 17 | D21: 73956551 | E21: rs8065144 | F21: 17 | G21: 73959857 | H21: G | I21: A | J21: 0.311133 | K21: 0.00106554 | L21: 0.00037237 | M21: 0.004200007 | N21: -0.760978 | O21: 0.00743965 | P21: 0 | Q21: -0.00140023 | R21: 0.000489523 | S21: 0.004231208 | T21: 0.0943249783414634
A22: ACP2 | B22: ENSG00000134575 | C22: 11 | D22: 47265655 | E22: rs4752973 | F22: 11 | G22: 47269159 | H22: C | I22: T | J22: 0.190855 | K22: 0.00113738 | L22: 0.000446315 | M22: 0.01099993 | N22: -0.584059 | O22: 0.00893599 | P22: 0 | Q22: -0.00194737 | R22: 0.000764741 | S22: 0.01088265 | T22: 0.148458837313433
A23: ACP5 | B23: ENSG00000102575 | C23: 19 | D23: 11687649 | E23: rs9305023 | F23: 19 | G23: 11692859 | H23: C | I23: T | J23: 0.345924 | K23: -9.58E-05 | L23: 0.000369651 | M23: 0.8 | N23: 0.696624 | O23: 0.00744536 | P23: 0 | Q23: -0.000137571 | R23: 0.000530634 | S23: 0.7954369 | T23: 0.964934375099338
A24: ACSF2 | B24: ENSG00000167107 | C24: 17 | D24: 48527862 | E24: rs898454 | F24: 17 | G24: 48542572 | H24: C | I24: G | J24: 0.444334 | K24: -7.55E-05 | L24: 0.00035056 | M24: 0.83 | N24: 0.171839 | O24: 0.00790596 | P24: 9.495324e-105 | Q24: -0.000439423 | R24: 0.00204015 | S24: 0.8294647 | T24: 0.974694373757962
A25: ACSL3 | B25: ENSG00000123983 | C25: 2 | D25: 223767504 | E25: rs113051992 | F25: 2 | G25: 223828706 | H25: T | I25: C | J25: 0.0357853 | K25: 0.00024321 | L25: 0.000899239 | M25: 0.7899998 | N25: 0.216062 | O25: 0.0198174 | P25: 1.120101e-27 | Q25: 0.00112565 | R25: 0.00416324 | S25: 0.7868688 | T25: 0.960211059012016
A26: ADAM8 | B26: ENSG00000151651 | C26: 10 | D26: 135083139 | E26: rs12253872 | F26: 10 | G26: 134824132 | H26: C | I26: T | J26: 0.455268 | K26: -0.000155238 | L26: 0.000351678 | M26: 0.6600001 | N26: -0.127968 | O26: 0.00921325 | P26: 7.324297e-44 | Q26: 0.0012131 | R26: 0.00274955 | S26: 0.6590696 | T26: 0.916164057966616
A27: ADAMTS1 | B27: ENSG00000154734 | C27: 21 | D27: 28213167 | E27: rs462404 | F27: 21 | G27: 28213703 | H27: C | I27: T | J27: 0.265408 | K27: 0.000658787 | L27: 0.000417771 | M27: 0.1100001 | N27: -0.283741 | O27: 0.00959673 | P27: 4.042267e-192 | Q27: -0.00232179 | R27: 0.00147446 | S27: 0.1153323 | T27: 0.434087818032787
A28: ADCY7 | B28: ENSG00000121281 | C28: 16 | D28: 50316047 | E28: rs4595801 | F28: 16 | G28: 50369888 | H28: T | I28: C | J28: 0.157058 | K28: 0.000630517 | L28: 0.000474967 | M28: 0.1800002 | N28: 0.559315 | O28: 0.0101426 | P28: 0 | Q28: 0.0011273 | R28: 0.000849441 | S28: 0.1844716 | T28: 0.542354124358974
A29: ADGRG1 | B29: ENSG00000205336 | C29: 16 | D29: 57671754 | E29: rs8059267 | F29: 16 | G29: 57680860 | H29: C | I29: T | J29: 0.4334 | K29: -0.000341676 | L29: 0.000357002 | M29: 0.3400001 | N29: 0.194364 | O29: 0.00866426 | P29: 1.883975e-111 | Q29: -0.00175792 | R29: 0.00183844 | S29: 0.338971 | T29: 0.723737995329087
A30: ADH5 | B30: ENSG00000197894 | C30: 4 | D30: 100001042 | E30: rs7683704 | F30: 4 | G30: 100004226 | H30: T | I30: C | J30: 0.0964215 | K30: -0.000828249 | L30: 0.000569061 | M30: 0.1499999 | N30: 0.296376 | O30: 0.0138404 | P30: 9.937204e-102 | Q30: -0.00279458 | R30: 0.00192449 | S30: 0.1464694 | T30: 0.470545417182131
A31: ADIPOR1 | B31: ENSG00000159346 | C31: 1 | D31: 202918825 | E31: rs10800887 | F31: 1 | G31: 202924936 | H31: C | I31: T | J31: 0.354871 | K31: 0.000605021 | L31: 0.000362228 | M31: 0.09499921 | N31: 0.135675 | O31: 0.00822841 | P31: 4.430914e-61 | Q31: 0.00445934 | R31: 0.00268349 | S31: 0.09655842 | T31: 0.417488852769953
A32: ADM | B32: ENSG00000148926 | C32: 11 | D32: 10327585 | E32: rs7107290 | F32: 11 | G32: 10294772 | H32: G | I32: A | J32: 0.445328 | K32: -1.30E-05 | L32: 0.000352394 | M32: 0.9699999 | N32: -0.336872 | O32: 0.00772457 | P32: 0 | Q32: 3.84992e-05 | R32: 0.00104608 | S32: 0.9706418 | T32: 0.993417715307263
A33: ADRB2 | B33: ENSG00000169252 | C33: 5 | D33: 148207176 | E33: rs2082395 | F33: 5 | G33: 148200600 | H33: A | I33: G | J33: 0.414513 | K33: 0.000877089 | L33: 0.000353465 | M33: 0.0129999 | N33: 0.126274 | O33: 0.00801464 | P33: 6.305909e-56 | Q33: 0.00694592 | R33: 0.0028337 | S33: 0.01423854 | T33: 0.178274322739726
A34: AGMAT | B34: ENSG00000116771 | C34: 1 | D34: 15905226 | E34: rs74054785 | F34: 1 | G34: 15910553 | H34: T | I34: G | J34: 0.0755467 | K34: 0.000740215 | L34: 0.00068149 | M34: 0.28 | N34: 0.117081 | O34: 0.0137804 | P34: 1.958995e-17 | Q34: 0.00632223 | R34: 0.00586803 | S34: 0.2813003 | T34: 0.667814218701299
A35: AGO2 | B35: ENSG00000123908 | C35: 8 | D35: 141593491 | E35: rs1060832 | F35: 8 | G35: 141541888 | H35: T | I35: C | J35: 0.122266 | K35: -0.0010555 | L35: 0.000530628 | M35: 0.04700023 | N35: 0.259192 | O35: 0.0135744 | P35: 2.821486e-81 | Q35: -0.00407228 | R35: 0.00205832 | S35: 0.04787844 | T35: 0.305828938911565
A36: AGPAT2 | B36: ENSG00000169692 | C36: 9 | D36: 139574735 | E36: rs12002299 | F36: 9 | G36: 139573977 | H36: T | I36: C | J36: 0.129225 | K36: -0.000720849 | L36: 0.000546733 | M36: 0.1900002 | N36: -0.208457 | O36: 0.018037 | P36: 6.788584e-31 | Q36: 0.00345803 | R36: 0.00263978 | S36: 0.1902062 | T36: 0.549468832176656
A37: AHNAK | B37: ENSG00000124942 | C37: 11 | D37: 62262361 | E37: rs2513059 | F37: 11 | G37: 62193981 | H37: C | I37: T | J37: 0.279324 | K37: 0.000218789 | L37: 0.000399044 | M37: 0.58 | N37: 0.149647 | O37: 0.008925 | P37: 4.240239e-63 | Q37: 0.00146203 | R37: 0.00266799 | S37: 0.5836988 | T37: 0.865934710210697
A38: AHR | B38: ENSG00000106546 | C38: 7 | D38: 17362011 | E38: rs17643734 | F38: 7 | G38: 17162882 | H38: G | I38: A | J38: 0.0755467 | K38: 0.00106678 | L38: 0.000751843 | M38: 0.16 | N38: 0.477504 | O38: 0.0164998 | P38: 3.749628e-184 | Q38: 0.00223408 | R38: 0.00157642 | S38: 0.156429 | T38: 0.489644198630137
A39: AHSA1 | B39: ENSG00000100591 | C39: 14 | D39: 77930015 | E39: rs143652803 | F39: 14 | G39: 77999075 | H39: G | I39: C | J39: 0.11829 | K39: -4.80E-06 | L39: 0.000581758 | M39: 0.99 | N39: 0.191501 | O39: 0.0321332 | P39: 2.528597e-09 | Q39: -2.51E-05 | R39: 0.00303789 | S39: 0.9934198 | T39: 0.996955282107574
A40: AIFM2 | B40: ENSG00000042286 | C40: 10 | D40: 71875334 | E40: rs6480442 | F40: 10 | G40: 71900246 | H40: T | I40: C | J40: 0.406561 | K40: 0.000366123 | L40: 0.000363818 | M40: 0.3100002 | N40: -0.212478 | O40: 0.00813937 | P40: 3.199008e-150 | Q40: -0.00172311 | R40: 0.00171353 | S40: 0.3146135 | T40: 0.715315271144279
A41: AKAP12 | B41: ENSG00000131016 | C41: 6 | D41: 151620413 | E41: rs72994089 | F41: 6 | G41: 151610726 | H41: A | I41: G | J41: 0.0487078 | K41: -0.000493092 | L41: 0.000903529 | M41: 0.59 | N41: 0.232388 | O41: 0.0196506 | P41: 2.864697e-32 | Q41: -0.00212184 | R41: 0.00389215 | S41: 0.5856435 | T41: 0.866145888349515
A42: AKAP13 | B42: ENSG00000170776 | C42: 15 | D42: 86108194 | E42: rs4842895 | F42: 15 | G42: 86182364 | H42: C | I42: T | J42: 0.424453 | K42: 0.000431515 | L42: 0.000356582 | M42: 0.2300001 | N42: 0.239387 | O42: 0.00789062 | P42: 3.595807e-202 | Q42: 0.00180258 | R42: 0.00149075 | S42: 0.2265934 | T42: 0.59342798739255
A43: AKR1B1 | B43: ENSG00000085662 | C43: 7 | D43: 134135569 | E43: rs73164856 | F43: 7 | G43: 134233851 | H43: T | I43: C | J43: 0.392644 | K43: -0.000144043 | L43: 0.000356126 | M43: 0.6899999 | N43: 0.28106 | O43: 0.00836027 | P43: 8.97307e-248 | Q43: -0.000512498 | R43: 0.00126717 | S43: 0.6858872 | T43: 0.924018026239067
A44: AKR1C1 | B44: ENSG00000187134 | C44: 10 | D44: 4980135 | E44: rs5011018 | F44: 10 | G44: 4967006 | H44: G | I44: C | J44: 0.132207 | K44: -0.000310918 | L44: 0.000546116 | M44: 0.5700002 | N44: 0.21182 | O44: 0.0177656 | P44: 8.981434e-33 | Q44: -0.00146784 | R44: 0.00258115 | S44: 0.5695747 | T44: 0.865558299672131
A45: AKR1C2 | B45: ENSG00000151632 | C45: 10 | D45: 5045087 | E45: rs7893456 | F45: 10 | G45: 5007862 | H45: C | I45: T | J45: 0.131213 | K45: -0.000376603 | L45: 0.000546721 | M45: 0.4899999 | N45: 0.899613 | O45: 0.0108804 | P45: 0 | Q45: -0.000418628 | R45: 0.00060775 | S45: 0.4909393 | T45: 0.814371180036298
A46: AKR1C3 | B46: ENSG00000196139 | C46: 10 | D46: 5113713 | E46: rs1344355 | F46: 10 | G46: 5338562 | H46: C | I46: A | J46: 0.22167 | K46: -0.000238045 | L46: 0.000433825 | M46: 0.58 | N46: -0.327625 | O46: 0.00928292 | P46: 7.441034e-273 | Q46: 0.000726578 | R46: 0.00132431 | S46: 0.5832486 | T46: 0.865934710210697
A47: ALAD | B47: ENSG00000148218 | C47: 9 | D47: 116156105 | E47: rs34142167 | F47: 9 | G47: 116173983 | H47: A | I47: G | J47: 0.0506958 | K47: 0.000603775 | L47: 0.000756809 | M47: 0.4199997 | N47: 0.295253 | O47: 0.017757 | P47: 4.413242e-62 | Q47: 0.00204494 | R47: 0.00256621 | S47: 0.4255244 | T47: 0.768928500194175
A48: ALDH5A1 | B48: ENSG00000112294 | C48: 6 | D48: 24516257 | E48: rs3761793 | F48: 6 | G48: 24493922 | H48: A | I48: G | J48: 0.154076 | K48: -0.000428396 | L48: 0.000539061 | M48: 0.4299995 | N48: -0.505768 | O48: 0.0117598 | P48: 0 | Q48: 0.000847021 | R48: 0.00106601 | S48: 0.4268624 | T48: 0.768928500194175
A49: ALKBH3 | B49: ENSG00000166199 | C49: 11 | D49: 43922088 | E49: rs4755217 | F49: 11 | G49: 43945619 | H49: G | I49: A | J49: 0.4334 | K49: 0.000289761 | L49: 0.000353842 | M49: 0.4100001 | N49: -0.191683 | O49: 0.00796874 | P49: 7.50832e-128 | Q49: -0.00151167 | R49: 0.00184704 | S49: 0.4131144 | T49: 0.761877849094567
A50: ALOX5 | B50: ENSG00000012779 | C50: 10 | D50: 45905611 | E50: rs4949006 | F50: 10 | G50: 46012620 | H50: C | I50: T | J50: 0.395626 | K50: 4.81959e-05 | L50: 0.00036221 | M50: 0.89 | N50: -0.215043 | O50: 0.00801504 | P50: 1.447715e-158 | Q50: -0.000224122 | R50: 0.00168438 | S50: 0.8941467 | T50: 0.992791723905724
A51: ALOX5AP | B51: ENSG00000132965 | C51: 13 | D51: 31324100 | E51: rs12429692 | F51: 13 | G51: 31312178 | H51: T | I51: A | J51: 0.235586 | K51: -0.000110024 | L51: 0.00040158 | M51: 0.7800007 | N51: 0.593084 | O51: 0.00859154 | P51: 0 | Q51: -0.000185512 | R51: 0.000677111 | S51: 0.7841033 | T51: 0.958827178877005
A52: ANP32A | B52: ENSG00000140350 | C52: 15 | D52: 69092055 | E52: rs72750358 | F52: 15 | G52: 69033582 | H52: C | I52: T | J52: 0.461233 | K52: -0.000340623 | L52: 0.000355198 | M52: 0.3400001 | N52: 0.073335 | O52: 0.0118857 | P52: 6.828987e-10 | Q52: -0.00464475 | R52: 0.00490165 | S52: 0.3433384 | T52: 0.723737995329087
A53: ANPEP | B53: ENSG00000166825 | C53: 15 | D53: 90343376 | E53: rs11073891 | F53: 15 | G53: 90363995 | H53: C | I53: A | J53: 0.446322 | K53: 0.000345021 | L53: 0.000352604 | M53: 0.33 | N53: -0.743474 | O53: 0.00684753 | P53: 0 | Q53: -0.000464066 | R53: 0.000474285 | S53: 0.3278496 | T53: 0.723737995329087
A54: ANXA3 | B54: ENSG00000138772 | C54: 4 | D54: 79502135 | E54: rs6854010 | F54: 4 | G54: 79521428 | H54: A | I54: G | J54: 0.0407555 | K54: -0.00173866 | L54: 0.000871253 | M54: 0.04600023 | N54: 0.667401 | O54: 0.0187911 | P54: 2.705529e-276 | Q54: -0.00260512 | R54: 0.0013075 | S54: 0.04632246 | T54: 0.305828938911565
A55: AP1S3 | B55: ENSG00000152056 | C55: 2 | D55: 224659573 | E55: rs6436440 | F55: 2 | G55: 224704906 | H55: A | I55: G | J55: 0.475149 | K55: 0.00100036 | L55: 0.000351127 | M55: 0.004399973 | N55: 0.183147 | O55: 0.00788741 | P55: 2.846623e-119 | Q55: 0.00546206 | R55: 0.00193156 | S55: 0.00468702 | T55: 0.0973621881818182
A56: APBA1 | B56: ENSG00000107282 | C56: 9 | D56: 72166213 | E56: rs2781540 | F56: 9 | G56: 72089820 | H56: G | I56: A | J56: 0.447316 | K56: -2.91E-05 | L56: 0.000351629 | M56: 0.9299999 | N56: 0.0453515 | O56: 0.00807628 | P56: 1.961098e-08 | Q56: -0.000642633 | R56: 0.00775426 | S56: 0.933951 | T56: 0.992791723905724
A57: APOBEC3B | B57: ENSG00000179750 | C57: 22 | D57: 39383580 | E57: rs12157810 | F57: 22 | G57: 39353172 | H57: C | I57: A | J57: 0.272366 | K57: -0.000685858 | L57: 0.000398261 | M57: 0.08500021 | N57: 0.354798 | O57: 0.00958092 | P57: 3.538902e-300 | Q57: -0.0019331 | R57: 0.00112371 | S57: 0.08538286 | T57: 0.386336307128713
A58: AQP9 | B58: ENSG00000103569 | C58: 15 | D58: 58454239 | E58: rs2280198 | F58: 15 | G58: 58467742 | H58: G | I58: C | J58: 0.408549 | K58: -0.00020791 | L58: 0.000351306 | M58: 0.5500004 | N58: 0.132451 | O58: 0.00797036 | P58: 5.162641e-62 | Q58: -0.00156971 | R58: 0.00265402 | S58: 0.5542221 | T58: 0.861605571768707
A59: ARC | B59: ENSG00000198576 | C59: 8 | D59: 143694619 | E59: rs28686812 | F59: 8 | G59: 143694775 | H59: G | I59: C | J59: 0.492048 | K59: 0.000512538 | L59: 0.000353723 | M59: 0.1499999 | N59: -0.16702 | O59: 0.00960865 | P59: 1.125493e-67 | Q59: -0.00306873 | R59: 0.0021252 | S59: 0.1487466 | T59: 0.470545417182131
A60: ARG1 | B60: ENSG00000118520 | C60: 6 | D60: 131899878 | E60: rs2246012 | F60: 6 | G60: 131898208 | H60: C | I60: T | J60: 0.170974 | K60: -0.00138214 | L60: 0.000469978 | M60: 0.00329997 | N60: -0.669133 | O60: 0.00989284 | P60: 0 | Q60: 0.00206557 | R60: 0.000703032 | S60: 0.003302462 | T60: 0.0887779490588235
A61: ARHGAP11A | B61: ENSG00000198826 | C61: 15 | D61: 32919747 | E61: rs34954129 | F61: 15 | G61: 32940190 | H61: T | I61: A | J61: 0.276342 | K61: 0.000158493 | L61: 0.000399706 | M61: 0.6899999 | N61: -0.38184 | O61: 0.013571 | P61: 3.505716e-174 | Q61: -0.000415077 | R61: 0.00104689 | S61: 0.6917476 | T61: 0.924018026239067
A62: ARHGAP27 | B62: ENSG00000159314 | C62: 17 | D62: 43491531 | E62: rs2959950 | F62: 17 | G62: 43511598 | H62: T | I62: C | J62: 0.299205 | K62: -0.00050674 | L62: 0.000396992 | M62: 0.2 | N62: 0.482248 | O62: 0.00841637 | P62: 0 | Q62: -0.00105079 | R62: 0.000823415 | S62: 0.2019088 | T62: 0.569582232098765
A63: ARHGDIB | B63: ENSG00000111348 | C63: 12 | D63: 15104806 | E63: rs4763407 | F63: 12 | G63: 15105560 | H63: T | I63: A | J63: 0.285288 | K63: 0.000309697 | L63: 0.000393514 | M63: 0.4299995 | N63: -0.104638 | O63: 0.00906017 | P63: 7.451106e-31 | Q63: -0.00295971 | R63: 0.00376945 | S63: 0.4323464 | T63: 0.768928500194175
A64: ARHGEF40 | B64: ENSG00000165801 | C64: 14 | D64: 21548414 | E64: rs61978229 | F64: 14 | G64: 21553692 | H64: T | I64: C | J64: 0.0477137 | K64: 0.00144519 | L64: 0.000818318 | M64: 0.07699987 | N64: 0.41352 | O64: 0.0213986 | P64: 3.335554e-83 | Q64: 0.00349485 | R64: 0.00198715 | S64: 0.07862502 | T64: 0.372348540310881
A65: ARL3 | B65: ENSG00000138175 | C65: 10 | D65: 104455239 | E65: rs9645569 | F65: 10 | G65: 104496598 | H65: A | I65: G | J65: 0.140159 | K65: -0.000356527 | L65: 0.000493314 | M65: 0.4700002 | N65: 0.262718 | O65: 0.0165625 | P65: 1.157709e-56 | Q65: -0.00135707 | R65: 0.00187968 | S65: 0.4703134 | T65: 0.805024156554307
A66: ARL4D | B66: ENSG00000175906 | C66: 17 | D66: 41477416 | E66: rs12944058 | F66: 17 | G66: 41486872 | H66: C | I66: T | J66: 0.306163 | K66: -0.000511931 | L66: 0.000372448 | M66: 0.17 | N66: 0.128341 | O66: 0.00854525 | P66: 5.513313e-51 | Q66: -0.00398883 | R66: 0.00291414 | S66: 0.1710671 | T66: 0.522927523076923
A67: ARRB2 | B67: ENSG00000141480 | C67: 17 | D67: 4619289 | E67: rs55682338 | F67: 17 | G67: 4582183 | H67: A | I67: G | J67: 0.218688 | K67: -0.0011604 | L67: 0.000408782 | M67: 0.004499974 | N67: 0.476801 | O67: 0.00935828 | P67: 0 | Q67: -0.00243372 | R67: 0.000858673 | S67: 0.00459289 | T67: 0.0973621881818182
A68: ARRDC2 | B68: ENSG00000105643 | C68: 19 | D68: 18118426 | E68: rs4808737 | F68: 19 | G68: 18117646 | H68: T | I68: C | J68: 0.253479 | K68: -0.000146885 | L68: 0.000419693 | M68: 0.7300002 | N68: -0.260054 | O68: 0.00974735 | P68: 8.162655e-157 | Q68: 0.000564826 | R68: 0.00161401 | S68: 0.7263748 | T68: 0.942538580425532
A69: ARVCF | B69: ENSG00000099889 | C69: 22 | D69: 19980875 | E69: rs165599 | F69: 22 | G69: 19956781 | H69: G | I69: A | J69: 0.314115 | K69: -1.94E-05 | L69: 0.000380664 | M69: 0.9599999 | N69: -0.133152 | O69: 0.00921185 | P69: 2.351729e-47 | Q69: 0.000145671 | R69: 0.00285889 | S69: 0.9593623 | T69: 0.992791723905724
A70: ASAP3 | B70: ENSG00000088280 | C70: 1 | D70: 23782870 | E70: rs7522616 | F70: 1 | G70: 23794914 | H70: A | I70: G | J70: 0.166004 | K70: -0.000437301 | L70: 0.00046519 | M70: 0.35 | N70: -0.189021 | O70: 0.0100127 | P70: 1.723607e-79 | Q70: 0.0023135 | R70: 0.0024641 | S70: 0.3477899 | T70: 0.723737995329087
A71: ASNS | B71: ENSG00000070669 | C71: 7 | D71: 97491642 | E71: rs7784883 | F71: 7 | G71: 97593885 | H71: T | I71: C | J71: 0.229622 | K71: -2.13E-05 | L71: 0.000424841 | M71: 0.9599999 | N71: 0.640389 | O71: 0.00949323 | P71: 0 | Q71: -3.33E-05 | R71: 0.000663411 | S71: 0.9599593 | T71: 0.992791723905724
A72: ASPH | B72: ENSG00000198363 | C72: 8 | D72: 62520135 | E72: rs7014115 | F72: 8 | G72: 62649567 | H72: G | I72: T | J72: 0.131213 | K72: 2.30635e-05 | L72: 0.000571496 | M72: 0.9699999 | N72: 0.468158 | O72: 0.0131401 | P72: 5.127719e-278 | Q72: 4.92643e-05 | R72: 0.00122073 | S72: 0.967809 | T72: 0.992791723905724
A73: ATF3 | B73: ENSG00000162772 | C73: 1 | D73: 212766397 | E73: rs3795837 | F73: 1 | G73: 212773328 | H73: C | I73: A | J73: 0.11332 | K73: 0.000163684 | L73: 0.000541849 | M73: 0.7600007 | N73: 0.152203 | O73: 0.0126526 | P73: 2.489604e-33 | Q73: 0.00107543 | R73: 0.00356115 | S73: 0.7626605 | T73: 0.956267491780822
A74: ATG4C | B74: ENSG00000125703 | C74: 1 | D74: 63290495 | E74: rs6679582 | F74: 1 | G74: 63296271 | H74: T | I74: C | J74: 0.417495 | K74: -2.92E-05 | L74: 0.000354997 | M74: 0.9299999 | N74: -0.215509 | O74: 0.00795639 | P74: 1.427973e-161 | Q74: 0.000135574 | R74: 0.00164726 | S74: 0.9344059 | T74: 0.992791723905724
A75: ATG5 | B75: ENSG00000057663 | C75: 6 | D75: 106703008 | E75: rs74525730 | F75: 6 | G75: 106715445 | H75: C | I75: T | J75: 0.0854871 | K75: 0.000539054 | L75: 0.000597054 | M75: 0.3700002 | N75: -0.0821054 | O75: 0.0137927 | P75: 2.6359e-09 | Q75: -0.00656539 | R75: 0.00735496 | S75: 0.3720459 | T75: 0.723737995329087
A76: ATG7 | B76: ENSG00000197548 | C76: 3 | D76: 11456567 | E76: rs6442241 | F76: 3 | G76: 11272005 | H76: G | I76: A | J76: 0.161034 | K76: 0.000437798 | L76: 0.000493814 | M76: 0.3800004 | N76: -0.298927 | O76: 0.0103754 | P76: 1.552832e-182 | Q76: -0.00146456 | R76: 0.00165274 | S76: 0.3755393 | T76: 0.725672135729387
A77: ATM | B77: ENSG00000149311 | C77: 11 | D77: 108166520 | E77: rs2640787 | F77: 11 | G77: 108410970 | H77: G | I77: A | J77: 0.166998 | K77: 0.000450373 | L77: 0.000470835 | M77: 0.3400001 | N77: -0.0648707 | O77: 0.0104445 | P77: 5.264786e-10 | Q77: -0.00694263 | R77: 0.00734363 | S77: 0.3444572 | T77: 0.723737995329087
A78: ATP11A | B78: ENSG00000068650 | C78: 13 | D78: 113443062 | E78: rs7998551 | F78: 13 | G78: 113540649 | H78: T | I78: G | J78: 0.214712 | K78: 6.11741e-06 | L78: 0.000432663 | M78: 0.99 | N78: -0.0931302 | O78: 0.0116186 | P78: 1.095995e-15 | Q78: -6.57E-05 | R78: 0.00464579 | S78: 0.9887191 | T78: 0.996946457331863
A79: ATXN1 | B79: ENSG00000124788 | C79: 6 | D79: 16530532 | E79: rs2301594 | F79: 6 | G79: 16754366 | H79: A | I79: G | J79: 0.17992 | K79: 0.000139596 | L79: 0.000464452 | M79: 0.7600007 | N79: -0.346649 | O79: 0.0101891 | P79: 1.0716e-253 | Q79: -0.000402701 | R79: 0.00133989 | S79: 0.7637585 | T79: 0.956267491780822
A80: AURKA | B80: ENSG00000087586 | C80: 20 | D80: 54955919 | E80: rs190100022 | F80: 20 | G80: 54934067 | H80: T | I80: C | J80: 0.0258449 | K80: -0.000115987 | L80: 0.00106516 | M80: 0.91 | N80: -0.158272 | O80: 0.0272752 | P80: 6.5217e-09 | Q80: 0.000732832 | R80: 0.0067311 | S80: 0.9133037 | T80: 0.992791723905724
A81: B4GALT5 | B81: ENSG00000158470 | C81: 20 | D81: 48289948 | E81: rs2273088 | F81: 20 | G81: 48273459 | H81: A | I81: G | J81: 0.445328 | K81: -0.000745389 | L81: 0.000353122 | M81: 0.03500016 | N81: 0.10756 | O81: 0.00798195 | P81: 2.18301e-41 | Q81: -0.00692999 | R81: 0.00332306 | S81: 0.03703089 | T81: 0.2820519455
A82: B9D2 | B82: ENSG00000123810 | C82: 19 | D82: 41865202 | E82: rs4803457 | F82: 19 | G82: 41861359 | H82: T | I82: C | J82: 0.38171 | K82: -0.00145319 | L82: 0.00036121 | M82: 5.699936e-05 | N82: 0.137899 | O82: 0.00813495 | P82: 1.879268e-64 | Q82: -0.0105381 | R82: 0.00269214 | S82: 9.063502e-05 | T82: 0.02071010207
A83: BANP | B83: ENSG00000172530 | C83: 16 | D83: 88046887 | E83: rs12928626 | F83: 16 | G83: 88082595 | H83: T | I83: C | J83: 0.393638 | K83: -0.000312091 | L83: 0.000371868 | M83: 0.4 | N83: 0.10113 | O83: 0.00821992 | P83: 8.727042e-35 | Q83: -0.00308605 | R83: 0.00368569 | S83: 0.4024205 | T83: 0.755118518442623
A84: BARD1 | B84: ENSG00000138376 | C84: 2 | D84: 215632399 | E84: rs35933323 | F84: 2 | G84: 215674090 | H84: T | I84: G | J84: 0.261431 | K84: -0.00033447 | L84: 0.000383621 | M84: 0.3800004 | N84: -0.587642 | O84: 0.00824863 | P84: 0 | Q84: 0.000569173 | R84: 0.000652863 | S84: 0.3833116 | T84: 0.731412948643006
A85: BCL2L1 | B85: ENSG00000171552 | C85: 20 | D85: 30282023 | E85: rs6088962 | F85: 20 | G85: 30268184 | H85: T | I85: C | J85: 0.232604 | K85: -3.12E-05 | L85: 0.000428619 | M85: 0.9400001 | N85: -0.0738765 | O85: 0.0101814 | P85: 3.987101e-13 | Q85: 0.000422469 | R85: 0.00580213 | S85: 0.9419551 | T85: 0.992791723905724
A86: BCL2L11 | B86: ENSG00000153094 | C86: 2 | D86: 111901489 | E86: rs113135335 | F86: 2 | G86: 111887754 | H86: G | I86: T | J86: 0.117296 | K86: 0.000633063 | L86: 0.000582161 | M86: 0.28 | N86: 0.164709 | O86: 0.0127383 | P86: 3.040289e-38 | Q86: 0.00384353 | R86: 0.00354697 | S86: 0.2785374 | T86: 0.66644812460733
A87: BCL2L13 | B87: ENSG00000099968 | C87: 22 | D87: 18162504 | E87: rs2024229 | F87: 22 | G87: 18132812 | H87: G | I87: T | J87: 0.313121 | K87: -0.000160987 | L87: 0.000385593 | M87: 0.6800001 | N87: -0.51787 | O87: 0.00822787 | P87: 0 | Q87: 0.000310864 | R87: 0.000744591 | S87: 0.6763158 | T87: 0.924018026239067
A88: BCL3 | B88: ENSG00000069399 | C88: 19 | D88: 45257131 | E88: rs1531517 | F88: 19 | G88: 45242173 | H88: A | I88: G | J88: 0.054672 | K88: -0.00049806 | L88: 0.000673962 | M88: 0.4600002 | N88: 0.0950631 | O88: 0.0165252 | P88: 8.788106e-09 | Q88: -0.00523926 | R88: 0.00714789 | S88: 0.4635708 | T88: 0.800825800376648
A89: BCL9L | B89: ENSG00000186174 | C89: 11 | D89: 118780450 | E89: rs12793214 | F89: 11 | G89: 118800302 | H89: A | I89: C | J89: 0.44831 | K89: -0.000428686 | L89: 0.000351487 | M89: 0.2200002 | N89: -0.0468751 | O89: 0.00799835 | P89: 4.611992e-09 | Q89: 0.00914528 | R89: 0.00765902 | S89: 0.2324572 | T89: 0.603596252272727
A90: BDH2 | B90: ENSG00000164039 | C90: 4 | D90: 104010816 | E90: rs2711897 | F90: 4 | G90: 104023567 | H90: T | I90: C | J90: 0.407555 | K90: -0.000755895 | L90: 0.000360064 | M90: 0.03599979 | N90: 0.52467 | O90: 0.0112551 | P90: 0 | Q90: -0.00144071 | R90: 0.000686964 | S90: 0.03597503 | T90: 0.27946149092437
A91: BEND7 | B91: ENSG00000165626 | C91: 10 | D91: 13525729 | E91: rs6602661 | F91: 10 | G91: 13542425 | H91: T | I91: C | J91: 0.479125 | K91: 0.000382998 | L91: 0.000354901 | M91: 0.28 | N91: 0.194797 | O91: 0.0086662 | P91: 6.8448e-112 | Q91: 0.00196614 | R91: 0.001824 | S91: 0.2810664 | T91: 0.667814218701299
A92: BET1L | B92: ENSG00000177951 | C92: 11 | D92: 187606 | E92: rs4980320 | F92: 11 | G92: 198986 | H92: C | I92: T | J92: 0.43837 | K92: 0.000106552 | L92: 0.00035407 | M92: 0.7600007 | N92: 0.385595 | O92: 0.00865334 | P92: 0 | Q92: 0.000276331 | R92: 0.000918264 | S92: 0.7634694 | T92: 0.956267491780822
A93: BFAR | B93: ENSG00000103429 | C93: 16 | D93: 14744882 | E93: rs72546339 | F93: 16 | G93: 14766204 | H93: T | I93: G | J93: 0.0477137 | K93: 0.00104514 | L93: 0.000791552 | M93: 0.1900002 | N93: -0.207728 | O93: 0.0195402 | P93: 2.142692e-26 | Q93: -0.00503128 | R93: 0.00383979 | S93: 0.1900943 | T93: 0.549468832176656
A94: BHLHE40 | B94: ENSG00000134107 | C94: 3 | D94: 5023904 | E94: rs6803795 | F94: 3 | G94: 5069829 | H94: C | I94: T | J94: 0.341948 | K94: 0.000464313 | L94: 0.000371761 | M94: 0.2099999 | N94: 0.0835158 | O94: 0.00872264 | P94: 1.0225e-21 | Q94: 0.00555958 | R94: 0.0044891 | S94: 0.2155443 | T94: 0.582924664896755
A95: BLM | B95: ENSG00000197299 | C95: 15 | D95: 91309708 | E95: rs389480 | F95: 15 | G95: 91351930 | H95: A | I95: G | J95: 0.459245 | K95: 0.000409406 | L95: 0.000351942 | M95: 0.2399999 | N95: 0.541498 | O95: 0.00741818 | P95: 0 | Q95: 0.000756062 | R95: 0.000650024 | S95: 0.2447771 | T95: 0.620988057063712
A96: BNIP3 | B96: ENSG00000176171 | C96: 10 | D96: 133788506 | E96: rs7077135 | F96: 10 | G96: 133750199 | H96: C | I96: T | J96: 0.2167 | K96: 0.000166618 | L96: 0.000403398 | M96: 0.6800001 | N96: -0.130363 | O96: 0.0170986 | P96: 2.455488e-14 | Q96: -0.0012781 | R96: 0.00309895 | S96: 0.6800232 | T96: 0.924018026239067
A97: BNIP3L | B97: ENSG00000104765 | C97: 8 | D97: 26301783 | E97: rs28595197 | F97: 8 | G97: 26298562 | H97: T | I97: C | J97: 0.0308151 | K97: 0.00192553 | L97: 0.00105194 | M97: 0.06699926 | N97: 0.186343 | O97: 0.0219454 | P97: 2.0451e-17 | Q97: 0.0103333 | R97: 0.00577486 | S97: 0.07355816 | T97: 0.367710799462366
A98: BRCA1 | B98: ENSG00000012048 | C98: 17 | D98: 41259301 | E98: rs33933393 | F98: 17 | G98: 41317432 | H98: T | I98: C | J98: 0.358847 | K98: 0.00122719 | L98: 0.00037269 | M98: 0.000990011 | N98: 0.248742 | O98: 0.00861675 | P98: 3.073651e-183 | Q98: 0.00493358 | R98: 0.00150801 | S98: 0.0010695 | T98: 0.0759442248461538
A99: C5 | B99: ENSG00000106804 | C99: 9 | D99: 123763585 | E99: rs10733650 | F99: 9 | G99: 123784498 | H99: T | I99: C | J99: 0.45825 | K99: 0.000451934 | L99: 0.000352542 | M99: 0.2 | N99: 0.558511 | O99: 0.00734675 | P99: 0 | Q99: 0.000809177 | R99: 0.000631308 | S99: 0.1999313 | T99: 0.565749870588235
A100: C5AR1 | B100: ENSG00000197405 | C100: 19 | D100: 47809301 | E100: rs61091270 | F100: 19 | G100: 47909360 | H100: G | I100: A | J100: 0.0666004 | K100: 0.000376117 | L100: 0.000623011 | M100: 0.5500004 | N100: 0.148101 | O100: 0.0166912 | P100: 7.120128e-19 | Q100: 0.0025396 | R100: 0.0042164 | S100: 0.5469639 | T100: 0.861605571768707
A101: CA14 | B101: ENSG00000118298 | C101: 1 | D101: 150233823 | E101: rs114327352 | F101: 1 | G101: 150285715 | H101: T | I101: C | J101: 0.140159 | K101: -0.000779351 | L101: 0.000529217 | M101: 0.14 | N101: 0.256246 | O101: 0.031319 | P101: 2.796288e-16 | Q101: -0.00304142 | R101: 0.00209846 | S101: 0.1472373 | T101: 0.470545417182131
A102: CACNA2D4 | B102: ENSG00000151062 | C102: 12 | D102: 1964562 | E102: rs2286377 | F102: 12 | G102: 1919543 | H102: C | I102: T | J102: 0.387674 | K102: 0.000661295 | L102: 0.000362657 | M102: 0.06800017 | N102: -0.0856693 | O102: 0.00827931 | P102: 4.300036e-25 | Q102: -0.00771916 | R102: 0.00429845 | S102: 0.07252618 | T102: 0.366391089723757
A103: CACNG6 | B103: ENSG00000130433 | C103: 19 | D103: 54505732 | E103: rs442126 | F103: 19 | G103: 54519954 | H103: G | I103: A | J103: 0.579523 | K103: -0.000100612 | L103: 0.000358986 | M103: 0.7800007 | N103: -0.0979562 | O103: 0.00797403 | P103: 1.098595e-34 | Q103: 0.00102711 | R103: 0.00366571 | S103: 0.7793285 | T103: 0.958827178877005
A104: CACYBP | B104: ENSG00000116161 | C104: 1 | D104: 174974575 | E104: rs332783 | F104: 1 | G104: 174688398 | H104: A | I104: G | J104: 0.388668 | K104: -0.00130892 | L104: 0.00035847 | M104: 0.000259998 | N104: -0.0566379 | O104: 0.00821982 | P104: 5.563604e-12 | Q104: 0.0231103 | R104: 0.00716293 | S104: 0.001253658 | T104: 0.0759442248461538
A105: CADM1 | B105: ENSG00000182985 | C105: 11 | D105: 115207806 | E105: rs4938182 | F105: 11 | G105: 115043036 | H105: G | I105: C | J105: 0.2167 | K105: -0.00102361 | L105: 0.000439458 | M105: 0.02 | N105: -0.178316 | O105: 0.00969476 | P105: 1.494808e-75 | Q105: 0.00574044 | R105: 0.00248418 | S105: 0.02084391 | T105: 0.21795132953271
A106: CAMTA1 | B106: ENSG00000171735 | C106: 1 | D106: 7337575 | E106: rs72632043 | F106: 1 | G106: 7809383 | H106: T | I106: C | J106: 0.198807 | K106: -0.000345511 | L106: 0.000440771 | M106: 0.4299995 | N106: 0.304831 | O106: 0.00983523 | P106: 6.534224e-211 | Q106: -0.00113345 | R106: 0.00144641 | S106: 0.4332584 | T106: 0.768928500194175
A107: CANX | B107: ENSG00000127022 | C107: 5 | D107: 179131777 | E107: rs13182141 | F107: 5 | G107: 179126632 | H107: C | I107: T | J107: 0.510934 | K107: 0.000293431 | L107: 0.000349598 | M107: 0.4 | N107: 0.252415 | O107: 0.0116562 | P107: 5.453029e-104 | Q107: 0.00116249 | R107: 0.00138605 | S107: 0.4016329 | T107: 0.755118518442623
A108: CAPS | B108: ENSG00000105519 | C108: 19 | D108: 5913802 | E108: rs542767 | F108: 19 | G108: 5906450 | H108: G | I108: A | J108: 0.362823 | K108: -0.000328975 | L108: 0.000374613 | M108: 0.3800004 | N108: -0.397893 | O108: 0.00811568 | P108: 0 | Q108: 0.000826794 | R108: 0.000941644 | S108: 0.3799263 | T108: 0.726469954393305
A109: CARD8 | B109: ENSG00000105483 | C109: 19 | D109: 48721615 | E109: rs4802445 | F109: 19 | G109: 48712718 | H109: T | I109: C | J109: 0.480119 | K109: -0.000517405 | L109: 0.000353197 | M109: 0.14 | N109: -0.602751 | O109: 0.00730845 | P109: 0 | Q109: 0.000858406 | R109: 0.000586068 | S109: 0.1430061 | T109: 0.470545417182131
A110: CASP3 | B110: ENSG00000164305 | C110: 4 | D110: 185559756 | E110: rs72689261 | F110: 4 | G110: 185590897 | H110: A | I110: C | J110: 0.115308 | K110: 0.000991828 | L110: 0.000541848 | M110: 0.06699926 | N110: -0.489507 | O110: 0.0118499 | P110: 0 | Q110: -0.00202618 | R110: 0.00110801 | S110: 0.06745057 | T110: 0.366391089723757
A111: CASP7 | B111: ENSG00000165806 | C111: 10 | D111: 115464802 | E111: rs4353229 | F111: 10 | G111: 115489589 | H111: C | I111: T | J111: 0.254473 | K111: 9.62008e-05 | L111: 0.000398641 | M111: 0.81 | N111: -0.592229 | O111: 0.00830595 | P111: 0 | Q111: -0.000162439 | R111: 0.000673124 | S111: 0.8093067 | T111: 0.970295452162516
A112: CASP8 | B112: ENSG00000064012 | C112: 2 | D112: 202125300 | E112: rs7560328 | F112: 2 | G112: 202164837 | H112: A | I112: C | J112: 0.385686 | K112: -2.52E-05 | L112: 0.00036474 | M112: 0.9400001 | N112: -0.21219 | O112: 0.00808379 | P112: 7.376518e-152 | Q112: 0.000118982 | R112: 0.00171894 | S112: 0.9448158 | T112: 0.992791723905724
A113: CAST | B113: ENSG00000153113 | C113: 5 | D113: 95990412 | E113: rs2351245 | F113: 5 | G113: 95995733 | H113: T | I113: G | J113: 0.151093 | K113: -0.000817693 | L113: 0.000482151 | M113: 0.08999948 | N113: 0.932519 | O113: 0.010288 | P113: 0 | Q113: -0.000876865 | R113: 0.000517132 | S113: 0.08995589 | T113: 0.399124676990291
A114: CAVIN1 | B114: ENSG00000177469 | C114: 17 | D114: 40565002 | E114: rs72823023 | F114: 17 | G114: 40513917 | H114: A | I114: G | J114: 0.0487078 | K114: -0.0021128 | L114: 0.000662755 | M114: 0.001400006 | N114: -0.173181 | O114: 0.0175857 | P114: 7.006104e-23 | Q114: 0.0122 | R114: 0.00402248 | S114: 0.002421776 | T114: 0.079053688
A115: CBX4 | B115: ENSG00000141582 | C115: 17 | D115: 77810091 | E115: rs1285251 | F115: 17 | G115: 77809823 | H115: C | I115: T | J115: 0.39662 | K115: -0.000682468 | L115: 0.000358525 | M115: 0.05699936 | N115: -0.149162 | O115: 0.00928847 | P115: 4.960596e-58 | Q115: 0.00457536 | R115: 0.00242043 | S115: 0.05871653 | T115: 0.338474398271605
A116: CCDC69 | B116: ENSG00000198624 | C116: 5 | D116: 150582159 | E116: rs248459 | F116: 5 | G116: 150605833 | H116: A | I116: T | J116: 0.526839 | K116: 0.000673767 | L116: 0.000352438 | M116: 0.05600025 | N116: -0.302963 | O116: 0.0175663 | P116: 1.182686e-66 | Q116: -0.00222393 | R116: 0.00117043 | S116: 0.0574207 | T116: 0.338474398271605
A117: CCDC71 | B117: ENSG00000177352 | C117: 3 | D117: 49201861 | E117: rs61583136 | F117: 3 | G117: 49189195 | H117: C | I117: T | J117: 0.323062 | K117: 0.000599192 | L117: 0.000371258 | M117: 0.1100001 | N117: 0.129336 | O117: 0.00915331 | P117: 2.481407e-45 | Q117: 0.00463282 | R117: 0.00288915 | S117: 0.108819 | T117: 0.434087818032787
A118: CCDC97 | B118: ENSG00000142039 | C118: 19 | D118: 41823441 | E118: rs2241715 | F118: 19 | G118: 41856886 | H118: A | I118: C | J118: 0.314115 | K118: -0.0016824 | L118: 0.000384724 | M118: 1.199997e-05 | N118: 0.0770492 | O118: 0.00852012 | P118: 1.521492e-19 | Q118: -0.0218354 | R118: 0.00554639 | S118: 8.255195e-05 | T118: 0.02071010207
A119: CCDC9B | B119: ENSG00000188549 | C119: 15 | D119: 40628410 | E119: rs34762477 | F119: 15 | G119: 40636844 | H119: G | I119: A | J119: 0.464215 | K119: 0.000701535 | L119: 0.000351532 | M119: 0.04600023 | N119: 0.194742 | O119: 0.0117757 | P119: 1.966993e-61 | Q119: 0.00360238 | R119: 0.00181821 | S119: 0.04756024 | T119: 0.305828938911565
A120: CCND1 | B120: ENSG00000110092 | C120: 11 | D120: 69462548 | E120: rs1960217 | F120: 11 | G120: 69383728 | H120: C | I120: T | J120: 0.362823 | K120: 0.000150734 | L120: 0.000367709 | M120: 0.6800001 | N120: -0.184464 | O120: 0.00909432 | P120: 1.802304e-91 | Q120: -0.000817147 | R120: 0.0019938 | S120: 0.6819206 | T120: 0.924018026239067
A121: CCNG2 | B121: ENSG00000138764 | C121: 4 | D121: 78216423 | E121: rs7668440 | F121: 4 | G121: 78066827 | H121: C | I121: T | J121: 0.167992 | K121: 2.42155e-05 | L121: 0.000451836 | M121: 0.9599999 | N121: -0.11174 | O121: 0.0102268 | P121: 8.639076e-28 | Q121: -0.000216713 | R121: 0.00404368 | S121: 0.9572595 | T121: 0.992791723905724
A122: CCNJ | B122: ENSG00000107443 | C122: 10 | D122: 97811889 | E122: rs10786256 | F122: 10 | G122: 97766027 | H122: A | I122: G | J122: 0.496024 | K122: -0.000208266 | L122: 0.000350741 | M122: 0.5500004 | N122: 0.0619835 | O122: 0.00793968 | P122: 5.865816e-15 | Q122: -0.00336002 | R122: 0.00567497 | S122: 0.5537981 | T122: 0.861605571768707
A123: CCS | B123: ENSG00000173992 | C123: 11 | D123: 66366891 | E123: rs498045 | F123: 11 | G123: 66362997 | H123: A | I123: G | J123: 0.487078 | K123: -0.00109556 | L123: 0.000350239 | M123: 0.00179999 | N123: -0.545267 | O123: 0.00733214 | P123: 0 | Q123: 0.00200922 | R123: 0.000642894 | S123: 0.001776407 | T123: 0.0759442248461538
A124: CCSAP | B124: ENSG00000154429 | C124: 1 | D124: 229467899 | E124: rs237802 | F124: 1 | G124: 229461801 | H124: G | I124: T | J124: 0.33002 | K124: -0.000445735 | L124: 0.000369448 | M124: 0.2300001 | N124: 0.382781 | O124: 0.00809195 | P124: 0 | Q124: -0.00116447 | R124: 0.000965483 | S124: 0.2277801 | T124: 0.594831461142857
A125: CCSER2 | B125: ENSG00000107771 | C125: 10 | D125: 86183307 | E125: rs11595016 | F125: 10 | G125: 86095441 | H125: T | I125: C | J125: 0.111332 | K125: -8.09E-05 | L125: 0.00052132 | M125: 0.8800001 | N125: -0.942251 | O125: 0.0116173 | P125: 0 | Q125: 8.58139e-05 | R125: 0.000553272 | S125: 0.8767405 | T125: 0.991861375
A126: CD14 | B126: ENSG00000170458 | C126: 5 | D126: 140012299 | E126: rs57599368 | F126: 5 | G126: 139992113 | H126: G | I126: A | J126: 0.234592 | K126: 0.000331104 | L126: 0.000421774 | M126: 0.4299995 | N126: -0.338727 | O126: 0.00911088 | P126: 1.530211e-301 | Q126: -0.000977495 | R126: 0.00124545 | S126: 0.4325403 | T126: 0.768928500194175
A127: CD226 | B127: ENSG00000150637 | C127: 18 | D127: 67563716 | E127: rs763361 | F127: 18 | G127: 67531642 | H127: T | I127: C | J127: 0.473161 | K127: 0.000694504 | L127: 0.000350368 | M127: 0.04700023 | N127: -0.347535 | O127: 0.00773762 | P127: 0 | Q127: -0.00199837 | R127: 0.00100913 | S127: 0.04767146 | T127: 0.305828938911565
A128: CD300A | B128: ENSG00000167851 | C128: 17 | D128: 72471744 | E128: rs62087202 | F128: 17 | G128: 72459919 | H128: A | I128: G | J128: 0.0487078 | K128: -0.000418806 | L128: 0.000802076 | M128: 0.5999997 | N128: -0.841242 | O128: 0.0208897 | P128: 0 | Q128: 0.000497842 | R128: 0.000953522 | S128: 0.6015947 | T128: 0.875569356369427
A129: CD302 | B129: ENSG00000241399 | C129: 2 | D129: 160640058 | E129: rs2303551 | F129: 2 | G129: 160637324 | H129: A | I129: G | J129: 0.0765408 | K129: -0.000296406 | L129: 0.000617298 | M129: 0.6300007 | N129: 0.723487 | O129: 0.0157988 | P129: 0 | Q129: -0.000409691 | R129: 0.000853273 | S129: 0.6311276 | T129: 0.902739634428795
A130: CD36 | B130: ENSG00000135218 | C130: 7 | D130: 80153742 | E130: rs7755 | F130: 7 | G130: 80306271 | H130: A | I130: G | J130: 0.442346 | K130: 2.93882e-05 | L130: 0.000353701 | M130: 0.9299999 | N130: -0.60168 | O130: 0.00724288 | P130: 0 | Q130: -4.88E-05 | R130: 0.000587856 | S130: 0.9337818 | T130: 0.992791723905724
A131: CD38 | B131: ENSG00000004468 | C131: 4 | D131: 15815483 | E131: rs10000290 | F131: 4 | G131: 15753299 | H131: G | I131: A | J131: 0.147117 | K131: 0.000511161 | L131: 0.000496548 | M131: 0.2999998 | N131: 0.100088 | O131: 0.0113677 | P131: 1.313196e-18 | Q131: 0.0051071 | R131: 0.0049949 | S131: 0.3065612 | T131: 0.705785735012594
A132: CD40 | B132: ENSG00000101017 | C132: 20 | D132: 44752706 | E132: rs745307 | F132: 20 | G132: 44747086 | H132: A | I132: G | J132: 0.247515 | K132: 0.000361757 | L132: 0.000395047 | M132: 0.3599996 | N132: 0.529103 | O132: 0.00873393 | P132: 0 | Q132: 0.000683718 | R132: 0.000746721 | S132: 0.3598626 | T132: 0.723737995329087
A133: CD44 | B133: ENSG00000026508 | C133: 11 | D133: 35207183 | E133: rs927335 | F133: 11 | G133: 35250518 | H133: T | I133: A | J133: 0.346918 | K133: 4.9946e-06 | L133: 0.000372821 | M133: 0.99 | N133: -0.133577 | O133: 0.00818085 | P133: 6.239726e-60 | Q133: -3.74E-05 | R133: 0.00279106 | S133: 0.9893112 | T133: 0.996946457331863
A134: CD55 | B134: ENSG00000196352 | C134: 1 | D134: 207514582 | E134: rs891376 | F134: 1 | G134: 207491489 | H134: T | I134: C | J134: 0.255467 | K134: -0.000661929 | L134: 0.000378 | M134: 0.08 | N134: -0.744436 | O134: 0.00757266 | P134: 0 | Q134: 0.000889168 | R134: 0.000507848 | S134: 0.07997052 | T134: 0.373403181734694
A135: CD59 | B135: ENSG00000085063 | C135: 11 | D135: 33738899 | E135: rs1718066 | F135: 11 | G135: 33755355 | H135: G | I135: T | J135: 0.306163 | K135: 0.000399306 | L135: 0.000374286 | M135: 0.29 | N135: 0.561212 | O135: 0.0115774 | P135: 0 | Q135: 0.000711507 | R135: 0.000667086 | S135: 0.2861575 | T135: 0.674092667525773
A136: CD68 | B136: ENSG00000129226 | C136: 17 | D136: 7484107 | E136: rs4968214 | F136: 17 | G136: 7477477 | H136: A | I136: G | J136: 0.296223 | K136: -0.000106536 | L136: 0.000384279 | M136: 0.7800007 | N136: -0.184151 | O136: 0.00867867 | P136: 6.403759e-100 | Q136: 0.000578526 | R136: 0.00208694 | S136: 0.781617 | T136: 0.958827178877005
A137: CD8A | B137: ENSG00000153563 | C137: 2 | D137: 87023624 | E137: rs1515950 | F137: 2 | G137: 87020817 | H137: T | I137: C | J137: 0.217694 | K137: 0.000303938 | L137: 0.000402859 | M137: 0.4500005 | N137: -0.196244 | O137: 0.00906069 | P137: 5.021373e-104 | Q137: -0.00154878 | R137: 0.0020541 | S137: 0.4508521 | T137: 0.786409960687023
A138: CDAN1 | B138: ENSG00000140326 | C138: 15 | D138: 43022540 | E138: rs9919994 | F138: 15 | G138: 43011537 | H138: T | I138: G | J138: 0.220676 | K138: -1.77E-05 | L138: 0.000426592 | M138: 0.9699999 | N138: -0.115023 | O138: 0.00961057 | P138: 5.202257e-33 | Q138: 0.000153857 | R138: 0.00370877 | S138: 0.9669096 | T138: 0.992791723905724
A139: CDC25A | B139: ENSG00000164045 | C139: 3 | D139: 48214264 | E139: rs9847953 | F139: 3 | G139: 48282695 | H139: G | I139: A | J139: 0.291252 | K139: 0.000690959 | L139: 0.000374379 | M139: 0.0649995 | N139: 0.0911894 | O139: 0.00892176 | P139: 1.596801e-24 | Q139: 0.00757719 | R139: 0.00417191 | S139: 0.06933338 | T139: 0.366391089723757
A140: CDC42SE1 | B140: ENSG00000197622 | C140: 1 | D140: 151027848 | E140: rs12134957 | F140: 1 | G140: 151045419 | H140: A | I140: G | J140: 0.277336 | K140: -0.00127564 | L140: 0.000381869 | M140: 0.0008400014 | N140: 0.463223 | O140: 0.00894944 | P140: 0 | Q140: -0.00275384 | R140: 0.000826089 | S140: 0.0008573541 | T140: 0.0759442248461538
A141: CDCA8 | B141: ENSG00000134690 | C141: 1 | D141: 38166740 | E141: rs768659 | F141: 1 | G141: 38162707 | H141: C | I141: A | J141: 0.175944 | K141: -2.39E-05 | L141: 0.000459377 | M141: 0.9599999 | N141: -0.122561 | O141: 0.00991694 | P141: 4.366345e-35 | Q141: 0.000195329 | R141: 0.00374817 | S141: 0.9584385 | T141: 0.992791723905724
A142: CDKN1A | B142: ENSG00000124762 | C142: 6 | D142: 36649710 | E142: rs12199346 | F142: 6 | G142: 36641546 | H142: A | I142: C | J142: 0.208748 | K142: 0.000288284 | L142: 0.000411629 | M142: 0.4799997 | N142: -0.208691 | O142: 0.00919676 | P142: 5.398354e-114 | Q142: -0.00138139 | R142: 0.00197337 | S142: 0.4839175 | T142: 0.811928001834862
A143: CDKN1B | B143: ENSG00000111276 | C143: 12 | D143: 12871648 | E143: rs7956514 | F143: 12 | G143: 12879254 | H143: G | I143: T | J143: 0.286282 | K143: -0.000222154 | L143: 0.000386994 | M143: 0.5700002 | N143: -0.127628 | O143: 0.00900807 | P143: 1.441499e-45 | Q143: 0.00174063 | R143: 0.00303469 | S143: 0.5662523 | T143: 0.865558299672131
A144: CDKN1C | B144: ENSG00000129757 | C144: 11 | D144: 2905777 | E144: rs234854 | F144: 11 | G144: 2850970 | H144: G | I144: A | J144: 0.261431 | K144: -0.000586245 | L144: 0.000400893 | M144: 0.14 | N144: -0.115824 | O144: 0.0138852 | P144: 7.329194e-17 | Q144: 0.00506149 | R144: 0.00351399 | S144: 0.1497594 | T144: 0.470545417182131
A145: CDT1 | B145: ENSG00000167513 | C145: 16 | D145: 88872643 | E145: rs2926775 | F145: 16 | G145: 88858246 | H145: T | I145: C | J145: 0.338966 | K145: -0.000241378 | L145: 0.000377331 | M145: 0.5199996 | N145: -0.0587052 | O145: 0.00985814 | P145: 2.600704e-09 | Q145: 0.00411169 | R145: 0.00646453 | S145: 0.524751 | T145: 0.840596229319372
A146: CEBPG | B146: ENSG00000153879 | C146: 19 | D146: 33868913 | E146: rs62126646 | F146: 19 | G146: 33828283 | H146: C | I146: T | J146: 0.220676 | K146: 0.0010825 | L146: 0.000440462 | M146: 0.01400006 | N146: -0.0857537 | O146: 0.0101964 | P146: 4.093111e-17 | Q146: -0.0126234 | R146: 0.00535118 | S146: 0.01832483 | T146: 0.204254812439024
A147: CELSR1 | B147: ENSG00000075275 | C147: 22 | D147: 46844899 | E147: rs11912939 | F147: 22 | G147: 46763094 | H147: G | I147: C | J147: 0.0934394 | K147: 0.000809307 | L147: 0.000609311 | M147: 0.1800002 | N147: 0.442376 | O147: 0.0181183 | P147: 1.156524e-131 | Q147: 0.00182946 | R147: 0.0013794 | S147: 0.1847496 | T147: 0.542354124358974
A148: CELSR2 | B148: ENSG00000143126 | C148: 1 | D148: 109805506 | E148: rs586254 | F148: 1 | G148: 109784781 | H148: A | I148: G | J148: 0.465209 | K148: 0.000701013 | L148: 0.000353576 | M148: 0.04700023 | N148: 0.213213 | O148: 0.00793013 | P148: 3.15912e-159 | Q148: 0.00328785 | R148: 0.00166282 | S148: 0.04801126 | T148: 0.305828938911565
A149: CEP250 | B149: ENSG00000126001 | C149: 20 | D149: 34071394 | E149: rs6060442 | F149: 20 | G149: 34093757 | H149: T | I149: C | J149: 0.250497 | K149: 0.000747582 | L149: 0.000417934 | M149: 0.07399971 | N149: -0.17733 | O149: 0.00894783 | P149: 2.074036e-87 | Q149: -0.00421577 | R149: 0.0023664 | S149: 0.07482848 | T149: 0.367710799462366
A150: CES1 | B150: ENSG00000198848 | C150: 16 | D150: 55852006 | E150: rs12443580 | F150: 16 | G150: 55866337 | H150: C | I150: T | J150: 0.272366 | K150: -0.000330164 | L150: 0.000391036 | M150: 0.4 | N150: -0.763347 | O150: 0.018878 | P150: 0 | Q150: 0.000432521 | R150: 0.000512376 | S150: 0.398587 | T150: 0.751995478762887
A151: CFD | B151: ENSG00000197766 | C151: 19 | D151: 861511 | E151: rs71335276 | F151: 19 | G151: 859368 | H151: T | I151: G | J151: 0.223658 | K151: -2.39E-05 | L151: 0.000434996 | M151: 0.9599999 | N151: 0.948087 | O151: 0.0105577 | P151: 0 | Q151: -2.52E-05 | R151: 0.000458815 | S151: 0.9562377 | T151: 0.992791723905724
A152: CFH | B152: ENSG00000000971 | C152: 1 | D152: 196668821 | E152: rs203683 | F152: 1 | G152: 196678432 | H152: G | I152: C | J152: 0.39662 | K152: 0.000753461 | L152: 0.000353686 | M152: 0.0329997 | N152: -0.102882 | O152: 0.00808786 | P152: 4.543568e-37 | Q152: -0.00732352 | R152: 0.00348564 | S152: 0.03563647 | T152: 0.27946149092437
A153: CGAS | B153: ENSG00000164430 | C153: 6 | D153: 74142618 | E153: rs113354677 | F153: 6 | G153: 74163487 | H153: A | I153: G | J153: 0.280318 | K153: -0.000350989 | L153: 0.000405167 | M153: 0.3900004 | N153: 0.238942 | O153: 0.0102795 | P153: 1.620728e-119 | Q153: -0.00146893 | R153: 0.00169685 | S153: 0.3866649 | T153: 0.736001445322245
A154: CHAF1A | B154: ENSG00000167670 | C154: 19 | D154: 4423837 | E154: rs55637375 | F154: 19 | G154: 4386845 | H154: G | I154: A | J154: 0.265408 | K154: 0.000178653 | L154: 0.000390431 | M154: 0.6499995 | N154: -0.300714 | O154: 0.00908153 | P154: 1.951058e-240 | Q154: -0.000594096 | R154: 0.00129847 | S154: 0.6472864 | T154: 0.914330055555556
A155: CHCHD10 | B155: ENSG00000250479 | C155: 22 | D155: 24109325 | E155: rs5759992 | F155: 22 | G155: 24096268 | H155: T | I155: G | J155: 0.371769 | K155: 0.000732731 | L155: 0.000372649 | M155: 0.04900044 | N155: -0.126371 | O155: 0.00831324 | P155: 3.471999e-52 | Q155: -0.00579824 | R155: 0.00297341 | S155: 0.05117244 | T155: 0.313903423892617
A156: CHDH | B156: ENSG00000016391 | C156: 3 | D156: 53865402 | E156: rs2680671 | F156: 3 | G156: 53780081 | H156: T | I156: C | J156: 0.413519 | K156: 0.00076348 | L156: 0.000361278 | M156: 0.03500016 | N156: -0.0521338 | O156: 0.00903375 | P156: 7.880218e-09 | Q156: -0.0146446 | R156: 0.00737984 | S156: 0.04721006 | T156: 0.305828938911565
A157: CHEK2 | B157: ENSG00000183765 | C157: 22 | D157: 29111070 | E157: rs9620808 | F157: 22 | G157: 28993331 | H157: C | I157: A | J157: 0.112326 | K157: 0.00117919 | L157: 0.000545928 | M157: 0.03099988 | N157: 0.098188 | O157: 0.0116279 | P157: 3.0613e-17 | Q157: 0.0120095 | R157: 0.00573904 | S157: 0.03638503 | T157: 0.27946149092437
A158: CHI3L1 | B158: ENSG00000133048 | C158: 1 | D158: 203151968 | E158: rs7518666 | F158: 1 | G158: 203163590 | H158: C | I158: T | J158: 0.177932 | K158: -0.000471302 | L158: 0.000430881 | M158: 0.2700001 | N158: -0.792772 | O158: 0.00961055 | P158: 0 | Q158: 0.000594499 | R158: 0.00054356 | S158: 0.2740804 | T158: 0.65812222152231
A159: CHST15 | B159: ENSG00000182022 | C159: 10 | D159: 125810195 | E159: rs12778619 | F159: 10 | G159: 125803672 | H159: A | I159: G | J159: 0.218688 | K159: -0.000686286 | L159: 0.000408057 | M159: 0.09299937 | N159: 0.207882 | O159: 0.0103246 | P159: 3.672729e-90 | Q159: -0.00330132 | R159: 0.00196976 | S159: 0.09373784 | T159: 0.412774132596154
A160: CHTF18 | B160: ENSG00000127586 | C160: 16 | D160: 844391 | E160: rs3765264 | F160: 16 | G160: 840409 | H160: C | I160: T | J160: 0.168986 | K160: -0.000240773 | L160: 0.000456852 | M160: 0.5999997 | N160: -0.135403 | O160: 0.0152443 | P160: 6.555115e-19 | Q160: 0.0017782 | R160: 0.00337996 | S160: 0.5988181 | T160: 0.875569356369427
A161: CIITA | B161: ENSG00000179583 | C161: 16 | D161: 10998567 | E161: rs11074938 | F161: 16 | G161: 11006543 | H161: A | I161: G | J161: 0.417495 | K161: 0.000105572 | L161: 0.000358782 | M161: 0.7700005 | N161: 0.136995 | O161: 0.0082936 | P161: 2.713734e-61 | Q161: 0.000770625 | R161: 0.00261935 | S161: 0.7686017 | T161: 0.957290770612245
A162: CIRBP | B162: ENSG00000099622 | C162: 19 | D162: 1267131 | E162: rs12609287 | F162: 19 | G162: 1271274 | H162: C | I162: T | J162: 0.208748 | K162: -0.000380335 | L162: 0.000402047 | M162: 0.3400001 | N162: -0.10508 | O162: 0.0110039 | P162: 1.304504e-21 | Q162: 0.00361947 | R162: 0.00384482 | S162: 0.3465058 | T162: 0.723737995329087
A163: CISD1 | B163: ENSG00000122873 | C163: 10 | D163: 60039082 | E163: rs1339586 | F163: 10 | G163: 60017646 | H163: C | I163: T | J163: 0.209742 | K163: 4.53408e-05 | L163: 0.000428676 | M163: 0.9199999 | N163: -0.874325 | O163: 0.00832902 | P163: 0 | Q163: -5.19E-05 | R163: 0.000490294 | S163: 0.9157654 | T163: 0.992791723905724
A164: CLCF1 | B164: ENSG00000175505 | C164: 11 | D164: 67136643 | E164: rs77125470 | F164: 11 | G164: 66480791 | H164: G | I164: T | J164: 0.11332 | K164: -0.00151584 | L164: 0.000594034 | M164: 0.01099993 | N164: -0.136184 | O164: 0.0133603 | P164: 2.126491e-24 | Q164: 0.0111308 | R164: 0.00449661 | S164: 0.01330926 | T164: 0.171333290704225
A165: CLCN3 | B165: ENSG00000109572 | C165: 4 | D165: 170589304 | E165: rs13115372 | F165: 4 | G165: 170635636 | H165: G | I165: A | J165: 0.271372 | K165: 2.70934e-05 | L165: 0.000394628 | M165: 0.95 | N165: -0.0820269 | O165: 0.00892975 | P165: 4.084774e-20 | Q165: -0.000330299 | R165: 0.00481109 | S165: 0.9452653 | T165: 0.992791723905724
A166: CLCN7 | B166: ENSG00000103249 | C166: 16 | D166: 1510258 | E166: rs35463091 | F166: 16 | G166: 1517226 | H166: T | I166: C | J166: 0.110338 | K166: -0.000351618 | L166: 0.000512996 | M166: 0.4899999 | N166: -0.71499 | O166: 0.0126044 | P166: 0 | Q166: 0.00049178 | R166: 0.00071754 | S166: 0.4931101 | T166: 0.815875782405745
A167: CLMN | B167: ENSG00000165959 | C167: 14 | D167: 95720489 | E167: rs8005908 | F167: 14 | G167: 95652125 | H167: C | I167: T | J167: 0.185885 | K167: -2.48E-05 | L167: 0.000455888 | M167: 0.9599999 | N167: 0.482045 | O167: 0.0149879 | P167: 5.963952e-227 | Q167: -5.14E-05 | R167: 0.000945739 | S167: 0.956619 | T167: 0.992791723905724
A168: CNKSR3 | B168: ENSG00000153721 | C168: 6 | D168: 154779113 | E168: rs871071 | F168: 6 | G168: 154837667 | H168: C | I168: T | J168: 0.170974 | K168: -0.000671069 | L168: 0.000463779 | M168: 0.1499999 | N168: -0.25171 | O168: 0.0104075 | P168: 3.16907e-129 | Q168: 0.00266604 | R168: 0.00184581 | S168: 0.1486333 | T168: 0.470545417182131
A169: CNNM2 | B169: ENSG00000148842 | C169: 10 | D169: 104758209 | E169: rs11191447 | F169: 10 | G169: 104652323 | H169: T | I169: C | J169: 0.0894632 | K169: 0.00209434 | L169: 0.000645374 | M169: 0.001199997 | N169: -0.083254 | O169: 0.0134899 | P169: 6.760203e-10 | Q169: -0.025156 | R169: 0.0087582 | S169: 0.004075163 | T169: 0.0943249783414634
A170: COBLL1 | B170: ENSG00000082438 | C170: 2 | D170: 165605161 | E170: rs4667772 | F170: 2 | G170: 165616471 | H170: T | I170: C | J170: 0.244533 | K170: 2.96438e-05 | L170: 0.000414574 | M170: 0.9400001 | N170: 0.156911 | O170: 0.00951576 | P170: 4.358303e-61 | Q170: 0.000188921 | R170: 0.00264212 | S170: 0.942997 | T170: 0.992791723905724
A171: COL18A1 | B171: ENSG00000182871 | C171: 21 | D171: 46879343 | E171: rs2236472 | F171: 21 | G171: 46903412 | H171: T | I171: C | J171: 0.234592 | K171: 0.0001121 | L171: 0.000410293 | M171: 0.7800007 | N171: -0.807671 | O171: 0.00943452 | P171: 0 | Q171: -0.000138794 | R171: 0.000507998 | S171: 0.7846857 | T171: 0.958827178877005
A172: COL6A2 | B172: ENSG00000142173 | C172: 21 | D172: 47535387 | E172: rs1475915 | F172: 21 | G172: 47517157 | H172: A | I172: C | J172: 0.129225 | K172: 0.000662797 | L172: 0.00050346 | M172: 0.1900002 | N172: -0.398665 | O172: 0.014768 | P172: 1.678117e-160 | Q172: -0.00166254 | R172: 0.00126436 | S172: 0.1885364 | T172: 0.549468832176656
A173: COMT | B173: ENSG00000093010 | C173: 22 | D173: 19943314 | E173: rs9618717 | F173: 22 | G173: 19921978 | H173: G | I173: A | J173: 0.483101 | K173: -0.000535499 | L173: 0.000350244 | M173: 0.1299999 | N173: 0.275823 | O173: 0.00785518 | P173: 4.194739e-270 | Q173: -0.00194146 | R173: 0.00127102 | S173: 0.1266407 | T173: 0.441792365648855
A174: COX16 | B174: ENSG00000133983 | C174: 14 | D174: 70809123 | E174: rs4749 | F174: 14 | G174: 70793004 | H174: A | I174: G | J174: 0.299205 | K174: -0.000440571 | L174: 0.000377723 | M174: 0.2399999 | N174: -0.147088 | O174: 0.00932801 | P174: 5.1334e-56 | Q174: 0.00299529 | R174: 0.00257503 | S174: 0.2447449 | T174: 0.620988057063712
A175: CPEB2 | B175: ENSG00000137449 | C175: 4 | D175: 15038037 | E175: rs62409270 | F175: 4 | G175: 15028043 | H175: C | I175: G | J175: 0.33499 | K175: -0.000259295 | L175: 0.000366441 | M175: 0.4799997 | N175: -0.286965 | O175: 0.00824834 | P175: 3.373956e-265 | Q175: 0.000903578 | R175: 0.00127722 | S175: 0.4792823 | T175: 0.811928001834862
A176: CPEB4 | B176: ENSG00000113742 | C176: 5 | D176: 173352131 | E176: rs72810995 | F176: 5 | G176: 173331851 | H176: G | I176: A | J176: 0.287276 | K176: 0.000365359 | L176: 0.000380987 | M176: 0.3400001 | N176: 0.670265 | O176: 0.00780309 | P176: 0 | Q176: 0.000545097 | R176: 0.000568448 | S176: 0.3375988 | T176: 0.723737995329087
A177: CREB1 | B177: ENSG00000118260 | C177: 2 | D177: 208431308 | E177: rs13027546 | F177: 2 | G177: 208359507 | H177: C | I177: G | J177: 0.163022 | K177: 0.000755249 | L177: 0.000465084 | M177: 0.1 | N177: 0.16986 | O177: 0.0108817 | P177: 6.262844e-55 | Q177: 0.00444631 | R177: 0.00275283 | S177: 0.1062714 | T177: 0.434087818032787
A178: CREBRF | B178: ENSG00000164463 | C178: 5 | D178: 172524823 | E178: rs2544580 | F178: 5 | G178: 172569015 | H178: T | I178: A | J178: 0.503976 | K178: 0.000912205 | L178: 0.000350943 | M178: 0.009299937 | N178: -0.308063 | O178: 0.00873956 | P178: 3.529258e-272 | Q178: -0.0029611 | R178: 0.00114229 | S178: 0.009534813 | T178: 0.132042713363636
A179: CSF1 | B179: ENSG00000184371 | C179: 1 | D179: 110463239 | E179: rs115695318 | F179: 1 | G179: 110438765 | H179: T | I179: A | J179: 0.0487078 | K179: -1.27E-05 | L179: 0.000790964 | M179: 0.99 | N179: -0.198466 | O179: 0.0160603 | P179: 4.431876e-35 | Q179: 6.4156e-05 | R179: 0.00398539 | S179: 0.9871564 | T179: 0.996946457331863
A180: CSGALNACT2 | B180: ENSG00000169826 | C180: 10 | D180: 43657345 | E180: rs11238485 | F180: 10 | G180: 43738748 | H180: A | I180: G | J180: 0.168986 | K180: 0.000342601 | L180: 0.000467614 | M180: 0.4600002 | N180: 0.242796 | O180: 0.0172922 | P180: 8.771724e-45 | Q180: 0.00141107 | R180: 0.00192858 | S180: 0.4643747 | T180: 0.800825800376648
A181: CSTA | B181: ENSG00000121552 | C181: 3 | D181: 122052455 | E181: rs34173813 | F181: 3 | G181: 122060404 | H181: T | I181: C | J181: 0.156064 | K181: 0.000408855 | L181: 0.000518522 | M181: 0.4299995 | N181: -0.538016 | O181: 0.0112828 | P181: 0 | Q181: -0.000759931 | R181: 0.000963898 | S181: 0.4304669 | T181: 0.768928500194175
A182: CTSH | B182: ENSG00000103811 | C182: 15 | D182: 79227658 | E182: rs34843303 | F182: 15 | G182: 79234470 | H182: C | I182: T | J182: 0.110338 | K182: -0.000417832 | L182: 0.000562481 | M182: 0.4600002 | N182: -0.893564 | O182: 0.011697 | P182: 0 | Q182: 0.000467601 | R182: 0.00062951 | S182: 0.4576013 | T182: 0.792135583712121
A183: CUEDC1 | B183: ENSG00000180891 | C183: 17 | D183: 55985644 | E183: rs2585833 | F183: 17 | G183: 56024613 | H183: G | I183: A | J183: 0.371769 | K183: 0.000100835 | L183: 0.000359984 | M183: 0.7800007 | N183: -0.164889 | O183: 0.00815572 | P183: 6.853616e-91 | Q183: -0.000611532 | R183: 0.0021834 | S183: 0.779414 | T183: 0.958827178877005
A184: CXCL5 | B184: ENSG00000163735 | C184: 4 | D184: 74862927 | E184: rs420389 | F184: 4 | G184: 74858488 | H184: G | I184: C | J184: 0.114314 | K184: 0.00120398 | L184: 0.000544077 | M184: 0.02699977 | N184: 0.823623 | O184: 0.0117386 | P184: 0 | Q184: 0.00146181 | R184: 0.000660918 | S184: 0.02698149 | T184: 0.228343350555556
A185: CXCL8 | B185: ENSG00000169429 | C185: 4 | D185: 74607828 | E185: rs1951703 | F185: 4 | G185: 74572039 | H185: T | I185: C | J185: 0.0715706 | K185: 0.000627052 | L185: 0.000712245 | M185: 0.3800004 | N185: -0.481359 | O185: 0.0168779 | P185: 6.599784e-179 | Q185: -0.00130267 | R185: 0.00148036 | S185: 0.3788762 | T185: 0.726469954393305
A186: CYB5R3 | B186: ENSG00000100243 | C186: 22 | D186: 43029710 | E186: rs60631826 | F186: 22 | G186: 43044572 | H186: A | I186: G | J186: 0.112326 | K186: 0.000944416 | L186: 0.000605586 | M186: 0.1199999 | N186: -0.462358 | O186: 0.011758 | P186: 0 | Q186: -0.00204261 | R186: 0.00131081 | S186: 0.1191663 | T186: 0.4372561376
A187: CYGB | B187: ENSG00000161544 | C187: 17 | D187: 74535347 | E187: rs752049 | F187: 17 | G187: 74546939 | H187: T | I187: C | J187: 0.222664 | K187: -0.00087206 | L187: 0.000426538 | M187: 0.04099964 | N187: -0.0785227 | O187: 0.00990323 | P187: 2.209197e-15 | Q187: 0.0111058 | R187: 0.00560971 | S187: 0.04773143 | T187: 0.305828938911565
A188: CYP17A1 | B188: ENSG00000148795 | C188: 10 | D188: 104593789 | E188: rs284856 | F188: 10 | G188: 104574329 | H188: A | I188: T | J188: 0.405567 | K188: 0.00100472 | L188: 0.000357252 | M188: 0.004900044 | N188: 0.0775359 | O188: 0.00812286 | P188: 1.355792e-21 | Q188: 0.0129581 | R188: 0.00480339 | S188: 0.006981953 | T188: 0.12205407690566
A189: CYP2D6 | B189: ENSG00000100197 | C189: 22 | D189: 42524704 | E189: rs2284087 | F189: 22 | G189: 42485671 | H189: T | I189: C | J189: 0.462227 | K189: 0.000369054 | L189: 0.000350989 | M189: 0.29 | N189: -0.299306 | O189: 0.00854005 | P189: 4.286345e-269 | Q189: -0.00123303 | R189: 0.0011732 | S189: 0.2932604 | T189: 0.687282065641026
A190: CYP2S1 | B190: ENSG00000167600 | C190: 19 | D190: 41706199 | E190: rs12977498 | F190: 19 | G190: 41682274 | H190: G | I190: A | J190: 0.305169 | K190: -0.000184375 | L190: 0.000383211 | M190: 0.6300007 | N190: -0.502011 | O190: 0.00898024 | P190: 0 | Q190: 0.000367272 | R190: 0.000763379 | S190: 0.6304355 | T190: 0.902739634428795
A191: CYTIP | B191: ENSG00000115165 | C191: 2 | D191: 158308302 | E191: rs155619 | F191: 2 | G191: 158219122 | H191: A | I191: C | J191: 0.0427435 | K191: 0.000407939 | L191: 0.000686469 | M191: 0.5500004 | N191: 0.216439 | O191: 0.0215118 | P191: 8.182605e-24 | Q191: 0.00188478 | R191: 0.00317718 | S191: 0.5530318 | T191: 0.861605571768707
A192: DAB2 | B192: ENSG00000153071 | C192: 5 | D192: 39417091 | E192: rs700234 | F192: 5 | G192: 39367548 | H192: T | I192: A | J192: 0.435388 | K192: 0.000673373 | L192: 0.000355638 | M192: 0.05800027 | N192: -0.388578 | O192: 0.00849347 | P192: 0 | Q192: -0.00173292 | R192: 0.000916013 | S192: 0.05851722 | T192: 0.338474398271605
A193: DAB2IP | B193: ENSG00000136848 | C193: 9 | D193: 124438572 | E193: rs10760190 | F193: 9 | G193: 124597993 | H193: A | I193: G | J193: 0.398608 | K193: -0.000532801 | L193: 0.000357207 | M193: 0.14 | N193: -0.046939 | O193: 0.00817069 | P193: 9.202992e-09 | Q193: 0.0113509 | R193: 0.00786236 | S193: 0.1488215 | T193: 0.470545417182131
A194: DANCR | B194: ENSG00000226950 | C194: 4 | D194: 53582557 | E194: rs73248685 | F194: 4 | G194: 53570498 | H194: T | I194: C | J194: 0.131213 | K194: -0.000532985 | L194: 0.000563295 | M194: 0.3400001 | N194: 0.698759 | O194: 0.0159949 | P194: 0 | Q194: -0.000762759 | R194: 0.000806325 | S194: 0.344164 | T194: 0.723737995329087
A195: DBI | B195: ENSG00000155368 | C195: 2 | D195: 120127311 | E195: rs12612942 | F195: 2 | G195: 120118237 | H195: G | I195: A | J195: 0.199801 | K195: 0.000622006 | L195: 0.000430819 | M195: 0.1499999 | N195: -0.362701 | O195: 0.0143801 | P195: 2.275327e-140 | Q195: -0.00171493 | R195: 0.00118975 | S195: 0.1494672 | T195: 0.470545417182131
A196: DCBLD2 | B196: ENSG00000057019 | C196: 3 | D196: 98567659 | E196: rs13080057 | F196: 3 | G196: 98502553 | H196: A | I196: G | J196: 0.0626243 | K196: -0.00080101 | L196: 0.000641739 | M196: 0.2099999 | N196: 0.559796 | O196: 0.0168411 | P196: 2.856809e-242 | Q196: -0.0014309 | R196: 0.00114719 | S196: 0.2122848 | T196: 0.582924664896755
A197: DCK | B197: ENSG00000156136 | C197: 4 | D197: 71877443 | E197: rs58010457 | F197: 4 | G197: 71659768 | H197: A | I197: G | J197: 0.0308151 | K197: -0.000246225 | L197: 0.00103221 | M197: 0.81 | N197: -0.419914 | O197: 0.0246266 | P197: 3.424316e-65 | Q197: 0.00058637 | R197: 0.00245839 | S197: 0.8114792 | T197: 0.970801032460733
A198: DDB2 | B198: ENSG00000134574 | C198: 11 | D198: 47248630 | E198: rs2242261 | F198: 11 | G198: 47266808 | H198: G | I198: T | J198: 0.153082 | K198: 0.00148263 | L198: 0.000483629 | M198: 0.002199986 | N198: -0.293081 | O198: 0.0102167 | P198: 5.655149e-181 | Q198: -0.00505878 | R198: 0.00165955 | S198: 0.002301571 | T198: 0.0779124405185185
A199: DDX10 | B199: ENSG00000178105 | C199: 11 | D199: 108673704 | E199: rs11212749 | F199: 11 | G199: 108539604 | H199: A | I199: G | J199: 0.162028 | K199: 0.000841246 | L199: 0.000533422 | M199: 0.1100001 | N199: 0.226524 | O199: 0.0112137 | P199: 9.671693e-91 | Q199: 0.00371371 | R199: 0.00236198 | S199: 0.1158834 | T199: 0.434087818032787
A200: DDX11 | B200: ENSG00000013573 | C200: 12 | D200: 31242252 | E200: rs7309189 | F200: 12 | G200: 31240960 | H200: A | I200: G | J200: 0.431412 | K200: -0.000355028 | L200: 0.000352128 | M200: 0.3100002 | N200: -0.891517 | O200: 0.00680218 | P200: 0 | Q200: 0.000398229 | R200: 0.000394988 | S200: 0.3133557 | T200: 0.714232194014963
... 716 more rows

Sheet S6 Nucleus accumbens
A1: S6 eQTL-GWAS (Nucleus accumbens) In Discovery Cohort
A2: Gene | B2: probeID | C2: ProbeChr | D2: Probe_bp | E2: topSNP | F2: topSNP_chr | G2: topSNP_bp | H2: A1 | I2: A2 | J2: Freq | K2: b_GWAS | L2: se_GWAS | M2: p_GWAS | N2: b_eQTL | O2: se_eQTL | P2: p_eQTL | Q2: b_SMR | R2: se_SMR | S2: p_SMR | T2: pval_adj_SMR
A3: PNKP | B3: ENSG00000039650 | C3: 19 | D3: 50364461 | E3: rs2257103 | F3: 19 | G3: 50370066 | H3: T | I3: C | J3: 0.406561 | K3: -0.00147746 | L3: 0.000357169 | M3: 3.500016e-05 | N3: 0.410381 | O3: 0.0541234 | P3: 3.39443e-14 | Q3: -0.00360022 | R3: 0.000991431 | S3: 0.000281961 | T3: 0.043985916
A4: ACADS | B4: ENSG00000122971 | C4: 12 | D4: 121163538 | E4: rs3021338 | F4: 12 | G4: 121162989 | H4: G | I4: A | J4: 0.414513 | K4: 0.000308391 | L4: 0.000358505 | M4: 0.3900004 | N4: 0.265551 | O4: 0.0385719 | P4: 5.796351e-12 | Q4: 0.00116132 | R4: 0.00136054 | S4: 0.3933396 | T4: 0.753881856
A5: ACSL6 | B5: ENSG00000164398 | C5: 5 | D5: 131142683 | E5: rs77938 | F5: 5 | G5: 131322494 | H5: T | I5: C | J5: 0.770378 | K5: -0.000375646 | L5: 0.000445692 | M5: 0.4 | N5: 0.298845 | O5: 0.049072 | P5: 1.129622e-09 | Q5: -0.00125699 | R5: 0.0015056 | S5: 0.4037854 | T5: 0.753881856
A6: ACTR3C | B6: ENSG00000106526 | C6: 7 | D6: 149941005 | E6: rs6954041 | F6: 7 | G6: 149988977 | H6: A | I6: G | J6: 0.0964215 | K6: -0.000235833 | L6: 0.000627278 | M6: 0.7099994 | N6: -0.776447 | O6: 0.106374 | P6: 2.894711e-13 | Q6: 0.000303734 | R6: 0.000808954 | S6: 0.7073148 | T6: 0.753881856
A7: ADAMTS13 | B7: ENSG00000160323 | C7: 9 | D7: 136279478 | E7: rs1055432 | F7: 9 | G7: 136324239 | H7: A | I7: C | J7: 0.333996 | K7: 0.000199505 | L7: 0.000364098 | M7: 0.58 | N7: 0.37147 | O7: 0.0515881 | P7: 5.990965e-13 | Q7: 0.000537069 | R7: 0.000982988 | S7: 0.5848161 | T7: 0.753881856
A8: AGMAT | B8: ENSG00000116771 | C8: 1 | D8: 15898848 | E8: rs4646068 | F8: 1 | G8: 15828704 | H8: C | I8: T | J8: 0.297217 | K8: 0.000177996 | L8: 0.000376737 | M8: 0.64 | N8: 0.51254 | O8: 0.0783009 | P8: 5.91896e-11 | Q8: 0.000347282 | R8: 0.000736951 | S8: 0.6374682 | T8: 0.753881856
A9: AKR1C2 | B9: ENSG00000151632 | C9: 10 | D9: 5029967 | E9: rs78836001 | F9: 10 | G9: 4981992 | H9: C | I9: G | J9: 0.133201 | K9: -0.000279238 | L9: 0.000547115 | M9: 0.6100002 | N9: 0.962437 | O9: 0.109508 | P9: 1.512045e-18 | Q9: -0.000290136 | R9: 0.000569426 | S9: 0.6103848 | T9: 0.753881856
A10: AMIGO2 | B10: ENSG00000139211 | C10: 12 | D10: 47469490 | E10: rs7300656 | F10: 12 | G10: 47939090 | H10: C | I10: T | J10: 0.0666004 | K10: -0.000595018 | L10: 0.000703185 | M10: 0.4 | N10: -0.668942 | O10: 0.116815 | P10: 1.025292e-08 | Q10: 0.000889491 | R10: 0.0010626 | S10: 0.4025441 | T10: 0.753881856
A11: APOC2 | B11: ENSG00000234906 | C11: 19 | D11: 45449243 | E11: rs11669173 | F11: 19 | G11: 45492559 | H11: A | I11: G | J11: 0.514911 | K11: 0.0002142 | L11: 0.000350208 | M11: 0.5400003 | N11: -0.670031 | O11: 0.0718198 | P11: 1.065315e-20 | Q11: -0.000319687 | R11: 0.000523796 | S11: 0.5416457 | T11: 0.753881856
A12: ASAH2B | B12: ENSG00000204147 | C12: 10 | D12: 52499078 | E12: rs4460764 | F12: 10 | G12: 52571924 | H12: C | I12: T | J12: 0.259443 | K12: 0.00020687 | L12: 0.000393097 | M12: 0.5999997 | N12: -0.368794 | O12: 0.0544903 | P12: 1.305151e-11 | Q12: -0.000560936 | R12: 0.00106912 | S12: 0.5998104 | T12: 0.753881856
A13: BET1L | B13: ENSG00000177951 | C13: 11 | D13: 167784 | E13: rs939916 | F13: 11 | G13: 202253 | H13: A | I13: G | J13: 0.684891 | K13: 0.000228423 | L13: 0.000379271 | M13: 0.5500004 | N13: 0.378368 | O13: 0.063962 | P13: 3.308481e-09 | Q13: 0.000603706 | R13: 0.00100757 | S13: 0.5490587 | T13: 0.753881856
A14: BROX | B14: ENSG00000162819 | C14: 1 | D14: 222885895 | E14: rs112043396 | F14: 1 | G14: 222917729 | H14: A | I14: G | J14: 0.0258449 | K14: 0.000474586 | L14: 0.000974734 | M14: 0.6300007 | N14: 0.657296 | O14: 0.107196 | P14: 8.694106e-10 | Q14: 0.000722028 | R14: 0.00148761 | S14: 0.627421 | T14: 0.753881856
A15: CANX | B15: ENSG00000127022 | C15: 5 | D15: 179105629 | E15: rs13182141 | F15: 5 | G15: 179126632 | H15: T | I15: C | J15: 0.489066 | K15: -0.000293431 | L15: 0.000349598 | M15: 0.4 | N15: -0.287739 | O15: 0.0359105 | P15: 1.122466e-15 | Q15: 0.00101978 | R15: 0.00122163 | S15: 0.4038467 | T15: 0.753881856
A16: CBR1 | B16: ENSG00000159228 | C16: 21 | D16: 37442239 | E16: rs6517327 | F16: 21 | G16: 37440892 | H16: A | I16: G | J16: 0.718688 | K16: 0.000217379 | L16: 0.000392966 | M16: 0.58 | N16: -0.335044 | O16: 0.0376384 | P16: 5.501988e-19 | Q16: -0.000648807 | R16: 0.00117514 | S16: 0.580873 | T16: 0.753881856
A17: CD59 | B17: ENSG00000085063 | C17: 11 | D17: 33719807 | E17: rs831616 | F17: 11 | G17: 33722823 | H17: T | I17: C | J17: 0.249503 | K17: -0.000212088 | L17: 0.000399677 | M17: 0.5999997 | N17: -0.290985 | O17: 0.0494045 | P17: 3.865384e-09 | Q17: 0.000728862 | R17: 0.00137909 | S17: 0.5971469 | T17: 0.753881856
A18: CES1 | B18: ENSG00000198848 | C18: 16 | D18: 55836763 | E18: rs11076120 | F18: 16 | G18: 55880825 | H18: G | I18: T | J18: 0.262425 | K18: 0.000221803 | L18: 0.000416782 | M18: 0.59 | N18: 0.690235 | O18: 0.107806 | P18: 1.52779e-10 | Q18: 0.000321344 | R18: 0.000605909 | S18: 0.5958686 | T18: 0.753881856
A19: CHAF1A | B19: ENSG00000167670 | C19: 19 | D19: 4402659 | E19: rs1127888 | F19: 19 | G19: 4454083 | H19: T | I19: C | J19: 0.262425 | K19: 0.000169219 | L19: 0.000391771 | M19: 0.6700003 | N19: -0.668467 | O19: 0.0714863 | P19: 8.684405e-21 | Q19: -0.000253145 | R19: 0.000586699 | S19: 0.6661242 | T19: 0.753881856
A20: CHDH | B20: ENSG00000016391 | C20: 3 | D20: 53846362 | E20: rs9001 | F20: 3 | G20: 53857917 | H20: G | I20: T | J20: 0.100398 | K20: 0.000290411 | L20: 0.000648206 | M20: 0.6499995 | N20: 0.393918 | O20: 0.0694116 | P20: 1.386077e-08 | Q20: 0.000737237 | R20: 0.00165066 | S20: 0.65514 | T20: 0.753881856
A21: CHRNA3 | B21: ENSG00000080644 | C21: 15 | D21: 78885394 | E21: rs62010332 | F21: 15 | G21: 78918762 | H21: C | I21: G | J21: 0.32505 | K21: 0.000184504 | L21: 0.000365357 | M21: 0.6100002 | N21: 0.71596 | O21: 0.0709919 | P21: 6.430633e-24 | Q21: 0.000257702 | R21: 0.000510943 | S21: 0.6140052 | T21: 0.753881856
A22: CHST13 | B22: ENSG00000180767 | C22: 3 | D22: 126243126 | E22: rs1056522 | F22: 3 | G22: 126261345 | H22: A | I22: G | J22: 0.299205 | K22: -0.00022967 | L22: 0.000382328 | M22: 0.5500004 | N22: -0.57094 | O22: 0.096951 | P22: 3.88652e-09 | Q22: 0.000402266 | R22: 0.000673121 | S22: 0.5500979 | T22: 0.753881856
A23: CYP2A7 | B23: ENSG00000198077 | C23: 19 | D23: 41381344 | E23: rs10411877 | F23: 19 | G23: 41410115 | H23: T | I23: G | J23: 0.527833 | K23: -0.000169221 | L23: 0.000351424 | M23: 0.6300007 | N23: 0.595265 | O23: 0.085701 | P23: 3.762253e-12 | Q23: -0.000284278 | R23: 0.000591783 | S23: 0.6309597 | T23: 0.753881856
A24: CYP4A11 | B24: ENSG00000187048 | C24: 1 | D24: 47394849 | E24: rs10890438 | F24: 1 | G24: 47467796 | H24: T | I24: C | J24: 0.267396 | K24: -0.00014562 | L24: 0.000401198 | M24: 0.7199992 | N24: 0.410596 | O24: 0.064241 | P24: 1.642767e-10 | Q24: -0.000354655 | R24: 0.000978686 | S24: 0.7170688 | T24: 0.753881856
A25: CYP4F3 | B25: ENSG00000186529 | C25: 19 | D25: 15751707 | E25: rs1290617 | F25: 19 | G25: 15751897 | H25: G | I25: T | J25: 0.426441 | K25: 0.00015839 | L25: 0.000358088 | M25: 0.6600001 | N25: -0.726293 | O25: 0.0775859 | P25: 7.887947e-21 | Q25: -0.00021808 | R25: 0.000493585 | S25: 0.6586133 | T25: 0.753881856
A26: ERAP2 | B26: ENSG00000164308 | C26: 5 | D26: 96211643 | E26: rs2927608 | F26: 5 | G26: 96252432 | H26: A | I26: G | J26: 0.426441 | K26: -0.000164276 | L26: 0.000351657 | M26: 0.64 | N26: 1.16631 | O26: 0.0655458 | P26: 7.892144e-71 | Q26: -0.000140851 | R26: 0.000301616 | S26: 0.6405088 | T26: 0.753881856
A27: FAS | B27: ENSG00000026103 | C27: 10 | D27: 90750414 | E27: rs12359362 | F27: 10 | G27: 90753145 | H27: C | I27: G | J27: 0.39165 | K27: -0.000132019 | L27: 0.000364459 | M27: 0.7199992 | N27: -0.787832 | O27: 0.0637653 | P27: 4.566627e-35 | Q27: 0.000167573 | R27: 0.000462809 | S27: 0.7172943 | T27: 0.753881856
A28: FOXN2 | B28: ENSG00000170802 | C28: 2 | D28: 48541776 | E28: rs79073127 | F28: 2 | G28: 48573895 | H28: C | I28: G | J28: 0.12326 | K28: -0.000282675 | L28: 0.000533025 | M28: 0.5999997 | N28: 0.529892 | O28: 0.0559376 | P28: 2.721341e-21 | Q28: -0.000533458 | R28: 0.00100749 | S28: 0.5964634 | T28: 0.753881856
A29: FOXRED2 | B29: ENSG00000100350 | C29: 22 | D29: 36883237 | E29: rs146532334 | F29: 22 | G29: 36903096 | H29: T | I29: C | J29: 0.0377734 | K29: 0.000371172 | L29: 0.000784933 | M29: 0.64 | N29: 0.987105 | O29: 0.132897 | P29: 1.105962e-13 | Q29: 0.000376021 | R29: 0.000796797 | S29: 0.6369871 | T29: 0.753881856
A30: GOSR1 | B30: ENSG00000108587 | C30: 17 | D30: 28804380 | E30: rs11080127 | F30: 17 | G30: 28797497 | H30: G | I30: A | J30: 0.516899 | K30: 0.000162333 | L30: 0.000349561 | M30: 0.64 | N30: -0.416945 | O30: 0.056553 | P30: 1.672751e-13 | Q30: -0.000389339 | R30: 0.000840048 | S30: 0.6430257 | T30: 0.753881856
A31: GRAMD1A | B31: ENSG00000089351 | C31: 19 | D31: 35485688 | E31: rs35879596 | F31: 19 | G31: 35498890 | H31: T | I31: C | J31: 0.33499 | K31: -0.000150672 | L31: 0.000385837 | M31: 0.6999999 | N31: -0.371044 | O31: 0.0545609 | P31: 1.042247e-11 | Q31: 0.000406076 | R31: 0.00104158 | S31: 0.6966366 | T31: 0.753881856
A32: GREB1 | B32: ENSG00000196208 | C32: 2 | D32: 11674242 | E32: rs6724078 | F32: 2 | G32: 11724159 | H32: G | I32: A | J32: 0.138171 | K32: -0.000273358 | L32: 0.0005006 | M32: 0.59 | N32: 0.655429 | O32: 0.098703 | P32: 3.127938e-11 | Q32: -0.000417067 | R32: 0.000766353 | S32: 0.5862875 | T32: 0.753881856
A33: HSPA13 | B33: ENSG00000155304 | C33: 21 | D33: 15743436 | E33: rs2822648 | F33: 21 | G33: 15754578 | H33: G | I33: A | J33: 0.534791 | K33: -0.000132082 | L33: 0.000351611 | M33: 0.7099994 | N33: -0.14831 | O33: 0.025415 | P33: 5.361858e-09 | Q33: 0.000890581 | R33: 0.00237569 | S33: 0.7077555 | T33: 0.753881856
A34: IFITM3 | B34: ENSG00000142089 | C34: 11 | D34: 319669 | E34: rs6421983 | F34: 11 | G34: 320394 | H34: T | I34: C | J34: 0.451292 | K34: -0.000153181 | L34: 0.000355155 | M34: 0.6700003 | N34: -0.249236 | O34: 0.036922 | P34: 1.474929e-11 | Q34: 0.000614602 | R34: 0.00142788 | S34: 0.6668831 | T34: 0.753881856
A35: IGHMBP2 | B35: ENSG00000132740 | C35: 11 | D35: 68671310 | E35: rs35380202 | F35: 11 | G35: 68674203 | H35: A | I35: G | J35: 0.299205 | K35: -0.000202773 | L35: 0.000386094 | M35: 0.5999997 | N35: 0.449867 | O35: 0.0655622 | P35: 6.805206e-12 | Q35: -0.00045074 | R35: 0.000860751 | S35: 0.6005157 | T35: 0.753881856
A36: IL21R | B36: ENSG00000103522 | C36: 16 | D36: 27413483 | E36: rs1024426 | F36: 16 | G36: 27598106 | H36: T | I36: C | J36: 0.842942 | K36: -0.000219966 | L36: 0.000489969 | M36: 0.6499995 | N36: 0.677877 | O36: 0.0928661 | P36: 2.88813e-13 | Q36: -0.000324492 | R36: 0.000724165 | S36: 0.6540868 | T36: 0.753881856
A37: LAPTM4B | B37: ENSG00000104341 | C37: 8 | D37: 98787285 | E37: rs7816393 | F37: 8 | G37: 98809270 | H37: T | I37: C | J37: 0.466203 | K37: 0.000158706 | L37: 0.000357693 | M37: 0.6600001 | N37: 0.269342 | O37: 0.0474303 | P37: 1.357288e-08 | Q37: 0.000589236 | R37: 0.00133207 | S37: 0.6582394 | T37: 0.753881856
A38: LIMK2 | B38: ENSG00000182541 | C38: 22 | D38: 31608225 | E38: rs5997969 | F38: 22 | G38: 31790014 | H38: C | I38: T | J38: 0.676938 | K38: -0.000167178 | L38: 0.000369947 | M38: 0.6499995 | N38: 0.282057 | O38: 0.0512821 | P38: 3.795622e-08 | Q38: -0.00059271 | R38: 0.00131602 | S38: 0.6524368 | T38: 0.753881856
A39: LINC00174 | B39: ENSG00000179406 | C39: 7 | D39: 65841031 | E39: rs4718347 | F39: 7 | G39: 65904888 | H39: G | I39: A | J39: 0.055666 | K39: -0.000397029 | L39: 0.000820894 | M39: 0.6300007 | N39: 0.588783 | O39: 0.0890356 | P39: 3.768787e-11 | Q39: -0.000674321 | R39: 0.00139795 | S39: 0.629546 | T39: 0.753881856
A40: LXN | B40: ENSG00000079257 | C40: 3 | D40: 158363611 | E40: rs7651847 | F40: 3 | G40: 158420588 | H40: C | I40: T | J40: 0.384692 | K40: 0.000184688 | L40: 0.000363851 | M40: 0.6100002 | N40: 0.569111 | O40: 0.0709305 | P40: 1.027771e-15 | Q40: 0.00032452 | R40: 0.00064061 | S40: 0.6124498 | T40: 0.753881856
A41: MBOAT7 | B41: ENSG00000125505 | C41: 19 | D41: 54677107 | E41: rs653560 | F41: 19 | G41: 54677103 | H41: G | I41: C | J41: 0.2167 | K41: -0.000183065 | L41: 0.000419608 | M41: 0.6600001 | N41: -0.246899 | O41: 0.042626 | P41: 6.946571e-09 | Q41: 0.000741457 | R41: 0.00170433 | S41: 0.6635305 | T41: 0.753881856
A42: MFF | B42: ENSG00000168958 | C42: 2 | D42: 228189867 | E42: rs4673192 | F42: 2 | G42: 228236131 | H42: G | I42: A | J42: 0.16501 | K42: -0.000230295 | L42: 0.000487193 | M42: 0.64 | N42: -0.388216 | O42: 0.0561619 | P42: 4.763752e-12 | Q42: 0.000593214 | R42: 0.00125788 | S42: 0.637215 | T42: 0.753881856
A43: MROH7 | B43: ENSG00000184313 | C43: 1 | D43: 55107463 | E43: rs683024 | F43: 1 | G43: 55054505 | H43: G | I43: T | J43: 0.684891 | K43: -0.000130954 | L43: 0.000371013 | M43: 0.7199992 | N43: 0.266584 | O43: 0.0444056 | P43: 1.932458e-09 | Q43: -0.00049123 | R43: 0.00139413 | S43: 0.7245721 | T43: 0.753881856
A44: MST1R | B44: ENSG00000164078 | C44: 3 | D44: 49924435 | E44: rs11130227 | F44: 3 | G44: 49993319 | H44: G | I44: A | J44: 0.519881 | K44: -0.000204416 | L44: 0.000357872 | M44: 0.5700002 | N44: 0.42214 | O44: 0.0663444 | P44: 1.980358e-10 | Q44: -0.000484237 | R44: 0.000851166 | S44: 0.5694166 | T44: 0.753881856
A45: MYOM2 | B45: ENSG00000036448 | C45: 8 | D45: 1993155 | E45: rs4876220 | F45: 8 | G45: 2075378 | H45: C | I45: T | J45: 0.446322 | K45: 0.000125048 | L45: 0.000353003 | M45: 0.7199992 | N45: 0.575713 | O45: 0.0854198 | P45: 1.585954e-11 | Q45: 0.000217205 | R45: 0.000614004 | S45: 0.7235245 | T45: 0.753881856
A46: NBPF3 | B46: ENSG00000142794 | C46: 1 | D46: 21766621 | E46: rs4654948 | F46: 1 | G46: 21805978 | H46: A | I46: G | J46: 0.771372 | K46: -0.000247548 | L46: 0.000414794 | M46: 0.5500004 | N46: -1.1766 | O46: 0.0831686 | P46: 1.944384e-45 | Q46: 0.000210393 | R46: 0.00035285 | S46: 0.5509968 | T46: 0.753881856
A47: NLRP1 | B47: ENSG00000091592 | C47: 17 | D47: 5402747 | E47: rs114816590 | F47: 17 | G47: 5404500 | H47: A | I47: G | J47: 0.0695825 | K47: -0.000310171 | L47: 0.000693981 | M47: 0.6499995 | N47: 0.470043 | O47: 0.0795394 | P47: 3.430228e-09 | Q47: -0.000659878 | R47: 0.00148064 | S47: 0.6558344 | T47: 0.753881856
A48: NQO1 | B48: ENSG00000181019 | C48: 16 | D48: 69740899 | E48: rs2102066 | F48: 16 | G48: 69967093 | H48: A | I48: G | J48: 0.753479 | K48: 0.000207368 | L48: 0.000396593 | M48: 0.5999997 | N48: -0.333218 | O48: 0.0585431 | P48: 1.256789e-08 | Q48: -0.000622319 | R48: 0.0011952 | S48: 0.6025889 | T48: 0.753881856
A49: NQO2 | B49: ENSG00000124588 | C49: 6 | D49: 2988221 | E49: rs4149363 | F49: 6 | G49: 3007478 | H49: A | I49: G | J49: 0.189861 | K49: -0.000259728 | L49: 0.00041801 | M49: 0.5300002 | N49: -0.838123 | O49: 0.0973608 | P49: 7.407269e-18 | Q49: 0.000309892 | R49: 0.000500043 | S49: 0.5354344 | T49: 0.753881856
A50: NUP85 | B50: ENSG00000125450 | C50: 17 | D50: 73201754 | E50: rs1478785 | F50: 17 | G50: 73222865 | H50: A | I50: G | J50: 0.754473 | K50: 0.00020827 | L50: 0.000422327 | M50: 0.6200004 | N50: -0.718286 | O50: 0.0666046 | P50: 4.081857e-27 | Q50: -0.000289954 | R50: 0.000588579 | S50: 0.6222713 | T50: 0.753881856
A51: OSBPL6 | B51: ENSG00000079156 | C51: 2 | D51: 179059208 | E51: rs334631 | F51: 2 | G51: 179146446 | H51: G | I51: T | J51: 0.352883 | K51: -0.000137535 | L51: 0.00036841 | M51: 0.7099994 | N51: 0.369931 | O51: 0.0657804 | P51: 1.868769e-08 | Q51: -0.000371786 | R51: 0.00099808 | S51: 0.7095201 | T51: 0.753881856
A52: PABPC1L | B52: ENSG00000101104 | C52: 20 | D52: 43538703 | E52: rs16989474 | F52: 20 | G52: 43522725 | H52: G | I52: A | J52: 0.287276 | K52: -0.00017939 | L52: 0.000393045 | M52: 0.6499995 | N52: -0.3127 | O52: 0.0420455 | P52: 1.028621e-13 | Q52: 0.000573681 | R52: 0.0012593 | S52: 0.6487109 | T52: 0.753881856
A53: PLCG2 | B53: ENSG00000197943 | C53: 16 | D53: 81772702 | E53: rs72832055 | F53: 16 | G53: 81869387 | H53: A | I53: G | J53: 0.324056 | K53: -0.000194206 | L53: 0.000378141 | M53: 0.6100002 | N53: 0.353164 | O53: 0.0636193 | P53: 2.836998e-08 | Q53: -0.000549903 | R53: 0.0010753 | S53: 0.6090731 | T53: 0.753881856
A54: POPDC3 | B54: ENSG00000132429 | C54: 6 | D54: 105606155 | E54: rs1190284 | F54: 6 | G54: 105607149 | H54: G | I54: T | J54: 0.957256 | K54: -0.000488724 | L54: 0.000846946 | M54: 0.56 | N54: -1.14019 | O54: 0.159987 | P54: 1.027602e-12 | Q54: 0.000428634 | R54: 0.000745242 | S54: 0.5651828 | T54: 0.753881856
A55: PPP2R1B | B55: ENSG00000137713 | C55: 11 | D55: 111597632 | E55: rs615642 | F55: 11 | G55: 111649421 | H55: A | I55: G | J55: 0.624254 | K55: -0.000138599 | L55: 0.000362914 | M55: 0.6999999 | N55: -0.632067 | O55: 0.0639167 | P55: 4.650239e-23 | Q55: 0.000219279 | R55: 0.000574598 | S55: 0.7027422 | T55: 0.753881856
A56: PRDX5 | B56: ENSG00000126432 | C56: 11 | D56: 64085560 | E56: rs1662185 | F56: 11 | G56: 64100776 | H56: G | I56: A | J56: 0.684891 | K56: -0.00014857 | L56: 0.000384406 | M56: 0.6999999 | N56: 0.224653 | O56: 0.039152 | P56: 9.581958e-09 | Q56: -0.000661331 | R56: 0.00171499 | S56: 0.6997791 | T56: 0.753881856
A57: PRKD3 | B57: ENSG00000115825 | C57: 2 | D57: 37477645 | E57: rs2058716 | F57: 2 | G57: 37510013 | H57: C | I57: G | J57: 0.710736 | K57: -0.000175853 | L57: 0.000365021 | M57: 0.6300007 | N57: -0.211572 | O57: 0.0335472 | P57: 2.850478e-10 | Q57: 0.000831173 | R57: 0.00173031 | S57: 0.6309701 | T57: 0.753881856
A58: PROC | B58: ENSG00000115718 | C58: 2 | D58: 128176003 | E58: rs2069914 | F58: 2 | G58: 128178272 | H58: A | I58: G | J58: 0.259443 | K58: 0.000192716 | L58: 0.000397613 | M58: 0.6300007 | N58: 0.573585 | O58: 0.0817374 | P58: 2.26014e-12 | Q58: 0.000335985 | R58: 0.000694858 | S58: 0.6287192 | T58: 0.753881856
A59: RFFL | B59: ENSG00000092871 | C59: 17 | D59: 33333009 | E59: rs1680530 | F59: 17 | G59: 33368056 | H59: C | I59: A | J59: 0.572565 | K59: 0.000187067 | L59: 0.000352462 | M59: 0.5999997 | N59: -0.192526 | O59: 0.0345186 | P59: 2.440587e-08 | Q59: -0.000971645 | R59: 0.00183899 | S59: 0.5972516 | T59: 0.753881856
A60: RGS12 | B60: ENSG00000159788 | C60: 4 | D60: 3294755 | E60: rs4690098 | F60: 4 | G60: 3447156 | H60: T | I60: C | J60: 0.234592 | K60: -0.000199375 | L60: 0.000419939 | M60: 0.6300007 | N60: -0.389486 | O60: 0.0684586 | P60: 1.27514e-08 | Q60: 0.000511893 | R60: 0.00108194 | S60: 0.6361227 | T60: 0.753881856
A61: RPA1 | B61: ENSG00000132383 | C61: 17 | D61: 1732996 | E61: rs113292199 | F61: 17 | G61: 1672565 | H61: C | I61: T | J61: 0.054672 | K61: 0.000410882 | L61: 0.000720561 | M61: 0.5700002 | N61: 0.702259 | O61: 0.104058 | P61: 1.49153e-11 | Q61: 0.000585086 | R61: 0.00102972 | S61: 0.5698988 | T61: 0.753881856
A62: S100A10 | B62: ENSG00000197747 | C62: 1 | D62: 151955391 | E62: rs28415528 | F62: 1 | G62: 151879761 | H62: A | I62: G | J62: 0.313121 | K62: -0.000186326 | L62: 0.000377395 | M62: 0.6200004 | N62: -0.367 | O62: 0.0568158 | P62: 1.050669e-10 | Q62: 0.0005077 | R62: 0.00103132 | S62: 0.6225212 | T62: 0.753881856
A63: SCUBE1 | B63: ENSG00000159307 | C63: 22 | D63: 43593289 | E63: rs2007836 | F63: 22 | G63: 43693733 | H63: C | I63: T | J63: 0.822068 | K63: 0.000180067 | L63: 0.000468644 | M63: 0.6999999 | N63: -0.83234 | O63: 0.095148 | P63: 2.174656e-18 | Q63: -0.000216338 | R63: 0.000563587 | S63: 0.7010824 | T63: 0.753881856
A64: SETD4 | B64: ENSG00000185917 | C64: 21 | D64: 37406839 | E64: rs2051395 | F64: 21 | G64: 37431265 | H64: T | I64: G | J64: 0.435388 | K64: -0.000191588 | L64: 0.000351339 | M64: 0.59 | N64: -0.402536 | O64: 0.0532785 | P64: 4.17822e-14 | Q64: 0.000475952 | R64: 0.000875084 | S64: 0.5865149 | T64: 0.753881856
A65: SHISA4 | B65: ENSG00000198892 | C65: 1 | D65: 201857808 | E65: rs10920265 | F65: 1 | G65: 201822955 | H65: T | I65: C | J65: 0.206759 | K65: 0.00036763 | L65: 0.000431061 | M65: 0.3900004 | N65: -0.322065 | O65: 0.052208 | P65: 6.877597e-10 | Q65: -0.00114148 | R65: 0.00135116 | S65: 0.3982148 | T65: 0.753881856
A66: SLC25A12 | B66: ENSG00000115840 | C66: 2 | D66: 172640880 | E66: rs4668412 | F66: 2 | G66: 172619770 | H66: G | I66: A | J66: 0.274354 | K66: -0.00024082 | L66: 0.000389761 | M66: 0.5400003 | N66: 0.209488 | O66: 0.0376105 | P66: 2.54832e-08 | Q66: -0.00114956 | R66: 0.00187195 | S66: 0.5391499 | T66: 0.753881856
A67: SRD5A3 | B67: ENSG00000128039 | C67: 4 | D67: 56212276 | E67: rs36110240 | F67: 4 | G67: 56217015 | H67: T | I67: C | J67: 0.152087 | K67: 0.000248533 | L67: 0.000466821 | M67: 0.59 | N67: 0.492509 | O67: 0.075757 | P67: 7.969744e-11 | Q67: 0.000504626 | R67: 0.000951016 | S67: 0.5956833 | T67: 0.753881856
A68: STYXL1 | B68: ENSG00000127952 | C68: 7 | D68: 75625656 | E68: rs111710510 | F68: 7 | G68: 75725716 | H68: A | I68: G | J68: 0.107356 | K68: -0.000207441 | L68: 0.00058397 | M68: 0.7199992 | N68: 0.769803 | O68: 0.119403 | P68: 1.140162e-10 | Q68: -0.000269473 | R68: 0.000759747 | S68: 0.7228237 | T68: 0.753881856
A69: SULT1C2 | B69: ENSG00000198203 | C69: 2 | D69: 108905095 | E69: rs6760918 | F69: 2 | G69: 108904340 | H69: A | I69: G | J69: 0.158052 | K69: 0.000254292 | L69: 0.0004873 | M69: 0.5999997 | N69: 1.14246 | O69: 0.105539 | P69: 2.620973e-27 | Q69: 0.000222583 | R69: 0.000427031 | S69: 0.6022042 | T69: 0.753881856
A70: TCFL5 | B70: ENSG00000101190 | C70: 20 | D70: 61472467 | E70: rs1980500 | F70: 20 | G70: 61473841 | H70: C | I70: T | J70: 0.274354 | K70: -0.000336731 | L70: 0.000394465 | M70: 0.3900004 | N70: 0.499984 | O70: 0.0509245 | P70: 9.405845e-23 | Q70: -0.000673484 | R70: 0.000791932 | S70: 0.3950853 | T70: 0.753881856
A71: TDP2 | B71: ENSG00000111802 | C71: 6 | D71: 24650205 | E71: rs1047782 | F71: 6 | G71: 24650731 | H71: G | I71: T | J71: 0.675944 | K71: 0.000147152 | L71: 0.000381758 | M71: 0.6999999 | N71: -0.370718 | O71: 0.0570646 | P71: 8.223347e-11 | Q71: -0.000396938 | R71: 0.00103159 | S71: 0.7003988 | T71: 0.753881856
A72: TSC1 | B72: ENSG00000165699 | C72: 9 | D72: 135766735 | E72: rs7044064 | F72: 9 | G72: 135777451 | H72: C | I72: T | J72: 0.146123 | K72: 0.000180088 | L72: 0.000495229 | M72: 0.7199992 | N72: -0.34685 | O72: 0.0574767 | P72: 1.5934e-09 | Q72: -0.00051921 | R72: 0.00143038 | S72: 0.7166143 | T72: 0.753881856
A73: VASH2 | B73: ENSG00000143494 | C73: 1 | D73: 213123862 | E73: rs12568153 | F73: 1 | G73: 213151580 | H73: G | I73: T | J73: 0.743539 | K73: 0.000216411 | L73: 0.000387437 | M73: 0.58 | N73: -0.257058 | O73: 0.0465417 | P73: 3.329174e-08 | Q73: -0.000841876 | R73: 0.00151488 | S73: 0.5783913 | T73: 0.753881856
A74: VPS8 | B74: ENSG00000156931 | C74: 3 | D74: 184529931 | E74: rs62286929 | F74: 3 | G74: 184524492 | H74: G | I74: A | J74: 0.055666 | K74: -0.000261979 | L74: 0.00070437 | M74: 0.7099994 | N74: 0.791388 | O74: 0.114435 | P74: 4.659143e-12 | Q74: -0.000331037 | R74: 0.00089133 | S74: 0.7103418 | T74: 0.753881856
A75: ZNF181 | B75: ENSG00000197841 | C75: 19 | D75: 35225060 | E75: rs7247952 | F75: 19 | G75: 35246250 | H75: T | I75: C | J75: 0.317097 | K75: -0.000146672 | L75: 0.00037381 | M75: 0.6899999 | N75: -0.376216 | O75: 0.0513131 | P75: 2.271292e-13 | Q75: 0.000389861 | R75: 0.000995027 | S75: 0.6951988 | T75: 0.753881856
A76: ZNF263 | B76: ENSG00000006194 | C76: 16 | D76: 3313743 | E76: rs220379 | F76: 16 | G76: 3339435 | H76: C | I76: G | J76: 0.263419 | K76: -0.000213821 | L76: 0.0004099 | M76: 0.5999997 | N76: 0.306389 | O76: 0.0527579 | P76: 6.343051e-09 | Q76: -0.000697874 | R76: 0.00134323 | S76: 0.6033771 | T76: 0.753881856
A77: ZNF514 | B77: ENSG00000144026 | C77: 2 | D77: 95813075 | E77: rs111376985 | F77: 2 | G77: 95973657 | H77: T | I77: C | J77: 0.0357853 | K77: -0.000438439 | L77: 0.000846565 | M77: 0.5999997 | N77: -1.14198 | O77: 0.183734 | P77: 5.119846e-10 | Q77: 0.000383929 | R77: 0.000743882 | S77: 0.6057742 | T77: 0.753881856
A78: ZNF552 | B78: ENSG00000178935 | C78: 19 | D78: 58315209 | E78: rs55658516 | F78: 19 | G78: 58301410 | H78: C | I78: T | J78: 0.365805 | K78: -0.000196578 | L78: 0.000364074 | M78: 0.59 | N78: 0.50033 | O78: 0.086117 | P78: 6.251455e-09 | Q78: -0.000392897 | R78: 0.000730803 | S78: 0.5908374 | T78: 0.753881856
A79: ZNF649 | B79: ENSG00000198093 | C79: 19 | D79: 52392477 | E79: rs11667971 | F79: 19 | G79: 52407694 | H79: A | I79: G | J79: 0.100398 | K79: 0.000209725 | L79: 0.000595203 | M79: 0.7199992 | N79: -0.806237 | O79: 0.112215 | P79: 6.734292e-13 | Q79: -0.000260128 | R79: 0.000739135 | S79: 0.7248864 | T79: 0.753881856
A80: ZNF660 | B80: ENSG00000144792 | C80: 3 | D80: 44619715 | E80: rs939649 | F80: 3 | G80: 44632212 | H80: T | I80: G | J80: 0.899602 | K80: -0.000214449 | L80: 0.000476865 | M80: 0.6499995 | N80: -0.953818 | O80: 0.0892647 | P80: 1.192982e-26 | Q80: 0.000224832 | R80: 0.000500396 | S80: 0.6532094 | T80: 0.753881856
A81: ZNF717 | B81: ENSG00000227124 | C81: 3 | D81: 75758794 | E81: rs3009067 | F81: 3 | G81: 75759142 | H81: A | I81: C | J81: 0.0457256 | K81: 0.000130862 | L81: 0.000364108 | M81: 0.7199992 | N81: 0.538113 | O81: 0.0828195 | P81: 8.171022e-11 | Q81: 0.000243187 | R81: 0.000677673 | S81: 0.719703 | T81: 0.753881856
A82: UBOX5 | B82: ENSG00000185019 | C82: 20 | D82: 3088219 | E82: rs3827132 | F82: 20 | G82: 3138280 | H82: A | I82: C | J82: 0.427435 | K82: 9.54039e-07 | L82: 0.000350212 | M82: 1 | N82: 0.323924 | O82: 0.0541108 | P82: 2.146608e-09 | Q82: 2.94526e-06 | R82: 0.00108115 | S82: 0.9978264 | T82: 0.9986903
A83: ZFAND1 | B83: ENSG00000104231 | C83: 8 | D83: 82613569 | E83: rs75348453 | F83: 8 | G83: 82626146 | H83: A | I83: G | J83: 0.0437376 | K83: 1.34147e-06 | L83: 0.000817244 | M83: 1 | N83: -0.548714 | O83: 0.0964299 | P83: 1.26824e-08 | Q83: -2.44E-06 | R83: 0.00148938 | S83: 0.9986903 | T83: 0.9986903
A84: CYBA | B84: ENSG00000051523 | C84: 16 | D84: 88709691 | E84: rs3794624 | F84: 16 | G84: 88717074 | H84: A | I84: G | J84: 0.318091 | K84: 0.00103869 | L84: 0.000366053 | M84: 0.004499974 | N84: -0.363629 | O84: 0.0473099 | P84: 1.516828e-14 | Q84: -0.00285646 | R84: 0.00107308 | S84: 0.007769359 | T84: 0.197813014285714
A85: EFEMP1 | B85: ENSG00000115380 | C85: 2 | D85: 56093102 | E85: rs4258837 | F85: 2 | G85: 56179284 | H85: A | I85: G | J85: 0.45825 | K85: -0.00106419 | L85: 0.000351408 | M85: 0.0025 | N85: 0.282086 | O85: 0.0467169 | P85: 1.558388e-09 | Q85: -0.00377257 | R85: 0.00139364 | S85: 0.006789723 | T85: 0.197813014285714
A86: FKBP11 | B86: ENSG00000134285 | C86: 12 | D86: 49315301 | E86: rs833839 | F86: 12 | G86: 49366890 | H86: A | I86: T | J86: 0.486083 | K86: -0.00101559 | L86: 0.000352497 | M86: 0.004 | N86: 0.303621 | O86: 0.0452038 | P86: 1.858742e-11 | Q86: -0.00334493 | R86: 0.00126328 | S86: 0.008101401 | T86: 0.197813014285714
A87: PEPD | B87: ENSG00000124299 | C87: 19 | D87: 33877856 | E87: rs56187503 | F87: 19 | G87: 33853260 | H87: T | I87: C | J87: 0.44334 | K87: 0.00109962 | L87: 0.000353227 | M87: 0.001899984 | N87: 0.374745 | O87: 0.0520267 | P87: 5.893171e-13 | Q87: 0.00293432 | R87: 0.00102685 | S87: 0.004268586 | T87: 0.197813014285714
A88: UCK1 | B88: ENSG00000130717 | C88: 9 | D88: 134399188 | E88: rs4076428 | F88: 9 | G88: 134353724 | H88: T | I88: C | J88: 0.367793 | K88: -0.00114323 | L88: 0.000368149 | M88: 0.001899984 | N88: -0.23364 | O88: 0.0350748 | P88: 2.716301e-11 | Q88: 0.00489313 | R88: 0.00173852 | S88: 0.004884845 | T88: 0.197813014285714
A89: ZNF597 | B89: ENSG00000167981 | C89: 16 | D89: 3486104 | E89: rs37832 | F89: 16 | G89: 3491909 | H89: C | I89: G | J89: 0.210736 | K89: 0.00118143 | L89: 0.000409969 | M89: 0.004 | N89: 0.481791 | O89: 0.0771179 | P89: 4.171856e-10 | Q89: 0.00245216 | R89: 0.00093709 | S89: 0.008876225 | T89: 0.197813014285714
A90: ADAMTS12 | B90: ENSG00000151388 | C90: 5 | D90: 33523640 | E90: rs6866568 | F90: 5 | G90: 33794627 | H90: C | I90: A | J90: 0.173956 | K90: 0.000617465 | L90: 0.000460586 | M90: 0.1800002 | N90: -0.908204 | O90: 0.0980151 | P90: 1.933272e-20 | Q90: -0.000679875 | R90: 0.00051242 | S90: 0.1845773 | T90: 0.627747522580645
A91: AKR1C1 | B91: ENSG00000187134 | C91: 10 | D91: 4934796 | E91: rs12251296 | F91: 10 | G91: 4963488 | H91: A | I91: G | J91: 0.412525 | K91: 0.000428084 | L91: 0.000355766 | M91: 0.2300001 | N91: 0.639401 | O91: 0.0742982 | P91: 7.574044e-18 | Q91: 0.000669508 | R91: 0.000561818 | S91: 0.233386 | T91: 0.627747522580645
A92: AMPD3 | B92: ENSG00000133805 | C92: 11 | D92: 10329860 | E92: rs11042812 | F92: 11 | G92: 10474010 | H92: A | I92: G | J92: 0.455268 | K92: 0.000440161 | L92: 0.000351182 | M92: 0.2099999 | N92: 0.362458 | O92: 0.0437217 | P92: 1.131459e-16 | Q92: 0.00121438 | R92: 0.000979901 | S92: 0.2152395 | T92: 0.627747522580645
A93: ANXA3 | B93: ENSG00000138772 | C93: 4 | D93: 79472673 | E93: rs7683399 | F93: 4 | G93: 79510367 | H93: G | I93: A | J93: 0.725646 | K93: -0.000440652 | L93: 0.000375772 | M93: 0.2399999 | N93: -0.348515 | O93: 0.0562824 | P93: 5.930856e-10 | Q93: 0.00126437 | R93: 0.00109737 | S93: 0.2492473 | T93: 0.627747522580645
A94: ANXA6 | B94: ENSG00000197043 | C94: 5 | D94: 150480273 | E94: rs432843 | F94: 5 | G94: 150549519 | H94: T | I94: C | J94: 0.437376 | K94: 0.000451683 | L94: 0.000354311 | M94: 0.2 | N94: -0.226339 | O94: 0.0415182 | P94: 4.99303e-08 | Q94: -0.0019956 | R94: 0.00160763 | S94: 0.2144831 | T94: 0.627747522580645
A95: ARNT | B95: ENSG00000143437 | C95: 1 | D95: 150782181 | E95: rs3754211 | F95: 1 | G95: 150951857 | H95: A | I95: G | J95: 0.483101 | K95: -0.000443448 | L95: 0.000351827 | M95: 0.2099999 | N95: 0.28875 | O95: 0.0440844 | P95: 5.755945e-11 | Q95: -0.00153575 | R95: 0.0012408 | S95: 0.2158247 | T95: 0.627747522580645
A96: ATF4 | B96: ENSG00000128272 | C96: 22 | D96: 39915700 | E96: rs5757703 | F96: 22 | G96: 39932516 | H96: A | I96: G | J96: 0.321074 | K96: -0.000448341 | L96: 0.000379376 | M96: 0.2399999 | N96: 0.300912 | O96: 0.046699 | P96: 1.166313e-10 | Q96: -0.00148994 | R96: 0.00128178 | S96: 0.2450741 | T96: 0.627747522580645
A97: BLOC1S1 | B97: ENSG00000135441 | C97: 12 | D97: 56109820 | E97: rs3138141 | F97: 12 | G97: 56115778 | H97: A | I97: C | J97: 0.191849 | K97: 0.000499268 | L97: 0.000396866 | M97: 0.2099999 | N97: 0.331164 | O97: 0.0361726 | P97: 5.43093e-20 | Q97: 0.00150762 | R97: 0.00120966 | S97: 0.2126488 | T97: 0.627747522580645
A98: CDA | B98: ENSG00000158825 | C98: 1 | D98: 20915441 | E98: rs879088 | F98: 1 | G98: 20969441 | H98: A | I98: T | J98: 0.243539 | K98: 0.000515076 | L98: 0.000406265 | M98: 0.2 | N98: 0.45999 | O98: 0.0682971 | P98: 1.637855e-11 | Q98: 0.00111975 | R98: 0.000898716 | S98: 0.2127829 | T98: 0.627747522580645
A99: CEP19 | B99: ENSG00000174007 | C99: 3 | D99: 196433148 | E99: rs12637375 | F99: 3 | G99: 196453654 | H99: A | I99: C | J99: 0.346918 | K99: 0.000488397 | L99: 0.000361284 | M99: 0.1800002 | N99: -0.245192 | O99: 0.0396439 | P99: 6.215832e-10 | Q99: -0.0019919 | R99: 0.00150826 | S99: 0.1866153 | T99: 0.627747522580645
A100: CHRNA4 | B100: ENSG00000101204 | C100: 20 | D100: 61975420 | E100: rs45577639 | F100: 20 | G100: 61983311 | H100: A | I100: G | J100: 0.230616 | K100: -0.000589879 | L100: 0.000432758 | M100: 0.17 | N100: 0.47642 | O100: 0.0689452 | P100: 4.842401e-12 | Q100: -0.00123815 | R100: 0.000925858 | S100: 0.1811248 | T100: 0.627747522580645
A101: CLHC1 | B101: ENSG00000162994 | C101: 2 | D101: 55401927 | E101: rs79969442 | F101: 2 | G101: 55424229 | H101: A | I101: G | J101: 0.112326 | K101: 0.000609441 | L101: 0.000518378 | M101: 0.2399999 | N101: 0.790574 | O101: 0.089134 | P101: 7.347213e-19 | Q101: 0.000770884 | R101: 0.000661433 | S101: 0.2438268 | T101: 0.627747522580645
A102: DHRS1 | B102: ENSG00000157379 | C102: 14 | D102: 24759804 | E102: rs4982894 | F102: 14 | G102: 24772822 | H102: A | I102: G | J102: 0.498012 | K102: -0.000449006 | L102: 0.000349783 | M102: 0.2 | N102: -0.734094 | O102: 0.0682145 | P102: 5.228155e-27 | Q102: 0.000611646 | R102: 0.00047986 | S102: 0.2024388 | T102: 0.627747522580645
A103: DOT1L | B103: ENSG00000104885 | C103: 19 | D103: 2164148 | E103: rs75613123 | F103: 19 | G103: 2223275 | H103: T | I103: C | J103: 0.0516899 | K103: -0.00105038 | L103: 0.000853563 | M103: 0.2200002 | N103: 0.686511 | O103: 0.0948944 | P103: 4.673445e-13 | Q103: -0.00153003 | R103: 0.00126119 | S103: 0.2250697 | T103: 0.627747522580645
A104: DSCC1 | B104: ENSG00000136982 | C104: 8 | D104: 120846216 | E104: rs55741337 | F104: 8 | G104: 120871117 | H104: C | I104: T | J104: 0.126243 | K104: 0.000657121 | L104: 0.000492241 | M104: 0.1800002 | N104: -1.01298 | O104: 0.0859339 | P104: 4.506806e-32 | Q104: -0.000648701 | R104: 0.00048904 | S104: 0.1846811 | T104: 0.627747522580645
A105: FAM3B | B105: ENSG00000183844 | C105: 21 | D105: 42676139 | E105: rs66817580 | F105: 21 | G105: 42689637 | H105: T | I105: G | J105: 0.137177 | K105: -0.000601698 | L105: 0.000487255 | M105: 0.2200002 | N105: 0.697169 | O105: 0.120591 | P105: 7.413373e-09 | Q105: -0.000863059 | R105: 0.000714671 | S105: 0.227189 | T105: 0.627747522580645
A106: FIGNL1 | B106: ENSG00000132436 | C106: 7 | D106: 50511831 | E106: rs6964823 | F106: 7 | G106: 50460096 | H106: A | I106: G | J106: 0.473161 | K106: 0.000504664 | L106: 0.000350599 | M106: 0.1499999 | N106: 0.394969 | O106: 0.0534666 | P106: 1.499373e-13 | Q106: 0.00127773 | R106: 0.000904357 | S106: 0.1576964 | T106: 0.627747522580645
A107: FLCN | B107: ENSG00000154803 | C107: 17 | D107: 17115526 | E107: rs1708618 | F107: 17 | G107: 17131869 | H107: C | I107: T | J107: 0.567594 | K107: 0.000473377 | L107: 0.000352355 | M107: 0.1800002 | N107: 0.47135 | O107: 0.0434654 | P107: 2.123637e-27 | Q107: 0.0010043 | R107: 0.000753259 | S107: 0.1824421 | T107: 0.627747522580645
A108: FLOT1 | B108: ENSG00000137312 | C108: 6 | D108: 30695486 | E108: rs11961853 | F108: 6 | G108: 30365629 | H108: T | I108: C | J108: 0.122266 | K108: 0.000564808 | L108: 0.000462758 | M108: 0.2200002 | N108: 0.373708 | O108: 0.0617192 | P108: 1.404447e-09 | Q108: 0.00151136 | R108: 0.00126319 | S108: 0.231517 | T108: 0.627747522580645
A109: GALNS | B109: ENSG00000141012 | C109: 16 | D109: 88880142 | E109: rs16965110 | F109: 16 | G109: 88906780 | H109: G | I109: A | J109: 0.275348 | K109: -0.000521427 | L109: 0.000409514 | M109: 0.2 | N109: -0.376497 | O109: 0.0669408 | P109: 1.862283e-08 | Q109: 0.00138494 | R109: 0.00111522 | S109: 0.2142895 | T109: 0.627747522580645
A110: GAS2L1 | B110: ENSG00000185340 | C110: 22 | D110: 29702572 | E110: rs2301586 | F110: 22 | G110: 29702910 | H110: T | I110: A | J110: 0.379722 | K110: -0.000502844 | L110: 0.000364158 | M110: 0.17 | N110: 0.212824 | O110: 0.0362459 | P110: 4.314278e-09 | Q110: -0.00236272 | R110: 0.00175775 | S110: 0.1788932 | T110: 0.627747522580645
A111: GLIPR1 | B111: ENSG00000139278 | C111: 12 | D111: 75874460 | E111: rs7971504 | F111: 12 | G111: 75888955 | H111: G | I111: A | J111: 0.611332 | K111: 0.00057653 | L111: 0.000367506 | M111: 0.1199999 | N111: -0.358166 | O111: 0.0614335 | P111: 5.538191e-09 | Q111: -0.00160967 | R111: 0.00106257 | S111: 0.1298026 | T111: 0.627747522580645
A112: GPNMB | B112: ENSG00000136235 | C112: 7 | D112: 23275586 | E112: rs199357 | F112: 7 | G112: 23288309 | H112: A | I112: G | J112: 0.375746 | K112: -0.000449167 | L112: 0.000356686 | M112: 0.2099999 | N112: -0.796515 | O112: 0.0783507 | P112: 2.811394e-24 | Q112: 0.000563915 | R112: 0.000451231 | S112: 0.2113993 | T112: 0.627747522580645
A113: ICMT | B113: ENSG00000116237 | C113: 1 | D113: 6281253 | E113: rs14281 | F113: 1 | G113: 6281667 | H113: C | I113: A | J113: 0.0854871 | K113: -0.000964067 | L113: 0.000694787 | M113: 0.17 | N113: -0.371008 | O113: 0.0592673 | P113: 3.85203e-10 | Q113: 0.00259851 | R113: 0.00191816 | S113: 0.1755161 | T113: 0.627747522580645
A114: IGFBP7 | B114: ENSG00000163453 | C114: 4 | D114: 57896939 | E114: rs12506619 | F114: 4 | G114: 57951010 | H114: G | I114: A | J114: 0.751491 | K114: 0.000477354 | L114: 0.000394645 | M114: 0.2300001 | N114: 0.428827 | O114: 0.0522094 | P114: 2.146648e-16 | Q114: 0.00111316 | R114: 0.000930215 | S114: 0.2314346 | T114: 0.627747522580645
A115: INPP1 | B115: ENSG00000151689 | C115: 2 | D115: 191208196 | E115: rs291411 | F115: 2 | G115: 191122840 | H115: A | I115: T | J115: 0.243539 | K115: 0.000470673 | L115: 0.000405352 | M115: 0.25 | N115: 0.535725 | O115: 0.0595602 | P115: 2.369066e-19 | Q115: 0.000878572 | R115: 0.000762921 | S115: 0.2494894 | T115: 0.627747522580645
A116: KAT8 | B116: ENSG00000103510 | C116: 16 | D116: 31127075 | E116: rs1060506 | F116: 16 | G116: 31133449 | H116: T | I116: C | J116: 0.296223 | K116: -0.000543214 | L116: 0.00038731 | M116: 0.16 | N116: 0.344752 | O116: 0.0500468 | P116: 5.634695e-12 | Q116: -0.00157567 | R116: 0.00114649 | S116: 0.169338 | T116: 0.627747522580645
A117: L3HYPDH | B117: ENSG00000126790 | C117: 14 | D117: 59927081 | E117: rs8012522 | F117: 14 | G117: 60002853 | H117: G | I117: A | J117: 0.416501 | K117: -0.000454139 | L117: 0.00035681 | M117: 0.2 | N117: -0.657239 | O117: 0.0617298 | P117: 1.800249e-26 | Q117: 0.00069098 | R117: 0.000546758 | S117: 0.2063099 | T117: 0.627747522580645
A118: LRPAP1 | B118: ENSG00000163956 | C118: 4 | D118: 3508103 | E118: rs1741547 | F118: 4 | G118: 3521939 | H118: A | I118: T | J118: 0.284294 | K118: 0.000514905 | L118: 0.000379572 | M118: 0.17 | N118: 0.215089 | O118: 0.0360052 | P118: 2.31739e-09 | Q118: 0.00239392 | R118: 0.00180965 | S118: 0.185881 | T118: 0.627747522580645
A119: MAPK13 | B119: ENSG00000156711 | C119: 6 | D119: 36095586 | E119: rs1059227 | F119: 6 | G119: 36098410 | H119: C | I119: A | J119: 0.644135 | K119: 0.000505326 | L119: 0.000367665 | M119: 0.17 | N119: -0.399156 | O119: 0.0556038 | P119: 7.044478e-13 | Q119: -0.00126599 | R119: 0.000937837 | S119: 0.177048 | T119: 0.627747522580645
A120: MED24 | B120: ENSG00000008838 | C120: 17 | D120: 38175350 | E120: rs12453343 | F120: 17 | G120: 38181176 | H120: A | I120: C | J120: 0.368787 | K120: -0.000501253 | L120: 0.000362556 | M120: 0.17 | N120: -0.269489 | O120: 0.0454389 | P120: 3.014755e-09 | Q120: 0.00186001 | R120: 0.00138142 | S120: 0.1781566 | T120: 0.627747522580645
A121: MPI | B121: ENSG00000178802 | C121: 15 | D121: 75182346 | E121: rs11072511 | F121: 15 | G121: 75159433 | H121: G | I121: A | J121: 0.513917 | K121: -0.000505515 | L121: 0.000353783 | M121: 0.1499999 | N121: 0.390384 | O121: 0.0484067 | P121: 7.343315e-16 | Q121: -0.00129492 | R121: 0.000920358 | S121: 0.159436 | T121: 0.627747522580645
A122: MRPL28 | B122: ENSG00000086504 | C122: 16 | D122: 417384 | E122: rs3743884 | F122: 16 | G122: 420678 | H122: T | I122: C | J122: 0.523857 | K122: 0.000456134 | L122: 0.000354892 | M122: 0.2 | N122: -0.214533 | O122: 0.0328411 | P122: 6.46966e-11 | Q122: -0.00212617 | R122: 0.00168597 | S122: 0.2072736 | T122: 0.627747522580645
A123: NDE1 | B123: ENSG00000072864 | C123: 16 | D123: 15737124 | E123: rs12596141 | F123: 16 | G123: 15821246 | H123: T | I123: C | J123: 0.28827 | K123: -0.000454137 | L123: 0.000386493 | M123: 0.2399999 | N123: -0.404718 | O123: 0.04253 | P123: 1.798619e-21 | Q123: 0.00112211 | R123: 0.000962221 | S123: 0.2435483 | T123: 0.627747522580645
A124: NMT1 | B124: ENSG00000136448 | C124: 17 | D124: 43128978 | E124: rs9899380 | F124: 17 | G124: 43173131 | H124: G | I124: C | J124: 0.511928 | K124: -0.000503122 | L124: 0.000355706 | M124: 0.16 | N124: -0.250149 | O124: 0.045228 | P124: 3.186839e-08 | Q124: 0.00201129 | R124: 0.00146774 | S124: 0.1705834 | T124: 0.627747522580645
A125: NUDT12 | B125: ENSG00000112874 | C125: 5 | D125: 102884556 | E125: rs71586376 | F125: 5 | G125: 102900033 | H125: G | I125: A | J125: 0.16501 | K125: 0.000626031 | L125: 0.000484888 | M125: 0.2 | N125: -0.404222 | O125: 0.0667049 | P125: 1.362467e-09 | Q125: -0.00154873 | R125: 0.00122648 | S125: 0.2066818 | T125: 0.627747522580645
A126: NUP107 | B126: ENSG00000111581 | C126: 12 | D126: 69080514 | E126: rs2546513 | F126: 12 | G126: 69108448 | H126: G | I126: A | J126: 0.315109 | K126: -0.000449032 | L126: 0.000384225 | M126: 0.2399999 | N126: -0.472169 | O126: 0.0679378 | P126: 3.652461e-12 | Q126: 0.000950998 | R126: 0.000825169 | S126: 0.2491201 | T126: 0.627747522580645
A127: OBSCN | B127: ENSG00000154358 | C127: 1 | D127: 228395831 | E127: rs491293 | F127: 1 | G127: 228451078 | H127: G | I127: A | J127: 0.359841 | K127: -0.000441081 | L127: 0.000358903 | M127: 0.2200002 | N127: -0.199851 | O127: 0.0336309 | P127: 2.807267e-09 | Q127: 0.00220705 | R127: 0.00183386 | S127: 0.2287821 | T127: 0.627747522580645
A128: PIGZ | B128: ENSG00000119227 | C128: 3 | D128: 196673214 | E128: rs28498807 | F128: 3 | G128: 196679395 | H128: G | I128: A | J128: 0.314115 | K128: -0.000450517 | L128: 0.000386222 | M128: 0.2399999 | N128: 0.801982 | O128: 0.062232 | P128: 5.330031e-38 | Q128: -0.000561755 | R128: 0.000483553 | S128: 0.2453483 | T128: 0.627747522580645
A129: PIWIL2 | B129: ENSG00000197181 | C129: 8 | D129: 22132810 | E129: rs4871990 | F129: 8 | G129: 22132837 | H129: T | I129: C | J129: 0.569583 | K129: 0.000446234 | L129: 0.000350847 | M129: 0.2 | N129: -0.719454 | O129: 0.0924764 | P129: 7.260208e-15 | Q129: -0.00062024 | R129: 0.000494131 | S129: 0.2094014 | T129: 0.627747522580645
A130: PPM1M | B130: ENSG00000164088 | C130: 3 | D130: 52279841 | E130: rs114645176 | F130: 3 | G130: 52279951 | H130: G | I130: T | J130: 0.104374 | K130: 0.000693547 | L130: 0.000518008 | M130: 0.1800002 | N130: 0.516672 | O130: 0.0691299 | P130: 7.783323e-14 | Q130: 0.00134234 | R130: 0.00101855 | S130: 0.1875391 | T130: 0.627747522580645
A131: PSMD13 | B131: ENSG00000185627 | C131: 11 | D131: 236546 | E131: rs10794304 | F131: 11 | G131: 246456 | H131: A | I131: G | J131: 0.729622 | K131: -0.000501276 | L131: 0.000407755 | M131: 0.2200002 | N131: -0.656298 | O131: 0.0667265 | P131: 7.906479e-23 | Q131: 0.000763793 | R131: 0.00062613 | S131: 0.2225164 | T131: 0.627747522580645
A132: RBL2 | B132: ENSG00000103479 | C132: 16 | D132: 53467889 | E132: rs8045674 | F132: 16 | G132: 53509936 | H132: A | I132: G | J132: 0.466203 | K132: -0.00046682 | L132: 0.000350338 | M132: 0.1800002 | N132: -0.339498 | O132: 0.0381019 | P132: 5.090572e-19 | Q132: 0.00137503 | R132: 0.0010434 | S132: 0.1875604 | T132: 0.627747522580645
A133: RMI2 | B133: ENSG00000175643 | C133: 16 | D133: 11343476 | E133: rs12149160 | F133: 16 | G133: 11439303 | H133: T | I133: G | J133: 0.519881 | K133: -0.000407529 | L133: 0.000351098 | M133: 0.25 | N133: -0.591834 | O133: 0.0562903 | P133: 7.450063e-26 | Q133: 0.000688587 | R133: 0.000596841 | S133: 0.2486159 | T133: 0.627747522580645
A134: RNASET2 | B134: ENSG00000026297 | C134: 6 | D134: 167342992 | E134: rs444210 | F134: 6 | G134: 167390242 | H134: G | I134: A | J134: 0.523857 | K134: 0.000419951 | L134: 0.000350823 | M134: 0.2300001 | N134: -0.2646 | O134: 0.0432879 | P134: 9.804686e-10 | Q134: -0.00158712 | R134: 0.00135105 | S134: 0.2401023 | T134: 0.627747522580645
A135: SDHC | B135: ENSG00000143252 | C135: 1 | D135: 161284047 | E135: rs58055613 | F135: 1 | G135: 161331505 | H135: C | I135: T | J135: 0.0497018 | K135: -0.000970317 | L135: 0.00074611 | M135: 0.1900002 | N135: -0.460134 | O135: 0.0737671 | P135: 4.441779e-10 | Q135: 0.00210877 | R135: 0.00165637 | S135: 0.2029737 | T135: 0.627747522580645
A136: SELL | B136: ENSG00000188404 | C136: 1 | D136: 169659808 | E136: rs17523783 | F136: 1 | G136: 169602241 | H136: T | I136: G | J136: 0.253479 | K136: 0.000529519 | L136: 0.000386662 | M136: 0.17 | N136: -0.317147 | O136: 0.0557592 | P136: 1.28686e-08 | Q136: -0.00166963 | R136: 0.00125403 | S136: 0.1830528 | T136: 0.627747522580645
A137: SLPI | B137: ENSG00000124107 | C137: 20 | D137: 43880880 | E137: rs1883829 | F137: 20 | G137: 43891253 | H137: C | I137: G | J137: 0.250497 | K137: 0.000550833 | L137: 0.000399856 | M137: 0.17 | N137: -0.493065 | O137: 0.085845 | P137: 9.26469e-09 | Q137: -0.00111716 | R137: 0.000833959 | S137: 0.1803795 | T137: 0.627747522580645
A138: STAC2 | B138: ENSG00000141750 | C138: 17 | D138: 37366789 | E138: rs16541 | F138: 17 | G138: 37365138 | H138: G | I138: A | J138: 0.214712 | K138: -0.000571014 | L138: 0.000420314 | M138: 0.17 | N138: 0.305663 | O138: 0.0457852 | P138: 2.455092e-11 | Q138: -0.00186812 | R138: 0.00140327 | S138: 0.1831044 | T138: 0.627747522580645
A139: STEAP2 | B139: ENSG00000157214 | C139: 7 | D139: 89796904 | E139: rs110360 | F139: 7 | G139: 89856608 | H139: T | I139: C | J139: 0.511928 | K139: 0.000417792 | L139: 0.000350757 | M139: 0.2300001 | N139: 0.311846 | O139: 0.0350558 | P139: 5.80478e-19 | Q139: 0.00133974 | R139: 0.00113481 | S139: 0.2377699 | T139: 0.627747522580645
A140: TPGS2 | B140: ENSG00000134779 | C140: 18 | D140: 34359987 | E140: rs2654543 | F140: 18 | G140: 34692374 | H140: G | I140: A | J140: 0.351889 | K140: 0.000457676 | L140: 0.000366285 | M140: 0.2099999 | N140: 0.506843 | O140: 0.0711276 | P140: 1.034571e-12 | Q140: 0.000902994 | R140: 0.000733706 | S140: 0.2184237 | T140: 0.627747522580645
A141: TPRG1L | B141: ENSG00000158109 | C141: 1 | D141: 3541566 | E141: rs6697769 | F141: 1 | G141: 3570883 | H141: T | I141: C | J141: 0.489066 | K141: 0.000428482 | L141: 0.000350115 | M141: 0.2200002 | N141: -0.285079 | O141: 0.0348485 | P141: 2.826278e-16 | Q141: -0.00150303 | R141: 0.0012418 | S141: 0.2261398 | T141: 0.627747522580645
A142: TRIM4 | B142: ENSG00000146833 | C142: 7 | D142: 99474581 | E142: rs2527906 | F142: 7 | G142: 99521698 | H142: T | I142: C | J142: 0.532803 | K142: -0.000449806 | L142: 0.000355221 | M142: 0.2099999 | N142: 0.545183 | O142: 0.0609946 | P142: 3.95517e-19 | Q142: -0.000825055 | R142: 0.000658069 | S142: 0.2099322 | T142: 0.627747522580645
A143: UPB1 | B143: ENSG00000100024 | C143: 22 | D143: 24863206 | E143: rs2186376 | F143: 22 | G143: 24848460 | H143: G | I143: A | J143: 0.610338 | K143: -0.000466504 | L143: 0.000358084 | M143: 0.1900002 | N143: -0.591201 | O143: 0.059198 | P143: 1.7403e-23 | Q143: 0.000789078 | R143: 0.000610821 | S143: 0.196415 | T143: 0.627747522580645
A144: URB1 | B144: ENSG00000142207 | C144: 21 | D144: 33683329 | E144: rs73359972 | F144: 21 | G144: 33782263 | H144: T | I144: C | J144: 0.083499 | K144: 0.000747736 | L144: 0.000630452 | M144: 0.2399999 | N144: 0.599535 | O144: 0.0789912 | P144: 3.201706e-14 | Q144: 0.00124719 | R144: 0.00106433 | S144: 0.241273 | T144: 0.627747522580645
A145: ATP6AP1L | B145: ENSG00000205464 | C145: 5 | D145: 81575281 | E145: rs226196 | F145: 5 | G145: 81576965 | H145: A | I145: C | J145: 0.702783 | K145: 0.000419452 | L145: 0.000380497 | M145: 0.2700001 | N145: -0.779673 | O145: 0.0615496 | P145: 8.964165e-37 | Q145: -0.000537985 | R145: 0.000489866 | S145: 0.2721047 | T145: 0.656050782089552
A146: CYB561 | B146: ENSG00000008283 | C146: 17 | D146: 61509665 | E146: rs4968646 | F146: 17 | G146: 61515321 | H146: C | I146: T | J146: 0.480119 | K146: -0.000378615 | L146: 0.00034949 | M146: 0.28 | N146: -0.549477 | O146: 0.0398048 | P146: 2.400999e-43 | Q146: 0.000689046 | R146: 0.000637997 | S146: 0.2801355 | T146: 0.656050782089552
A147: PTPRN2 | B147: ENSG00000155093 | C147: 7 | D147: 157331750 | E147: rs11766174 | F147: 7 | G147: 158319010 | H147: A | I147: G | J147: 0.0894632 | K147: -0.000612079 | L147: 0.00054908 | M147: 0.2599998 | N147: -0.28085 | O147: 0.0496291 | P147: 1.52272e-08 | Q147: 0.00217938 | R147: 0.00199264 | S147: 0.2740788 | T147: 0.656050782089552
A148: SLFN5 | B148: ENSG00000166750 | C148: 17 | D148: 33570055 | E148: rs11867191 | F148: 17 | G148: 33569114 | H148: C | I148: T | J148: 0.505964 | K148: 0.000379584 | L148: 0.000349867 | M148: 0.28 | N148: 0.43532 | O148: 0.0507513 | P148: 9.694321e-18 | Q148: 0.000871965 | R148: 0.000810104 | S148: 0.2817654 | T148: 0.656050782089552
A149: TNFRSF17 | B149: ENSG00000048462 | C149: 16 | D149: 12058964 | E149: rs11570139 | F149: 16 | G149: 12059038 | H149: T | I149: C | J149: 0.27833 | K149: 0.000417175 | L149: 0.000375696 | M149: 0.2700001 | N149: -0.6422 | O149: 0.106943 | P149: 1.91282e-09 | Q149: -0.000649603 | R149: 0.000594932 | S149: 0.2748791 | T149: 0.656050782089552
A150: AIFM2 | B150: ENSG00000042286 | C150: 10 | D150: 71857979 | E150: rs6480442 | F150: 10 | G150: 71900246 | H150: T | I150: C | J150: 0.406561 | K150: 0.000366123 | L150: 0.000363818 | M150: 0.3100002 | N150: -0.410339 | O150: 0.0534777 | P150: 1.678991e-14 | Q150: -0.000892245 | R150: 0.000894221 | S150: 0.3183808 | T150: 0.699877316666667
A151: ELAC2 | B151: ENSG00000006744 | C151: 17 | D151: 12895708 | E151: rs1044564 | F151: 17 | G151: 12895984 | H151: C | I151: G | J151: 0.607356 | K151: -0.00036281 | L151: 0.000361254 | M151: 0.32 | N151: 0.427977 | O151: 0.0502679 | P151: 1.68136e-17 | Q151: -0.000847732 | R151: 0.000849949 | S151: 0.3185743 | T151: 0.699877316666667
A152: IL10RB | B152: ENSG00000243646 | C152: 21 | D152: 34638663 | E152: rs2834167 | F152: 21 | G152: 34640788 | H152: G | I152: A | J152: 0.26839 | K152: 0.00040083 | L152: 0.000403036 | M152: 0.32 | N152: 0.553282 | O152: 0.0626976 | P152: 1.09836e-18 | Q152: 0.000724459 | R152: 0.000733057 | S152: 0.3230203 | T152: 0.699877316666667
A153: NEIL2 | B153: ENSG00000154328 | C153: 8 | D153: 11627148 | E153: rs4639 | F153: 8 | G153: 11644751 | H153: G | I153: A | J153: 0.414513 | K153: -0.000360292 | L153: 0.000353601 | M153: 0.3100002 | N153: 0.315829 | O153: 0.0554205 | P153: 1.206718e-08 | Q153: -0.00114078 | R153: 0.00113735 | S153: 0.315853 | T153: 0.699877316666667
A154: TRMT44 | B154: ENSG00000155275 | C154: 4 | D154: 8437867 | E154: rs2688247 | F154: 4 | G154: 8442002 | H154: C | I154: T | J154: 0.678926 | K154: -0.000375417 | L154: 0.000370319 | M154: 0.3100002 | N154: -0.476678 | O154: 0.054647 | P154: 2.712491e-18 | Q154: 0.000787569 | R154: 0.000782104 | S154: 0.3139402 | T154: 0.699877316666667
A155: RAB36 | B155: ENSG00000100228 | C155: 22 | D155: 23487513 | E155: rs768514 | F155: 22 | G155: 23512260 | H155: G | I155: A | J155: 0.234592 | K155: 0.000138777 | L155: 0.000402218 | M155: 0.7300002 | N155: 0.254554 | O155: 0.0460484 | P155: 3.239698e-08 | Q155: 0.000545177 | R155: 0.00158316 | S155: 0.7305762 | T155: 0.754767464900662
A156: SLC35F2 | B156: ENSG00000110660 | C156: 11 | D156: 107661717 | E156: rs4754264 | F156: 11 | G156: 107722540 | H156: A | I156: C | J156: 0.444334 | K156: 0.000120148 | L156: 0.000355416 | M156: 0.7400005 | N156: 0.826032 | O156: 0.0720354 | P156: 1.931854e-30 | Q156: 0.000145452 | R156: 0.000430456 | S156: 0.7354369 | T156: 0.754790502631579
A157: EPHX2 | B157: ENSG00000120915 | C157: 8 | D157: 27348296 | E157: rs4149259 | F157: 8 | G157: 27402494 | H157: T | I157: C | J157: 0.145129 | K157: 9.42939e-05 | L157: 0.000473716 | M157: 0.84 | N157: 0.341973 | O157: 0.0517359 | P157: 3.843949e-11 | Q157: 0.000275735 | R157: 0.00138587 | S157: 0.842293 | T157: 0.85323187012987
A158: RPL28 | B158: ENSG00000108107 | C158: 19 | D158: 55896713 | E158: rs17700376 | F158: 19 | G158: 55897327 | H158: G | I158: A | J158: 0.37674 | K158: -7.47E-05 | L158: 0.00036374 | M158: 0.84 | N158: -0.223899 | O158: 0.0301219 | P158: 1.060888e-13 | Q158: 0.000333717 | R158: 0.00162519 | S158: 0.8373065 | T158: 0.85323187012987

Sheet S7 Cerebellum
A1: S7 eQTL-GWAS (Cerebellum) In Discovery Cohort
A2: Gene | B2: probeID | C2: ProbeChr | D2: Probe_bp | E2: topSNP | F2: topSNP_chr | G2: topSNP_bp | H2: A1 | I2: A2 | J2: Freq | K2: b_GWAS | L2: se_GWAS | M2: p_GWAS | N2: b_eQTL | O2: se_eQTL | P2: p_eQTL | Q2: b_SMR | R2: se_SMR | S2: p_SMR | T2: pval_adj_SMR
A3: OSBPL10 | B3: ENSG00000144645 | C3: 3 | D3: 31699382 | E3: rs9847964 | F3: 3 | G3: 32001194 | H3: T | I3: C | J3: 0.307157 | K3: 0.00178948 | L3: 0.000378619 | M3: 2.300011e-06 | N3: 0.733663 | O3: 0.0904057 | P3: 4.84857e-16 | Q3: 0.0024391 | R3: 0.00059721 | S3: 4.4236e-05 | T3: 0.014420936
A4: FLOT1 | B4: ENSG00000137312 | C4: 6 | D4: 30695486 | E4: rs12527415 | F4: 6 | G4: 30754540 | H4: T | I4: C | J4: 0.337972 | K4: -0.00158305 | L4: 0.000391447 | M4: 5.30005e-05 | N4: -0.510443 | O4: 0.061355 | P4: 8.83329e-17 | Q4: 0.00310133 | R4: 0.00085268 | S4: 0.000275672 | T4: 0.044934536
A5: ACP2 | B5: ENSG00000134575 | C5: 11 | D5: 47260853 | E5: rs830085 | F5: 11 | G5: 47251199 | H5: A | I5: G | J5: 0.699801 | K5: -0.00123679 | L5: 0.000381012 | M5: 0.001199997 | N5: 0.388353 | O5: 0.0450685 | P5: 6.876512e-18 | Q5: -0.00318471 | R5: 0.0010484 | S5: 0.002384089 | T5: 0.097151627
A6: ADAMTS13 | B6: ENSG00000160323 | C6: 9 | D6: 136279478 | E6: rs3118665 | F6: 9 | G6: 136283389 | H6: C | I6: T | J6: 0.873757 | K6: 0.00177792 | L6: 0.000527185 | M6: 0.000739997 | N6: 0.781564 | O6: 0.103202 | P6: 3.643412e-14 | Q6: 0.00227482 | R6: 0.000738386 | S6: 0.002064412 | T6: 0.097151627
A7: ARL4D | B7: ENSG00000175906 | C7: 17 | D7: 41476327 | E7: rs12950779 | F7: 17 | G7: 41306523 | H7: T | I7: C | J7: 0.357853 | K7: 0.00123158 | L7: 0.000372673 | M7: 0.000949992 | N7: -0.478723 | O7: 0.0603684 | P7: 2.191024e-15 | Q7: -0.00257264 | R7: 0.000843366 | S7: 0.002285088 | T7: 0.097151627
A8: B3GNT8 | B8: ENSG00000177191 | C8: 19 | D8: 41931264 | E8: rs4802116 | F8: 19 | G8: 41905540 | H8: T | I8: C | J8: 0.585487 | K8: 0.00115561 | L8: 0.000357505 | M8: 0.001199997 | N8: -0.763027 | O8: 0.0806988 | P8: 3.222749e-21 | Q8: -0.00151451 | R8: 0.000495158 | S8: 0.002223495 | T8: 0.097151627
A9: BCL2L11 | B9: ENSG00000153094 | C9: 2 | D9: 111876955 | E9: rs2241843 | F9: 2 | G9: 111879381 | H9: A | I9: C | J9: 0.538767 | K9: 0.00117917 | L9: 0.000352679 | M9: 0.000830004 | N9: -0.61934 | O9: 0.0709741 | P9: 2.631941e-18 | Q9: -0.00190391 | R9: 0.000609811 | S9: 0.001795416 | T9: 0.097151627
A10: HSD17B1 | B10: ENSG00000108786 | C10: 17 | D10: 40701232 | E10: rs610177 | F10: 17 | G10: 40705724 | H10: G | I10: T | J10: 0.525845 | K10: -0.00117797 | L10: 0.000352317 | M10: 0.000830004 | N10: -0.562609 | O10: 0.0578652 | P10: 2.411867e-22 | Q10: 0.00209376 | R10: 0.000662213 | S10: 0.001568144 | T10: 0.097151627
A11: MAT2A | B11: ENSG00000168906 | C11: 2 | D11: 85766288 | E11: rs56228924 | F11: 2 | G11: 85658862 | H11: A | I11: G | J11: 0.423459 | K11: 0.00100595 | L11: 0.000351736 | M11: 0.004200007 | N11: -0.539583 | O11: 0.0578507 | P11: 1.087336e-20 | Q11: -0.00186431 | R11: 0.000681822 | S11: 0.006251207 | T11: 0.127368343
A12: SMPD3 | B12: ENSG00000103056 | C12: 16 | D12: 68392231 | E12: rs2017081 | F12: 16 | G12: 68367894 | H12: C | I12: G | J12: 0.559642 | K12: -0.0010581 | L12: 0.000357875 | M12: 0.003099988 | N12: 0.399214 | O12: 0.0551893 | P12: 4.705577e-13 | Q12: -0.00265046 | R12: 0.000968441 | S12: 0.006203461 | T12: 0.127368343
A13: BEND7 | B13: ENSG00000165626 | C13: 10 | D13: 13480484 | E13: rs7095654 | F13: 10 | G13: 13598142 | H13: C | I13: G | J13: 0.266402 | K13: -0.000570514 | L13: 0.000403992 | M13: 0.16 | N13: 0.857219 | O13: 0.0808238 | P13: 2.79385e-26 | Q13: -0.000665541 | R13: 0.000475441 | S13: 0.1615621 | T13: 0.264356986
A14: GALNT10 | B14: ENSG00000164574 | C14: 5 | D14: 153570290 | E14: rs4958723 | F14: 5 | G14: 153667787 | H14: G | I14: A | J14: 0.429423 | K14: -0.000505325 | L14: 0.000353832 | M14: 0.1499999 | N14: -0.302477 | O14: 0.0443971 | P14: 9.559043e-12 | Q14: 0.00167062 | R14: 0.00119521 | S14: 0.1621822 | T14: 0.264356986
A15: AGPS | B15: ENSG00000018510 | C15: 2 | D15: 178257372 | E15: rs4893951 | F15: 2 | G15: 178307330 | H15: T | I15: C | J15: 0.769384 | K15: 0.00049985 | L15: 0.000405462 | M15: 0.2200002 | N15: -0.331271 | O15: 0.0589283 | P15: 1.89202e-08 | Q15: -0.00150889 | R15: 0.00125304 | S15: 0.2285214 | T15: 0.297991906
A16: TXN | B16: ENSG00000136810 | C16: 9 | D16: 113006091 | E16: rs72757062 | F16: 9 | G16: 113023862 | H16: G | I16: A | J16: 0.12326 | K16: -0.000605915 | L16: 0.000494373 | M16: 0.2200002 | N16: -0.524111 | O16: 0.0798898 | P16: 5.36544e-11 | Q16: 0.00115608 | R16: 0.00095958 | S16: 0.2282887 | T16: 0.297991906
A17: AGT | B17: ENSG00000135744 | C17: 1 | D17: 230838269 | E17: rs2493134 | F17: 1 | G17: 230849359 | H17: C | I17: T | J17: 0.410537 | K17: -4.62E-05 | L17: 0.000356677 | M17: 0.9 | N17: -0.791565 | O17: 0.063696 | P17: 1.859466e-35 | Q17: 5.84253e-05 | R17: 0.000450622 | S17: 0.8968395 | T17: 0.9097622
A18: AK3 | B18: ENSG00000147853 | C18: 9 | D18: 4711155 | E18: rs3818669 | F18: 9 | G18: 4718165 | H18: G | I18: C | J18: 0.232604 | K18: -5.45E-05 | L18: 0.000408651 | M18: 0.89 | N18: -0.374648 | O18: 0.0562437 | P18: 2.716837e-11 | Q18: 0.000145521 | R18: 0.00109098 | S18: 0.8938882 | T18: 0.9097622
A19: AMACR | B19: ENSG00000242110 | C19: 5 | D19: 33986283 | E19: rs6875926 | F19: 5 | G19: 34012492 | H19: C | I19: T | J19: 0.50497 | K19: -4.44E-05 | L19: 0.000351865 | M19: 0.9 | N19: 0.823263 | O19: 0.0564564 | P19: 3.640991e-48 | Q19: -5.40E-05 | R19: 0.000427419 | S19: 0.899548 | T19: 0.9097622
A20: CYB5R3 | B20: ENSG00000100243 | C20: 22 | D20: 43013846 | E20: rs137124 | F20: 22 | G20: 43015716 | H20: C | I20: T | J20: 0.16998 | K20: -5.32E-05 | L20: 0.000458542 | M20: 0.91 | N20: -0.339195 | O20: 0.0533974 | P20: 2.121449e-10 | Q20: 0.000156824 | R20: 0.00135208 | S20: 0.9076628 | T20: 0.9097622
A21: GCA | B21: ENSG00000115271 | C21: 2 | D21: 163175350 | E21: rs2216897 | F21: 2 | G21: 163836015 | H21: C | I21: T | J21: 0.259443 | K21: 4.75799e-05 | L21: 0.000388315 | M21: 0.9 | N21: -0.800368 | O21: 0.0766193 | P21: 1.527667e-25 | Q21: -5.94E-05 | R21: 0.000485204 | S21: 0.9024867 | T21: 0.9097622
A22: GSTO2 | B22: ENSG00000065621 | C22: 10 | D22: 106028631 | E22: rs276204 | F22: 10 | G22: 106035313 | H22: G | I22: C | J22: 0.368787 | K22: -4.95E-05 | L22: 0.000369144 | M22: 0.89 | N22: -1.0654 | O22: 0.077726 | P22: 9.203421e-43 | Q22: 4.64782e-05 | R22: 0.000346501 | S22: 0.893295 | T22: 0.9097622
A23: HDAC10 | B23: ENSG00000100429 | C23: 22 | D23: 50683612 | E23: rs13058062 | F23: 22 | G23: 50684296 | H23: C | I23: T | J23: 0.735586 | K23: -6.78E-05 | L23: 0.000387317 | M23: 0.8600001 | N23: -0.532312 | O23: 0.0602017 | P23: 9.390507e-19 | Q23: 0.000127367 | R23: 0.000727755 | S23: 0.8610692 | T23: 0.9097622
A24: HLA-A | B24: ENSG00000206503 | C24: 6 | D24: 29909037 | E24: rs2517674 | F24: 6 | G24: 29935806 | H24: T | I24: G | J24: 0.2167 | K24: -5.77E-05 | L24: 0.000423459 | M24: 0.89 | N24: -0.841001 | O24: 0.0850952 | P24: 4.930154e-23 | Q24: 6.86187e-05 | R24: 0.000503566 | S24: 0.8916113 | T24: 0.9097622
A25: LAMC2 | B25: ENSG00000058085 | C25: 1 | D25: 183155373 | E25: rs2276543 | F25: 1 | G25: 183155305 | H25: A | I25: G | J25: 0.293241 | K25: -5.03E-05 | L25: 0.000390896 | M25: 0.9 | N25: 0.63544 | O25: 0.0740798 | P25: 9.672551e-18 | Q25: -7.91E-05 | R25: 0.000615227 | S25: 0.8977211 | T25: 0.9097622
A26: LIG1 | B26: ENSG00000105486 | C26: 19 | D26: 48618702 | E26: rs3731034 | F26: 19 | G26: 48623440 | H26: A | I26: G | J26: 0.0347913 | K26: -0.000137635 | L26: 0.00108247 | M26: 0.9 | N26: -0.908447 | O26: 0.122816 | P26: 1.394648e-13 | Q26: 0.000151506 | R26: 0.00119174 | S26: 0.8988373 | T26: 0.9097622
A27: PPM1F | B27: ENSG00000100034 | C27: 22 | D27: 22273793 | E27: rs75599828 | F27: 22 | G27: 22333062 | H27: C | I27: G | J27: 0.178926 | K27: -5.42E-05 | L27: 0.000460246 | M27: 0.91 | N27: 1.18892 | O27: 0.0841988 | P27: 2.843734e-45 | Q27: -4.56E-05 | R27: 0.000387126 | S27: 0.9062256 | T27: 0.9097622
A28: PSRC1 | B28: ENSG00000134222 | C28: 1 | D28: 109822178 | E28: rs3738777 | F28: 1 | G28: 109836835 | H28: G | I28: A | J28: 0.321074 | K28: 4.52037e-05 | L28: 0.000384032 | M28: 0.91 | N28: -0.299357 | O28: 0.0526269 | P28: 1.283191e-08 | Q28: -0.000151003 | R28: 0.00128313 | S28: 0.9063189 | T28: 0.9097622
A29: SCPEP1 | B29: ENSG00000121064 | C29: 17 | D29: 55055466 | E29: rs8071182 | F29: 17 | G29: 55336155 | H29: A | I29: G | J29: 0.157058 | K29: 5.78269e-05 | L29: 0.000464475 | M29: 0.9 | N29: 0.452803 | O29: 0.0763508 | P29: 3.019047e-09 | Q29: 0.000127709 | R29: 0.001026 | S29: 0.9009415 | T29: 0.9097622
A30: SLC27A5 | B30: ENSG00000083807 | C30: 19 | D30: 58990879 | E30: rs9304814 | F30: 19 | G30: 58951811 | H30: A | I30: C | J30: 0.484095 | K30: 4.49064e-05 | L30: 0.000351605 | M30: 0.9 | N30: 0.328968 | O30: 0.0597917 | P30: 3.757121e-08 | Q30: 0.000136507 | R30: 0.0010691 | S30: 0.8983991 | T30: 0.9097622
A31: SPTSSB | B31: ENSG00000196542 | C31: 3 | D31: 161062580 | E31: rs899275 | F31: 3 | G31: 161042104 | H31: C | I31: T | J31: 0.457256 | K31: 6.16607e-05 | L31: 0.000352154 | M31: 0.8600001 | N31: 0.385644 | O31: 0.0608979 | P31: 2.410161e-10 | Q31: 0.00015989 | R31: 0.000913507 | S31: 0.8610569 | T31: 0.9097622
A32: TXNL1 | B32: ENSG00000091164 | C32: 18 | D32: 54264439 | E32: rs658561 | F32: 18 | G32: 54290755 | H32: C | I32: A | J32: 0.196819 | K32: -5.60E-05 | L32: 0.00044775 | M32: 0.9 | N32: 0.387633 | O32: 0.0611636 | P32: 2.333072e-10 | Q32: -0.000144452 | R32: 0.00115531 | S32: 0.9004975 | T32: 0.9097622
A33: VCPKMT | B33: ENSG00000100483 | C33: 14 | D33: 50575350 | E33: rs73291673 | F33: 14 | G33: 50696798 | H33: G | I33: A | J33: 0.148111 | K33: -6.23E-05 | L33: 0.00047114 | M33: 0.89 | N33: -0.519433 | O33: 0.0740443 | P33: 2.296737e-12 | Q33: 0.000119877 | R33: 0.000907188 | S33: 0.8948727 | T33: 0.9097622
A34: ZNF286B | B34: ENSG00000249459 | C34: 17 | D34: 18561742 | E34: rs4924769 | F34: 17 | G34: 18652608 | H34: T | I34: C | J34: 0.567594 | K34: -4.01E-05 | L34: 0.000354141 | M34: 0.91 | N34: -0.423503 | O34: 0.072689 | P34: 5.669376e-09 | Q34: 9.47937e-05 | R34: 0.000836377 | S34: 0.9097622 | T34: 0.9097622
A35: ZNF30 | B35: ENSG00000168661 | C35: 19 | D35: 35417807 | E35: rs56093013 | F35: 19 | G35: 35418182 | H35: A | I35: G | J35: 0.338966 | K35: -4.89E-05 | L35: 0.000384064 | M35: 0.9 | N35: -0.856735 | O35: 0.0713055 | P35: 2.963985e-33 | Q35: 5.70258e-05 | R35: 0.000448313 | S35: 0.8987814 | T35: 0.9097622
A36: ZNF514 | B36: ENSG00000144026 | C36: 2 | D36: 95813075 | E36: rs2278067 | F36: 2 | G36: 95955680 | H36: T | I36: G | J36: 0.54175 | K36: -4.41E-05 | L36: 0.000349862 | M36: 0.9 | N36: 0.651248 | O36: 0.0985636 | P36: 3.911572e-11 | Q36: -6.77E-05 | R36: 0.000537316 | S36: 0.8996795 | T36: 0.9097622
A37: ZNF519 | B37: ENSG00000175322 | C37: 18 | D37: 14057456 | E37: rs9958799 | F37: 18 | G37: 14132402 | H37: C | I37: G | J37: 0.229622 | K37: 5.53762e-05 | L37: 0.000405573 | M37: 0.89 | N37: 0.69778 | O37: 0.0541492 | P37: 5.379625e-38 | Q37: 7.93605e-05 | R37: 0.000581266 | S37: 0.8914019 | T37: 0.9097622
A38: CCDC71 | B38: ENSG00000177352 | C38: 3 | D38: 49199968 | E38: rs4499638 | F38: 3 | G38: 49202782 | H38: G | I38: C | J38: 0.645129 | K38: -0.00111042 | L38: 0.00036143 | M38: 0.002100003 | N38: -0.473226 | O38: 0.0521551 | P38: 1.153296e-19 | Q38: 0.00234649 | R38: 0.000806353 | S38: 0.00361426 | T38: 0.107595173818182
A39: FKBP11 | B39: ENSG00000134285 | C39: 12 | D39: 49315301 | E39: rs2446999 | F39: 12 | G39: 49274072 | H39: A | I39: G | J39: 0.507952 | K39: 0.00106911 | L39: 0.000350348 | M39: 0.002300011 | N39: -0.623368 | O39: 0.0625913 | P39: 2.295902e-23 | Q39: -0.00171505 | R39: 0.000587815 | S39: 0.003526479 | T39: 0.107595173818182
A40: PEPD | B40: ENSG00000124299 | C40: 19 | D40: 33877856 | E40: rs56187503 | F40: 19 | G40: 33853260 | H40: T | I40: C | J40: 0.44334 | K40: 0.00109962 | L40: 0.000353227 | M40: 0.001899984 | N40: 0.388922 | O40: 0.0476609 | P40: 3.34488e-16 | Q40: 0.00282735 | R40: 0.000972067 | S40: 0.003630512 | T40: 0.107595173818182
A41: MXD3 | B41: ENSG00000213347 | C41: 5 | D41: 176728462 | E41: rs11952102 | F41: 5 | G41: 176740704 | H41: A | I41: G | J41: 0.763419 | K41: 0.00119119 | L41: 0.000395448 | M41: 0.00259998 | N41: -0.644961 | O41: 0.0674936 | P41: 1.22539e-21 | Q41: -0.00184692 | R41: 0.000642876 | S41: 0.004067245 | T41: 0.110493489166667
A42: KANSL2 | B42: ENSG00000139620 | C42: 12 | D42: 49047184 | E42: rs2291728 | F42: 12 | G42: 49110582 | H42: G | I42: C | J42: 0.266402 | K42: 0.00121429 | L42: 0.000405773 | M42: 0.002800013 | N42: 0.639177 | O42: 0.0766823 | P42: 7.724503e-17 | Q42: 0.00189977 | R42: 0.00067451 | S42: 0.004854685 | T42: 0.114274037428571
A43: VAT1 | B43: ENSG00000108828 | C43: 17 | D43: 41166622 | E43: rs11654731 | F43: 17 | G43: 41326940 | H43: A | I43: G | J43: 0.357853 | K43: 0.00114238 | L43: 0.00037161 | M43: 0.002100003 | N43: -0.333382 | O43: 0.0477961 | P43: 3.05678e-12 | Q43: -0.00342664 | R43: 0.00121812 | S43: 0.004907474 | T43: 0.114274037428571
A44: CENPE | B44: ENSG00000138778 | C44: 4 | D44: 104026963 | E44: rs2711888 | F44: 4 | G44: 104046990 | H44: A | I44: C | J44: 0.225646 | K44: -0.00134882 | L44: 0.000435436 | M44: 0.002 | N44: 0.642864 | O44: 0.117399 | P44: 4.353142e-08 | Q44: -0.00209814 | R44: 0.000778202 | S44: 0.007014779 | T44: 0.134518703176471
A45: SF3B2 | B45: ENSG00000087365 | C45: 11 | D45: 65818200 | E45: rs491618 | F45: 11 | G45: 65825951 | H45: A | I45: T | J45: 0.27336 | K45: 0.00105065 | L45: 0.000387278 | M45: 0.006699926 | N45: -0.852667 | O45: 0.0604936 | P45: 4.067742e-45 | Q45: -0.00123219 | R45: 0.000462532 | S45: 0.007721448 | T45: 0.139844002666667
A46: B4GALT5 | B46: ENSG00000158470 | C46: 20 | D46: 48249482 | E46: rs6095617 | F46: 20 | G46: 48334664 | H46: T | I46: C | J46: 0.706759 | K46: 0.00108151 | L46: 0.000388752 | M46: 0.005399953 | N46: -0.32351 | O46: 0.0515264 | P46: 3.417988e-10 | Q46: -0.00334305 | R46: 0.00131435 | S46: 0.01097489 | T46: 0.143653095333333
A47: BACE2 | B47: ENSG00000182240 | C47: 21 | D47: 42539728 | E47: rs3827211 | F47: 21 | G47: 42619254 | H47: G | I47: A | J47: 0.460239 | K47: -0.00100465 | L47: 0.000354283 | M47: 0.004600023 | N47: -0.271197 | O47: 0.0477909 | P47: 1.389621e-08 | Q47: 0.0037045 | R47: 0.0014604 | S47: 0.01119225 | T47: 0.143653095333333
A48: CEP85L | B48: ENSG00000111860 | C48: 6 | D48: 118781935 | E48: rs11153773 | F48: 6 | G48: 119035086 | H48: T | I48: C | J48: 0.322068 | K48: -0.0010016 | L48: 0.000372628 | M48: 0.007199959 | N48: -0.423389 | O48: 0.0589514 | P48: 6.869911e-13 | Q48: 0.00236567 | R48: 0.000939727 | S48: 0.01182231 | T48: 0.143653095333333
A49: FBXO42 | B49: ENSG00000037637 | C49: 1 | D49: 16573334 | E49: rs4661727 | F49: 1 | G49: 16568613 | H49: C | I49: T | J49: 0.337972 | K49: -0.000965433 | L49: 0.000360172 | M49: 0.007399971 | N49: -0.410616 | O49: 0.0574779 | P49: 9.072131e-13 | Q49: 0.00235118 | R49: 0.000936862 | S49: 0.01208563 | T49: 0.143653095333333
A50: LAPTM4B | B50: ENSG00000104341 | C50: 8 | D50: 98787285 | E50: rs2438209 | F50: 8 | G50: 98796472 | H50: C | I50: T | J50: 0.152087 | K50: 0.00129239 | L50: 0.000479459 | M50: 0.007000032 | N50: 0.387406 | O50: 0.0594507 | P50: 7.200175e-11 | Q50: 0.00333601 | R50: 0.00133932 | S50: 0.01274452 | T50: 0.143653095333333
A51: LATS1 | B51: ENSG00000131023 | C51: 6 | D51: 149979289 | E51: rs9968911 | F51: 6 | G51: 149978555 | H51: T | I51: A | J51: 0.357853 | K51: -0.00102774 | L51: 0.000367195 | M51: 0.005099998 | N51: 0.339956 | O51: 0.0463462 | P51: 2.214901e-13 | Q51: -0.00302316 | R51: 0.00115609 | S51: 0.00892296 | T51: 0.143653095333333
A52: ONECUT1 | B52: ENSG00000169856 | C52: 15 | D52: 53049637 | E52: rs2440374 | F52: 15 | G52: 53097088 | H52: G | I52: C | J52: 0.201789 | K52: -0.00109232 | L52: 0.000404893 | M52: 0.007000032 | N52: 0.715632 | O52: 0.108442 | P52: 4.13409e-11 | Q52: -0.00152637 | R52: 0.000611236 | S52: 0.01251827 | T52: 0.143653095333333
A53: PAQR8 | B53: ENSG00000170915 | C53: 6 | D53: 52226219 | E53: rs78714107 | F53: 6 | G53: 52238085 | H53: C | I53: G | J53: 0.191849 | K53: -0.00118593 | L53: 0.000443332 | M53: 0.007499978 | N53: 0.378186 | O53: 0.0557625 | P53: 1.184522e-11 | Q53: -0.00313584 | R53: 0.00126015 | S53: 0.01282963 | T53: 0.143653095333333
A54: PPM1M | B54: ENSG00000164088 | C54: 3 | D54: 52279841 | E54: rs7618915 | F54: 3 | G54: 52279594 | H54: A | I54: G | J54: 0.353877 | K54: -0.0010267 | L54: 0.000376368 | M54: 0.0064 | N54: -0.60319 | O54: 0.0659033 | P54: 5.55518e-20 | Q54: 0.00170212 | R54: 0.000651087 | S54: 0.008941824 | T54: 0.143653095333333
A55: SLC39A13 | B55: ENSG00000165915 | C55: 11 | D55: 47428683 | E55: rs7126378 | F55: 11 | G55: 47585348 | H55: T | I55: G | J55: 0.409543 | K55: 0.000996504 | L55: 0.000354441 | M55: 0.004900044 | N55: -0.223361 | O55: 0.0350574 | P55: 1.87439e-10 | Q55: -0.00446141 | R55: 0.00173448 | S55: 0.01010598 | T55: 0.143653095333333
A56: STMN3 | B56: ENSG00000197457 | C56: 20 | D56: 62271061 | E56: rs2777941 | F56: 20 | G56: 62319604 | H56: C | I56: A | J56: 0.797217 | K56: 0.00109567 | L56: 0.000410869 | M56: 0.007699987 | N56: -0.355322 | O56: 0.0530135 | P56: 2.049108e-11 | Q56: -0.0030836 | R56: 0.00124449 | S56: 0.01321961 | T56: 0.143653095333333
A57: YPEL3 | B57: ENSG00000090238 | C57: 16 | D57: 30103635 | E57: rs12444973 | F57: 16 | G57: 30107285 | H57: T | I57: A | J57: 0.480119 | K57: -0.000909489 | L57: 0.000350297 | M57: 0.009400046 | N57: 0.461473 | O57: 0.0401706 | P57: 1.518651e-30 | Q57: -0.00197084 | R57: 0.00077823 | S57: 0.0113264 | T57: 0.143653095333333
A58: DARS2 | B58: ENSG00000117593 | C58: 1 | D58: 173793641 | E58: rs28804123 | F58: 1 | G58: 173804557 | H58: C | I58: A | J58: 0.277336 | K58: -0.0010247 | L58: 0.000388215 | M58: 0.008300036 | N58: -0.521044 | O58: 0.0836291 | P58: 4.652108e-10 | Q58: 0.00196663 | R58: 0.000809176 | S58: 0.01508183 | T58: 0.158602470322581
A59: ARHGEF16 | B59: ENSG00000130762 | C59: 1 | D59: 3370990 | E59: rs6424078 | F59: 1 | G59: 3383898 | H59: G | I59: A | J59: 0.912525 | K59: -0.0013022 | L59: 0.00059394 | M59: 0.02800013 | N59: -0.762985 | O59: 0.119232 | P59: 1.56249e-10 | Q59: 0.00170672 | R59: 0.000822865 | S59: 0.03806857 | T59: 0.257327110357143
A60: ATP2A2 | B60: ENSG00000174437 | C60: 12 | D60: 110718561 | E60: rs11612572 | F60: 12 | G60: 110792131 | H60: C | I60: T | J60: 0.0675944 | K60: 0.00152184 | L60: 0.000677239 | M60: 0.025 | N60: 0.441595 | O60: 0.0802789 | P60: 3.781607e-08 | Q60: 0.00344623 | R60: 0.00165665 | S60: 0.03750345 | T60: 0.257327110357143
A61: CAMTA1 | B61: ENSG00000171735 | C61: 1 | D61: 6845384 | E61: rs7534398 | F61: 1 | G61: 7767464 | H61: A | I61: T | J61: 0.181909 | K61: 0.000986108 | L61: 0.000438035 | M61: 0.02399993 | N61: 0.384121 | O61: 0.0689404 | P61: 2.521496e-08 | Q61: 0.00256718 | R61: 0.00122992 | S61: 0.03686322 | T61: 0.257327110357143
A62: CMTM7 | B62: ENSG00000153551 | C62: 3 | D62: 32433163 | E62: rs3913495 | F62: 3 | G62: 32443159 | H62: C | I62: G | J62: 0.372763 | K62: -0.000772679 | L62: 0.000363614 | M62: 0.03400008 | N62: 0.849269 | O62: 0.0674208 | P62: 2.206218e-36 | Q62: -0.000909817 | R62: 0.000434199 | S62: 0.03613624 | T62: 0.257327110357143
A63: CNST | B63: ENSG00000162852 | C63: 1 | D63: 246729746 | E63: rs3007305 | F63: 1 | G63: 246862572 | H63: G | I63: C | J63: 0.319085 | K63: 0.000838541 | L63: 0.000367744 | M63: 0.02300011 | N63: 0.30792 | O63: 0.0467801 | P63: 4.632841e-11 | Q63: 0.00272324 | R63: 0.00126392 | S63: 0.03119245 | T63: 0.257327110357143
A64: COMMD2 | B64: ENSG00000114744 | C64: 3 | D64: 149456257 | E64: rs4681189 | F64: 3 | G64: 149481974 | H64: A | I64: G | J64: 0.418489 | K64: 0.000803363 | L64: 0.000355268 | M64: 0.02399993 | N64: 0.316825 | O64: 0.0405645 | P64: 5.701062e-15 | Q64: 0.00253567 | R64: 0.00116739 | S64: 0.02984939 | T64: 0.257327110357143
A65: CYP2D6 | B65: ENSG00000100197 | C65: 22 | D65: 42522501 | E65: rs2743456 | F65: 22 | G65: 42536313 | H65: A | I65: G | J65: 0.200795 | K65: -0.000958373 | L65: 0.000424665 | M65: 0.02399993 | N65: 1.06688 | O65: 0.0889411 | P65: 3.758323e-33 | Q65: -0.000898295 | R65: 0.000405027 | S65: 0.0265641 | T65: 0.257327110357143
A66: DHX16 | B66: ENSG00000204560 | C66: 6 | D66: 30620896 | E66: rs3094099 | F66: 6 | G66: 30626698 | H66: C | I66: T | J66: 0.0586481 | K66: -0.00172502 | L66: 0.000784182 | M66: 0.02800013 | N66: -0.47072 | O66: 0.0768627 | P66: 9.115871e-10 | Q66: 0.00366464 | R66: 0.00177013 | S66: 0.03842739 | T66: 0.257327110357143
A67: IQCE | B67: ENSG00000106012 | C67: 7 | D67: 2598632 | E67: rs11771877 | F67: 7 | G67: 2652877 | H67: T | I67: C | J67: 0.144135 | K67: -0.00105183 | L67: 0.000480848 | M67: 0.02900013 | N67: 0.485999 | O67: 0.086718 | P67: 2.09024e-08 | Q67: -0.00216426 | R67: 0.0010621 | S67: 0.04157686 | T67: 0.257327110357143
A68: MT1E | B68: ENSG00000169715 | C68: 16 | D68: 56659387 | E68: rs1610215 | F68: 16 | G68: 56659525 | H68: G | I68: C | J68: 0.548708 | K68: -0.000735444 | L68: 0.000353876 | M68: 0.03799969 | N68: 0.383608 | O68: 0.0476628 | P68: 8.389969e-16 | Q68: -0.00191718 | R68: 0.000952752 | S68: 0.04419361 | T68: 0.257327110357143
A69: NMRAL1 | B69: ENSG00000153406 | C69: 16 | D69: 4511681 | E69: rs4786500 | F69: 16 | G69: 4525265 | H69: T | I69: C | J69: 0.700795 | K69: -0.000849316 | L69: 0.000390432 | M69: 0.02999991 | N69: -1.10688 | O69: 0.0702163 | P69: 5.514918e-56 | Q69: 0.000767306 | R69: 0.000356075 | S69: 0.03116941 | T69: 0.257327110357143
A70: PCM1 | B70: ENSG00000078674 | C70: 8 | D70: 17780349 | E70: rs478420 | F70: 8 | G70: 17792853 | H70: A | I70: G | J70: 0.617296 | K70: 0.000809069 | L70: 0.000363148 | M70: 0.0259998 | N70: -0.964673 | O70: 0.0641913 | P70: 4.806085e-51 | Q70: -0.000838698 | R70: 0.000380561 | S70: 0.02753525 | T70: 0.257327110357143
A71: PFKM | B71: ENSG00000152556 | C71: 12 | D71: 48498922 | E71: rs79359351 | F71: 12 | G71: 48570802 | H71: A | I71: G | J71: 0.0914513 | K71: -0.00121452 | L71: 0.000581441 | M71: 0.03699985 | N71: -0.736101 | O71: 0.0896087 | P71: 2.128459e-16 | Q71: 0.00164994 | R71: 0.00081503 | S71: 0.04293017 | T71: 0.257327110357143
A72: PIF1 | B72: ENSG00000140451 | C72: 15 | D72: 65107831 | E72: rs113818297 | F72: 15 | G72: 65127504 | H72: G | I72: A | J72: 0.414513 | K72: -0.000760434 | L72: 0.000363907 | M72: 0.03699985 | N72: 0.789481 | O72: 0.0928208 | P72: 1.809253e-17 | Q72: -0.000963207 | R72: 0.000474652 | S72: 0.04242861 | T72: 0.257327110357143
A73: POLE | B73: ENSG00000177084 | C73: 12 | D73: 133200348 | E73: rs5744839 | F73: 12 | G73: 133239844 | H73: A | I73: G | J73: 0.565606 | K73: 0.000730932 | L73: 0.000355395 | M73: 0.04 | N73: -1.18535 | O73: 0.0573206 | P73: 5.321447e-95 | Q73: -0.000616638 | R73: 0.000301302 | S73: 0.04069953 | T73: 0.257327110357143
A74: PPARG | B74: ENSG00000132170 | C74: 3 | D74: 12328867 | E74: rs73025230 | F74: 3 | G74: 12379911 | H74: C | I74: A | J74: 0.0964215 | K74: -0.00135316 | L74: 0.000608108 | M74: 0.0259998 | N74: 1.43505 | O74: 0.122801 | P74: 1.502753e-31 | Q74: -0.000942936 | R74: 0.000431368 | S74: 0.02882138 | T74: 0.257327110357143
A75: QSOX1 | B75: ENSG00000116260 | C75: 1 | D75: 180123969 | E75: rs3767199 | F75: 1 | G75: 180124667 | H75: T | I75: G | J75: 0.345924 | K75: 0.000796284 | L75: 0.000367725 | M75: 0.02999991 | N75: 0.520063 | O75: 0.052215 | P75: 2.279714e-23 | Q75: 0.00153113 | R75: 0.000723596 | S75: 0.03434471 | T75: 0.257327110357143
A76: RBM23 | B76: ENSG00000100461 | C76: 14 | D76: 23369854 | E76: rs61977741 | F76: 14 | G76: 23400979 | H76: C | I76: G | J76: 0.579523 | K76: 0.000778788 | L76: 0.000353911 | M76: 0.02800013 | N76: 0.643282 | O76: 0.0563972 | P76: 3.890396e-30 | Q76: 0.00121065 | R76: 0.000560309 | S76: 0.03072024 | T76: 0.257327110357143
A77: RNF5 | B77: ENSG00000204308 | C77: 6 | D77: 32146131 | E77: rs3130347 | F77: 6 | G77: 32134656 | H77: C | I77: T | J77: 0.200795 | K77: -0.000865487 | L77: 0.000412275 | M77: 0.03599979 | N77: -0.705474 | O77: 0.0926322 | P77: 2.619302e-14 | Q77: 0.00122682 | R77: 0.000606189 | S77: 0.04298904 | T77: 0.257327110357143
A78: RWDD2B | B78: ENSG00000156253 | C78: 21 | D78: 30376705 | E78: rs9982332 | F78: 21 | G78: 30392826 | H78: G | I78: C | J78: 0.712724 | K78: 0.000852744 | L78: 0.000400502 | M78: 0.0329997 | N78: -0.826628 | O78: 0.0664511 | P78: 1.592017e-35 | Q78: -0.00103159 | R78: 0.000491547 | S78: 0.03584616 | T78: 0.257327110357143
A79: SLC43A1 | B79: ENSG00000149150 | C79: 11 | D79: 57252007 | E79: rs2439448 | F79: 11 | G79: 57199211 | H79: C | I79: T | J79: 0.240557 | K79: 0.000885477 | L79: 0.000398773 | M79: 0.0259998 | N79: 0.60215 | O79: 0.0851982 | P79: 1.575947e-12 | Q79: 0.00147053 | R79: 0.000694164 | S79: 0.03414025 | T79: 0.257327110357143
A80: TMEM128 | B80: ENSG00000132406 | C80: 4 | D80: 4237269 | E80: rs17642102 | F80: 4 | G80: 4244002 | H80: A | I80: C | J80: 0.337972 | K80: -0.00082187 | L80: 0.000362394 | M80: 0.02300011 | N80: 0.405375 | O80: 0.0604968 | P80: 2.07332e-11 | Q80: -0.00202743 | R80: 0.000943787 | S80: 0.03169881 | T80: 0.257327110357143
A81: ZNF302 | B81: ENSG00000089335 | C81: 19 | D81: 35168544 | E81: rs10401309 | F81: 19 | G81: 35175749 | H81: G | I81: C | J81: 0.115308 | K81: -0.0011622 | L81: 0.000569648 | M81: 0.04099964 | N81: -1.06972 | O81: 0.0878537 | P81: 4.164494e-34 | Q81: 0.00108645 | R81: 0.000539944 | S81: 0.04420343 | T81: 0.257327110357143
A82: ZNF304 | B82: ENSG00000131845 | C82: 19 | D82: 57862675 | E82: rs862703 | F82: 19 | G82: 57865082 | H82: C | I82: T | J82: 0.710736 | K82: -0.000820494 | L82: 0.000393864 | M82: 0.03699985 | N82: 0.842618 | O82: 0.0676218 | P82: 1.222126e-35 | Q82: -0.000973744 | R82: 0.000473916 | S82: 0.03991034 | T82: 0.257327110357143
A83: ZNF761 | B83: ENSG00000160336 | C83: 19 | D83: 53935227 | E83: rs2617762 | F83: 19 | G83: 53935414 | H83: C | I83: T | J83: 0.55666 | K83: 0.000828927 | L83: 0.000353625 | M83: 0.01899984 | N83: -0.41732 | O83: 0.0600364 | P83: 3.624158e-12 | Q83: -0.00198631 | R83: 0.000894256 | S83: 0.02633825 | T83: 0.257327110357143
A84: ABCA3 | B84: ENSG00000167972 | C84: 16 | D84: 2325882 | E84: rs4787273 | F84: 16 | G84: 2349760 | H84: T | I84: G | J84: 0.321074 | K84: -0.00073045 | L84: 0.000382781 | M84: 0.05600025 | N84: -0.302329 | O84: 0.0449996 | P84: 1.836182e-11 | Q84: 0.00241608 | R84: 0.00131619 | S84: 0.06640771 | T84: 0.260680852791878
A85: ACOT1 | B85: ENSG00000184227 | C85: 14 | D85: 74003818 | E85: rs12433922 | F85: 14 | G85: 74038071 | H85: A | I85: G | J85: 0.27336 | K85: 0.0006703 | L85: 0.000382267 | M85: 0.08 | N85: 0.866714 | O85: 0.0868089 | P85: 1.788183e-23 | Q85: 0.000773381 | R85: 0.000447804 | S85: 0.08415807 | T85: 0.260680852791878
A86: ACSL1 | B86: ENSG00000151726 | C86: 4 | D86: 185676749 | E86: rs56226652 | F86: 4 | G86: 185748702 | H86: A | I86: G | J86: 0.253479 | K86: 0.000621293 | L86: 0.000404574 | M86: 0.1199999 | N86: -0.371872 | O86: 0.0678211 | P86: 4.17858e-08 | Q86: -0.00167072 | R86: 0.0011298 | S86: 0.139202 | T86: 0.260680852791878
A87: ADH5 | B87: ENSG00000197894 | C87: 4 | D87: 99992132 | E87: rs13107558 | F87: 4 | G87: 100050200 | H87: A | I87: C | J87: 0.301193 | K87: -0.000557061 | L87: 0.000379077 | M87: 0.14 | N87: 0.372448 | O87: 0.0582365 | P87: 1.600872e-10 | Q87: -0.00149567 | R87: 0.00104432 | S87: 0.1520872 | T87: 0.260680852791878
A88: ALDH6A1 | B88: ENSG00000119711 | C88: 14 | D88: 74523553 | E88: rs10147388 | F88: 14 | G88: 74662478 | H88: G | I88: T | J88: 0.815109 | K88: 0.000680193 | L88: 0.00045526 | M88: 0.14 | N88: 0.211933 | O88: 0.0359053 | P88: 3.579236e-09 | Q88: 0.00320947 | R88: 0.00221588 | S88: 0.1475064 | T88: 0.260680852791878
A89: AMPD3 | B89: ENSG00000133805 | C89: 11 | D89: 10329860 | E89: rs930672 | F89: 11 | G89: 10478508 | H89: A | I89: T | J89: 0.7833 | K89: 0.000672924 | L89: 0.000434936 | M89: 0.1199999 | N89: 0.482827 | O89: 0.0872786 | P89: 3.165668e-08 | Q89: 0.00139372 | R89: 0.000935378 | S89: 0.1362235 | T89: 0.260680852791878
A90: ANKRD65 | B90: ENSG00000235098 | C90: 1 | D90: 1353800 | E90: rs4970449 | F90: 1 | G90: 1353632 | H90: G | I90: A | J90: 0.0934394 | K90: 0.00103404 | L90: 0.000659232 | M90: 0.1199999 | N90: -1.42771 | O90: 0.100993 | P90: 2.254086e-45 | Q90: -0.000724265 | R90: 0.000464574 | S90: 0.1189998 | T90: 0.260680852791878
A91: ARHGAP27 | B91: ENSG00000159314 | C91: 17 | D91: 43471275 | E91: rs4523963 | F91: 17 | G91: 43570226 | H91: G | I91: T | J91: 0.730616 | K91: 0.00079526 | L91: 0.000414555 | M91: 0.05499966 | N91: 0.560299 | O91: 0.09767 | P91: 9.656422e-09 | Q91: 0.00141935 | R91: 0.000780154 | S91: 0.06886275 | T91: 0.260680852791878
A92: ARL3 | B92: ENSG00000138175 | C92: 10 | D92: 104433488 | E92: rs12764899 | F92: 10 | G92: 104635103 | H92: A | I92: G | J92: 0.234592 | K92: 0.000704891 | L92: 0.000419234 | M92: 0.09299937 | N92: 0.412703 | O92: 0.0719871 | P92: 9.865977e-09 | Q92: 0.00170799 | R92: 0.00105861 | S92: 0.1066529 | T92: 0.260680852791878
A93: ASAH1 | B93: ENSG00000104763 | C93: 8 | D93: 17913934 | E93: rs10503609 | F93: 8 | G93: 17918768 | H93: T | I93: C | J93: 0.342942 | K93: -0.000686178 | L93: 0.00036763 | M93: 0.06199976 | N93: -0.532099 | O93: 0.0590064 | P93: 1.921669e-19 | Q93: 0.00128957 | R93: 0.00070555 | S93: 0.06758715 | T93: 0.260680852791878
A94: ASAH2B | B94: ENSG00000204147 | C94: 10 | D94: 52499078 | E94: rs67440360 | F94: 10 | G94: 52508516 | H94: T | I94: C | J94: 0.347913 | K94: 0.000544398 | L94: 0.00036898 | M94: 0.14 | N94: -0.72969 | O94: 0.0683482 | P94: 1.317257e-26 | Q94: -0.000746067 | R94: 0.000510473 | S94: 0.143872 | T94: 0.260680852791878
A95: ASB13 | B95: ENSG00000196372 | C95: 10 | D95: 5680830 | E95: rs871749 | F95: 10 | G95: 5701833 | H95: A | I95: G | J95: 0.235586 | K95: -0.00069554 | L95: 0.000408215 | M95: 0.08799946 | N95: 0.373405 | O95: 0.0635667 | P95: 4.248313e-09 | Q95: -0.0018627 | R95: 0.00113828 | S95: 0.101754 | T95: 0.260680852791878
A96: ASB2 | B96: ENSG00000100628 | C96: 14 | D96: 94400499 | E96: rs941483 | F96: 14 | G96: 94422623 | H96: T | I96: A | J96: 0.776342 | K96: 0.00069964 | L96: 0.000449712 | M96: 0.1199999 | N96: 0.572825 | O96: 0.102317 | P96: 2.161686e-08 | Q96: 0.00122139 | R96: 0.000814826 | S96: 0.1338859 | T96: 0.260680852791878
A97: ATG4C | B97: ENSG00000125703 | C97: 1 | D97: 63249806 | E97: rs12085401 | F97: 1 | G97: 63293950 | H97: C | I97: T | J97: 0.138171 | K97: -0.000737163 | L97: 0.000469712 | M97: 0.1199999 | N97: 0.4807 | O97: 0.0639706 | P97: 5.717779e-14 | Q97: -0.00153352 | R97: 0.000998225 | S97: 0.124478 | T97: 0.260680852791878
A98: BTAF1 | B98: ENSG00000095564 | C98: 10 | D98: 93683526 | E98: rs833383 | F98: 10 | G98: 93758689 | H98: G | I98: A | J98: 0.737575 | K98: -0.000792877 | L98: 0.000398724 | M98: 0.04700023 | N98: 0.339427 | O98: 0.0445687 | P98: 2.620457e-14 | Q98: -0.00233593 | R98: 0.00121408 | S98: 0.05435077 | T98: 0.260680852791878
A99: BUB1B | B99: ENSG00000156970 | C99: 15 | D99: 40453224 | E99: rs56205728 | F99: 15 | G99: 40567237 | H99: A | I99: G | J99: 0.28827 | K99: 0.000590711 | L99: 0.000396597 | M99: 0.14 | N99: 0.683957 | O99: 0.113882 | P99: 1.903382e-09 | Q99: 0.000863667 | R99: 0.000597422 | S99: 0.1482738 | T99: 0.260680852791878
A100: C5 | B100: ENSG00000106804 | C100: 9 | D100: 123714616 | E100: rs2159777 | F100: 9 | G100: 123783056 | H100: G | I100: T | J100: 0.526839 | K100: 0.00065135 | L100: 0.000350058 | M100: 0.06299992 | N100: 0.332637 | O100: 0.0586876 | P100: 1.445338e-08 | Q100: 0.00195814 | R100: 0.00110763 | S100: 0.0770832 | T100: 0.260680852791878
A101: CARD16 | B101: ENSG00000204397 | C101: 11 | D101: 104912053 | E101: rs1942521 | F101: 11 | G101: 104479262 | H101: G | I101: A | J101: 0.224652 | K101: -0.000713527 | L101: 0.000438981 | M101: 0.1 | N101: 0.475669 | O101: 0.0788628 | P101: 1.623438e-09 | Q101: -0.00150005 | R101: 0.000955794 | S101: 0.1165482 | T101: 0.260680852791878
A102: CAST | B102: ENSG00000153113 | C102: 5 | D102: 95860971 | E102: rs4267886 | F102: 5 | G102: 95997266 | H102: C | I102: T | J102: 0.151093 | K102: -0.000814259 | L102: 0.000481979 | M102: 0.09099971 | N102: 0.499979 | O102: 0.0604717 | P102: 1.362435e-16 | Q102: -0.00162859 | R102: 0.000983917 | S102: 0.09788242 | T102: 0.260680852791878
A103: CBR1 | B103: ENSG00000159228 | C103: 21 | D103: 37442239 | E103: rs73367285 | F103: 21 | G103: 37361594 | H103: T | I103: C | J103: 0.0367793 | K103: -0.00180838 | L103: 0.00101299 | M103: 0.07399971 | N103: -0.839479 | O103: 0.122809 | P103: 8.163005e-12 | Q103: 0.00215417 | R103: 0.00124716 | S103: 0.08412115 | T103: 0.260680852791878
A104: CCDC25 | B104: ENSG00000147419 | C104: 8 | D104: 27590835 | E104: rs10097446 | F104: 8 | G104: 27625974 | H104: C | I104: A | J104: 0.530815 | K104: 0.000543777 | L104: 0.000350753 | M104: 0.1199999 | N104: -0.56969 | O104: 0.0567131 | P104: 9.653505e-24 | Q104: -0.000954514 | R104: 0.000622981 | S104: 0.1254798 | T104: 0.260680852791878
A105: CD274 | B105: ENSG00000120217 | C105: 9 | D105: 5450503 | E105: rs822342 | F105: 9 | G105: 5453973 | H105: C | I105: T | J105: 0.715706 | K105: -0.000646316 | L105: 0.000400478 | M105: 0.1100001 | N105: 0.879503 | O105: 0.100023 | P105: 1.455662e-18 | Q105: -0.000734865 | R105: 0.000462952 | S105: 0.1124341 | T105: 0.260680852791878
A106: CD55 | B106: ENSG00000196352 | C106: 1 | D106: 207494853 | E106: rs2564975 | F106: 1 | G106: 207483957 | H106: C | I106: T | J106: 0.744533 | K106: 0.000686535 | L106: 0.00037785 | M106: 0.06900014 | N106: -0.428834 | O106: 0.0736604 | P106: 5.822632e-09 | Q106: -0.00160093 | R106: 0.000923025 | S106: 0.08283951 | T106: 0.260680852791878
A107: CDC25A | B107: ENSG00000164045 | C107: 3 | D107: 48198636 | E107: rs11715799 | F107: 3 | G107: 48255220 | H107: G | I107: A | J107: 0.290258 | K107: 0.000673032 | L107: 0.000374929 | M107: 0.07299952 | N107: 0.921276 | O107: 0.101407 | P107: 1.038022e-19 | Q107: 0.000730543 | R107: 0.000414835 | S107: 0.07823103 | T107: 0.260680852791878
A108: CDC42BPA | B108: ENSG00000143776 | C108: 1 | D108: 227177566 | E108: rs72632825 | F108: 1 | G108: 227508118 | H108: C | I108: T | J108: 0.149105 | K108: 0.000893151 | L108: 0.000502183 | M108: 0.07499978 | N108: 0.541827 | O108: 0.0866672 | P108: 4.057088e-10 | Q108: 0.00164841 | R108: 0.000963608 | S108: 0.08714371 | T108: 0.260680852791878
A109: CENPK | B109: ENSG00000123219 | C109: 5 | D109: 64813593 | E109: rs62369011 | F109: 5 | G109: 64845427 | H109: T | I109: C | J109: 0.32008 | K109: -0.000664281 | L109: 0.000369578 | M109: 0.07199959 | N109: 0.618143 | O109: 0.0924782 | P109: 2.321804e-11 | Q109: -0.00107464 | R109: 0.000619123 | S109: 0.08260905 | T109: 0.260680852791878
A110: CEP128 | B110: ENSG00000100629 | C110: 14 | D110: 80943330 | E110: rs179246 | F110: 14 | G110: 81431596 | H110: T | I110: C | J110: 0.451292 | K110: -0.000553267 | L110: 0.000353428 | M110: 0.1199999 | N110: 0.45491 | O110: 0.0780616 | P110: 5.623768e-09 | Q110: -0.00121621 | R110: 0.000804461 | S110: 0.130576 | T110: 0.260680852791878
A111: CEP85 | B111: ENSG00000130695 | C111: 1 | D111: 26560691 | E111: rs6700455 | F111: 1 | G111: 26545864 | H111: C | I111: T | J111: 0.297217 | K111: -0.000749353 | L111: 0.000393439 | M111: 0.05699936 | N111: 0.590841 | O111: 0.0575746 | P111: 1.043279e-24 | Q111: -0.00126828 | R111: 0.000677268 | S111: 0.06111762 | T111: 0.260680852791878
A112: CHDH | B112: ENSG00000016391 | C112: 3 | D112: 53846362 | E112: rs6445606 | F112: 3 | G112: 53856050 | H112: T | I112: C | J112: 0.690855 | K112: -0.000613744 | L112: 0.000375336 | M112: 0.1 | N112: 0.566771 | O112: 0.0788242 | P112: 6.464243e-13 | Q112: -0.00108288 | R112: 0.000679145 | S112: 0.1108299 | T112: 0.260680852791878
A113: CKAP2 | B113: ENSG00000136108 | C113: 13 | D113: 53029564 | E113: rs9526927 | F113: 13 | G113: 53051627 | H113: T | I113: C | J113: 0.564612 | K113: -0.000497716 | L113: 0.000350243 | M113: 0.16 | N113: -0.764859 | O113: 0.0559809 | P113: 1.691949e-42 | Q113: 0.000650729 | R113: 0.000460389 | S113: 0.157528 | T113: 0.260680852791878
A114: COMMD5 | B114: ENSG00000170619 | C114: 8 | D114: 146066427 | E114: rs1735405 | F114: 8 | G114: 146070554 | H114: T | I114: C | J114: 0.271372 | K114: -0.00062796 | L114: 0.000384755 | M114: 0.1 | N114: 0.463145 | O114: 0.0697244 | P114: 3.083771e-11 | Q114: -0.00135586 | R114: 0.000855453 | S114: 0.1129751 | T114: 0.260680852791878
A115: CORO6 | B115: ENSG00000167549 | C115: 17 | D115: 27941774 | E115: rs1808923 | F115: 17 | G115: 27980885 | H115: T | I115: C | J115: 0.462227 | K115: 0.000512498 | L115: 0.000350615 | M115: 0.14 | N115: -0.305258 | O115: 0.0537525 | P115: 1.355221e-08 | Q115: -0.0016789 | R115: 0.00118602 | S115: 0.1569007 | T115: 0.260680852791878
A116: CRIM1 | B116: ENSG00000150938 | C116: 2 | D116: 36583069 | E116: rs848613 | F116: 2 | G116: 36814848 | H116: C | I116: G | J116: 0.400596 | K116: 0.000637444 | L116: 0.00036435 | M116: 0.08 | N116: 0.401192 | O116: 0.0532861 | P116: 5.112176e-14 | Q116: 0.00158888 | R116: 0.000932365 | S116: 0.08835617 | T116: 0.260680852791878
A117: DBNL | B117: ENSG00000136279 | C117: 7 | D117: 44084239 | E117: rs17546439 | F117: 7 | G117: 44100373 | H117: T | I117: C | J117: 0.0656064 | K117: 0.0012329 | L117: 0.00076739 | M117: 0.1100001 | N117: 0.910248 | O117: 0.149503 | P117: 1.13992e-09 | Q117: 0.00135447 | R117: 0.000871914 | S117: 0.120318 | T117: 0.260680852791878
A118: EAF1 | B118: ENSG00000144597 | C118: 3 | D118: 15468862 | E118: rs6762233 | F118: 3 | G118: 15588661 | H118: C | I118: T | J118: 0.316103 | K118: -0.000602626 | L118: 0.000372807 | M118: 0.1100001 | N118: 0.862259 | O118: 0.057204 | P118: 2.423032e-51 | Q118: -0.000698892 | R118: 0.00043484 | S118: 0.1080017 | T118: 0.260680852791878
A119: EGFR | B119: ENSG00000146648 | C119: 7 | D119: 55086714 | E119: rs76928645 | F119: 7 | G119: 54941328 | H119: T | I119: C | J119: 0.127237 | K119: -0.000846602 | L119: 0.000577 | M119: 0.14 | N119: -0.309394 | O119: 0.0506522 | P119: 1.007608e-09 | Q119: 0.00273632 | R119: 0.00191799 | S119: 0.1536764 | T119: 0.260680852791878
A120: F11R | B120: ENSG00000158769 | C120: 1 | D120: 160965001 | E120: rs10908821 | F120: 1 | G120: 161008535 | H120: G | I120: C | J120: 0.130219 | K120: 0.000855438 | L120: 0.0005319 | M120: 0.1100001 | N120: 0.903001 | O120: 0.103133 | P120: 2.028534e-18 | Q120: 0.000947328 | R120: 0.00059889 | S120: 0.113694 | T120: 0.260680852791878
A121: FANCA | B121: ENSG00000187741 | C121: 16 | D121: 89803957 | E121: rs12207 | F121: 16 | G121: 90002360 | H121: A | I121: G | J121: 0.0695825 | K121: -0.00145992 | L121: 0.0007724 | M121: 0.05899973 | N121: 0.518628 | O121: 0.0947914 | P121: 4.468594e-08 | Q121: -0.00281497 | R121: 0.00157568 | S121: 0.07401698 | T121: 0.260680852791878
A122: FARP1 | B122: ENSG00000152767 | C122: 13 | D122: 98794816 | E122: rs9517313 | F122: 13 | G122: 99105892 | H122: C | I122: G | J122: 0.38171 | K122: -0.000553305 | L122: 0.000359865 | M122: 0.1199999 | N122: 0.26241 | O122: 0.0480814 | P122: 4.825662e-08 | Q122: -0.00210855 | R122: 0.00142477 | S122: 0.1388927 | T122: 0.260680852791878
A123: FASTKD1 | B123: ENSG00000138399 | C123: 2 | D123: 170386259 | E123: rs16857042 | F123: 2 | G123: 170419108 | H123: G | I123: A | J123: 0.0675944 | K123: 0.000947786 | L123: 0.000626735 | M123: 0.1299999 | N123: 0.79597 | O123: 0.0987473 | P123: 7.587113e-16 | Q123: 0.00119073 | R123: 0.000801122 | S123: 0.1371923 | T123: 0.260680852791878
A124: FEZ2 | B124: ENSG00000171055 | C124: 2 | D124: 36778570 | E124: rs14291 | F124: 2 | G124: 36810586 | H124: C | I124: T | J124: 0.411531 | K124: 0.000548048 | L124: 0.000359927 | M124: 0.1299999 | N124: 0.842955 | O124: 0.0695592 | P124: 8.425826e-34 | Q124: 0.000650151 | R124: 0.00043034 | S124: 0.1308431 | T124: 0.260680852791878
A125: FIGNL1 | B125: ENSG00000132436 | C125: 7 | D125: 50511831 | E125: rs12670555 | F125: 7 | G125: 50465654 | H125: G | I125: A | J125: 0.466203 | K125: 0.000550669 | L125: 0.000350378 | M125: 0.1199999 | N125: 0.845337 | O125: 0.0585854 | P125: 3.393384e-47 | Q125: 0.00065142 | R125: 0.000416935 | S125: 0.1181933 | T125: 0.260680852791878
A126: FUBP1 | B126: ENSG00000162613 | C126: 1 | D126: 78409740 | E126: rs34517439 | F126: 1 | G126: 78450517 | H126: A | I126: C | J126: 0.0914513 | K126: -0.000814834 | L126: 0.00054141 | M126: 0.1299999 | N126: -0.300495 | O126: 0.0459612 | P126: 6.234089e-11 | Q126: 0.00271164 | R126: 0.00184885 | S126: 0.1424674 | T126: 0.260680852791878
A127: GPX1 | B127: ENSG00000233276 | C127: 3 | D127: 49394609 | E127: rs7622786 | F127: 3 | G127: 49518551 | H127: G | I127: A | J127: 0.767396 | K127: -0.000810212 | L127: 0.000399654 | M127: 0.04300015 | N127: -0.312139 | O127: 0.0508661 | P127: 8.436486e-10 | Q127: 0.00259568 | R127: 0.00134843 | S127: 0.05423471 | T127: 0.260680852791878
A128: GPX4 | B128: ENSG00000167468 | C128: 19 | D128: 1103936 | E128: rs4807542 | F128: 19 | G128: 1104078 | H128: A | I128: G | J128: 0.185885 | K128: -0.000747401 | L128: 0.000471857 | M128: 0.1100001 | N128: 0.565705 | O128: 0.0621727 | P128: 9.122713e-20 | Q128: -0.00132119 | R128: 0.000846649 | S128: 0.1186446 | T128: 0.260680852791878
A129: GUF1 | B129: ENSG00000151806 | C129: 4 | D129: 44680444 | E129: rs62305383 | F129: 4 | G129: 44708086 | H129: C | I129: G | J129: 0.244533 | K129: -0.00079397 | L129: 0.000417143 | M129: 0.05699936 | N129: -0.652842 | O129: 0.0740453 | P129: 1.177815e-18 | Q129: 0.00121617 | R129: 0.000653684 | S129: 0.06281578 | T129: 0.260680852791878
A130: HAPLN4 | B130: ENSG00000187664 | C130: 19 | D130: 19366450 | E130: rs56212061 | F130: 19 | G130: 19394640 | H130: T | I130: C | J130: 0.16004 | K130: -0.000836281 | L130: 0.000489215 | M130: 0.08700015 | N130: 0.290229 | O130: 0.0470712 | P130: 7.015422e-10 | Q130: -0.00288145 | R130: 0.0017492 | S130: 0.09949723 | T130: 0.260680852791878
A131: HBQ1 | B131: ENSG00000086506 | C131: 16 | D131: 230452 | E131: rs8045291 | F131: 16 | G131: 277912 | H131: G | I131: A | J131: 0.0606362 | K131: -0.00130374 | L131: 0.000686578 | M131: 0.05800027 | N131: 1.12523 | O131: 0.167763 | P131: 1.983004e-11 | Q131: -0.00115864 | R131: 0.000634148 | S131: 0.06768696 | T131: 0.260680852791878
A132: HLA-DRB1 | B132: ENSG00000196126 | C132: 6 | D132: 32546546 | E132: rs9271182 | F132: 6 | G132: 32578230 | H132: G | I132: A | J132: 0.733598 | K132: -0.000559254 | L132: 0.000390478 | M132: 0.1499999 | N132: -0.716959 | O132: 0.0721272 | P132: 2.782745e-23 | Q132: 0.000780036 | R132: 0.000550255 | S132: 0.1563105 | T132: 0.260680852791878
A133: HLA-DRB5 | B133: ENSG00000198502 | C133: 6 | D133: 32485120 | E133: rs9271525 | F133: 6 | G133: 32589842 | H133: A | I133: G | J133: 0.861829 | K133: -0.000730648 | L133: 0.00047879 | M133: 0.1299999 | N133: -1.34979 | O133: 0.104763 | P133: 5.524065e-38 | Q133: 0.000541305 | R133: 0.000357194 | S133: 0.1296616 | T133: 0.260680852791878
A134: HRAS | B134: ENSG00000174775 | C134: 11 | D134: 532242 | E134: rs12628 | F134: 11 | G134: 534242 | H134: G | I134: A | J134: 0.312127 | K134: -0.00057712 | L134: 0.000368035 | M134: 0.1199999 | N134: -0.286645 | O134: 0.039657 | P134: 4.897771e-13 | Q134: 0.00201336 | R134: 0.00131381 | S134: 0.1254082 | T134: 0.260680852791878
A135: HRH3 | B135: ENSG00000101180 | C135: 20 | D135: 60790026 | E135: rs6062156 | F135: 20 | G135: 60799488 | H135: G | I135: C | J135: 0.16998 | K135: 0.000765716 | L135: 0.000469803 | M135: 0.1 | N135: 0.492457 | O135: 0.0851022 | P135: 7.180133e-09 | Q135: 0.00155489 | R135: 0.000991117 | S135: 0.1166888 | T135: 0.260680852791878
A136: HYAL3 | B136: ENSG00000186792 | C136: 3 | D136: 50330262 | E136: rs2236947 | F136: 3 | G136: 50371432 | H136: A | I136: C | J136: 0.463221 | K136: 0.000651296 | L136: 0.00034996 | M136: 0.06299992 | N136: -0.652065 | O136: 0.0595188 | P136: 6.244831e-28 | Q136: -0.000998821 | R136: 0.000544384 | S136: 0.06653919 | T136: 0.260680852791878
A137: IRF3 | B137: ENSG00000126456 | C137: 19 | D137: 50162826 | E137: rs2304207 | F137: 19 | G137: 50167726 | H137: G | I137: C | J137: 0.173956 | K137: -0.000707962 | L137: 0.000481619 | M137: 0.14 | N137: 0.381152 | O137: 0.0640163 | P137: 2.61687e-09 | Q137: -0.00185743 | R137: 0.00130153 | S137: 0.1535475 | T137: 0.260680852791878
A138: KLHDC7B | B138: ENSG00000130487 | C138: 22 | D138: 50986462 | E138: rs1557502 | F138: 22 | G138: 51013998 | H138: T | I138: C | J138: 0.17992 | K138: -0.000692926 | L138: 0.000458558 | M138: 0.1299999 | N138: -0.726244 | O138: 0.123603 | P138: 4.213292e-09 | Q138: 0.000954123 | R138: 0.000651958 | S138: 0.1433378 | T138: 0.260680852791878
A139: LANCL1 | B139: ENSG00000115365 | C139: 2 | D139: 211295973 | E139: rs3755184 | F139: 2 | G139: 211317995 | H139: C | I139: G | J139: 0.538767 | K139: 0.000694943 | L139: 0.000353195 | M139: 0.04900044 | N139: 0.195275 | O139: 0.0290876 | P139: 1.90222e-11 | Q139: 0.00355879 | R139: 0.00188479 | S139: 0.05900391 | T139: 0.260680852791878
A140: LDHD | B140: ENSG00000166816 | C140: 16 | D140: 75145758 | E140: rs730168 | F140: 16 | G140: 75150275 | H140: T | I140: C | J140: 0.201789 | K140: -0.000766166 | L140: 0.000451891 | M140: 0.08999948 | N140: -0.280432 | O140: 0.0514268 | P140: 4.951821e-08 | Q140: 0.00273209 | R140: 0.0016875 | S140: 0.1054441 | T140: 0.260680852791878
A141: LNX2 | B141: ENSG00000139517 | C141: 13 | D141: 28120050 | E141: rs79210301 | F141: 13 | G141: 28206542 | H141: G | I141: A | J141: 0.0715706 | K141: 0.00136389 | L141: 0.000720268 | M141: 0.05800027 | N141: 1.28122 | O141: 0.12711 | P141: 6.800972e-24 | Q141: 0.00106452 | R141: 0.000572008 | S141: 0.06273977 | T141: 0.260680852791878
A142: LRPPRC | B142: ENSG00000138095 | C142: 2 | D142: 44113647 | E142: rs28394191 | F142: 2 | G142: 44172444 | H142: C | I142: A | J142: 0.412525 | K142: -0.000688472 | L142: 0.000358386 | M142: 0.05499966 | N142: 0.308856 | O142: 0.0311431 | P142: 3.500153e-23 | Q142: -0.0022291 | R142: 0.00118193 | S142: 0.05929789 | T142: 0.260680852791878
A143: LRWD1 | B143: ENSG00000161036 | C143: 7 | D143: 102105376 | E143: rs4473948 | F143: 7 | G143: 102112397 | H143: T | I143: A | J143: 0.734592 | K143: 0.000578954 | L143: 0.000394432 | M143: 0.14 | N143: -0.704165 | O143: 0.0638326 | P143: 2.695174e-28 | Q143: -0.000822185 | R143: 0.000565078 | S143: 0.145671 | T143: 0.260680852791878
A144: MAL2 | B144: ENSG00000147676 | C144: 8 | D144: 120177273 | E144: rs1364708 | F144: 8 | G144: 120195363 | H144: A | I144: G | J144: 0.683897 | K144: -0.000524633 | L144: 0.000367563 | M144: 0.1499999 | N144: 0.810806 | O144: 0.0686651 | P144: 3.544056e-32 | Q144: -0.000647051 | R144: 0.00045663 | S144: 0.156479 | T144: 0.260680852791878
A145: MAP3K5 | B145: ENSG00000197442 | C145: 6 | D145: 136878185 | E145: rs9483947 | F145: 6 | G145: 137105400 | H145: T | I145: C | J145: 0.601392 | K145: 0.000567256 | L145: 0.0003624 | M145: 0.1199999 | N145: -0.486875 | O145: 0.0755613 | P145: 1.1679e-10 | Q145: -0.0011651 | R145: 0.000765987 | S145: 0.1282501 | T145: 0.260680852791878
A146: MAPK13 | B146: ENSG00000156711 | C146: 6 | D146: 36095586 | E146: rs3752525 | F146: 6 | G146: 36070671 | H146: T | I146: G | J146: 0.560636 | K146: -0.000527403 | L146: 0.000350901 | M146: 0.1299999 | N146: -0.842717 | O146: 0.063141 | P146: 1.240145e-40 | Q146: 0.000625836 | R146: 0.000419024 | S146: 0.1352917 | T146: 0.260680852791878
A147: MAPK14 | B147: ENSG00000112062 | C147: 6 | D147: 35995488 | E147: rs9296174 | F147: 6 | G147: 36090015 | H147: C | I147: T | J147: 0.559642 | K147: -0.000578407 | L147: 0.000352951 | M147: 0.1 | N147: 0.295578 | O147: 0.0518704 | P147: 1.209428e-08 | Q147: -0.00195687 | R147: 0.0012425 | S147: 0.1152703 | T147: 0.260680852791878
A148: MASTL | B148: ENSG00000120539 | C148: 10 | D148: 27443753 | E148: rs882474 | F148: 10 | G148: 27477865 | H148: T | I148: G | J148: 0.602386 | K148: 0.000527852 | L148: 0.000365243 | M148: 0.1499999 | N148: 0.889721 | O148: 0.0694475 | P148: 1.415221e-37 | Q148: 0.000593278 | R148: 0.000413118 | S148: 0.1509741 | T148: 0.260680852791878
A149: MCM6 | B149: ENSG00000076003 | C149: 2 | D149: 136597196 | E149: rs7564577 | F149: 2 | G149: 136576166 | H149: C | I149: T | J149: 0.818091 | K149: 0.00122111 | L149: 0.000596055 | M149: 0.04 | N149: -0.454772 | O149: 0.0809288 | P149: 1.916153e-08 | Q149: -0.0026851 | R149: 0.00139505 | S149: 0.05426258 | T149: 0.260680852791878
A150: MCM8 | B150: ENSG00000125885 | C150: 20 | D150: 5931298 | E150: rs236126 | F150: 20 | G150: 5978141 | H150: T | I150: C | J150: 0.172962 | K150: 0.000865749 | L150: 0.000465895 | M150: 0.06299992 | N150: -0.521973 | O150: 0.0540167 | P150: 4.322392e-22 | Q150: -0.00165861 | R150: 0.000908919 | S150: 0.06802902 | T150: 0.260680852791878
A151: MEF2B | B151: ENSG00000213999 | C151: 19 | D151: 19256377 | E151: rs2239370 | F151: 19 | G151: 19292674 | H151: C | I151: T | J151: 0.526839 | K151: 0.0006606 | L151: 0.000352398 | M151: 0.06100002 | N151: -0.538584 | O151: 0.0593258 | P151: 1.101714e-19 | Q151: -0.00122655 | R151: 0.000668108 | S151: 0.06637904 | T151: 0.260680852791878
A152: MSL1 | B152: ENSG00000188895 | C152: 17 | D152: 38278551 | E152: rs117827273 | F152: 17 | G152: 38279036 | H152: G | I152: C | J152: 0.161034 | K152: 0.000737511 | L152: 0.000490837 | M152: 0.1299999 | N152: -0.733629 | O152: 0.078424 | P152: 8.387491e-21 | Q152: -0.00100529 | R152: 0.000677629 | S152: 0.1379303 | T152: 0.260680852791878
A153: NAA38 | B153: ENSG00000128534 | C153: 7 | D153: 117824086 | E153: rs2896242 | F153: 7 | G153: 117824239 | H153: C | I153: G | J153: 0.668986 | K153: -0.000624905 | L153: 0.000371788 | M153: 0.09299937 | N153: 0.533929 | O153: 0.068735 | P153: 7.977908e-15 | Q153: -0.00117039 | R153: 0.000712439 | S153: 0.1004259 | T153: 0.260680852791878
A154: NAV3 | B154: ENSG00000067798 | C154: 12 | D154: 78224685 | E154: rs2694837 | F154: 12 | G154: 78558259 | H154: A | I154: G | J154: 0.536779 | K154: -0.000575986 | L154: 0.000351117 | M154: 0.1 | N154: 0.432175 | O154: 0.068463 | P154: 2.744992e-10 | Q154: -0.00133276 | R154: 0.000839427 | S154: 0.1123533 | T154: 0.260680852791878
A155: NCEH1 | B155: ENSG00000144959 | C155: 3 | D155: 172348039 | E155: rs35940383 | F155: 3 | G155: 172430904 | H155: C | I155: T | J155: 0.705765 | K155: 0.000691046 | L155: 0.000376279 | M155: 0.0659994 | N155: 0.404498 | O155: 0.0565439 | P155: 8.446715e-13 | Q155: 0.0017084 | R155: 0.000960402 | S155: 0.07526572 | T155: 0.260680852791878
A156: NFXL1 | B156: ENSG00000170448 | C156: 4 | D156: 47849257 | E156: rs321624 | F156: 4 | G156: 47995983 | H156: A | I156: T | J156: 0.0417495 | K156: 0.00179736 | L156: 0.0011058 | M156: 0.1 | N156: 1.29944 | O156: 0.147889 | P156: 1.541743e-18 | Q156: 0.00138318 | R156: 0.00086542 | S156: 0.1099813 | T156: 0.260680852791878
A157: NPEPL1 | B157: ENSG00000215440 | C157: 20 | D157: 57264187 | E157: rs8115194 | F157: 20 | G157: 57281809 | H157: T | I157: C | J157: 0.242545 | K157: -0.000800408 | L157: 0.000417978 | M157: 0.05499966 | N157: -0.414396 | O157: 0.0556611 | P157: 9.695823e-14 | Q157: 0.00193151 | R157: 0.00104148 | S157: 0.06365535 | T157: 0.260680852791878
A158: NUPR1 | B158: ENSG00000176046 | C158: 16 | D158: 28548606 | E158: rs4149398 | F158: 16 | G158: 28608938 | H158: G | I158: C | J158: 0.317097 | K158: -0.000601234 | L158: 0.000361389 | M158: 0.09599973 | N158: 0.418956 | O158: 0.0666596 | P158: 3.278327e-10 | Q158: -0.00143508 | R158: 0.000892303 | S158: 0.107773 | T158: 0.260680852791878
A159: OSGEP | B159: ENSG00000092094 | C159: 14 | D159: 20914570 | E159: rs2275007 | F159: 14 | G159: 20920250 | H159: C | I159: T | J159: 0.628231 | K159: -0.000548254 | L159: 0.000356502 | M159: 0.1199999 | N159: 0.689589 | O159: 0.0519165 | P159: 2.918159e-40 | Q159: -0.000795045 | R159: 0.000520431 | S159: 0.1265956 | T159: 0.260680852791878
A160: P4HTM | B160: ENSG00000178467 | C160: 3 | D160: 49027319 | E160: rs6769821 | F160: 3 | G160: 49244657 | H160: A | I160: G | J160: 0.760437 | K160: -0.00073346 | L160: 0.000395953 | M160: 0.064 | N160: 0.359027 | O160: 0.0522944 | P160: 6.625829e-12 | Q160: -0.00204291 | R160: 0.00114229 | S160: 0.07370545 | T160: 0.260680852791878
A161: PAM | B161: ENSG00000145730 | C161: 5 | D161: 102089685 | E161: rs2657433 | F161: 5 | G161: 101999586 | H161: G | I161: T | J161: 0.718688 | K161: 0.000542682 | L161: 0.000368675 | M161: 0.14 | N161: -0.490401 | O161: 0.0615837 | P161: 1.67691e-15 | Q161: -0.00110661 | R161: 0.000764519 | S161: 0.1477687 | T161: 0.260680852791878
A162: PARP11 | B162: ENSG00000111224 | C162: 12 | D162: 3900213 | E162: rs11062873 | F162: 12 | G162: 3965962 | H162: G | I162: A | J162: 0.121272 | K162: -0.001044 | L162: 0.00057537 | M162: 0.07000032 | N162: -0.721649 | O162: 0.103239 | P162: 2.747381e-12 | Q162: 0.00144669 | R162: 0.000823723 | S162: 0.07904087 | T162: 0.260680852791878
A163: PASK | B163: ENSG00000115687 | C163: 2 | D163: 242045514 | E163: rs758072 | F163: 2 | G163: 242083872 | H163: T | I163: G | J163: 0.0864811 | K163: -0.00122128 | L163: 0.000637387 | M163: 0.05499966 | N163: 0.791467 | O163: 0.0971268 | P163: 3.675518e-16 | Q163: -0.00154306 | R163: 0.000827287 | S163: 0.06215278 | T163: 0.260680852791878
A164: PCSK9 | B164: ENSG00000169174 | C164: 1 | D164: 55505221 | E164: rs11583680 | F164: 1 | G164: 55505668 | H164: T | I164: C | J164: 0.134195 | K164: -0.000846548 | L164: 0.000504928 | M164: 0.09400046 | N164: -0.807053 | O164: 0.127018 | P164: 2.099798e-10 | Q164: 0.00104894 | R164: 0.000647058 | S164: 0.1049991 | T164: 0.260680852791878
A165: PDXDC2P | B165: ENSG00000255185 | C165: 16 | D165: 70044654 | E165: rs3192882 | F165: 16 | G165: 69975631 | H165: T | I165: A | J165: 0.397614 | K165: 0.000584758 | L165: 0.000360017 | M165: 0.1 | N165: -0.72967 | O165: 0.0546176 | P165: 1.040872e-40 | Q165: -0.000801401 | R165: 0.00049703 | S165: 0.1068797 | T165: 0.260680852791878
A166: PLA2G4C | B166: ENSG00000105499 | C166: 19 | D166: 48551100 | E166: rs972800 | F166: 19 | G166: 48689393 | H166: G | I166: T | J166: 0.05666 | K166: 0.00118628 | L166: 0.000803426 | M166: 0.14 | N166: 0.741792 | O166: 0.127668 | P166: 6.234559e-09 | Q166: 0.00159921 | R166: 0.00111751 | S166: 0.1524178 | T166: 0.260680852791878
A167: PNPLA7 | B167: ENSG00000130653 | C167: 9 | D167: 140354404 | E167: rs10746563 | F167: 9 | G167: 140444078 | H167: C | I167: T | J167: 0.447316 | K167: -0.000553562 | L167: 0.000357774 | M167: 0.1199999 | N167: 0.489264 | O167: 0.0656461 | P167: 9.120107e-14 | Q167: -0.00113142 | R167: 0.00074684 | S167: 0.1297878 | T167: 0.260680852791878
A168: PPCDC | B168: ENSG00000138621 | C168: 15 | D168: 75315896 | E168: rs7172065 | F168: 15 | G168: 75321910 | H168: T | I168: C | J168: 0.0795229 | K168: -0.00104126 | L168: 0.000707294 | M168: 0.14 | N168: 0.759102 | O168: 0.1281 | P168: 3.107079e-09 | Q168: -0.0013717 | R168: 0.000960074 | S168: 0.1530778 | T168: 0.260680852791878
A169: PRDM8 | B169: ENSG00000152784 | C169: 4 | D169: 81105033 | E169: rs35556069 | F169: 4 | G169: 81130965 | H169: T | I169: C | J169: 0.27336 | K169: 0.000680715 | L169: 0.000401069 | M169: 0.08999948 | N169: 0.261139 | O169: 0.0477669 | P169: 4.578656e-08 | Q169: 0.00260672 | R169: 0.00160816 | S169: 0.1050321 | T169: 0.260680852791878
A170: PRIM1 | B170: ENSG00000198056 | C170: 12 | D170: 57125380 | E170: rs2277339 | F170: 12 | G170: 57146069 | H170: G | I170: T | J170: 0.111332 | K170: -0.00100542 | L170: 0.00057291 | M170: 0.07900053 | N170: -0.595427 | O170: 0.0761512 | P170: 5.323852e-15 | Q170: 0.00168857 | R170: 0.000986121 | S170: 0.08683486 | T170: 0.260680852791878
A171: PRKD2 | B171: ENSG00000105287 | C171: 19 | D171: 47177532 | E171: rs7249039 | F171: 19 | G171: 47266635 | H171: G | I171: A | J171: 0.387674 | K171: -0.000535444 | L171: 0.00036157 | M171: 0.14 | N171: 0.265127 | O171: 0.0458666 | P171: 7.452631e-09 | Q171: -0.00201958 | R171: 0.0014078 | S171: 0.1514135 | T171: 0.260680852791878
A172: PSMB7 | B172: ENSG00000136930 | C172: 9 | D172: 127115745 | E172: rs3780198 | F172: 9 | G172: 127175598 | H172: C | I172: G | J172: 0.384692 | K172: 0.000569669 | L172: 0.000352775 | M172: 0.1100001 | N172: -0.234261 | O172: 0.0377624 | P172: 5.520262e-10 | Q172: -0.00243177 | R172: 0.00155609 | S172: 0.1181126 | T172: 0.260680852791878
A173: PTPN12 | B173: ENSG00000127947 | C173: 7 | D173: 77166592 | E173: rs6960252 | F173: 7 | G173: 77168385 | H173: A | I173: G | J173: 0.32008 | K173: -0.000681604 | L173: 0.000380986 | M173: 0.07399971 | N173: 0.339139 | O173: 0.0525471 | P173: 1.089328e-10 | Q173: -0.00200981 | R173: 0.00116575 | S173: 0.0847005 | T173: 0.260680852791878
A174: PYGM | B174: ENSG00000068976 | C174: 11 | D174: 64513861 | E174: rs496914 | F174: 11 | G174: 64487394 | H174: T | I174: C | J174: 0.912525 | K174: 0.000957872 | L174: 0.000602634 | M174: 0.1100001 | N174: 0.523725 | O174: 0.0809798 | P174: 9.973323e-11 | Q174: 0.00182896 | R174: 0.00118491 | S174: 0.1226993 | T174: 0.260680852791878
A175: RABL2A | B175: ENSG00000144134 | C175: 2 | D175: 114384806 | E175: rs793077 | F175: 2 | G175: 114393214 | H175: A | I175: G | J175: 0.252485 | K175: -0.000630855 | L175: 0.000400598 | M175: 0.1199999 | N175: -0.495836 | O175: 0.072216 | P175: 6.602095e-12 | Q175: 0.00127231 | R175: 0.000828903 | S175: 0.1248016 | T175: 0.260680852791878
A176: RAD50 | B176: ENSG00000113522 | C176: 5 | D176: 131891711 | E176: rs13165038 | F176: 5 | G176: 131813350 | H176: C | I176: T | J176: 0.33499 | K176: 0.000629889 | L176: 0.00037423 | M176: 0.09200046 | N176: 0.345162 | O176: 0.0545494 | P176: 2.491407e-10 | Q176: 0.00182491 | R176: 0.00112192 | S176: 0.1038231 | T176: 0.260680852791878
A177: RALGAPA1 | B177: ENSG00000174373 | C177: 14 | D177: 36007558 | E177: rs10134876 | F177: 14 | G177: 36321116 | H177: C | I177: T | J177: 0.145129 | K177: -0.00103848 | L177: 0.000539945 | M177: 0.05399953 | N177: 0.798589 | O177: 0.0848593 | P177: 4.926404e-21 | Q177: -0.00130039 | R177: 0.0006901 | S177: 0.05951682 | T177: 0.260680852791878
A178: RBMS2 | B178: ENSG00000076067 | C178: 12 | D178: 56915713 | E178: rs7975238 | F178: 12 | G178: 56922990 | H178: G | I178: A | J178: 0.487078 | K178: 0.000567191 | L178: 0.000349962 | M178: 0.1100001 | N178: -0.346685 | O178: 0.0579703 | P178: 2.226074e-09 | Q178: -0.00163604 | R178: 0.00104586 | S178: 0.1177483 | T178: 0.260680852791878
A179: RECQL4 | B179: ENSG00000160957 | C179: 8 | D179: 145736667 | E179: rs11557085 | F179: 8 | G179: 145752900 | H179: T | I179: C | J179: 0.457256 | K179: 0.000625694 | L179: 0.000352504 | M179: 0.07599937 | N179: 0.329767 | O179: 0.0537989 | P179: 8.8085e-10 | Q179: 0.00189738 | R179: 0.00111286 | S179: 0.0882032 | T179: 0.260680852791878
A180: RGS14 | B180: ENSG00000169220 | C180: 5 | D180: 176784838 | E180: rs10051765 | F180: 5 | G180: 176799992 | H180: C | I180: T | J180: 0.33996 | K180: 0.000601069 | L180: 0.00037121 | M180: 0.1100001 | N180: -0.707762 | O180: 0.0770075 | P180: 3.898396e-20 | Q180: -0.000849253 | R180: 0.000532562 | S180: 0.110789 | T180: 0.260680852791878
A181: RGS17 | B181: ENSG00000091844 | C181: 6 | D181: 153325594 | E181: rs6932473 | F181: 6 | G181: 153438573 | H181: T | I181: A | J181: 0.313121 | K181: -0.000777359 | L181: 0.000382232 | M181: 0.04200007 | N181: -0.30236 | O181: 0.0523717 | P181: 7.771042e-09 | Q181: 0.00257097 | R181: 0.0013403 | S181: 0.05508546 | T181: 0.260680852791878
A182: RHOF | B182: ENSG00000139725 | C182: 12 | D182: 122215664 | E182: rs1667578 | F182: 12 | G182: 122238380 | H182: G | I182: T | J182: 0.823062 | K182: 0.000696025 | L182: 0.000450857 | M182: 0.1199999 | N182: 0.368243 | O182: 0.0667262 | P182: 3.414862e-08 | Q182: 0.00189012 | R182: 0.00127135 | S182: 0.1370918 | T182: 0.260680852791878
A183: RPS26 | B183: ENSG00000197728 | C183: 12 | D183: 56435637 | E183: rs1131017 | F183: 12 | G183: 56435929 | H183: G | I183: C | J183: 0.591451 | K183: 0.000516114 | L183: 0.000353681 | M183: 0.14 | N183: -1.14754 | O183: 0.0564232 | P183: 5.918545e-92 | Q183: -0.000449757 | R183: 0.000309 | S183: 0.1455247 | T183: 0.260680852791878
A184: RPS6 | B184: ENSG00000137154 | C184: 9 | D184: 19375713 | E184: rs41270113 | F184: 9 | G184: 19380239 | H184: T | I184: A | J184: 0.0914513 | K184: -0.00124883 | L184: 0.000652374 | M184: 0.05600025 | N184: 0.524395 | O184: 0.0912416 | P184: 9.066686e-09 | Q184: -0.00238147 | R184: 0.00131124 | S184: 0.06934097 | T184: 0.260680852791878
A185: SARDH | B185: ENSG00000123453 | C185: 9 | D185: 136528682 | E185: rs7033395 | F185: 9 | G185: 136532545 | H185: T | I185: C | J185: 0.168986 | K185: 0.000709474 | L185: 0.000444102 | M185: 0.1100001 | N185: -0.351336 | O185: 0.0508918 | P185: 5.07038e-12 | Q185: -0.00201936 | R185: 0.00129744 | S185: 0.1196087 | T185: 0.260680852791878
A186: SDK2 | B186: ENSG00000069188 | C186: 17 | D186: 71330523 | E186: rs7220304 | F186: 17 | G186: 71342433 | H186: T | I186: C | J186: 0.808151 | K186: -0.000692776 | L186: 0.00044865 | M186: 0.1199999 | N186: 0.498653 | O186: 0.0646266 | P186: 1.201172e-14 | Q186: -0.00138929 | R186: 0.000917564 | S186: 0.1299973 | T186: 0.260680852791878
A187: SEC23B | B187: ENSG00000101310 | C187: 20 | D187: 18488137 | E187: rs2281576 | F187: 20 | G187: 18488754 | H187: C | I187: G | J187: 0.922465 | K187: 0.00128215 | L187: 0.000696865 | M187: 0.0659994 | N187: -0.940073 | O187: 0.0817431 | P187: 1.31395e-30 | Q187: -0.00136388 | R187: 0.000750715 | S187: 0.0692509 | T187: 0.260680852791878
A188: SERPINB1 | B188: ENSG00000021355 | C188: 6 | D188: 2832566 | E188: rs386713 | F188: 6 | G188: 2842139 | H188: T | I188: C | J188: 0.693837 | K188: 0.00065706 | L188: 0.000387182 | M188: 0.08999948 | N188: -0.639792 | O188: 0.0848991 | P188: 4.849307e-14 | Q188: -0.00102699 | R188: 0.000620323 | S188: 0.09780851 | T188: 0.260680852791878
A189: SETDB2 | B189: ENSG00000136169 | C189: 13 | D189: 50018429 | E189: rs4942830 | F189: 13 | G189: 50019376 | H189: A | I189: T | J189: 0.528827 | K189: 0.000671187 | L189: 0.000352358 | M189: 0.05699936 | N189: 0.348761 | O189: 0.0543814 | P189: 1.42459e-10 | Q189: 0.00192449 | R189: 0.00105394 | S189: 0.06785 | T189: 0.260680852791878
A190: SFMBT1 | B190: ENSG00000163935 | C190: 3 | D190: 52937588 | E190: rs12492391 | F190: 3 | G190: 52912296 | H190: A | I190: C | J190: 0.375746 | K190: -0.000582613 | L190: 0.000365399 | M190: 0.1100001 | N190: 0.414217 | O190: 0.0744332 | P190: 2.622301e-08 | Q190: -0.00140654 | R190: 0.000917639 | S190: 0.1253294 | T190: 0.260680852791878
A191: SIRPB1 | B191: ENSG00000101307 | C191: 20 | D191: 1544167 | E191: rs6136377 | F191: 20 | G191: 1896288 | H191: G | I191: A | J191: 0.374751 | K191: 0.000631009 | L191: 0.000361161 | M191: 0.08100093 | N191: 1.23554 | O191: 0.0775091 | P191: 3.313096e-57 | Q191: 0.000510715 | R191: 0.000294061 | S191: 0.08242828 | T191: 0.260680852791878
A192: SIRT3 | B192: ENSG00000142082 | C192: 11 | D192: 215458 | E192: rs3216 | F192: 11 | G192: 214421 | H192: C | I192: G | J192: 0.205765 | K192: -0.00070728 | L192: 0.00043096 | M192: 0.1 | N192: -0.43032 | O192: 0.0733357 | P192: 4.415905e-09 | Q192: 0.00164361 | R192: 0.00103992 | S192: 0.1139884 | T192: 0.260680852791878
A193: SLC1A4 | B193: ENSG00000115902 | C193: 2 | D193: 65215611 | E193: rs1861443 | F193: 2 | G193: 65218647 | H193: A | I193: G | J193: 0.143141 | K193: 0.000967025 | L193: 0.000524909 | M193: 0.0649995 | N193: 0.507412 | O193: 0.089449 | P193: 1.406129e-08 | Q193: 0.0019058 | R193: 0.00108767 | S193: 0.07974209 | T193: 0.260680852791878
A194: SLC2A11 | B194: ENSG00000133460 | C194: 22 | D194: 24198890 | E194: rs73158772 | F194: 22 | G194: 24200827 | H194: A | I194: G | J194: 0.082505 | K194: 0.000975482 | L194: 0.000630633 | M194: 0.1199999 | N194: -0.71922 | O194: 0.104845 | P194: 6.892811e-12 | Q194: -0.00135631 | R194: 0.000898844 | S194: 0.1313131 | T194: 0.260680852791878
A195: SLC39A4 | B195: ENSG00000147804 | C195: 8 | D195: 145635126 | E195: rs7842602 | F195: 8 | G195: 145651888 | H195: A | I195: G | J195: 0.525845 | K195: -0.000572054 | L195: 0.000350191 | M195: 0.1 | N195: 0.535638 | O195: 0.0846831 | P195: 2.528935e-10 | Q195: -0.00106799 | R195: 0.000675234 | S195: 0.1137288 | T195: 0.260680852791878
A196: SLC8A3 | B196: ENSG00000100678 | C196: 14 | D196: 70510934 | E196: rs8018678 | F196: 14 | G196: 70598173 | H196: T | I196: C | J196: 0.158052 | K196: 0.000742799 | L196: 0.000474663 | M196: 0.1199999 | N196: -0.473026 | O196: 0.0851218 | P196: 2.743696e-08 | Q196: -0.00157031 | R196: 0.00104249 | S196: 0.1319875 | T196: 0.260680852791878
A197: SLX4 | B197: ENSG00000188827 | C197: 16 | D197: 3631182 | E197: rs11861770 | F197: 16 | G197: 3664009 | H197: A | I197: G | J197: 0.220676 | K197: -0.000827277 | L197: 0.000424485 | M197: 0.05099998 | N197: -0.446598 | O197: 0.0483623 | P197: 2.596926e-20 | Q197: 0.0018524 | R197: 0.000971423 | S197: 0.05653469 | T197: 0.260680852791878
A198: SNX24 | B198: ENSG00000064652 | C198: 5 | D198: 122179134 | E198: rs35939166 | F198: 5 | G198: 122394850 | H198: G | I198: A | J198: 0.0308151 | K198: -0.00157388 | L198: 0.000867333 | M198: 0.07000032 | N198: -0.60158 | O198: 0.108774 | P198: 3.192196e-08 | Q198: 0.00261624 | R198: 0.00151738 | S198: 0.08467471 | T198: 0.260680852791878
A199: SPAG9 | B199: ENSG00000008294 | C199: 17 | D199: 49039535 | E199: rs9332407 | F199: 17 | G199: 49054439 | H199: C | I199: T | J199: 0.456262 | K199: -0.000678968 | L199: 0.000350392 | M199: 0.0530005 | N199: 0.185906 | O199: 0.0337858 | P199: 3.744761e-08 | Q199: -0.00365221 | R199: 0.00199824 | S199: 0.0675919 | T199: 0.260680852791878
A200: ST7 | B200: ENSG00000004866 | C200: 7 | D200: 116593292 | E200: rs75026136 | F200: 7 | G200: 116723896 | H200: A | I200: G | J200: 0.0984095 | K200: -0.000992848 | L200: 0.000599259 | M200: 0.09800089 | N200: -0.829661 | O200: 0.089878 | P200: 2.681837e-20 | Q200: 0.00119669 | R200: 0.000733835 | S200: 0.1029463 | T200: 0.260680852791878
... 128 more rows

Sheet S8 Cortex
A1: S8 eQTL-GWAS (Cortex) In Discovery Cohort
A2: Gene | B2: probeID | C2: ProbeChr | D2: Probe_bp | E2: topSNP | F2: topSNP_chr | G2: topSNP_bp | H2: A1 | I2: A2 | J2: Freq | K2: b_GWAS | L2: se_GWAS | M2: p_GWAS | N2: b_eQTL | O2: se_eQTL | P2: p_eQTL | Q2: b_SMR | R2: se_SMR | S2: p_SMR | T2: p_HEIDI | U2: nsnp_HEIDI | V2: pval_adj_SMR
A3: ABCC6 | B3: ENSG00000091262 | C3: 16 | D3: 16242785 | E3: rs2283503 | F3: 16 | G3: 16295615 | H3: A | I3: G | J3: 0.359841 | K3: 0.000303025 | L3: 0.000371061 | M3: 0.4100001 | N3: 0.514193 | O3: 0.0707501 | P3: 3.655608e-13 | Q3: 0.000589322 | R3: 0.000726179 | S3: 0.4170571 | T3: 0.8847987 | U3: 18 | V3: 0.740817340909091
A4: ABHD11 | B4: ENSG00000106077 | C4: 7 | D4: 73150424 | E4: rs6460052 | F4: 7 | G4: 73151644 | H4: G | I4: A | J4: 0.489066 | K4: 0.000338279 | L4: 0.000349956 | M4: 0.33 | N4: -0.46146 | O4: 0.0626225 | P4: 1.720192e-13 | Q4: -0.000733062 | R4: 0.000764864 | S4: 0.3378499 | T4: 0.05657004 | U4: 12 | V4: 0.691966317708333
A5: ABLIM3 | B5: ENSG00000173210 | C5: 5 | D5: 148521046 | E5: rs2963490 | F5: 5 | G5: 148594477 | H5: G | I5: A | J5: 0.406561 | K5: 1.50218e-05 | L5: 0.000351486 | M5: 0.9699999 | N5: -0.442511 | O5: 0.0606988 | P5: 3.093221e-13 | Q5: -3.39E-05 | R5: 0.000794313 | S5: 0.965911 | T5: 0.7952747 | U5: 20 | V5: 0.991600122340426
A6: ACADS | B6: ENSG00000122971 | C6: 12 | D6: 121163538 | E6: rs2239760 | F6: 12 | G6: 121163518 | H6: A | I6: C | J6: 0.425447 | K6: 0.000339622 | L6: 0.00035736 | M6: 0.3400001 | N6: 0.382223 | O6: 0.0357113 | P6: 9.838037e-27 | Q6: 0.000888544 | R6: 0.00093863 | S6: 0.3438226 | T6: 0.09523872 | U6: 20 | V6: 0.691966317708333
A7: ACAT1 | B7: ENSG00000075239 | C7: 11 | D7: 107992243 | E7: rs3741056 | F7: 11 | G7: 107992346 | H7: C | I7: G | J7: 0.341948 | K7: -0.000342801 | L7: 0.000380184 | M7: 0.3700002 | N7: 0.438882 | O7: 0.0565481 | P7: 8.411479e-15 | Q7: -0.000781078 | R7: 0.000872082 | S7: 0.3704412 | T7: 0.350149 | U7: 20 | V7: 0.714951516
A8: ACOT1 | B8: ENSG00000184227 | C8: 14 | D8: 74003818 | E8: rs11626972 | F8: 14 | G8: 74033594 | H8: G | I8: A | J8: 0.44831 | K8: -0.000692042 | L8: 0.000354236 | M8: 0.05099998 | N8: -0.668589 | O8: 0.0753396 | P8: 7.035297e-19 | Q8: 0.00103508 | R8: 0.000542513 | S8: 0.0563998 | T8: 0.01690775 | U8: 20 | V8: 0.470099683448276
A9: AGMAT | B9: ENSG00000116771 | C9: 1 | D9: 15898848 | E9: rs45619934 | F9: 1 | G9: 15911947 | H9: T | I9: G | J9: 0.295229 | K9: 0.000215754 | L9: 0.000377236 | M9: 0.5700002 | N9: 0.299592 | O9: 0.0453498 | P9: 3.941741e-11 | Q9: 0.000720159 | R9: 0.00126388 | S9: 0.5688118 | T9: 0.8111002 | U9: 14 | V9: 0.801318813138686
A10: AGT | B10: ENSG00000135744 | C10: 1 | D10: 230838269 | E10: rs10864769 | F10: 1 | G10: 230833927 | H10: G | I10: A | J10: 0.208748 | K10: 8.17334e-05 | L10: 0.000431682 | M10: 0.8499999 | N10: -0.391872 | O10: 0.0415893 | P10: 4.408211e-21 | Q10: -0.000208572 | R10: 0.00110181 | S10: 0.8498586 | T10: 0.8904634 | U10: 20 | V10: 0.951977908241758
A11: AHSA1 | B11: ENSG00000100591 | C11: 14 | D11: 77924213 | E11: rs35881785 | F11: 14 | G11: 77873571 | H11: T | I11: C | J11: 0.502982 | K11: -0.000225263 | L11: 0.000351126 | M11: 0.5199996 | N11: 0.182213 | O11: 0.0303643 | P11: 1.962324e-09 | Q11: -0.00123626 | R11: 0.00193799 | S11: 0.5235326 | T11: 0.3780637 | U11: 20 | V11: 0.783269703875969
A12: AIFM2 | B12: ENSG00000042286 | C12: 10 | D12: 71857979 | E12: rs6480442 | F12: 10 | G12: 71900246 | H12: T | I12: C | J12: 0.406561 | K12: 0.000366123 | L12: 0.000363818 | M12: 0.3100002 | N12: -0.645252 | O12: 0.0580776 | P12: 1.119564e-28 | Q12: -0.000567411 | R12: 0.000566147 | S12: 0.3162312 | T12: 0.2336955 | U12: 20 | V12: 0.656264748387097
A13: AKAP13 | B13: ENSG00000170776 | C13: 15 | D13: 85923802 | E13: rs1861856 | F13: 15 | G13: 86198561 | H13: C | I13: G | J13: 0.225646 | K13: 0.000639238 | L13: 0.000429665 | M13: 0.14 | N13: 0.518747 | O13: 0.0720642 | P13: 6.092192e-13 | Q13: 0.00123227 | R13: 0.00084578 | S13: 0.1451257 | T13: 0.3668044 | U13: 20 | V13: 0.530835126785714
A14: AKR1C1 | B14: ENSG00000187134 | C14: 10 | D14: 4934796 | E14: rs12569724 | F14: 10 | G14: 4992242 | H14: T | I14: A | J14: 0.298211 | K14: 0.000278921 | L14: 0.000379062 | M14: 0.4600002 | N14: 0.753845 | O14: 0.110771 | P14: 1.007442e-11 | Q14: 0.000369998 | R14: 0.000505769 | S14: 0.4644401 | T14: 0.5958238 | U14: 18 | V14: 0.753251590756303
A15: AKR1C2 | B15: ENSG00000151632 | C15: 10 | D15: 5029967 | E15: rs71477878 | F15: 10 | G15: 4978744 | H15: A | I15: G | J15: 0.133201 | K15: -0.000184897 | L15: 0.000542706 | M15: 0.7300002 | N15: 1.11907 | O15: 0.133481 | P15: 5.126802e-17 | Q15: -0.000165224 | R15: 0.000485362 | S15: 0.7335451 | T15: 0.1536534 | U15: 20 | V15: 0.913381963225806
A16: ALDH5A1 | B16: ENSG00000112294 | C16: 6 | D16: 24495080 | E16: rs2760141 | F16: 6 | G16: 24480897 | H16: T | I16: C | J16: 0.338966 | K16: -0.000294516 | L16: 0.000363792 | M16: 0.4199997 | N16: -0.209777 | O16: 0.0343221 | P16: 9.838498e-10 | Q16: 0.00140395 | R16: 0.00174933 | S16: 0.4222275 | T16: 0.7879576 | U16: 20 | V16: 0.740817340909091
A17: ALKBH3 | B17: ENSG00000166199 | C17: 11 | D17: 43902361 | E17: rs2271820 | F17: 11 | G17: 43905096 | H17: C | I17: T | J17: 0.235586 | K17: -0.0003302 | L17: 0.000406749 | M17: 0.4199997 | N17: 0.49869 | O17: 0.0738534 | P17: 1.453916e-11 | Q17: -0.000662135 | R17: 0.000821508 | S17: 0.4202435 | T17: 0.7460559 | U17: 15 | V17: 0.740817340909091
A18: ALOX5 | B18: ENSG00000012779 | C18: 10 | D18: 45869661 | E18: rs148767623 | F18: 10 | G18: 45842274 | H18: G | I18: A | J18: 0.126243 | K18: 0.000505986 | L18: 0.000557893 | M18: 0.3599996 | N18: 0.768772 | O18: 0.0964885 | P18: 1.619219e-15 | Q18: 0.000658174 | R18: 0.00073038 | S18: 0.3675143 | T18: 0.5685702 | U18: 20 | V18: 0.714951516
A19: AP1S3 | B19: ENSG00000152056 | C19: 2 | D19: 224616403 | E19: rs55944411 | F19: 2 | G19: 224640896 | H19: C | I19: T | J19: 0.0467197 | K19: 0.000677514 | L19: 0.000903362 | M19: 0.4500005 | N19: 0.755953 | O19: 0.126032 | P19: 1.996338e-09 | Q19: 0.000896238 | R19: 0.0012043 | S19: 0.4567575 | T19: 0.161363 | U19: 7 | V19: 0.750179223728814
A20: ARHGAP11A | B20: ENSG00000198826 | C20: 15 | D20: 32907345 | E20: rs73369102 | F20: 15 | G20: 32907712 | H20: T | I20: C | J20: 0.280318 | K20: 0.000246326 | L20: 0.000417486 | M20: 0.56 | N20: -0.566137 | O20: 0.0754137 | P20: 6.045787e-14 | Q20: -0.0004351 | R20: 0.000739703 | S20: 0.5563925 | T20: 0.4737472 | U20: 16 | V20: 0.792032122794118
A21: ARHGAP27 | B21: ENSG00000159314 | C21: 17 | D21: 43471275 | E21: rs111423688 | F21: 17 | G21: 43538523 | H21: A | I21: G | J21: 0.193837 | K21: 0.00144566 | L21: 0.000450298 | M21: 0.00129999 | N21: 0.373643 | O21: 0.0683023 | P21: 4.489495e-08 | Q21: 0.00386909 | R21: 0.00139737 | S21: 0.005625555 | T21: 0.3119125 | U21: 7 | V21: 0.361910705
A22: ASAP3 | B22: ENSG00000088280 | C22: 1 | D22: 23755056 | E22: rs61778890 | F22: 1 | G22: 23809597 | H22: A | I22: G | J22: 0.146123 | K22: 0.000745661 | L22: 0.000504171 | M22: 0.14 | N22: -0.236299 | O22: 0.0433079 | P22: 4.862799e-08 | Q22: -0.00315558 | R22: 0.00221061 | S22: 0.1534438 | T22: 0.09222796 | U22: 10 | V22: 0.530835126785714
A23: BARD1 | B23: ENSG00000138376 | C23: 2 | D23: 215590370 | E23: rs17489363 | F23: 2 | G23: 215674341 | H23: G | I23: A | J23: 0.740557 | K23: 0.000335645 | L23: 0.000383705 | M23: 0.3800004 | N23: 0.408613 | O23: 0.0549146 | P23: 1.000151e-13 | Q23: 0.000821425 | R23: 0.000945509 | S23: 0.3849758 | T23: 0.135791 | U23: 20 | V23: 0.731337148543689
A24: BDH2 | B24: ENSG00000164039 | C24: 4 | D24: 104000592 | E24: rs6830624 | F24: 4 | G24: 104020422 | H24: C | I24: T | J24: 0.293241 | K24: -0.000454149 | L24: 0.000389934 | M24: 0.2399999 | N24: 0.248197 | O24: 0.0364202 | P24: 9.438098e-12 | Q24: -0.00182979 | R24: 0.00159385 | S24: 0.2509536 | T24: 0.02472375 | U24: 20 | V24: 0.615878635443038
A25: BDKRB1 | B25: ENSG00000100739 | C25: 14 | D25: 96722161 | E25: rs73361631 | F25: 14 | G25: 96716889 | H25: T | I25: A | J25: 0.0795229 | K25: 0.000955734 | L25: 0.000595221 | M25: 0.1100001 | N25: 1.15062 | O25: 0.159739 | P25: 5.884078e-13 | Q25: 0.000830625 | R25: 0.000530001 | S25: 0.1170648 | T25: 0.3450404 | U25: 7 | V25: 0.513488781818182
A26: CA12 | B26: ENSG00000074410 | C26: 15 | D26: 63613577 | E26: rs28372792 | F26: 15 | G26: 63674295 | H26: C | I26: T | J26: 0.727634 | K26: 0.000114299 | L26: 0.000393562 | M26: 0.7700005 | N26: 0.522092 | O26: 0.0672937 | P26: 8.599825e-15 | Q26: 0.000218925 | R26: 0.000754345 | S26: 0.771649 | T26: 0.7680747 | U26: 20 | V26: 0.946141472327044
A27: CACNA1B | B27: ENSG00000148408 | C27: 9 | D27: 140772241 | E27: rs12001881 | F27: 9 | G27: 141014140 | H27: C | I27: G | J27: 0.385686 | K27: 0.000424711 | L27: 0.000361653 | M27: 0.2399999 | N27: 0.209291 | O27: 0.0272723 | P27: 1.665451e-14 | Q27: 0.00202928 | R27: 0.00174811 | S27: 0.2457041 | T27: 0.0786319 | U27: 20 | V27: 0.615878635443038
A28: CACNG6 | B28: ENSG00000130433 | C28: 19 | D28: 54495542 | E28: rs415129 | F28: 19 | G28: 54514785 | H28: A | I28: G | J28: 0.306163 | K28: 0.000281786 | L28: 0.00037848 | M28: 0.4600002 | N28: 0.600096 | O28: 0.0780143 | P28: 1.447042e-14 | Q28: 0.000469568 | R28: 0.000633646 | S28: 0.4586588 | T28: 0.7911076 | U28: 14 | V28: 0.750179223728814
A29: CANX | B29: ENSG00000127022 | C29: 5 | D29: 179105629 | E29: rs1134924 | F29: 5 | G29: 179126090 | H29: T | I29: C | J29: 0.496024 | K29: -0.000228714 | L29: 0.000350172 | M29: 0.5099998 | N29: -0.301241 | O29: 0.0385239 | P29: 5.299487e-15 | Q29: 0.000759239 | R29: 0.00116648 | S29: 0.5151233 | T29: 0.06702067 | U29: 20 | V29: 0.77670935078125
A30: CAPS | B30: ENSG00000105519 | C30: 19 | D30: 5911718 | E30: rs494642 | F30: 19 | G30: 5988263 | H30: T | I30: C | J30: 0.0874751 | K30: 0.000253298 | L30: 0.000644876 | M30: 0.6899999 | N30: 0.455365 | O30: 0.0736437 | P30: 6.275385e-10 | Q30: 0.000556253 | R30: 0.00141903 | S30: 0.6950615 | T30: 0.3308484 | U30: 17 | V30: 0.894312463333333
A31: CARD8 | B31: ENSG00000105483 | C31: 19 | D31: 48684027 | E31: rs116950953 | F31: 19 | G31: 48732930 | H31: T | I31: C | J31: 0.0427435 | K31: -0.00067201 | L31: 0.000772589 | M31: 0.3800004 | N31: -0.430346 | O31: 0.0784799 | P31: 4.169418e-08 | Q31: 0.00156156 | R31: 0.00181772 | S31: 0.3902991 | T31: 0.5569375 | U31: 10 | V31: 0.731337148543689
A32: CASP7 | B32: ENSG00000165806 | C32: 10 | D32: 115438942 | E32: rs7918733 | F32: 10 | G32: 115439394 | H32: T | I32: C | J32: 0.39662 | K32: 0.000469418 | L32: 0.000360832 | M32: 0.1900002 | N32: 0.355679 | O32: 0.0410148 | P32: 4.247013e-18 | Q32: 0.00131978 | R32: 0.00102584 | S32: 0.198256 | T32: 0.1160185 | U32: 20 | V32: 0.559054149275362
A33: CASP8 | B33: ENSG00000064012 | C33: 2 | D33: 202098166 | E33: rs10200279 | F33: 2 | G33: 202170655 | H33: C | I33: T | J33: 0.707753 | K33: 6.18071e-05 | L33: 0.000392466 | M33: 0.8700001 | N33: -0.877151 | O33: 0.08294 | P33: 3.861469e-26 | Q33: -7.05E-05 | R33: 0.000447482 | S33: 0.8748772 | T33: 0.5680117 | U33: 20 | V33: 0.951977908241758
A34: CAST | B34: ENSG00000153113 | C34: 5 | D34: 95860971 | E34: rs152005 | F34: 5 | G34: 96025847 | H34: G | I34: A | J34: 0.153082 | K34: -0.000847407 | L34: 0.000488276 | M34: 0.08300036 | N34: 0.621712 | O34: 0.0633178 | P34: 9.334988e-23 | Q34: -0.00136302 | R34: 0.000797547 | S34: 0.08744768 | T34: 0.3896968 | U34: 20 | V34: 0.5091972075
A35: CD38 | B35: ENSG00000004468 | C35: 4 | D35: 15779898 | E35: rs4698413 | F35: 4 | G35: 15737882 | H35: T | I35: C | J35: 0.562624 | K35: -0.000335327 | L35: 0.000351892 | M35: 0.3400001 | N35: -0.387414 | O35: 0.0495799 | P35: 5.543063e-15 | Q35: 0.000865552 | R35: 0.000915039 | S35: 0.3441905 | T35: 0.9375272 | U35: 20 | V35: 0.691966317708333
A36: CD55 | B36: ENSG00000196352 | C36: 1 | D36: 207494853 | E36: rs116059019 | F36: 1 | G36: 207572442 | H36: A | I36: G | J36: 0.0735586 | K36: -0.0011 | L36: 0.000654751 | M36: 0.09299937 | N36: 0.609949 | O36: 0.0913045 | P36: 2.383152e-11 | Q36: -0.00180343 | R36: 0.00110688 | S36: 0.1032506 | T36: 0.5319597 | U36: 13 | V36: 0.5091972075
A37: CD59 | B37: ENSG00000085063 | C37: 11 | D37: 33719807 | E37: rs2273121 | F37: 11 | G37: 33757770 | H37: A | I37: G | J37: 0.232604 | K37: -0.000143523 | L37: 0.000400406 | M37: 0.7199992 | N37: -0.345654 | O37: 0.0438345 | P37: 3.134267e-15 | Q37: 0.000415222 | R37: 0.0011596 | S37: 0.720288 | T37: 0.9628043 | U37: 20 | V37: 0.908598588235294
A38: CDAN1 | B38: ENSG00000140326 | C38: 15 | D38: 43015757 | E38: rs2412740 | F38: 15 | G38: 43009448 | H38: C | I38: T | J38: 0.229622 | K38: 0.00010734 | L38: 0.000421843 | M38: 0.8 | N38: 0.370653 | O38: 0.0646979 | P38: 1.010368e-08 | Q38: 0.000289597 | R38: 0.00113923 | S38: 0.7993378 | T38: 0.1316405 | U38: 20 | V38: 0.950440268292683
A39: CES1 | B39: ENSG00000198848 | C39: 16 | D39: 55836763 | E39: rs11076120 | F39: 16 | G39: 55880825 | H39: G | I39: T | J39: 0.262425 | K39: 0.000221803 | L39: 0.000416782 | M39: 0.59 | N39: 0.580661 | O39: 0.0857895 | P39: 1.30182e-11 | Q39: 0.000381984 | R39: 0.000719987 | S39: 0.5957359 | T39: 0.296111 | U39: 11 | V39: 0.805073991608392
A40: CFD | B40: ENSG00000197766 | C40: 19 | D40: 859453 | E40: rs8100258 | F40: 19 | G40: 871222 | H40: A | I40: G | J40: 0.250497 | K40: 0.000731278 | L40: 0.000397583 | M40: 0.0659994 | N40: -0.523196 | O40: 0.0923414 | P40: 1.462651e-08 | Q40: -0.00139771 | R40: 0.000798951 | S40: 0.0802156 | T40: 0.6411583 | U40: 20 | V40: 0.4994068
A41: CHAF1A | B41: ENSG00000167670 | C41: 19 | D41: 4402659 | E41: rs11670503 | F41: 19 | G41: 4458063 | H41: G | I41: A | J41: 0.264414 | K41: 0.000178643 | L41: 0.000394336 | M41: 0.6499995 | N41: -0.40421 | O41: 0.0644877 | P41: 3.656789e-10 | Q41: -0.000441956 | R41: 0.000978117 | S41: 0.6513816 | T41: 0.3067948 | U41: 15 | V41: 0.861072936986301
A42: CKMT1A | B42: ENSG00000223572 | C42: 15 | D42: 43985084 | E42: rs2467426 | F42: 15 | G42: 43989518 | H42: G | I42: A | J42: 0.105368 | K42: 0.00117028 | L42: 0.000579221 | M42: 0.04300015 | N42: 0.39159 | O42: 0.0658251 | P42: 2.698745e-09 | Q42: 0.00298853 | R42: 0.00156213 | S42: 0.0557338 | T42: 0.1586552 | U42: 20 | V42: 0.470099683448276
A43: COBLL1 | B43: ENSG00000082438 | C43: 2 | D43: 165510134 | E43: rs7601375 | F43: 2 | G43: 165604279 | H43: C | I43: T | J43: 0.576541 | K43: -7.27E-05 | L43: 0.000354331 | M43: 0.84 | N43: 0.236273 | O43: 0.0418619 | P43: 1.660401e-08 | Q43: -0.000307661 | R43: 0.00150066 | S43: 0.8375585 | T43: 0.9160125 | U43: 12 | V43: 0.950875238235294
A44: COX16 | B44: ENSG00000133983 | C44: 14 | D44: 70791798 | E44: rs11623369 | F44: 14 | G44: 70821164 | H44: A | I44: G | J44: 0.162028 | K44: -0.000549352 | L44: 0.00046619 | M44: 0.2399999 | N44: -0.534047 | O44: 0.0708536 | P44: 4.796943e-14 | Q44: 0.00102866 | R44: 0.000883542 | S44: 0.2443251 | T44: 0.1729641 | U44: 20 | V44: 0.615878635443038
A45: CSGALNACT2 | B45: ENSG00000169826 | C45: 10 | D45: 43633934 | E45: rs1270015 | F45: 10 | G45: 43698240 | H45: T | I45: G | J45: 0.170974 | K45: 0.000323487 | L45: 0.000466059 | M45: 0.4899999 | N45: 0.832722 | O45: 0.0645269 | P45: 4.215912e-38 | Q45: 0.000388469 | R45: 0.00056049 | S45: 0.488254 | T45: 0.213759 | U45: 20 | V45: 0.770887033333333
A46: CTSH | B46: ENSG00000103811 | C46: 15 | D46: 79213400 | E46: rs62013198 | F46: 15 | G46: 79224322 | H46: A | I46: T | J46: 0.0765408 | K46: 0.000190405 | L46: 0.000675889 | M46: 0.7800007 | N46: 0.525586 | O46: 0.092011 | P46: 1.115199e-08 | Q46: 0.000362272 | R46: 0.00128754 | S46: 0.7784278 | T46: 0.4084792 | U46: 12 | V46: 0.946141472327044
A47: CYP2D6 | B47: ENSG00000100197 | C47: 22 | D47: 42522501 | E47: rs2743451 | F47: 22 | G47: 42534682 | H47: T | I47: C | J47: 0.531809 | K47: -0.000268653 | L47: 0.000351739 | M47: 0.4400003 | N47: 0.812233 | O47: 0.065652 | P47: 3.714656e-35 | Q47: -0.000330759 | R47: 0.000433876 | S47: 0.4458609 | T47: 0.01495559 | U47: 20 | V47: 0.750179223728814
A48: DDX11 | B48: ENSG00000013573 | C48: 12 | D48: 31226779 | E48: rs1808348 | F48: 12 | G48: 31244846 | H48: G | I48: C | J48: 0.439364 | K48: -0.000315961 | L48: 0.000351706 | M48: 0.3700002 | N48: -1.19789 | O48: 0.064039 | P48: 4.455003e-78 | Q48: 0.000263765 | R48: 0.000293943 | S48: 0.3695415 | T48: 0.9755015 | U48: 20 | V48: 0.714951516
A49: DPYSL4 | B49: ENSG00000151640 | C49: 10 | D49: 134000404 | E49: rs2814158 | F49: 10 | G49: 134011002 | H49: T | I49: C | J49: 0.637177 | K49: -0.000863555 | L49: 0.000373425 | M49: 0.02100003 | N49: -0.353193 | O49: 0.0452562 | P49: 5.983164e-15 | Q49: 0.00244499 | R49: 0.00110272 | S49: 0.02660706 | T49: 0.8595636 | U49: 20 | V49: 0.410215116153846
A50: DRAM1 | B50: ENSG00000136048 | C50: 12 | D50: 102271129 | E50: rs12230626 | F50: 12 | G50: 102275477 | H50: C | I50: G | J50: 0.220676 | K50: -9.58E-05 | L50: 0.00042502 | M50: 0.8200001 | N50: -0.28568 | O50: 0.0520699 | P50: 4.100369e-08 | Q50: 0.000335343 | R50: 0.001489 | S50: 0.8218137 | T50: 0.3085097 | U50: 20 | V50: 0.950629608284024
A51: ECH1 | B51: ENSG00000104823 | C51: 19 | D51: 39306062 | E51: rs10411480 | F51: 19 | G51: 39324154 | H51: T | I51: C | J51: 0.593439 | K51: 0.000241183 | L51: 0.000353088 | M51: 0.4899999 | N51: 0.266919 | O51: 0.0431853 | P51: 6.378455e-10 | Q51: 0.000903581 | R51: 0.00133088 | S51: 0.4971796 | T51: 0.2472631 | U51: 20 | V51: 0.773501600787402
A52: EGFR | B52: ENSG00000146648 | C52: 7 | D52: 55086714 | E52: rs77126132 | F52: 7 | G52: 54966738 | H52: A | I52: G | J52: 0.120278 | K52: -0.00113662 | L52: 0.000605655 | M52: 0.06100002 | N52: -0.469397 | O52: 0.064061 | P52: 2.347612e-13 | Q52: 0.00242145 | R52: 0.00133193 | S52: 0.06906444 | T52: 0.4943538 | U52: 15 | V52: 0.470099683448276
A53: FABP1 | B53: ENSG00000163586 | C53: 2 | D53: 88422510 | E53: rs4246598 | F53: 2 | G53: 88438050 | H53: A | I53: C | J53: 0.477137 | K53: 0.000580473 | L53: 0.000352595 | M53: 0.1 | N53: -0.714502 | O53: 0.0806178 | P53: 7.800919e-19 | Q53: -0.000812416 | R53: 0.000501925 | S53: 0.1055331 | T53: 0.1152094 | U53: 20 | V53: 0.5091972075
A54: FAS | B54: ENSG00000026103 | C54: 10 | D54: 90750414 | E54: rs1926196 | F54: 10 | G54: 90753748 | H54: C | I54: T | J54: 0.468191 | K54: -4.64E-05 | L54: 0.000349644 | M54: 0.89 | N54: 0.705961 | O54: 0.0556847 | P54: 7.846661e-37 | Q54: -6.58E-05 | R54: 0.000495301 | S54: 0.8943413 | T54: 0.5799832 | U54: 20 | V54: 0.951977908241758
A55: FLCN | B55: ENSG00000154803 | C55: 17 | D55: 17115526 | E55: rs1708618 | F55: 17 | G55: 17131869 | H55: C | I55: T | J55: 0.567594 | K55: 0.000473377 | L55: 0.000352355 | M55: 0.1800002 | N55: 0.417897 | O55: 0.0450829 | P55: 1.869654e-20 | Q55: 0.00113276 | R55: 0.000851972 | S55: 0.1836586 | T55: 0.6847671 | U55: 20 | V55: 0.542662193939394
A56: FLOT1 | B56: ENSG00000137312 | C56: 6 | D56: 30695486 | E56: rs11961853 | F56: 6 | G56: 30365629 | H56: T | I56: C | J56: 0.122266 | K56: 0.000564808 | L56: 0.000462758 | M56: 0.2200002 | N56: 0.369759 | O56: 0.0612868 | P56: 1.606882e-09 | Q56: 0.0015275 | R56: 0.00127686 | S56: 0.2315827 | T56: 0.8819664 | U56: 20 | V56: 0.612266590410959
A57: FOXN2 | B57: ENSG00000170802 | C57: 2 | D57: 48541776 | E57: rs79073127 | F57: 2 | G57: 48573895 | H57: C | I57: G | J57: 0.12326 | K57: -0.000282675 | L57: 0.000533025 | M57: 0.5999997 | N57: 0.508113 | O57: 0.0555763 | P57: 6.095574e-20 | Q57: -0.000556323 | R57: 0.00105079 | S57: 0.5965056 | T57: 0.05096092 | U57: 20 | V57: 0.805073991608392
A58: GEN1 | B58: ENSG00000178295 | C58: 2 | D58: 17935125 | E58: rs17381084 | F58: 2 | G58: 17914056 | H58: T | I58: G | J58: 0.4334 | K58: 0.000365754 | L58: 0.00035326 | M58: 0.2999998 | N58: 0.3332 | O58: 0.0585482 | P58: 1.26269e-08 | Q58: 0.0010977 | R58: 0.00107761 | S58: 0.3083705 | T58: 0.5508825 | U58: 20 | V58: 0.654016554945055
A59: GNB1L | B59: ENSG00000185838 | C59: 22 | D59: 19770747 | E59: rs3788304 | F59: 22 | G59: 19840196 | H59: G | I59: C | J59: 0.201789 | K59: -0.00050337 | L59: 0.000430749 | M59: 0.2399999 | N59: 0.401617 | O59: 0.069703 | P59: 8.320409e-09 | Q59: -0.00125336 | R59: 0.00109437 | S59: 0.2520954 | T59: 0.6195142 | U59: 20 | V59: 0.615878635443038
A60: GPSM1 | B60: ENSG00000160360 | C60: 9 | D60: 139221932 | E60: rs10870201 | F60: 9 | G60: 139257147 | H60: C | I60: G | J60: 0.466203 | K60: -0.00114313 | L60: 0.00035136 | M60: 0.001099993 | N60: -0.299363 | O60: 0.041342 | P60: 4.449644e-13 | Q60: 0.00381854 | R60: 0.00128672 | S60: 0.003000746 | T60: 0.3340512 | U60: 20 | V60: 0.289571989
